Workbook

Sheet Startseite
B1: Dr. Kriebel Beratungstools - die CX-Tools | G1: DR. KRIEBEL BERATUNGSTOOLS - DIE CX-TOOLS | M1: Dr. Kriebel Beratungstools - die CX-Tools
F20: Herzlich Willkommen!
A45: Version: ., 1V
A49: (C) Prof. Dr. Kriebel
A50: 2008 - 2024

Sheet Hauptmenu
B1: Dr. Kriebel Beratungstools - die CX-Tools | G1: DR. KRIEBEL BERATUNGSTOOLS - DIE CX-TOOLS | M1: Dr. Kriebel Beratungstools - die CX-Tools
A4: Hauptmenu
A6: AVP.Express
A7: AV-Planer
A8: bAV
A10: Cost.Average_Pos
A11: Cost.Average_Neg
A13: Immobilie.Familie
A15: Mtl-Crashkauf
A17: Photovoltaik
A18: Produktprüfer
A20: Rechnen.komplex
A21: Rendite.GRV
A22: Rentenschätzer
A24: Steuerrechner
A26: Vergleich.ETF-LV
A27: Verluste_TopPerf
A38: Einstellungen
A45: Version: ., 1V
A49: (C) Prof. Dr. Kriebel
A50: 2008 - 2024

Sheet AVP.Express
B1: Der Dr. Kriebel AltersVorsorgePlaner Express: Das Wichtigste auf einer Seite | N1: Stand: | O1: 2024-03-04
B2: Persönliche Verwendung für PROF. DR. KRIEBEL | N2: Gültig bis | O2: 31.01.2025
A4: Hauptmenu | C4: Ihr Alter? | H4: 35
C5: Wann möchten Sie aufhören zu arbeiten? | H5: 65
A6: AVP.Express | C6: Wie alt möchten Sie werden? | H6: 95
A7: AV-Planer | C7: Wie hoch ist Ihre gewünschte monatliche Zusatzrente (netto)? | H7: 500
A8: bAV | C8: Mit welchem Zins in der Entnahmezeit sollen wir rechnen? (netto) | H8: 0.03
A10: Cost.Average_Pos
A11: Cost.Average_Neg
C12: Welches Vermögen ist zu Beginn der Rentenzeit notwendig? | H12: 0
A13: Immobilie.Familie
A15: Mtl-Crashkauf | C15: ="Mit welcher Inflationsrate BIS "&H5&" sollen wir rechnen?" -> Mit welcher Inflationsrate BIS 65 sollen wir rechnen? | H15: 0.025
C16: Welche Rente ist zu Beginn der Rentenzeit notwendig? | H16: 0
A17: Photovoltaik | C17: ="Welches Vermögen ist jetzt mit "&H5&" notwendig?" -> Welches Vermögen ist jetzt mit 65 notwendig? | H17: 0
A18: Produktprüfer
A20: Rechnen.komplex | C20: Mit welcher Inflationsrate im Ruhestand sollen wir rechnen? | H20: 0.025
A21: Rendite.GRV | C21: Welches Vermögen ist nun zur Rentenzeit notwendig? | H21: 0
A22: Rentenschätzer
A24: Steuerrechner | C24: Vorhandenes Vermögen, das der Altersvorsorge dienen soll
C25: Welches Vermögen ist heute bereits vorhanden? | H25: 0
A26: Vergleich.ETF-LV | C26: Mit welcher Wertentwicklung netto möchten Sie rechnen? | H26: 0.05
A27: Verluste_TopPerf | C27: Welches Vermögen wird darüber hinaus zum Ruhestand ausgezahlt? | H27: 0
C28: ="Welches Vermögen ist insgesamt mit "& $H$5& " notwendig?" -> Welches Vermögen ist insgesamt mit 65 notwendig? | H28: 0
C31: Mit welchem Anlagezins nach Steuern wollen wir rechnen? | H31: 0.05
C32: Anpassung der Sparrate (Dynamik) pro Jahr | H32: 0.03
C33: Welche monatliche Sparrate ist dafür notwendig? | H33: 0
C35: Das Warten von einem Monat kostet | H35: 0
J39: Bemerkungen
A40: Einstellungen | J40: Das Warten von einem Monat berücksichtigt die im letzten Monat weniger geflossene Sparrate. Die tatsächliche Differenz der Vermögenswerte bei sofortigem und bei verzögertem Sparbeginn liegt daher (u.U. deutlich) höher. Alle Zinsangaben/Wertentwicklungen sind netto, d.h. vor Kosten und Steuern. Details zur Zinsverrechnung finden sich im Modul "Rechnen.komplex".
C42: Copyright und Autor: Prof. Dr. Claus Kriebel
C43: Trotz aller Sorgfalt kann für die Berechnungen keine Gewähr übernommen werden.
C44: Persönliche Version für: PROF. DR. KRIEBEL
A45: Version: 4.21, 2K
A46: CLAUS KRIEBEL
A49: (C) Prof. Dr. Kriebel
A50: 2008 - 2024

Sheet AV-Planer
B1: AltersvorsorgePlaner | N1: Stand: | O1: 2023-10-20
B2: Persönliche Verwendung für CLAUS KRIEBEL | N2: Gültig bis | O2: 31.01.2025
A4: Hauptmenu | C4: Bitte geben Sie Ihr Geburtsdatum ein | H4: 1989-03-14
C5: Geschlecht | H5: m
A6: AVP.Express | C6: Wann möchten Sie aufhören zu arbeiten? | H6: 65
A7: AV-Planer | C7: Wie alt möchten Sie werden? | H7: 95
A8: bAV | C8: Wie hoch ist Ihre gewünschte monatliche Zusatzrente (brutto)? | H8: 1000
C9: Mit welchem Zins in der Entnahmezeit sollen wir rechnen? | H9: 0.02
A10: Cost.Average_Pos | C10: (nach Steuern)
A11: Cost.Average_Neg | C11: ="Möchten Sie eine Reserve mit "&$H$7&" behalten?" -> Möchten Sie eine Reserve mit 95 behalten? | H11: N
C12: (ansonsten wird alles Kapital aufgebraucht)
A13: Immobilie.Familie
A15: Mtl-Crashkauf
C16: Welches Vermögen ist zu Beginn der Rentenzeit notwendig? | H16: 271000
A17: Photovoltaik
A18: Produktprüfer
H19: Weiter
A20: Rechnen.komplex
A21: Rendite.GRV
A22: Rentenschätzer
A24: Steuerrechner | C24: Welches Vermögen ist bereits vorhanden? | H24: 1000
C25: Mit welcher Wertentwicklung von diesem Vermögen sollen wir rechnen? | H25: 0.02
A26: Vergleich.ETF-LV
A27: Verluste_TopPerf
A41: Einstellungen
A45: Version: 4.21, 2K
A46: CLAUS KRIEBEL
A47: CLAUS KRIEBEL
A49: (C) Prof. Dr. Kriebel
A50: 2008 - 2024
A51: 2008 - 2024
AD203: 1. N,
AD204: 3. 6000 €, 0%, 20 Jahre
AH208: etwas realistischer: 153.612 € am Ende, Reicht immer noch ewig. Sie entnehmen ja nichts. Sie legen einfach nur an.
AD210: Sie entnehmen. Jahr für Jahr. Zur Vereinfachung: Am Ende des Jahres entnehmen, immer im Dezember. 6000 € im Jahr, 500 € mtl. 28,07 Jahre. Sie sind 60 …88. Dann ist das Geld aufgebraucht.
AD213: Und Sie sehen hier: geringere Rendite, nicht mehr 2,5%
AD215: 9 Dann in Tabelle, dann in Ergebnisse, dann ein paar Szenarien, dann Entnahme reduzieren auf 1000 €, dann auf 200 €, dann 0€, das heißt: Je mehr ich entnehme, desto stärker verringert sich die Wertentwicklung, wenn die Märkte schwanken.
AD216: 10. 6000 €, Grafik
AD217: 11. Der Fondsvermittler, der Fonds-Fan, der Verbraucherschützer, alles keine bösen Leute, aber oft eben … Sie brauchen ja nicht einmal eine Ausbildung, und dürfen Verbraucherschützer werden.
AD218: 12. Soll-Ist Vermögen. rosa Feld erläutern, 5-10 Szenarien. Sie werden jetzt sagen: Liegt das daran, dass es immer im ersten Jahr einen Verlust gibt? Ja, auch. Nicht nur, auch. Nur das kann ja passieren.
AD219: 13. Sie sehen hier Fußnoten ==> 1x Ja
AD220: 14. | AE220: 2. auch JA, ein paar Mal klicken bis EW unter 60.000 €. "Sie sind unter 60.000 €. Sie haben also nach den ersten 10 Jahren mehr als die Hälfte Ihres Vermögens aufgebraucht. Die Theorie sagt: 28.07 Jahre. Wenn man nachschaut, sieht man: Nach 19 Jahren ist das Geld alle. Das war´s". Und wenn Sie mit 79 Jahren feststellen, dass Ihre rente zu Ende ist, es geht Ihnen aber noch ganz gut, ja was machen Sie denn dann?"
AD221: 15. Klick unten links weißer Kasten
AD222: Fazit: Fonds, besonders EFT´s sind gut, keine Frage. Aber eine lebenslange rente einer Versicherung ist bei Weitem nicht so schlecht, wie es gerade in den Medien dargestellt wird. Nicht nur, dass sie Sicherheit gibt. Der Fondsentnahmeplan führ tdoch eben zu deutlichen Nachteilen. Und bei einem Fondsentnahmeplan verlieren Sie einfach mehr nerven, schauen Sie sich immer diese Grafik hier an.

Sheet bAV
B1: Entgeltumwandlung: Umfassender Vergleich Direktversicherung (bAV) mit PRV und ETF | I1: Stand: | J1: 2024-03-04
B2: Persönliche Verwendung für PROF. DR. KRIEBEL | J2: 31.01.2025
A4: Hauptmenu | B4: Alter / Ruhestandsalter | C4: 35 | D4: 67 | F4: Anstieg Durchschnittseinkommen p.a.: | G4: 0.025
B5: z.v. Einkommen (vor bAV): | C5: 45000 | D5: p.a. | F5: ="Rentenniveauabsenkung absolut bis "&$D$4&":" -> Rentenniveauabsenkung absolut bis 67: | G5: 0.08 | H5: ="(von ca. 48% auf "&100*(48%-G5)&"%)." -> (von ca. 48% auf 40%).
A6: AVP.Express | B6: Gesamtbeitrag brutto (max. 8% BBG RV) | C6: 120 | D6: mtl. | F6: Anstieg p.a. Rentenwert: | G6: =(1+$G$4)*(1-$G$5)^(1/30)-1 -> 0.02215508375
A7: AV-Planer | F7: Anzahl Kinder | G7: 0
A8: bAV
B9: Aktuelle Werte mtl.
A10: Cost.Average_Pos | B10: AG Anteil/Zuschuss (zu AN-Anteil) | C10: 0.2
A11: Cost.Average_Neg | B11: RV-Satz | C11: =Tabelle15!$B$221 -> 0.186 | F11: ="Oberhalb BBG RV/Alo: "&TEXT(Tabelle15!B218,"#.###")&" € ?" -> Oberhalb BBG RV/Alo: 90.600 € ? | G11: =IF(C5>Tabelle15!$B$218,"JA","NEIN") -> NEIN
B12: Alo-Satz | C12: =Tabelle15!$D$221 -> 0.026
A13: Immobilie.Familie | B13: KV-Sätze (Allgemein/Zusatz) | C13: =Tabelle15!$B$222 -> 0.146 | D13: 0.016 | F13: ="Oberhalb BBG KV: "&TEXT(Tabelle15!$B$219,"#.###")&" € ?" -> Oberhalb BBG KV: 62.100 € ? | G13: =IF(C5>Tabelle15!$B$219,"JA","NEIN") -> NEIN
B14: PV-Satz | C14: 0.04
A15: Mtl-Crashkauf | B15: Grenz-StSatz (Single, inkl. Soli, o. KiSt) | C15: =IFERROR(IF(AND(Tabelle14!$B$207<2,Tabelle14!$B$207>=-1),Tabelle14!$B$207,0),0) -> 0.3393545007 | F15: unter Berücksichtigung der bAV
B16: RV erspart mtl. | C16: =Tabelle14!$B222 -> 9.3
A17: Photovoltaik | B17: KV erspart mtl. | C17: =Tabelle14!$B223 -> 8.1
A18: Produktprüfer | B18: PV erspart mtl. | C18: =Tabelle14!$B224 -> 1.9166659
B19: Alo erspart mtl. | C19: =Tabelle14!$B225 -> 1.3
A20: Rechnen.komplex | B20: Steuern erspart mtl. | C20: =Tabelle14!$B226 -> 28.2780205
A21: Rendite.GRV | B21: Summe ersparte Abgaben mtl. | C21: =Tabelle14!$B227 -> 48.8946864
A22: Rentenschätzer | B22: AG Anteil mtl. | C22: =Tabelle14!$B228 -> 20
B23: Nettoaufwand für AN mtl. | C23: =Tabelle14!$B229 -> 51.1053136 | D23: =Tabelle14!$D229 -> = 120 € | E23: brutto mtl.
A24: Steuerrechner
A26: Vergleich.ETF-LV | B26: Annahmen Ruhestand
A27: Verluste_TopPerf | B27: GKV (JA oder NEIN) | C27: JA
B28: KVdR (JA oder NEIN) | C28: NEIN
B29: Erhöhung KV Satz zu heute um … | C29: 0.015 | F29: aktuell wieder paritätisch (AG/AN)
B30: Erhöhung PV Satz zu heute um … | C30: 0.025 | F30: Erhöhung ca. 1,5%-Punkte pro Jahrzehnt
B31: Grenz-Steuersatz (durchschnittlich) | C31: 0.203 | F31: ="Vorschlag: "&TEXT(Tabelle14!D233,"0,0%") -> Vorschlag: 20,4%
B32: Freibetrag/-grenze(KV/PV) für KVdR | C32: 176.75 | D32: mtl. | F32: =Tabelle15!A214&": "&Tabelle15!$B$217/20/12 & " € (gesetzlicher Wert)" -> 2024: 176,75 € (gesetzlicher Wert)
B33: Anstieg Freibetrag KV (gesetzlich) | C33: =Tabelle14!$B234 -> 0.025 | D33: p.a.
B34: Nettorendite Anlage = Eink.-Steig. + … | C34: 0.01 | D34: p.a. | F34: ="= "&TEXT($G$4+$C$34,"0,00%") & " p.a." -> = 3,50% p.a.
B37: Ergebnis für Ruhestand monatlich (Ergebnisse ohne Gewähr)
C38: bAV | D38: Privatrente | E38: ETF Anlage
B39: ="Bruttorente mtl. bis " &Tabelle14!$L$203&" (ETF bis "&Tabelle14!$L$204&")" -> Bruttorente mtl. bis 98 (ETF bis 94) | C39: =Tabelle14!$B240 -> 321.5708944 | D39: =Tabelle14!C$240 -> 132.7071997 | E39: =Tabelle14!D$240 -> 215.8783683
A40: Einstellungen | B40: ="KV Abzug (" &100*(bAV!$C$13+bAV!$D$13+bAV!$C$29)&"%) inkl. Freibetrag" -> KV Abzug (17,7%) inkl. Freibetrag | C40: =Tabelle14!$B241 -> -56.91804831 | D40: =Tabelle14!$C241 -> -22.69293115 | E40: =Tabelle14!$D241 -> -36.91520097 | F40: nur falls GKV
B41: ="PV ("&100*(Tabelle14!$B$221+bAV!$C$30)&"%, falls oberhalb Freigrenze)" -> PV (6,5%, falls oberhalb Freigrenze) | C41: =Tabelle14!$B242 -> -20.90210814 | D41: =Tabelle14!$C242 -> -8.625967979 | E41: =Tabelle14!$D242 -> -14.03209394 | F41: nur falls GKV
B42: Minderung GRV inkl. Steuer/KV/PV-Beitrag | C42: =Tabelle14!$B243 -> -40.68823531 | D42: =Tabelle14!$C243 -> 0 | E42: =Tabelle14!$D243 -> 0
B43: ="Steuer "&"(bei "&TEXT(Tabelle14!$B$233,"0,0%")&" bzw. Abg.Steuer)" -> Steuer (bei 20,3% bzw. Abg.Steuer) | C43: =Tabelle14!$B244 -> -49.4813998 | D43: =Tabelle14!C244 -> -3.33973062 | E43: =Tabelle14!$D$244 -> -17.66474287
B44: Nettorente | C44: =SUM(C39:C43) -> 153.5811028 | D44: =SUM(D39:D43) -> 98.04856994 | E44: =SUM(E39:E43) -> 147.2663305
A45: Version: 4.21, 2K | B45: ="bAV hat "&IF(AND($D$45>0,$E$45>0),"Vorsprung", IF(AND($D$45 < 0,$E$45 < 0), "Nachteil", "Vorsprung / Nachteil")) & " von …" -> bAV hat Vorsprung von … | D45: =C44/D44-1 -> 0.5663777955 | E45: =C44/E44-1 -> 0.04287994632
A46: CLAUS KRIEBEL
B48: Persönliche Verwendung für PROF. DR. KRIEBEL bis 31.01.2025
A49: (C) Prof. Dr. Kriebel
A50: 2008 - 2024
B51: Copyright und Autor: Prof. Dr. Claus Kriebel
B52: Trotz aller Sorgfalt kann für die Berechnungen keine Gewähr übernommen werden.
B53: Persönliche Version für: PROF. DR. KRIEBEL
F54: Unberücksichtigt ist BBG im Ruhestand da hier die weiteren Einkünfte bekannt sein müssten. Für Geringverdiener gibt es auch ...
AB199: 4,2TV+W.636,

Sheet Cost.Average_Pos
B1: ="Der positive CAE: Was wird aus "&TEXT(VALUE($G$6),"0,000%") &" Rendite p.a. bei regelmäßigem Sparen?" -> Der positive CAE: Was wird aus 5,000% Rendite p.a. bei regelmäßigem Sparen? | N1: Stand: | O1: 2024-05-04
B2: Persönliche Verwendung für PROF. DR. KRIEBEL | N2: Gültig bis | O2: 31.01.2025
A4: Hauptmenu | C4: Einmalanlage (sofort) | G4: 2000
C5: Jährliche Sparrate (am Ende des Jahres) | G5: 1000
A6: AVP.Express | C6: Rendite netto p.a. -über erste 10 Jahre als auch über gesamte Laufzeit (0%-9%) | G6: 0.05
A7: AV-Planer | C7: ="Konstant "&TEXT(VALUE($G$6),"0,0%") &" p.a. → Vermögen nach 10 Jahren:" -> Konstant 5,0% p.a. → Vermögen nach 10 Jahren: | G7: =FV($G$6,10,-$G$5,-$G$4,0) -> 15835.68179
A8: bAV | C8: Höherer Aktienanteil (Schwankungen)? (J/N) | G8: N
A10: Cost.Average_Pos
A11: Cost.Average_Neg | D11: Wert- | E11: Vermögen | G11: Vermögen | H11: Vermögen
C12: Jahr | D12: entwicklung* | E12: vor Sparen | F12: Sparen | G12: tatsächlich | H12: ="bei "&TEXT($G$6,"0,00%")& "p.a." -> bei 5,00%p.a. | I12: Mehrertrag
A13: Immobilie.Familie | B13: 1 | C13: Jahr 1 | D13: -0.1865534231 | E13: =$G$4*(1+D13) -> 1626.893154 | F13: =$G$5 -> 1000 | G13: =E13+F13 -> 2626.893154 | H13: =FV($G$6,B13,-$G$5,-$G$4,0) -> 3100
B14: 2 | C14: Jahr 2 | D14: 0.2278703486 | E14: =G13*(1+D14) -> 3225.484212 | F14: =$G$5 -> 1000 | G14: =E14+F14 -> 4225.484212 | H14: =FV($G$6,B14,-$G$5,-$G$4,0) -> 4255
A15: Mtl-Crashkauf | B15: 3 | C15: Jahr 3 | D15: -0.07036675908 | E15: 3928.150583 | F15: 1000 | G15: 4928.150583 | H15: 5467.75
B16: 4 | C16: Jahr 4 | D16: 0.1284859506 | E16: 5561.348695 | F16: 1000 | G16: 6561.348695 | H16: 6741.1375
A17: Photovoltaik | B17: 5 | C17: Jahr 5 | D17: 0.3092923254 | E17: 8590.723491 | F17: 1000 | G17: 9590.723491 | H17: 8078.194375
A18: Produktprüfer | B18: 6 | C18: Jahr 6 | D18: -0.138055811 | E18: 8266.668382 | F18: 1000 | G18: 9266.668382 | H18: 9482.104094
B19: 7 | C19: Jahr 7 | D19: 0.1593838711 | E19: 10743.62586 | F19: 1000 | G19: 11743.62586 | H19: 10956.2093
A20: Rechnen.komplex | B20: 8 | C20: Jahr 8 | D20: 0.06158877038 | E20: 12466.90134 | F20: 1000 | G20: 13466.90134 | H20: 12504.01976
A21: Rendite.GRV | B21: 9 | C21: Jahr 9 | D21: 0.1395756035 | E21: 15346.55222 | F21: 1000 | G21: 16346.55222 | H21: 14129.22075
A22: Rentenschätzer | B22: 10 | C22: Jahr 10 ** | D22: -0.01788767714 | E22: 16054.15037 | F22: 1000 | G22: 17054.15037 | H22: =FV($G$6,10,-$G$5,-$G$4,0) -> 15835.68179 | I22: =IF($G$22> $H$22,"+ ","")&TEXT($G$22-$H$22,"#.000 €") -> + 1.218 €
I23: ="= "&IF($G$22> $H$22,"+ ","")&TEXT($D$26-$D$25,"0,0%") & " p.a." -> = + 1,3% p.a.
A24: Steuerrechner | C24: Ergebnisse
C25: Rendite p.a. | D25: =((1+$D$13)*(1+$D$14)*(1+$D$15)*(1+$D$16)*(1+$D$17)*(1+$D$18)*(1+$D$19)*(1+$D$20)*(1+$D$21)*(1+$D$22))^0.1-1 - RANDBETWEEN(1,7)/800000 + RANDBETWEEN(1,9)/800000 -> 0.0500075 | E25: bei Einmalanlage
A26: Vergleich.ETF-LV | C26: Rendite p.a. | D26: =RATE(10, -$G$5,-$G$4,$G$22,0,$G$6+$D$22/10) -> 0.06301855063 | E26: mit laufendem Sparen | J26: =" Der positive Cost Average Effekt ändert die Rendite in den ersten 10 Jahren um" -> Der positive Cost Average Effekt ändert die Rendite in den ersten 10 Jahren um
A27: Verluste_TopPerf | J27: +1,30% pro Jahr
J28: (Persönliche Verwendung für PROF. DR. KRIEBEL)
C30: Fazit Ansparen Wenn das Geld als Einmalbeitrag vorliegt: - Verteilen Sie Ihre Investition über 1 bis 4 Jahre, um das Risiko deutlich zu verringern. - Die durchschnittliche zu erwartende Rendite wird dabei etwas verringert, Ihr Risiko aber deutlich. Wenn Sie in Raten sparen wollen/müssen: - Monatlich ist besser als wöchentlich, vierteljährlich, halbjährlich oder jährlich! - Ihre Rendite liegt dann etwa um 0,5% - 3,0% p.a. höher als die veröffentlichte Wertentwicklung.
J33: Bemerkungen
J34: * "Ruhige" Anlagejahrzehnte sind die Ausnahme. Bsp. letzte 20 Jahre …
J35: **Stochastische Simulationen beruhend auf MSCI-World der letzten 25 J. Vorgegebene Gesamtrendite bestimmt die Rendite im 10. Jahr
A40: Einstellungen
C42: Copyright und Autor: Prof. Dr. Claus Kriebel
C43: Trotz aller Sorgfalt kann für die Berechnungen keine Gewähr übernommen werden.
C44: Persönliche Version für: PROF. DR. KRIEBEL
A45: Version: 4.21, 2K
A46: CLAUS KRIEBEL
A49: (C) Prof. Dr. Kriebel
A50: 2008 - 2024
P200: Erläuterung für Video
C202: Hilfstabelle für konstante Wertentwicklung, beides vorschüssig | P202: Hier zur Vereinfachung alles jährlich
B203: Jahr | F203: =$G$6 -> 0.05 | P203: Erst einmal Einmalanlage ohne Simulation, dann mit Simulation, dann mit mtl. Sparen
B204: 1 | C204: =$G$4 -> 2000 | D204: =G5 -> 1000 | E204: =$C204+$D204 -> 3000 | F204: =E204*(1+$F$203) -> 3150 | P204: Angenommen, Sie haben das Geld: Das ändert nichts daran, dass statistisch es am besten ist, wenn Sie alles Geld einmalig anlegen. Wenn Sie es haben. Aber höheres risiko
B205: 2 | D205: =D204 -> 1000 | E205: =$F204+$D205 -> 4150 | F205: 4357.5 | P205: Was heißt das? 100 Anleger. 100.000 €. Der erste legt das ganze Geld im Monat 1 an, der 2. in Monat 2 …
B206: 3 | D206: =D205 -> 1000 | E206: 5357.5 | F206: 5625.375 | P206: Für jeden Anleger rechnen Sie nach 10 Jahren die Rendite aus. Und daraus den Durchschnitt.
B207: 4 | D207: 1000 | E207: 6625.375 | F207: 6956.64375 | P207: Gruppe 2: Anleger, die mtl. sparen. Anleger 1 fängt in Monat 1 an, 50 Monate, Anleger 2 fängt in Monat 2 an wieder 50 Monate
B208: 5 | D208: 1000 | E208: 7956.64375 | F208: 8354.475938 | P208: Rechnen Sie von allen Anlegern die mtl. sparen und allen, die einmalig angelegt haben, die durchschnittliche Rendite aus. Dann gewinnt Gruppe 1, die Einmalanleger
B209: 6 | D209: 1000 | E209: 9354.475938 | F209: 9822.199734 | P209: Aber Sie sind ja nicht 100 Anleger. Bei der Einmalanlage KANN es sein, dass Sie nach 3 Jahren sagen: Hätt ich mal mtl. gespart. Es ist etwas wahrscheinlicher, dass Sie sagen: Gut, dass ich sofort eingestiegen bin, aber nur etwas. Dafür gehen Sie aber deutlicher höheres Risiko ein.
B210: 7 | D210: 1000 | E210: 10822.19973 | F210: 11363.30972
B211: 8 | D211: 1000 | E211: 12363.30972 | F211: 12981.47521 | P211: Eine perfekte Mischung aus Rendite u Risiko ist: Verteilt über 1-4 Jahre investieren. Je mehr Risiko, desto kürzer. Länger sollten Sie aber nicht warten. Also zum Merken 2 bis 3 Jahre verteilen Sie vorhandenes Geld.
B212: 9 | D212: 1000 | E212: 13981.47521 | F212: 14680.54897 | P212: Zeigen: Einmalanlage 10.000 €, rendite 5%, EW. Dann 1000 € p.a.
B213: 10 | D213: 1000 | E213: 15680.54897 | F213: 16464.57642 | P213: Jahr 3:ca 8.300 €
P214: Über 10 Jahre a 1000 €: EW geringer. ABER SELTEN, die Situation, dass Sie weniger drin haben als angelegt. Ein bisschen vielleicht.
P215: Gute Mischung: 2-3 Jahre, oder 1 Jahr, oder 4 Jahre. Verteilen.
C216: Grenzen für die stochastische Simulation: | P216: Hier noch OHNE Einmalanlage --> höherer CAE
C217: war bis 3.46 mit zwei Auswahlfeldern J/N. Aber Auswahl für "ruhiges Jahrzehnt" wurde gestrichen, bringt ja nix | P217: Am Ende noch mal betonen: DAMIT ist NICHT gesagt: mtl. sparen ist besser als einmalig
C218: hier standen bis 3.46 auch die Parameter für die statistische Erzeugung der Zufallszahlen | P218: Wenn Sie das Geld haben: dann sinnvoll 2, 3, 4 Jahre verteilen bei der Anlage
P219: Was Grafik zeigt: Aus durchschnittlich 5% Wertentwicklung werden schnell 6% Wertentwicklung, wenn Sie in Raten sparen.
Q220: Dennoch haben Sie natürlich einen Teil Ihres Geld erst später angelegt.
P221: Sie sehen, mathematisch ncith so ganz einfach: Grundaussage: Haben Sie Geld, verteilen es über wenige Jahre.
D222: Für die Sollentnahme bei konstantem Zins für die grüne Linie in der Grafik | Q222: Haben Sie es nicht, freuen Sie sich, weil die durchschnittliche Wertentw., die in Aktiengrafiken sehen, das ist nicht Ihre, sondern IHRE ist höher. 0,5%, 1%, 1,5% p.a.
D223: -0.02 | P223: Fazit: Wenn Sie also nach 5 Jahren in den Fondsprospekt schauen und da steht: 5,0% Wertentwicklung
D224: Hilfsspalte für Grafik | E224: Wahre Werte | F224: Differenz | Q224: und Sie haben aber mtl. investiert, dann haben Sie wahrscheinlich 6% Wertentwicklung oder auch 6,5%
D225: =($G$4*(1+$G$6)+$G$5)*(1+$D$223) -> 3038 | E225: =($G$4*(1+$G$6)+$G$5) -> 3100 | F225: =D225-E225 -> -62
D226: =(D225*(1+$G$6)+$G$5)*(1/(1+$D$223))^(1/15) -> 4195.546957 | E226: =(E225*(1+$G$6)+$G$5) -> 4255 | F226: =D226-E226 -> -59.45304317
D227: =(D226*(1+$G$6)+$G$5)*(1/(1+$D$223))^(1/15) -> 5412.609355 | E227: =(E226*(1+$G$6)+$G$5) -> 5467.75 | F227: -55.14064484
D228: 6692.24719 | E228: 6741.1375 | F228: -48.89031014
D229: 8037.677786 | E229: 8078.194375 | F229: -40.51658908
D230: 9452.283888 | E230: 9482.104094 | F230: -29.82020624
D231: 10939.62216 | E231: 10956.2093 | F231: -16.58713533
D232: 12503.43215 | E232: 12504.01976 | F232: -0.587615598
D233: =0.5*((D232*(1+$G$6)+$G$5)*(1/(1+$D$223))^(1/15)+E233) -> 14138.4332 | E233: 14129.22075 | F233: 9.212446883
D234: =E234 -> 15835.68179 | E234: 15835.68179 | F234: 0

Sheet Cost.Average_Neg
B1: ="Der negative CAE: Was wird aus "&TEXT(VALUE($G$6),"0,000%") &" Rendite p.a. bei regelmäßiger Entnahme?" -> Der negative CAE: Was wird aus 4,000% Rendite p.a. bei regelmäßiger Entnahme? | N1: Stand: | O1: 2024-05-04
B2: Persönliche Verwendung für PROF. DR. KRIEBEL | N2: Gültig bis | O2: 31.01.2025
C3: Geplantes Ruhestandsalter | G3: 63
A4: Hauptmenu | C4: Startkapital | G4: 100000
C5: Entnahme monatlich | G5: 500
A6: AVP.Express | C6: Rendite netto p.a. (über die gesamte Laufzeit 0%-5%) | G6: 0.04
A7: AV-Planer | C7: ="Wertentwicklung konstant "&TEXT(VALUE($G$6),"0,0%") &" → Vermögen reicht für" -> Wertentwicklung konstant 4,0% → Vermögen reicht für | G7: =IFERROR(TEXT(NPER($G$6,12*$G$5,-$G$4,0,0),"#,0")&" Jahre","ewig") -> 28,0 Jahre
A8: bAV | C8: Höherer Aktienanteil (Schwankungen)? (J/N) | G8: N
A10: Cost.Average_Pos | H10: ="Bei "&TEXT($G$6,"0,00%")&": Wie" -> Bei 4,00%: Wie
A11: Cost.Average_Neg | D11: Wert- | E11: Vermögen | G11: End- | H11: lange ist Ent-
C12: Jahr | D12: entwicklung* | E12: vor Entnahme | F12: Entnahme | G12: vermögen | H12: ="nahme möglich?" -> nahme möglich?
A13: Immobilie.Familie | B13: =VALUE((MID($C13,6,2))) -> 1 | C13: Jahr 1 | D13: -0.01063736753 | E13: =$G$4*(1+D13) -> 98936.26325 | F13: =-12*$G$5 -> -6000 | G13: =E13+F13 -> 92936.26325 | H13: =IFERROR(TEXT($G$3+$B13+NPER($G$6,12*$G$5,-$G13,0,0),"0,0")&" Jahre","0") -> 88,6 Jahre
B14: =VALUE((MID($C14,6,2))) -> 2 | C14: Jahr 2 | D14: -0.1029068147 | E14: =G13*(1+D14) -> 83372.48843 | F14: -6000 | G14: 77372.48843 | H14: =IFERROR(TEXT($G$3+$B14+NPER($G$6,12*$G$5,-$G14,0,0),"0,0")&" Jahre","0") -> 83,5 Jahre
A15: Mtl-Crashkauf | B15: 3 | C15: Jahr 3 | D15: -0.05131748114 | E15: 73401.92721 | F15: -6000 | G15: 67401.92721 | H15: 81,2 Jahre
B16: 4 | C16: Jahr 4 | D16: 0.06016293698 | E16: 71457.02511 | F16: -6000 | G16: 65457.02511 | H16: 81,6 Jahre
A17: Photovoltaik | B17: 5 | C17: Jahr 5 | D17: 0.1225902951 | E17: 73481.42114 | F17: -6000 | G17: 67481.42114 | H17: 83,2 Jahre
A18: Produktprüfer | B18: 6 | C18: Jahr 6 | D18: -0.02590422525 | E18: 65733.3672 | F18: -6000 | G18: 59733.3672 | H18: 81,9 Jahre
B19: 7 | C19: Jahr 7 | D19: 0.100538551 | E19: 65738.87339 | F19: -6000 | G19: 59738.87339 | H19: 83,0 Jahre
A20: Rechnen.komplex | B20: 8 | C20: Jahr 8 | D20: 0.1588476795 | E20: 69228.2548 | F20: -6000 | G20: 63228.2548 | H20: 85,0 Jahre
A21: Rendite.GRV | B21: 9 | C21: Jahr 9 | D21: 0.1944334325 | E21: 75521.94141 | F21: -6000 | G21: 69521.94141 | H21: 87,9 Jahre
A22: Rentenschätzer | B22: 10 | C22: Jahr 10 ** | D22: -0.004525115868 | E22: 69207.34657 | F22: -6000 | G22: 63207.34657 | H22: 86,9 Jahre
A24: Steuerrechner | C24: Ergebnisse
C25: Rendite p.a. | D25: =((1+$D$22)*(1+$D$21)*(1+$D$20)*(1+$D$19)*(1+$D$18)*(1+$D$17)*(1+$D$16)*(1+$D$15)*(1+$D$14)*(1+$D$13))^0.1-1 - RANDBETWEEN(1,7)/800000 + RANDBETWEEN(1,9)/800000 -> 0.04000375 | E25: ohne Entnahme
A26: Vergleich.ETF-LV | C26: Rendite p.a. | D26: =RATE(10,-12*$G$5,$G$4,-$G$22,0,$G$6-$D$22/4) -> 0.02754027616 | E26: mit Entnahme | J26: =" Der negative Cost Average Effekt ändert die Rendite in den ersten 10 Jahren um" -> Der negative Cost Average Effekt ändert die Rendite in den ersten 10 Jahren um
A27: Verluste_TopPerf | J27: -1,25% pro Jahr
J28: (Persönliche Verwendung für PROF. DR. KRIEBEL)
C31: "Versicherung ist zu teuer" | E31: --> Passender Tarif?
C32: Fonds:
C33: ETF Rendite (50% Aktien, 50% festverz. WP) | F33: 0.05 | G33: p.a. | J33: Bemerkungen
C34: minus Abg.steuer (bis zu) | F34: =-$F$33*0.25*1.055 -> -0.0131875 | G34: p.a. | J34: * "Ruhige" Anlagejahrzehnte sind die Ausnahme. Bsp. letzte 20 Jahre …
C35: minus Kosten (TER, An-/Verkauf) | F35: -0.003 | G35: p.a. | J35: **Stochastische Simulationen beruhend auf MSCI-World der letzten 25 Jahre …
C36: minus negativer Cost Average Effekt | F36: =TEXT($D$26-$D$25,"0,00%") -> -1,25% | G36: p.a.
C37: Nettorendite des Fonds | F37: =SUM($F$33:$F$35)+($D$26-$D$25) -> 0.02134902616 | G37: p.a.
A40: Einstellungen
C42: Copyright und Autor: Prof. Dr. Claus Kriebel
C43: Trotz aller Sorgfalt kann für die Berechnungen keine Gewähr übernommen werden.
C44: Persönliche Version für: PROF. DR. KRIEBEL
A45: Version: 4.21, 2K
A46: CLAUS KRIEBEL
A49: (C) Prof. Dr. Kriebel
A50: 2008 - 2024
B201: Diese Test-Tabelle dient(e) nur zur Kontrolle der Werte von eff. Rendite nach Entnahme
B202: manuell. Dazu die im Tool ermittelte Rendite nach Entnahme per Hand eingeben in oberster Zeile von Testtabelle und prüfen, ob EW derselbe ist wie oben ermittelt). (Muss man notieren, da mit Eingaben die Werte oben ja direkt geändert werden). Mit PP aber auch überprüft.
B203: Jahr | D203: 0.025
B204: 1 | C204: =$G$4 -> 100000 | D204: =C204*(1+$D$203) -> 102500 | E204: =-G5 -> -500 | F204: =D204+E204 -> 102000
B205: 2 | D205: =F204*(1+$D$203) -> 104550 | E205: =E204 -> -500 | F205: =D205+E205 -> 104050
B206: 3 | D206: 106651.25 | E206: =E205 -> -500 | F206: =D206+E206 -> 106151.25
B207: 4 | D207: 108805.0312 | E207: -500 | F207: 108305.0312
B208: 5 | D208: 111012.657 | E208: -500 | F208: 110512.657
B209: 6 | D209: 113275.4735 | E209: -500 | F209: 112775.4735
B210: 7 | D210: 115594.8603 | E210: -500 | F210: 115094.8603
B211: 8 | D211: 117972.2318 | E211: -500 | F211: 117472.2318
B212: 9 | D212: 120409.0376 | E212: -500 | F212: 119909.0376
B213: 10 | D213: 122906.7635 | E213: -500 | F213: 122406.7635
D214: 32000 | E214: 0.294220071
C216: Grenzen für die stochastische Simulation:
C217: war bis 3.46 mit zwei Auswahlfeldern J/N. Aber Auswahl für "ruhiges Jahrzehnt" wurde gestrichen, bringt ja nix
C218: hier standen bis 3.46 auch die Parameter für die statistische Erzeugung der Zufallszahlen
D222: Für die Sollentnahme bei konstantem Zins für die grüne Linie in der Grafik
D223: 0.01 | AD223: etwas realistischer: 153.612 € am Ende, Reicht immer noch ewig. Sie entnehmen ja nichts. Sie legen einfach nur an.
D224: Hilfsspalte für Grafik | E224: Wahre Werte | F224: Differenz | J224: Verlust an Rentenjahren (war in einer Spalte in 3.32 vorhanden) | Z224: Erläuterung für Video
D225: =($G$4*(1+$G$6)-12*$G$5)*(1+$D$223) -> 98980 | E225: =($G$4*(1+$G$6)-12*$G$5) -> 98000 | F225: =D225-E225 -> 980 | J225: =VALUE(LEFT($G$7,4))-(VALUE(LEFT($H13,4))+$B13) -> -61.6 | Z225: Sie entnehmen. Jahr für Jahr. Zur Vereinfachung: Am Ende des Jahres entnehmen, immer im Dezember. 6000 € im Jahr, 500 € mtl. 28,07 Jahre. Sie sind 60 …88. Dann ist das Geld aufgebraucht.
D226: =(D225*(1+$G$6)-12*$G$5)*(1/(1+$D$223))^(1/7) -> 96801.50116 | E226: =(E225*(1+$G$6)-12*$G$5) -> 95920 | F226: =D226-E226 -> 881.5011606 | J226: -57.5
D227: 94539.08063 | E227: 93756.8 | F227: 782.2806305 | J227: -56.2
D228: 92189.50552 | E228: 91507.072 | F228: 682.4335184 | J228: -57.6 | Z228: Und Sie sehen hier: geringere Rendite, nicht mehr 2,5%
D229: 89749.41839 | E229: 89167.35488 | F229: 582.0635131 | J229: -60.2
D230: 87215.33249 | E230: 86734.04908 | F230: 481.2834108 | J230: -59.9 | Z230: 9 Dann in Tabelle, dann in Ergebnisse, dann ein paar Szenarien, dann Entnahme reduzieren auf 1000 €, dann auf 200 €, dann 0€, das heißt: Je mehr ich entnehme, desto stärker verringert sich die Wertentwicklung, wenn die Märkte schwanken.
D231: 84583.62671 | E231: 84203.41104 | F231: 380.2156706 | J231: -62 | Z231: 10. 6000 €, Grafik
D232: 81850.54048 | E232: 81571.54748 | F232: 278.9929995 | J232: -65 | Z232: 11. Der Fondsvermittler, der Fonds-Fan, der Verbraucherschützer, alles keine bösen Leute, aber oft eben … Sie brauchen ja nicht einmal eine Ausbildung, und dürfen Verbraucherschützer werden.
D233: =0.5*((D232*(1+$G$6)-12*$G$5)*(1/(1+$D$223))^(1/7)+E233) -> 78923.28886 | E233: 78834.40938 | F233: 88.87948389 | J233: -68.9 | Z233: 12. Soll-Ist Vermögen. rosa Feld erläutern, 5-10 Szenarien. Sie werden jetzt sagen: Liegt das daran, dass es immer im ersten Jahr einen Verlust gibt? Ja, auch. Nicht nur, auch. Nur das kann ja passieren.
D234: =E234 -> 75987.78575 | E234: 75987.78575 | F234: 0 | J234: -68.9 | Z234: 13. Sie sehen hier Fußnoten ==> 1x Ja
Z235: 14. | AA235: 2. auch JA, ein paar Mal klicken bis EW unter 60.000 €. "Sie sind unter 60.000 €. Sie haben also nach den ersten 10 Jahren mehr als die Hälfte Ihres Vermögens aufgebraucht. Die Theorie sagt: 28.07 Jahre. Wenn man nachschaut, sieht man: Nach 19 Jahren ist das Geld alle. Das war´s". Und wenn Sie mit 79 Jahren feststellen, dass Ihre rente zu Ende ist, es geht Ihnen aber noch ganz gut, ja was machen Sie denn dann?"
Z236: 15. Klick unten links weißer Kasten
D237: Diese Werte wurden mal oben angezeigt. Links: soviel sollte sein, rechts soviel ist noch da. | Z237: Fazit: Fonds, besonders EFT´s sind gut, keine Frage. Aber eine lebenslange rente einer Versicherung ist bei Weitem nicht so schlecht, wie es gerade in den Medien dargestellt wird. Nicht nur, dass sie Sicherheit gibt. Der Fondsentnahmeplan führ tdoch eben zu deutlichen Nachteilen. Und bei einem Fondsentnahmeplan verlieren Sie einfach mehr nerven, schauen Sie sich immer diese Grafik hier an.
D238: =$G$255 -> 1.716262606 | E238: =$G$22/$G$4 -> 0.6320734657
B241: Testtabelle 2: Mit diesen Werten wird nichts gemacht
B242: Berechnung Sollwerte mit Übernahme aus Tabelle ganz oben
C243: Zins= | D243: =$G$6 -> 0.04
G244: Vom Startvermögen | I244: Restvermögen real nach 10 J. mit Schwankung
B245: Jahr | G245: mit festem Zins | I245: bei danach konstanter Wertentwicklung
B246: 1 | C246: =$G$4 -> 100000 | D246: =120000*(1+$D$243) -> 124800 | E246: =-G5 -> -500 | F246: =D246+E246 -> 124300 | G246: =F246/$G$4 -> 1.243
B247: 2 | D247: =F246*(1+$D$243) -> 129272 | E247: =E246 -> -500 | F247: 128772 | G247: 1.28772
B248: 3 | D248: 133922.88 | E248: -500 | F248: 133422.88 | G248: 1.3342288
B249: 4 | D249: 138759.7952 | E249: -500 | F249: 138259.7952 | G249: 1.382597952
B250: 5 | D250: 143790.187 | E250: -500 | F250: 143290.187 | G250: 1.43290187
B251: 6 | D251: 149021.7945 | E251: -500 | F251: 148521.7945 | G251: 1.485217945
B252: 7 | D252: 154462.6663 | E252: -500 | F252: 153962.6663 | G252: 1.539626663
B253: 8 | D253: 160121.1729 | E253: -500 | F253: 159621.1729 | G253: 1.596211729
B254: 9 | D254: 166006.0198 | E254: -500 | F254: 165506.0198 | G254: 1.655060198
B255: 10 | D255: 172126.2606 | E255: -500 | F255: 171626.2606 | G255: 1.716262606 | I255: =$G$22 -> 63207.34657
B256: 11 | D256: 178491.3111 | E256: -500 | F256: 177991.3111 | G256: 1.779913111 | I256: =I255*(1+$D$243)+$E256 -> 65235.64044
B257: 12 | D257: 185110.9635 | E257: -500 | F257: 184610.9635 | G257: 1.846109635 | I257: 67345.06605
B258: 13 | D258: 191995.402 | E258: -500 | F258: 191495.402 | G258: 1.91495402 | I258: 69538.8687
B259: 14 | D259: 199155.2181 | E259: -500 | F259: 198655.2181 | G259: 1.986552181 | I259: 71820.42344
B260: 15 | D260: 206601.4268 | E260: -500 | F260: 206101.4268 | G260: 2.061014268 | I260: 74193.24038
B261: 16 | D261: 214345.4839 | E261: -500 | F261: 213845.4839 | G261: 2.138454839 | I261: 76660.97
B262: 17 | D262: 222399.3033 | E262: -500 | F262: 221899.3033 | G262: 2.218993033 | I262: 79227.4088
B263: 18 | D263: 230775.2754 | E263: -500 | F263: 230275.2754 | G263: 2.302752754 | I263: 81896.50515
B264: 19 | D264: 239486.2864 | E264: -500 | F264: 238986.2864 | G264: 2.389862864 | I264: 84672.36535
B265: 20 | D265: 248545.7379 | E265: -500 | F265: 248045.7379 | G265: 2.480457379 | I265: 87559.25997
B266: 21 | D266: 257967.5674 | E266: -500 | F266: 257467.5674 | G266: 2.574675674 | I266: 90561.63037
B267: 22 | D267: 267766.2701 | E267: -500 | F267: 267266.2701 | G267: 2.672662701 | I267: 93684.09558
B268: 23 | D268: 277956.9209 | E268: -500 | F268: 277456.9209 | G268: 2.774569209 | I268: 96931.45941
B269: 24 | D269: 288555.1977 | E269: -500 | F269: 288055.1977 | G269: 2.880551977 | I269: 100308.7178
B270: 25 | D270: 299577.4056 | E270: -500 | F270: 299077.4056 | G270: 2.990774056 | I270: 103821.0665
B271: 26 | D271: 311040.5019 | E271: -500 | F271: 310540.5019 | G271: 3.105405019 | I271: 107473.9092
B272: 27 | D272: 322962.1219 | E272: -500 | F272: 322462.1219 | G272: 3.224621219 | I272: 111272.8655
B273: 28 | D273: 335360.6068 | E273: -500 | F273: 334860.6068 | G273: 3.348606068 | I273: 115223.7801
B274: 29 | D274: 348255.0311 | E274: -500 | F274: 347755.0311 | G274: 3.477550311 | I274: 119332.7313
B275: 30 | D275: 361665.2323 | E275: -500 | F275: 361165.2323 | G275: 3.611652323 | I275: 123606.0406
B276: 31 | D276: 375611.8416 | E276: -500 | F276: 375111.8416 | G276: 3.751118416 | I276: 128050.2822
B277: 32 | D277: 390116.3153 | E277: -500 | F277: 389616.3153 | G277: 3.896163153 | I277: 132672.2935
B278: 33 | D278: 405200.9679 | E278: -500 | F278: =D278+E278 -> 404700.9679 | G278: =F278/$G$4 -> 4.047009679 | I278: 137479.1853
B279: 34 | D279: 420889.0066 | E279: -500 | F279: 420389.0066 | G279: 4.203890066 | I279: 142478.3527
B280: 35 | D280: 437204.5669 | E280: -500 | F280: 436704.5669 | G280: 4.367045669 | I280: 147677.4868
B281: 36 | D281: 454172.7496 | E281: -500 | F281: 453672.7496 | G281: 4.536727496 | I281: 153084.5862
B282: 37 | D282: 471819.6595 | E282: -500 | F282: 471319.6595 | G282: 4.713196595 | I282: 158707.9697
B283: 38 | D283: 490172.4459 | E283: -500 | F283: 489672.4459 | G283: 4.896724459 | I283: 164556.2885
B284: 39 | D284: 509259.3438 | E284: -500 | F284: 508759.3438 | G284: 5.087593438 | I284: 170638.54
B285: 40 | D285: 529109.7175 | E285: -500 | F285: 528609.7175 | G285: 5.286097175 | I285: 176964.0816
B286: 41 | D286: 549754.1062 | E286: -500 | F286: 549254.1062 | G286: 5.492541062 | I286: 183542.6449
B287: 42 | D287: 571224.2705 | E287: -500 | F287: 570724.2705 | G287: 5.707242705 | I287: 190384.3507
B288: 43 | D288: 593553.2413 | E288: -500 | F288: 593053.2413 | G288: 5.930532413 | I288: 197499.7247
B289: 44 | D289: 616775.3709 | E289: -500 | F289: 616275.3709 | G289: 6.162753709 | I289: 204899.7137
B290: 45 | D290: 640926.3858 | E290: -500 | F290: 640426.3858 | G290: 6.404263858 | I290: 212595.7022
B291: 46 | D291: 666043.4412 | E291: -500 | F291: 665543.4412 | G291: 6.655434412 | I291: 220599.5303
B292: 47 | D292: 692165.1788 | E292: -500 | F292: 691665.1788 | G292: 6.916651788 | I292: 228923.5115
B293: 48 | D293: 719331.786 | E293: -500 | F293: 718831.786 | G293: 7.18831786 | I293: 237580.452
B294: 49 | D294: 747585.0574 | E294: -500 | F294: 747085.0574 | G294: 7.470850574 | I294: 246583.6701

Sheet EINSeitenPlaner
B1: Dr. Kriebel Finanzmathematik -Das Wichtigste zum Anlegen auf einer Seite | N1: Stand: | O1: 2023-12-08
B2: Persönliche Verwendung für CLAUS KRIEBEL | N2: Gültig bis | O2: 31.01.2025
A4: Hauptmenu
C5: Startalter | F5: 65 | I5: Startvermögen | K5: 270645
A6: AVP.Express
A7: AV-Planer | C7: Zielalter | F7: 95 | G7: p.a. | I7: Endvermögen | K7: 0
A8: bAV
C9: Zins (effektiv) | F9: 0.04 | G9: p.a. | I9: Summe der Raten
A10: Cost.Average_Pos
A11: Cost.Average_Neg | C11: Rentensteigerung | F11: 0.02 | I11: Entnahme monatlich | K11: 1000
A13: Immobilie.Familie
A15: Mtl-Crashkauf | C15: Steuer
C16: Steuersatz | F16: 0.03
A17: Photovoltaik | C17: Ertragsanteil nicht lebenslang
A18: Produktprüfer
C19: Information
A20: Rechnen.komplex | C20: Bruttoentnahme monatlich | F20: 10000
A21: Rendite.GRV | C21: Ertragsanteil | F21: 0.17
A22: Rentenschätzer
A24: Steuerrechner
A26: Vergleich.ETF-LV
A27: Verluste_TopPerf
A40: Einstellungen | J40: Bemerkungen
A45: Version: 3.48
A46: CLAUS KRIEBEL
A49: (C) Prof. Dr. Kriebel
A50: 2008 - 2023

Sheet Immobilie.Familie
A1: ActiveSheet.Shapes("AbdRE12").Fill.Transparency = 1 | B1: Immobilien-Übertragung innerhalb der Familie: Mit Hilfe des Staates das Familienvermögen erheblich vermehren | N1: Stand: | O1: 2024-05-02
B2: Persönliche Verwendung für PROF. DR. KRIEBEL | N2: Gültig bis | O2: 31.01.2025
A4: Hauptmenu | B4: Falltyp | E4: 1a - Abgeber wohnt dauerhaft in Immobilie
B5: Abgeber | G5: Eltern(-teil)
A6: AVP.Express | B6: Übernehmer | G6: Kind
A7: AV-Planer | B7: Übertragungsdatum (Monat+Jahr) | G7: 2024-07-01
A8: bAV
B9: Anteil "Verschenkt" (innerhalb der Familie) -in Ihrer Version nicht enthalten | G9: 0
A10: Cost.Average_Pos | B10: Anteil Grund/Boden | G10: 0.25
A11: Cost.Average_Neg | B11: Restschuld aktuell (wird von Kind übernommen sowohl bei Schenkung als auch Verkauf) | G11: 0
B12: ="Darlehensszinssatz bestehendes Darlehen (bis ca. 31.12."&$H$239&")" -> Darlehensszinssatz bestehendes Darlehen (bis ca. 31.12.2029) | G12: 0.02
A13: Immobilie.Familie | B13: Darlehenszinssatz aktuell | G13: 0.035
A15: Mtl-Crashkauf | B15: Marktmögliche Kaltmiete pro qm mtl. | G15: 11
B16: Wohnfläche in qm | G16: 165
A17: Photovoltaik | B17: Vermietungshöhe in % ortsübliche Markmiete (falls Vermietung innerhalb Familie) | G17: 0.75
A18: Produktprüfer | B18: Mietfaktor (für Objektwert) | G18: 20
A20: Rechnen.komplex | B20: Realer Objektwert, aktuell (= steuerl. Verkehrswert) | G20: =ROUND(Immo.Mietfaktor*Immo.Marktmietepa,-2) -> 435600
A21: Rendite.GRV | B21: Veräußerungspreis, ohne langfr. absetzbare NK (wg. Restschuld: s. Kommentar) | G21: 0
A22: Rentenschätzer | B22: Nebenkosten des Erwerbers in % (an Kinder/Enkel ohne Grunderwerbssteuer) | G22: 0.015
B23: Wertsteigerung Immobilie/Miete/Inst.-kosten in % p.a. | G23: 0.01
A24: Steuerrechner | B24: Wertsteigerung Geldanlage p.a. nach Steuern | G24: 0.0375
B25: Instandhaltungskosten p.a. vom aktuellen Objektwert | G25: 0.025
A26: Vergleich.ETF-LV
A27: Verluste_TopPerf | B27: Durchschnittlicher Grenzst.-Satz Übernehmer (inkl. Soli / Kirchenst.)
B28: =" bis 31.12."& YEAR(TODAY())+2 -> bis 31.12.2026 | G28: 0.4
B29: =" 01.01."&YEAR(TODAY())+3&" - 31.12."&YEAR(TODAY())+5&" " -> 01.01.2027 - 31.12.2029 | D29: ="-in Ihrer Version konstant für alle Jahre" -> -in Ihrer Version konstant für alle Jahre | G29: =Immo.GStSatzUebernehmer -> 0.4
I35: Bemerkungen
I36: Alle Angaben ohne Gewähr. Diese Berechnung ersetzt keine Steuerberatung.
I37: *: Gesamtvorteil bis Ende dieses Jahres plus die nächsten 5 Kalenderjahre. **: Bei Variante A mit Verschenken …
I38: Durch Steuervorteile sind die Instandhaltungskosten des Übernehmers geringer als die des …
I39: Führen Modernisierungsaufwendungen in der Gesamtbetrachtung zu einer …
A40: Einstellungen
B42: Copyright und Autor: Prof. Dr. Claus Kriebel
B43: Trotz aller Sorgfalt kann für die Berechnungen keine Gewähr übernommen werden.
B44: Persönliche Version für: PROF. DR. KRIEBEL
A45: Version: 4.22, 1V
A46: PROF. DR. KRIEBEL
A49: (C) Prof. Dr. Kriebel
A50: 2008 - 2024
XFD191: =SUM(A191:XFC191) -> 0
D211: =MID($B$247,1,99) -> A Alles bleibt wie es ist oder Eltern verschenken und wohnen lebenslang mietfrei** | J211: =MID($B$249,1,99) -> B Eltern verkaufen, Kind verkauft (zum gleichen Preis sofort), Eltern zahlen Fremdem Miete | P211: =MID($B$270,1,99) -> C Eltern verschenken an Kind, das an sie vermietet | V211: =MID($B$290,1,99) -> D Kind kauft elterliche Immobilie und vermietet an Eltern
B212: 1 | H212: 0 | N212: 0 | O212: 0 | T212: 0 | U212: 0 | Z212: Wegfall Instandhaltung Abgeber
B213: 1 | H213: -1 | N213: 0 | O213: 0 | T213: 0 | U213: 0 | Z213: Instandhaltung Übernehmer
C214: 1 | I214: 0 | N214: 0 | O214: 0 | T214: 0 | U214: 0 | Z214: Zuwachs Geldanlage Abgeber
C215: 1 | I215: -1 | N215: 0 | O215: 0 | T215: 0 | U215: 0 | Z215: Zinsbelastung Übernehmer
D216: =ROUND(1,0) -> 1 | J216: =ROUND($J$264,0) -> 1 | P216: =ROUND($J$284,0) -> 1 | V216: =ROUND($J$306,0) -> 0 | Z216: AfA Übernehmer
D217: =ROUND(1,0) -> 1 | J217: =ROUND(K$218-SUM(H$212:J$216),0) -> 1 | P217: =ROUND(Q$218-SUM(N$212:P$216),) -> -1 | V217: =ROUND(W$218-SUM(T$212:V$216),0) -> 0 | Z217: Sonstiges (Mietzahlng/Wertsteig./Nebenkosten ...)
E218: 0.4 | K218: 0 | Q218: 0 | W218: 0 | Z218: Summe Familienvorteil netto*
K224: Experten-Kommentare: Nicht löschen oder verändern!!!
B225: 1a - Abgeber wohnt dauerhaft in Immobilie | F225: Eltern(-teil) | G225: Kind | K225: Bei degressiver AfA des Abgebers: pro Rata temporis für AfA im Abgabejahr. Für Übernehmer: lineare AfA immer pro rata temporis. Daher genaue Datumsangabe wesentlich.
B226: 1b - Immobilie wird für Eigennutzung neu erworben | F226: Vater | G226: Sohn | K226: Auch teilweises Verschenken ist aus finanzieller Sicht meist nicht sinnvoll. Ist eine teilweise Schenkung für die Bonität der Finanzierung nötig, sollte, wenn möglich, Geld geschenkt werden.
F227: Mutter | G227: Tochter | K227: Am besten den Grund-/Bodenanteil im Kaufvertrag mit festhalten!
B228: 3 - Immobilie dauerhaft vermietet | K228: Wird eine Immobilie mit Restschuld verschenkt, lebt die AfA für den Übernehmer über diesen Anteil wieder auf, da dieser Anteil quasi verkauft wird. Der Anteil wird durch den Verkehrswert bestimmt.
B229: 2 - Übernehmer bewohnt Immo dauerhaft (Tool noch nicht erstellt) | K229: Unverbindliche Auskunft, die keine Steuerberatung ersetzen kann: Weniger als 75% der ortsüblichen Miete sollten hier nicht angesetzt werden, ansonsten Kürzung der Werbungskosten. Achtung: jährliche Prüfung der Vergleichsmiete wichtig! Bei unentgeltlicher Überlassung der Wohnung an einen Angehörigen ist eine Anerkennung und damit ein steuersparender Verlust aus Vermietung gänzlich ausgeschlossen. Im Fall der verbilligten Vermietung hängt es gemäß § 21 Abs. 2 EStG von der Höhe der Miete ab, ob Sie die vollen Werbungskosten ansetzen dürfen oder nicht. Vermieten Sie eine zu Ihrem Privatvermögen gehörende Wohnung verbilligt zu Wohnzwecken, gilt seit 2004 Folgendes (BMF-Schreiben vom 8.10.2004, BStBl. 2004 I S. 933 Tz. 11 ff.; BFH-Urteil vom 5.11.2002, IX R 48/01, BStBl. 2003 II S. 646): Anerkennung der Werbungskosten bei verbilligter Vermietung Beträgt die Miete mindestens 75 % der ortsüblichen Marktmiete, wird das Mietverhältnis und damit Ihre Verluste aus Vermietung und Verpachtung ohne weitere Prüfung der Gewinnerzielungsabsicht anerkannt. Beträgt die Miete weniger als 75 %, aber mindestens 56 % der Marktmiete, ist die Gewinnerzielungsabsicht anhand einer Überschussprognose zu prüfen. Fällt diese positiv aus (Totalgewinn), sind die Werbungskosten und damit die Verluste in voller Höhe anzuerkennen. Ist die Prognose negativ (Totalverlust), führt dies nicht zu einem Abzugsverbot für die gesamten Werbungskosten; vielmehr ist die Vermietung in einen entgeltlichen Teil (= verbilligte Miete) und einen unentgeltlichen Teil (= Differenz zur Marktmiete) aufzuteilen. Steuerlich abziehbar sind dann nur die auf den entgeltlichen Teil entfallenden Werbungskosten. Beträgt die Miete weniger als 56 % der Marktmiete, ist die Vermietung in einen entgeltlichen und einen unentgeltlichen Teil aufzuteilen (§ 21 a Abs. 2 EStG). Für den entgeltlichen Teil wird die Einkünfteerzielungsabsicht dann nicht noch mal geprüft (BFH-Urteil vom 22.7.2003, IX R 59/02, BStBl. 2003 II S. 806). Als ortsübliche Miete gilt jede Miete innerhalb der Bandbreite des örtlichen Mietspiegels, somit auch der niedrigste Wert (Verfügung der OFD Rheinland vom 17.12.2007, DB 2008 S. 91). Die Überschussprognose erfolgt mittels einer Gewinnerzielungsrechnung in gleicher Weise wie bei Prüfung der sog. »Liebhaberei«. Ihr Mieter muss die Räume zu Wohnzwecken nutzen. Er darf sich allerdings in der Wohnung ein häusliches Arbeitszimmer/Büro einrichten. Dagegen ist eine verbilligte Vermietung einzelner Privaträume zu betrieblichen Zwecken nicht möglich und führt zu einer Kürzung der Werbungskosten. Die ortsübliche Marktmiete für Wohnungen vergleichbarer Art, Lage und Ausstattung (siehe örtlicher Mietspiegel des Wohnungsamts) umfasst die ortsübliche Kaltmiete zuzüglich der nach der Zweiten Berechnungsverordnung bzw. der Betriebskostenverordnung umlagefähigen Betriebskosten (R 21.3 EStR 2008).
B230: noch nicht fertig Falltyp 2: Übernehmer wohnt in Immo dauerhaft (to do: Förderung) | K230: Innerhalb Verwandten gerader Linie keine Grunderwerbssteuer (gerade Linie: Eltern, Kinder, Großeltern, Ehegatten, nicht: Geschwister). Nichteheliche Gemeinschaft ist nicht vergünstigt. Grunderwerbssteuer vor 1.1.97 nur 2%, seitdem je nach Bundesland deutlich angestiegen (3,5%-6,5%).
K231: Durch den Erwerb der Immobilie sinkt der Grenzsteuersatz des Übernehmers. Der durchschnittliche Grenzsteuersatz ergibt sich in guter Näherung als (Grenzsteuersatz vor Kauf + Grenzsteuersatz nach Kauf) / 2
K232: Dieser Fall kann etwa interessant sein, wenn ein Kind gerade erst begonnen hat zu arbeiten, (noch) wenig verdient, aber voraussichtlich in den nächsten Jahren größere Einkommensssteigerungen zu erwarten hat.
B233: pro rata temporis-Anteil (Übernehmer) | C233: =(365-(MONTH($G$7)-1)*30.4+(DAY($G$7))-1)/365 -> 0.5002739726 | E233: Mögliche ortsübliche Mieteinnahme p.a. | I233: =12*Immo.Marktmieteqm*Immo.Wohnflaeche -> 21780 | K233: Durch Steuervorteile sind die Instandhaltungskosten des Übernehmers geringer als die des Abgebers. Ein großer hellgrauer Kasten hat i.A. mit Wertsteigerungen und Mietzahlungen zu tun, die hier aus Platzgründen nicht dargestellt werden können. Keine Grunderwerbssteuer fällt an unter Ehepaaren, an Kinder, Enkel, Urenkel und immer bei Schenkungen (bzw. auf den geschenkten Anteil) nach §3 Grunderwerbssteuergesetz. Anstehende Renovierungen oder Reparaturen Auch diese lassen sich durch den Verkauf innerhalb der Familile i.A. steuerlich geltend machen. Allerdings gibt es Ausagen, dass Herstellungskosten für Gebäudeteile als sofort abzugsfähige Erhaltungsaufwendungen behandelt werden, wenn die Aufwendungen für die einzelne Baumaßnahme 4.000 Euro nicht übersteigen. Verkauf der Immobilie und das Geld später schenken? Das ist in vielen Fällen möglich, sofern die Schenkung nach einer gewissen "Schamfrist" stattfindet und idealerweise mit besonderen Ereignissen (bestandene Prüfung, Geburt eines Kindes etc.) zusammenhängt. Darlehensvertrag unter Angehörigen: Laut BFH ist ein Darlehensvertrag unter nahen Angehörigen auch anzuerkennen, wenn ihm eine Schenkung vorausgegangen ist -selbst wenn der geschenkte Betrag gleich dem später geliehenen ist. Wichtig nur: Vereinbarungen und deren Durchführung entspricht dem zw. Fremden üblichen. Bei gemischten Schenkungen (teilweise verschenkt, teilweise verkauft oder auch noch mit Einschränkungen verschenkt, wie etwa "Wohnrecht"): Die Grundsteuer wird generell nur auf den verkauften Anteil fällig (hier z.B. auf den Wert den Wohnrechts). | V233: vormals Zeile 8 (Zeile 7: leer, Zeile 6. Übertragungsdatum) | W233: Kaufpreis früher, ohne Nebenkosten (unwichtig für Falltyp 1) | AB233: 0
B234: Anteil Spekulationsgewinn | C234: =IF($AB$246="ja",Immo.Restschuld/Immo.KPvormalsohneNK,0) -> 0 | E234: Mietzahlungen gesamt nach Übertragung | I234: =IF(LEFT(Immo.FallTyp,1)="2",0,$G$17*Immo.Marktmietepa) -> 16335 | K234: Führen Modernisierungsaufwendungen in der Gesamtbetrachtung zu einer wesentlichen Verbesserung eines Gebäudes, so werden diese umqualifiziert zu nachträglichen Herstellungskosten des Gebäudes. Der Erhaltungsaufwand ist also nicht mehr im Jahr der Entstehung direkt abzugsfähig, sondern muss in die Abschreibung des Gebäudes einbezogen werden und erhöht dort die Bemessungsgrundlage. Eine wesentliche Verbesserung ist anzunehmen, wenn die Erhaltungs- und Modernisierungsaufwendungen über eine zeitgemäße und substanzerhaltende Maßnahme hinausgehen (Stichwort: Luxussanierung), den Gebrauchswert deutlich erhöhen oder zu einer Hebung des Standards führen. Der Standard eines Wohngebäudes bezieht sich auf die Eigenschaften einer Wohnung, auf die sogenannten zentralen Ausstattungsmerkmale, also den Umfang und die Qualität in folgenden Bereichen: • Heizungsanlagen • Sanitärbereiche • Elektroinstallationen • Fenster inklusive Dämmung Führt ein Bündel von Baumaßnahmen bei mindestens drei Bereichen der zentralen Ausstattungsmerkmale zu einer Erhöhung und Erweiterung des Gebrauchswerts, hebt sich der Standard eines Gebäudes. In diesem Fall liegen dann nachträgliche Herstellungskosten vor, welche die Bemessungsgrundlage der (langfristigen) Gebäudeabschreibung erhöhen. | V234: Zeile 10: Vor Anteil Grund und Boden, spiel im Falltyp 1 aber keine Rolle, da immer Produkt, wo dann ein Faktor 0 ist: Langfr. absetzbare NK (Makler, Grunderw.st., ca. 50% der Notar-/Gerichtskosten) | AB234: 0.06
B235: Darl.-zinszahlung p.a. v. St. bestehendes Darlehen | C235: =Immo.Restschuld*Immo.ZinsAlt -> 0 | V235: Zeile 10 nach langf. Absetzbare NK | W235: .... im Jahr | AB235: 2022
B236: Darl.-zinszahlung p.a. v. St. neues Darl. Übernehmer (realer Veräuß.-preis inkl. Nebenkosten minus Restschuld) | C236: =(Immo.VKPreis-Immo.Restschuld)*(1+Immo.NKProzErwerber)*Immo.ZinsAkt -> 0 | E236: Gesamt-AfA Immobilie (mit NK), Abgeber | I236: =($AB$242*Immo.KPvormalsohneNK*(1+Immo.NKLangfrAltProz))*(1-AnteilGrundBoden) -> 0 | K236: Bemerkungen für Prof. Kriebel, persönlich | V236: Vormals hinter Zeile Mietfaktor | W236: Vor Übertragung: Mietzahlung gesamt aktuell p.a. (bei Eigennutzer: 0 €) | AB236: 0
B237: Darl.-zinszahlung p.a. v. St. neues Darl. (für Buchwertverkauf inkl. Nebenkosten) | C237: =$I$237*(1+Immo.NKProzErwerber)*Immo.ZinsAkt -> 0 | E237: Buchwert d. Immob. (mit NK), f. Spek.st u. Var.4 | I237: =Immo.KPvormalsohneNK*(1+Immo.NKLangfrAltProz)-Immo.AfAgesamtAbgeber -> 0
V238: Zeile 23, 24 | W238: durchschn. Spekulationssteuersatz Abgeber | AB238: 0.4
B239: Jahr | C239: =YEAR($G$7) -> 2024 | D239: =$C$239+1 -> 2025 | E239: =$C$239+2 -> 2026 | F239: =$C$239+3 -> 2027 | G239: =$C$239+4 -> 2028 | H239: =$C$239+5 -> 2029 | I239: =$C$239+6 -> 2030 | V239: ... Spek.-steuersatz bei Verkauf in Teilen | AB239: 0.3 | AC239: kann runter?
B240: =IF(LEFT(Immo.FallTyp,1)="1","Eigenheimzulage für Abgeber","Eigenheimzulage nur bei Falltyp 1") -> Eigenheimzulage für Abgeber | C240: 0 | D240: 0 | E240: 0 | F240: 0 | G240: 0 | H240: 0 | I240: 0 | N240: to do: Vorfälligkeitsentschädigung aus Diff. Darlehensbestehend und aktuell
B241: Abgeb. AfA-Satz im jeweiligen Jahr | C241: =IF(LEFT(Immo.FallTyp,1)="1",0,"Noch zu klären") -> 0 | D241: 0 | E241: 0 | F241: 0 | G241: 0 | H241: 0 | I241: 0 | N241: to do: Steuersatz in 3 Jahren | V241: Zeile 26
B242: Übern. AfA-Satz im jeweiligen Jahr | C242: 0.02 | D242: 0.02 | E242: 0.02 | F242: 0.02 | G242: 0.02 | H242: 0.02 | I242: 0.02 | J242: to do: Als ein Feld oben (dafür unbenutzte oben weg) | V242: Summe bisherige Gesamt AfA in % (Abgeber; nur falls vermietet) | AB242: 0.5 | AC242: kann wohl nur weg, wenn Immo.NKErwerber nein
B243: Übernehmer-AfA f. Schenkung | C243: =(1-Immo.Restschuld/Immo.Verkehrswert)*Immo.AfAAbg0 -> 0 | D243: =(1-Immo.Restschuld/Immo.Verkehrswert)*Immo.AfAAbg1 -> 0 | E243: =(1-Immo.Restschuld/Immo.Verkehrswert)*Immo.AfAAbg2 -> 0 | F243: =(1-Immo.Restschuld/Immo.Verkehrswert)*Immo.AfAAbg3 -> 0 | G243: =(1-Immo.Restschuld/Immo.Verkehrswert)*Immo.AfAAbg4 -> 0 | H243: =(1-Immo.Restschuld/Immo.Verkehrswert)*Immo.AfAAbg5 -> 0 | I243: =(1-Immo.Restschuld/Immo.Verkehrswert)*Immo.AfAAbg6 -> 0
V245: vormals vor Zeile GStSatz Übernehmer | W245: durchschn. Grenzsteuersatz Abgeber | AB245: 0.3
B246: Veränderung Vermögensbilanz im Vergleich zur Untätigkeit | V246: vormals Zeile unterhalb Grenzsteuersatz Abgeber | W246: Spekulationsfristen/-steuer Abgeber (Falltyp 1: immer NEIN) | AB246: Nein
B247: ="A Alles bleibt wie es ist oder Eltern verschenken und wohnen lebenslang mietfrei**" -> A Alles bleibt wie es ist oder Eltern verschenken und wohnen lebenslang mietfrei** | C247: 0 | D247: 0 | E247: 0 | F247: 0 | G247: 0 | H247: 0 | J247: =SUM(C247:H247) -> 0
B249: ="B "&"Eltern verkaufen, "&$G$6&" verkauft (zum gleichen Preis sofort), Eltern zahlen Fremdem Miete" -> B Eltern verkaufen, Kind verkauft (zum gleichen Preis sofort), Eltern zahlen Fremdem Miete | H249: Bem.: Vater verkauft komplett und löst evtl. Restschuld damit ab.
B250: Abgeber
B251: =IF(LEFT(Immo.FallTyp,1)="1","zusätzliche Mietzahlung","Verlust Mieteinnahmen") -> zusätzliche Mietzahlung | C251: =-IF(LEFT(Immo.FallTyp,1)="1",Immo.Marktmietepa-Immo.MietzahlngAkt,IF(LEFT(Immo.FallTyp,1)="2",Immo.MietzahlngAkt,IF(LEFT(Immo.FallTyp,1)="3",Immo.MietzahlngAkt,0)))*Immo.ProRataTemp -> -10895.96712 | D251: =-IF(LEFT(Immo.FallTyp,1)="1",Immo.Marktmietepa-Immo.MietzahlngAkt,IF(LEFT(Immo.FallTyp,1)="2",Immo.MietzahlngAkt,IF(LEFT(Immo.FallTyp,1)="3",Immo.MietzahlngAkt,0)))*(1+Immo.WertMietSteig) -> -21997.8 | E251: =$D$251*(1+Immo.WertMietSteig) -> -22217.778 | F251: =$E$251*(1+Immo.WertMietSteig) -> -22439.95578 | G251: =$F$251*(1+Immo.WertMietSteig) -> -22664.35534 | H251: =$G$251*(1+Immo.WertMietSteig) -> -22890.99889 | I251: =$H$251*(1+Immo.WertMietSteig) -> -23119.90888
B252: nach Steuern | C252: =-IF(LEFT(Immo.FallTyp,1)="1",Immo.Marktmietepa-Immo.MietzahlngAkt,Immo.MietzahlngAkt*(1-Immo.GStSatzAbgeber))*Immo.ProRataTemp -> -10895.96712 | D252: =-IF(LEFT(Immo.FallTyp,1)="1",Immo.Marktmietepa-Immo.MietzahlngAkt,Immo.MietzahlngAkt*(1-Immo.GStSatzAbgeber))*(1+Immo.WertMietSteig) -> -21997.8 | E252: =$D$252*(1+Immo.WertMietSteig) -> -22217.778 | F252: =$E$252*(1+Immo.WertMietSteig) -> -22439.95578 | G252: =$F$252*(1+Immo.WertMietSteig) -> -22664.35534 | H252: =$G$252*(1+Immo.WertMietSteig) -> -22890.99889 | I252: =$H$252*(1+Immo.WertMietSteig) -> -23119.90888 | J252: =SUM(C252:H252) -> -123106.8551
B253: =IF(LEFT(Immo.FallTyp,1)="1","Verlust Wertsteigerung Immobilie inkl. evtl. Eigenheimzulage","Verlust Wertsteigerung Immobilie") -> Verlust Wertsteigerung Immobilie inkl. evtl. Eigenheimzulage | C253: =-Immo.WertMietSteig*Immo.Verkehrswert*Immo.ProRataTemp -> -2179.193425 | D253: =-Immo.WertMietSteig*Immo.Verkehrswert*(1+Immo.WertMietSteig) - Immo.EGIZulage1 -> -4399.56 | E253: =D$253*(1+Immo.WertMietSteig)-Immo.EGIZulage2 -> -4443.5556 | F253: =E$253*(1+Immo.WertMietSteig)-Immo.EGIZulage3 -> -4487.991156 | G253: =F$253*(1+Immo.WertMietSteig)-Immo.EGIZulage4 -> -4532.871068 | H253: =G$253*(1+Immo.WertMietSteig)-Immo.EGIZulage5 -> -4578.199778 | I253: =H$253*(1+Immo.WertMietSteig)-Immo.EGIZulage6 -> -4623.981776 | J253: =SUM(C253:H253) -> -24621.37103 | L253: Für Falltypnummer 1 geprüft
B254: Wegfall Instandhaltungskosten nach Steuern | C254: =IF(LEFT(Immo.FallTyp,1)="1",Immo.Verkehrswert*$G$25,Immo.Verkehrswert*$G$25*(1-Immo.GStSatzAbgeber))*Immo.ProRataTemp -> 5447.983562 | D254: =IF(LEFT(Immo.FallTyp,1)="1",Immo.Verkehrswert*$G$25,Immo.Verkehrswert*$G$25*(1-Immo.GStSatzAbgeber))*(1+Immo.WertMietSteig) -> 10998.9 | E254: =$D$254*(1+Immo.WertMietSteig) -> 11108.889 | F254: =$E$254*(1+Immo.WertMietSteig) -> 11219.97789 | G254: =$F$254*(1+Immo.WertMietSteig) -> 11332.17767 | H254: =$G$254*(1+Immo.WertMietSteig) -> 11445.49945 | I254: =$H$254*(1+Immo.WertMietSteig) -> 11559.95444 | J254: =SUM(C254:H254) -> 61553.42757 | L254: Und mit 2006-2024-Datei abgeglichen
B255: Zuwachs Geldanlage nach Steuern | C255: =(Immo.VKPreis-Immo.Restschuld)*Immo.GAWertSteig*Immo.ProRataTemp -> 0 | D255: =(C255+(Immo.VKPreis-Immo.Restschuld))*Immo.GAWertSteig -> 0 | E255: =$D$255*(1+Immo.GAWertSteig) -> 0 | F255: =$E$255*(1+Immo.GAWertSteig) -> 0 | G255: =$F$255*(1+Immo.GAWertSteig) -> 0 | H255: =$G$255*(1+Immo.GAWertSteig) -> 0 | I255: =$H$255*(1+Immo.GAWertSteig) -> 0 | J255: =SUM(C255:H255) -> 0
B256: =IF(Immo.AfAAbg0>0,"Steuernachteil durch AfA Wegfall","Abgeber: keine AfA") -> Abgeber: keine AfA | C256: =-Immo.AfAAbg0*Immo.KPvormalsohneNK*(1+Immo.NKLangfrAltProz)*(1-AnteilGrundBoden)*Immo.GStSatzAbgeber*Immo.ProRataTemp -> 0 | D256: =-Immo.AfAAbg1*Immo.KPvormalsohneNK*(1+Immo.NKLangfrAltProz)*(1-AnteilGrundBoden)*Immo.GStSatzAbgeber -> 0 | E256: =-Immo.AfAAbg2*Immo.KPvormalsohneNK*(1+Immo.NKLangfrAltProz)*(1-AnteilGrundBoden)*Immo.GStSatzAbgeber -> 0 | F256: =-Immo.AfAAbg3*Immo.KPvormalsohneNK*(1+Immo.NKLangfrAltProz)*(1-AnteilGrundBoden)*Immo.GStSatzAbgeber -> 0 | G256: =-Immo.AfAAbg4*Immo.KPvormalsohneNK*(1+Immo.NKLangfrAltProz)*(1-AnteilGrundBoden)*Immo.GStSatzAbgeber -> 0 | H256: =-Immo.AfAAbg5*Immo.KPvormalsohneNK*(1+Immo.NKLangfrAltProz)*(1-AnteilGrundBoden)*Immo.GStSatzAbgeber -> 0 | I256: =-Immo.AfAAbg6*Immo.KPvormalsohneNK*(1+Immo.NKLangfrAltProz)*(1-AnteilGrundBoden)*Immo.GStSatzAbgeber -> 0 | J256: =SUM(C256:H256) -> 0
B257: Wegfall Zinsbelastung Restschuld nach Steuern | C257: =Immo.ZinsZahlungAlt*IF(Immo.FallTyp="2",(1-Immo.GStSatzAbgeber),1) *Immo.ProRataTemp -> 0 | D257: =Immo.ZinsZahlungAlt*IF(Immo.FallTyp="2",(1-Immo.GStSatzAbgeber),1) -> 0 | E257: 0 | F257: 0 | G257: 0 | H257: 0 | I257: 0 | J257: =SUM($C$257:$H$257) -> 0 | M257: K0
B258: Spekulationssteuer | C258: =-IF($AB$246="ja",(Immo.VKPreis-$I$237)*$AB$238,0) -> 0 | D258: 0 | E258: 0 | F258: 0 | G258: 0 | H258: 0 | I258: 0 | J258: =SUM(C258:H258) -> 0 | M258: =(Immo.VKPreis-Immo.Restschuld) -> 0
B259: Summe | C259: =C$252+C$253+C$254+C$255+C$256+C$257+C$258 -> -7627.176986 | D259: -15398.46 | E259: -15552.4446 | F259: -15707.96905 | G259: -15865.04874 | H259: -16023.69922 | I259: -16183.93622 | J259: =SUM(C259:H259) -> -86174.79859 | L259: 0 | M259: =$M$258*(1+Immo.GAWertSteig*Immo.ProRataTemp) -> 0 | N259: =M259-$M$258 -> 0
B260: Übernehmer | L260: 1 | M260: =M259*(1+Immo.GAWertSteig) -> 0 | N260: =M260-M259 -> 0
B261: =IF(LEFT(Immo.FallTyp,1)="2","Zusätzliche Mietzahlung Übernehmer","Mietzahlungen") -> Mietzahlungen | C261: =IF(LEFT(Immo.FallTyp,1)="2",-(Immo.Marktmietepa-Immo.MietzahlngAkt),0) -> 0 | D261: =$C$261*(1+Immo.WertMietSteig) -> 0 | E261: =$D$261*(1+Immo.WertMietSteig) -> 0 | F261: =$E$261*(1+Immo.WertMietSteig) -> 0 | G261: =$F$261*(1+Immo.WertMietSteig) -> 0 | H261: =$G$261*(1+Immo.WertMietSteig) -> 0 | I261: =$H$261*(1+Immo.WertMietSteig) -> 0 | J261: =SUM(C261:H261) -> 0 | L261: 2 | M261: =M260*(1+Immo.GAWertSteig) -> 0 | N261: =M261-M260 -> 0
B262: nach Steuern | C262: =IF(LEFT(Immo.FallTyp,1)="2",-(Immo.Marktmietepa-Immo.MietzahlngAkt),0) -> 0 | D262: =$C$262*(1+Immo.WertMietSteig) -> 0 | E262: =$D$262*(1+Immo.WertMietSteig) -> 0 | F262: =$E$262*(1+Immo.WertMietSteig) -> 0 | G262: =$F$262*(1+Immo.WertMietSteig) -> 0 | H262: =$G$262*(1+Immo.WertMietSteig) -> 0 | I262: =$H$262*(1+Immo.WertMietSteig) -> 0 | J262: =SUM(C262:H262) -> 0 | L262: 3 | M262: =M261*(1+Immo.GAWertSteig) -> 0 | N262: 0
B263: Instandhaltungskosten nach Steuern | C263: 0 | D263: 0 | E263: 0 | F263: 0 | G263: 0 | H263: 0 | I263: 0 | J263: =MAX(SUM(C263:H263),1) -> 1 | L263: 4 | M263: =M262*(1+Immo.GAWertSteig) -> 0 | N263: 0
B264: AfA Übernehmer | C264: 0 | D264: 0 | E264: 0 | F264: 0 | G264: 0 | H264: 0 | I264: 0 | J264: =MAX(1,SUM(C264:H264)) -> 1 | L264: 5 | M264: =M263*(1+Immo.GAWertSteig) -> 0 | N264: 0
B265: Nebenkosten des Erwerbers | C265: =-Immo.VKPreis*Immo.NKProzErwerber -> 0 | D265: 0 | E265: 0 | F265: 0 | G265: 0 | H265: 0 | I265: 0 | J265: =SUM(C265:H265) -> 0 | N265: =SUM(N259:N264) -> 0
B266: Zinsbelastung komplette Schuld (inkl. Nebenkosten) nach Steuern | C266: 0 | D266: 0 | E266: 0 | F266: 0 | G266: 0 | H266: 0 | I266: 0 | J266: =MAX(1,SUM(C266:H266)) -> 1
B267: Summe | C267: =SUM(C$262:C$266) -> 0 | D267: 0 | E267: 0 | F267: 0 | G267: 0 | H267: 0 | I267: 0 | J267: =SUM(C267:H267) -> 0
B268: Summe Familienvorteil | C268: =$C$259+$C$267 -> -7627.176986 | D268: =$D$259+$D$267 -> -15398.46 | E268: =$E$259+$E$267 -> -15552.4446 | F268: =$F$259+$F$267 -> -15707.96905 | G268: =$G$259+$G$267 -> -15865.04874 | H268: =$H$259+$H$267 -> -16023.69922 | I268: =$I$259+$I$267 -> -16183.93622 | J268: =SUM(C268:H268) -> -86174.79859
B270: ="C "& "Eltern verschenken "& IF(Immo.Restschuld > 0, "(inkl. Restschuld) ", "") & "an " & $G$6 & ", das an sie vermietet" -> C Eltern verschenken an Kind, das an sie vermietet | H270: geht per se nicht mit Falltyp 2
B271: =IF(LEFT(Immo.FallTyp,1)="1","zusätzliche Mietzahlung","Verlust Mieteinnahmen") -> zusätzliche Mietzahlung | C271: =-IF(LEFT(Immo.FallTyp,1)="1",Immo.MieteRealpa,Immo.MietzahlngAkt)*Immo.ProRataTemp -> -8171.975342 | D271: =-IF(LEFT(Immo.FallTyp,1)="1",Immo.MieteRealpa,Immo.MietzahlngAkt)*(1+Immo.WertMietSteig) -> -16498.35 | E271: =$D$271*(1+Immo.WertMietSteig) -> -16663.3335 | F271: =$E$271*(1+Immo.WertMietSteig) -> -16829.96683 | G271: =$F$271*(1+Immo.WertMietSteig) -> -16998.2665 | H271: =$G$271*(1+Immo.WertMietSteig) -> -17168.24917 | I271: =$H$271*(1+Immo.WertMietSteig) -> -17339.93166
B272: nach Steuern | C272: =-IF(LEFT(Immo.FallTyp,1)="1",Immo.MieteRealpa,Immo.MietzahlngAkt*(1-Immo.GStSatzAbgeber))*Immo.ProRataTemp -> -8171.975342 | D272: =-IF(LEFT(Immo.FallTyp,1)="1",Immo.MieteRealpa,Immo.MietzahlngAkt*(1-Immo.GStSatzAbgeber))*(1+Immo.WertMietSteig) -> -16498.35 | E272: =$D$272*(1+Immo.WertMietSteig) -> -16663.3335 | F272: =$E$272*(1+Immo.WertMietSteig) -> -16829.96683 | G272: =$F$272*(1+Immo.WertMietSteig) -> -16998.2665 | H272: =$G$272*(1+Immo.WertMietSteig) -> -17168.24917 | I272: =$H$272*(1+Immo.WertMietSteig) -> -17339.93166 | J272: =SUM(C272:H272) -> -92330.14135
B273: =IF(LEFT(Immo.FallTyp,1)="1","Verlust Wertsteigerung Immobilie inkl. Eigenheimzulage","Verlust Wertsteigerung Immobilie") -> Verlust Wertsteigerung Immobilie inkl. Eigenheimzulage | C273: =-Immo.Verkehrswert*Immo.WertMietSteig*Immo.ProRataTemp -> -2179.193425 | D273: =-Immo.Verkehrswert*Immo.WertMietSteig*(1+Immo.WertMietSteig)+Immo.EGIZulage1 -> -4399.56 | E273: =$D$273*(1+Immo.WertMietSteig)+Immo.EGIZulage2 -> -4443.5556 | F273: =$E$273*(1+Immo.WertMietSteig)+Immo.EGIZulage3 -> -4487.991156 | G273: =$F$273*(1+Immo.WertMietSteig)+Immo.EGIZulage4 -> -4532.871068 | H273: =$G$273*(1+Immo.WertMietSteig)+Immo.EGIZulage5 -> -4578.199778 | I273: =$H$273*(1+Immo.WertMietSteig)+Immo.EGIZulage6 -> -4623.981776 | J273: =SUM(C273:H273) -> -24621.37103
B274: Wegfall Instandhaltungskosten nach Steuern | C274: =IF(LEFT(Immo.FallTyp,1)="1",Immo.Verkehrswert*$G$25,Immo.Verkehrswert*$G$25*(1-Immo.GStSatzAbgeber))*Immo.ProRataTemp -> 5447.983562 | D274: =IF(LEFT(Immo.FallTyp,1)="1",Immo.Verkehrswert*$G$25,Immo.Verkehrswert*$G$25*(1-Immo.GStSatzAbgeber))*(1+Immo.WertMietSteig) -> 10998.9 | E274: =$D$274*(1+Immo.WertMietSteig) -> 11108.889 | F274: =$E$274*(1+Immo.WertMietSteig) -> 11219.97789 | G274: =$F$274*(1+Immo.WertMietSteig) -> 11332.17767 | H274: =$G$274*(1+Immo.WertMietSteig) -> 11445.49945 | I274: =$H$274*(1+Immo.WertMietSteig) -> 11559.95444 | J274: =SUM(C274:H274) -> 61553.42757
B275: Zuwachs Geldanlage nach Steuern | C275: 0 | D275: 0 | E275: 0 | F275: 0 | G275: 0 | H275: 0 | I275: 0 | J275: =MAX(0,SUM(C275:H275)) -> 0 | L275: Für Falltypnummer 1 geprüft
B276: =IF(Immo.AfAAbg0>0,"Steuernachteil durch AfA Wegfall","Abgeber: keine AfA") -> Abgeber: keine AfA | C276: =Immo.KPvormalsohneNK*(1+Immo.NKLangfrAltProz)*Immo.AfAAbg0*(1-AnteilGrundBoden)*Immo.GStSatzAbgeber*Immo.ProRataTemp -> 0 | D276: =Immo.KPvormalsohneNK*(1+Immo.NKLangfrAltProz)*Immo.AfAAbg1*(1-AnteilGrundBoden)*Immo.GStSatzAbgeber -> 0 | E276: =Immo.KPvormalsohneNK*(1+Immo.NKLangfrAltProz)*Immo.AfAAbg2*(1-AnteilGrundBoden)*Immo.GStSatzAbgeber -> 0 | F276: =Immo.KPvormalsohneNK*(1+Immo.NKLangfrAltProz)*Immo.AfAAbg3*(1-AnteilGrundBoden)*Immo.GStSatzAbgeber -> 0 | G276: =Immo.KPvormalsohneNK*(1+Immo.NKLangfrAltProz)*Immo.AfAAbg4*(1-AnteilGrundBoden)*Immo.GStSatzAbgeber -> 0 | H276: =Immo.KPvormalsohneNK*(1+Immo.NKLangfrAltProz)*Immo.AfAAbg5*(1-AnteilGrundBoden)*Immo.GStSatzAbgeber -> 0 | I276: =Immo.KPvormalsohneNK*(1+Immo.NKLangfrAltProz)*Immo.AfAAbg5*(1-AnteilGrundBoden)*Immo.GStSatzAbgeber -> 0 | L276: Und mit 2006-2024-Datei abgeglichen
B277: Wegfall Zinsbelastung Restschuld nach Steuern | C277: =Immo.ZinsZahlungAlt*Immo.ProRataTemp -> 0 | D277: =Immo.ZinsZahlungAlt -> 0 | E277: 0 | F277: 0 | G277: 0 | H277: 0 | I277: 0 | J277: =SUM(C277:H277) -> 0
B278: Summe | C278: =SUM($C$272:$C$277) -> -4903.185205 | D278: =SUM(D$272:D$277) -> -9899.01 | E278: -9998.0001 | F278: -10097.9801 | G278: -10198.9599 | H278: -10300.9495 | I278: -10403.959 | J278: =SUM(C278:H278) -> -55398.08481
B279: Übernehmer (tritt Rechtsnachfolge an)
B280: =IF(LEFT(Immo.FallTyp,1)="2","Ersparte Mietzahlung","Mieteinnahmen") -> Mieteinnahmen | C280: =IF(LEFT(Immo.FallTyp,1)="2",Immo.MietzahlngAkt,Immo.MieteRealpa)*Immo.ProRataTemp -> 8171.975342 | D280: =IF(LEFT(Immo.FallTyp,1)="2",Immo.MietzahlngAkt,Immo.MieteRealpa)*(1+Immo.WertMietSteig) -> 16498.35 | E280: =$D$280*(1+Immo.WertMietSteig) -> 16663.3335 | F280: =$E$280*(1+Immo.WertMietSteig) -> 16829.96683 | G280: =$F$280*(1+Immo.WertMietSteig) -> 16998.2665 | H280: =$G$280*(1+Immo.WertMietSteig) -> 17168.24917 | I280: =$H$280*(1+Immo.WertMietSteig) -> 17339.93166 | J280: =SUM(C280:H280) -> 92330.14135
B281: nach Steuern | C281: =IF(LEFT(Immo.FallTyp,1)="2",Immo.MietzahlngAkt,Immo.MieteRealpa*(1-Immo.GStSatzUebernehmer))*Immo.ProRataTemp -> 4903.185205 | D281: =IF(LEFT(Immo.FallTyp,1)="2",Immo.MietzahlngAkt,Immo.MieteRealpa*(1-Immo.GStSatzUebernehmer))*(1+Immo.WertMietSteig) -> 9899.01 | E281: =$D$281*(1+Immo.WertMietSteig) -> 9998.0001 | F281: =$E$281*(1+Immo.WertMietSteig) -> 10097.9801 | G281: =$F$281*(1+Immo.WertMietSteig) -> 10198.9599 | H281: =$G$281*(1+Immo.WertMietSteig) -> 10300.9495 | I281: =$H$281*(1+Immo.WertMietSteig) -> 10403.959 | J281: =SUM(C281:H281) -> 55398.08481
B282: Wertsteigerung Immobilie | C282: =-$C$273 -> 2179.193425 | D282: =Immo.EGIZulage1-$D$273 -> 4399.56 | E282: =Immo.EGIZulage2-$E$273 -> 4443.5556 | F282: =Immo.EGIZulage3-$F$273 -> 4487.991156 | G282: =Immo.EGIZulage4-$G$273 -> 4532.871068 | H282: =Immo.EGIZulage5-$H$273 -> 4578.199778 | I282: =Immo.EGIZulage6-$I$273 -> 4623.981776 | J282: =SUM(C282:H282) -> 24621.37103
B283: Instandhaltungskosten nach Steuern | C283: =-IF(LEFT(Immo.FallTyp,1)="2",Immo.Verkehrswert*$G$25,Immo.Verkehrswert*$G$25*(1-Immo.GStSatzUebernehmer))*Immo.ProRataTemp -> -3268.790137 | D283: =-IF(LEFT(Immo.FallTyp,1)="2",Immo.Verkehrswert*$G$25,Immo.Verkehrswert*$G$25*(1-Immo.GStSatzUebernehmer))*(1+Immo.WertMietSteig) -> -6599.34 | E283: =$D$283*(1+Immo.WertMietSteig) -> -6665.3334 | F283: =$E$283*(1+Immo.WertMietSteig) -> -6731.986734 | G283: =$F$283*(1+Immo.WertMietSteig) -> -6799.306601 | H283: =$G$283*(1+Immo.WertMietSteig) -> -6867.299667 | I283: =$H$283*(1+Immo.WertMietSteig) -> -6935.972664 | J283: =SUM(C283:H283) -> -36932.05654
B284: =IF(Immo.Restschuld>0,"Steuervorteil durch AfA (Restschuld/Geschenkter Anteil)","Steuervorteil Übernehmer") -> Steuervorteil Übernehmer | C284: =((Immo.Restschuld-$C$285)*$C$242+$C$243*Immo.KPvormalsohneNK*(1+Immo.NKLangfrAltProz))*(1-AnteilGrundBoden)*Immo.GStSatzUebernehmer*Immo.ProRataTemp -> 0 | D284: =((Immo.Restschuld-$C$285)*$D$242+$D$243*Immo.KPvormalsohneNK*(1+Immo.NKLangfrAltProz))*(1-AnteilGrundBoden)*Immo.GStSatzUebernehmer -> 0 | E284: =((Immo.Restschuld-$C$285)*$E$242+$E$243*Immo.KPvormalsohneNK*(1+Immo.NKLangfrAltProz))*(1-AnteilGrundBoden)*Immo.GStSatzUebernehmer -> 0 | F284: =((Immo.Restschuld-$C$285)*$F$242+$F$243*Immo.KPvormalsohneNK*(1+Immo.NKLangfrAltProz))*(1-AnteilGrundBoden)*Immo.GStSatzUebernehmer -> 0 | G284: =((Immo.Restschuld-$C$285)*$G$242+$G$243*Immo.KPvormalsohneNK*(1+Immo.NKLangfrAltProz))*(1-AnteilGrundBoden)*Immo.GStSatzUebernehmer -> 0 | H284: =((Immo.Restschuld-$C$285)*$H$242+$H$243*Immo.KPvormalsohneNK*(1+Immo.NKLangfrAltProz))*(1-AnteilGrundBoden)*Immo.GStSatzUebernehmer -> 0 | I284: =((Immo.Restschuld-$C$285)*$I$242+$I$243*Immo.KPvormalsohneNK*(1+Immo.NKLangfrAltProz))*(1-AnteilGrundBoden)*Immo.GStSatzUebernehmer -> 0 | J284: =MAX(1,SUM(C284:H284)) -> 1
B285: Nebenkosten des Erwerbers | C285: =-Immo.VKPreis*2/3*Immo.NKProzErwerber -> 0 | D285: 0 | E285: 0 | F285: 0 | G285: 0 | H285: 0 | I285: 0
B286: Zinsbelastung Restschuld nach Steuern | C286: =-Immo.ZinsZahlungAlt*(1-Immo.GStSatzUebernehmer)*Immo.ProRataTemp -> 0 | D286: =-Immo.ZinsZahlungAlt*(1-Immo.GStSatzUebernehmer) -> 0 | E286: 0 | F286: 0 | G286: 0 | H286: 0 | I286: 0 | J286: =MIN(0,SUM(C286:H286)) -> 0
B287: Summe | C287: =SUM($C$281:$C$286) -> 3813.588493 | D287: =SUM($D$281:$D$286) -> 7699.23 | E287: =SUM($E$281:$E$286) -> 7776.2223 | F287: =SUM($F$281:$F$286) -> 7853.984523 | G287: =SUM($G$281:$G$286) -> 7932.524368 | H287: =SUM($H$281:$H$286) -> 8011.849612 | I287: =SUM($I$281:$I$286) -> 8091.968108 | J287: =SUM(C287:H287) -> 43087.3993
B288: Summe Familienvorteil | C288: =$C$278+$C$287 -> -1089.596712 | D288: =$D$278+$D$287 -> -2199.78 | E288: =$E$278+$E$287 -> -2221.7778 | F288: =$F$278+$F$287 -> -2243.995578 | G288: =$G$278+$G$287 -> -2266.435534 | H288: =$H$278+$H$287 -> -2289.099889 | I288: =$I$278+$I$287 -> -2311.990888 | J288: =SUM(C288:H288) -> -12310.68551
B290: ="D "&$G$6&" kauft elterliche Immobilie "&IF(Immo.Restschuld>0,"(inkl. Restschuld) ","")&"und vermietet an Eltern" -> D Kind kauft elterliche Immobilie und vermietet an Eltern
B291: Abgeber
B292: =IF(LEFT(Immo.FallTyp,1)="1","zusätzliche Mietzahlung","Verlust Mieteinnahmen") -> zusätzliche Mietzahlung | C292: =-IF(LEFT(Immo.FallTyp,1)="1",Immo.MieteRealpa,Immo.MietzahlngAkt)*Immo.ProRataTemp -> -8171.975342 | D292: =-IF(LEFT(Immo.FallTyp,1)="1",Immo.MieteRealpa,Immo.MietzahlngAkt)*(1+Immo.WertMietSteig) -> -16498.35 | E292: =$D$292*(1+Immo.WertMietSteig) -> -16663.3335 | F292: =$E$292*(1+Immo.WertMietSteig) -> -16829.96683 | G292: =$F$292*(1+Immo.WertMietSteig) -> -16998.2665 | H292: =$G$292*(1+Immo.WertMietSteig) -> -17168.24917 | I292: =$H$292*(1+Immo.WertMietSteig) -> -17339.93166
B293: nach Steuern | C293: =-IF(LEFT(Immo.FallTyp,1)="1",Immo.MieteRealpa, Immo.MietzahlngAkt*(1-Immo.GStSatzAbgeber))*Immo.ProRataTemp -> -8171.975342 | D293: =-IF(LEFT(Immo.FallTyp,1)="1",Immo.MieteRealpa, Immo.MietzahlngAkt*(1-Immo.GStSatzAbgeber))*(1+Immo.WertMietSteig) -> -16498.35 | E293: =$D$293*(1+Immo.WertMietSteig) -> -16663.3335 | F293: =$E$293*(1+Immo.WertMietSteig) -> -16829.96683 | G293: =$F$293*(1+Immo.WertMietSteig) -> -16998.2665 | H293: =$G$293*(1+Immo.WertMietSteig) -> -17168.24917 | I293: =$H$293*(1+Immo.WertMietSteig) -> -17339.93166 | J293: =SUM(C293:H293) -> -92330.14135
B294: =IF(LEFT(Immo.FallTyp,1)="1","Verlust Wertsteigerung Immobilie","Verlust Wertsteigerung Immobilie") -> Verlust Wertsteigerung Immobilie | C294: =-Immo.Verkehrswert*Immo.WertMietSteig*Immo.ProRataTemp -> -2179.193425 | D294: =-Immo.Verkehrswert*Immo.WertMietSteig*(1+Immo.WertMietSteig)-Immo.EGIZulage1 -> -4399.56 | E294: =$D$294*(1+Immo.WertMietSteig)-Immo.EGIZulage2 -> -4443.5556 | F294: =$E$294*(1+Immo.WertMietSteig)-Immo.EGIZulage3 -> -4487.991156 | G294: =$F$294*(1+Immo.WertMietSteig)-Immo.EGIZulage4 -> -4532.871068 | H294: =$G$294*(1+Immo.WertMietSteig)-Immo.EGIZulage5 -> -4578.199778 | I294: =$H$294*(1+Immo.WertMietSteig)-Immo.EGIZulage6 -> -4623.981776 | J294: -24621.37103
B295: Wegfall Instandhaltungskosten nach Steuern | C295: =IF(LEFT(Immo.FallTyp,1)="1",Immo.Verkehrswert*$G$25,Immo.Verkehrswert*$G$25*(1-Immo.GStSatzAbgeber))*Immo.ProRataTemp -> 5447.983562 | D295: =IF(LEFT(Immo.FallTyp,1)="1",Immo.Verkehrswert*$G$25,Immo.Verkehrswert*$G$25*(1-Immo.GStSatzAbgeber))*(1+Immo.WertMietSteig) -> 10998.9 | E295: =$D$295*(1+Immo.WertMietSteig) -> 11108.889 | F295: =$E$295*(1+Immo.WertMietSteig) -> 11219.97789 | G295: =$F$295*(1+Immo.WertMietSteig) -> 11332.17767 | H295: =$G$295*(1+Immo.WertMietSteig) -> 11445.49945 | I295: =$H$295*(1+Immo.WertMietSteig) -> 11559.95444 | J295: 61553.42757
B296: Zuwachs Geldanlage nach Steuern | C296: =(Immo.VKPreis-Immo.Restschuld)*Immo.GAWertSteig*Immo.ProRataTemp -> 0 | D296: =(C255+(Immo.VKPreis-Immo.Restschuld))*Immo.GAWertSteig -> 0 | E296: =$D$296*(1+Immo.GAWertSteig) -> 0 | F296: =$E$296*(1+Immo.GAWertSteig) -> 0 | G296: =$F$296*(1+Immo.GAWertSteig) -> 0 | H296: =$G$296*(1+Immo.GAWertSteig) -> 0 | I296: =$H$296*(1+Immo.GAWertSteig) -> 0 | J296: 0
B297: =IF(Immo.AfAAbg0>0,"Steuernachteil durch AfA Wegfall","Abgeber: keine AfA") -> Abgeber: keine AfA | C297: =-Immo.AfAAbg0*Immo.KPvormalsohneNK*(1+Immo.NKLangfrAltProz)*(1-AnteilGrundBoden)*Immo.GStSatzAbgeber*Immo.ProRataTemp -> 0 | D297: =-Immo.AfAAbg1*Immo.KPvormalsohneNK*(1+Immo.NKLangfrAltProz)*(1-AnteilGrundBoden)*Immo.GStSatzAbgeber -> 0 | E297: =-Immo.AfAAbg2*Immo.KPvormalsohneNK*(1+Immo.NKLangfrAltProz)*(1-AnteilGrundBoden)*Immo.GStSatzAbgeber -> 0 | F297: =-Immo.AfAAbg3*Immo.KPvormalsohneNK*(1+Immo.NKLangfrAltProz)*(1-AnteilGrundBoden)*Immo.GStSatzAbgeber -> 0 | G297: =-Immo.AfAAbg4*Immo.KPvormalsohneNK*(1+Immo.NKLangfrAltProz)*(1-AnteilGrundBoden)*Immo.GStSatzAbgeber -> 0 | H297: =-Immo.AfAAbg5*Immo.KPvormalsohneNK*(1+Immo.NKLangfrAltProz)*(1-AnteilGrundBoden)*Immo.GStSatzAbgeber -> 0 | I297: =-Immo.AfAAbg6*Immo.KPvormalsohneNK*(1+Immo.NKLangfrAltProz)*(1-AnteilGrundBoden)*Immo.GStSatzAbgeber -> 0 | J297: 0
B298: Wegfall Zinsbelastung Restschuld nach Steuern | C298: =Immo.ZinsZahlungAlt*IF(Immo.FallTyp="2",(1-Immo.GStSatzAbgeber),1) *Immo.ProRataTemp -> 0 | D298: =Immo.ZinsZahlungAlt*IF(Immo.FallTyp="2",(1-Immo.GStSatzAbgeber),1) -> 0 | E298: 0 | F298: 0 | G298: 0 | H298: 0 | I298: 0 | J298: 0
B299: Spekulationssteuer | C299: =-IF($AB$246="ja",(Immo.VKPreis-$I$237)*$AB$238,0) -> 0 | D299: 0 | E299: 0 | F299: 0 | G299: 0 | H299: 0 | I299: 0 | J299: 0 | L299: Für Falltypnummer 1 geprüft
B300: Summe | C300: =SUM($C$293:$C$299) -> -4903.185205 | D300: =SUM($D$293:$D$299) -> -9899.01 | E300: =SUM($E$293:$E$299) -> -9998.0001 | F300: =SUM($F$293:$F$299) -> -10097.9801 | G300: =SUM($G$293:$G$299) -> -10198.9599 | H300: =SUM($H$293:$H$299) -> -10300.9495 | I300: =SUM($I$293:$I$299) -> -10403.959 | J300: -55398.08481 | L300: Und mit 2006-2024-Datei abgeglichen
B301: Übernehmer
B302: =IF(LEFT(Immo.FallTyp,1)="2","Ersparte Mietzahlung","Mieteinnahmen") -> Mieteinnahmen | C302: =IF(LEFT(Immo.FallTyp,1)="2",Immo.MietzahlngAkt,Immo.MieteRealpa)*Immo.ProRataTemp -> 8171.975342 | D302: =IF(LEFT(Immo.FallTyp,1)="2",Immo.MietzahlngAkt,Immo.MieteRealpa)*(1+Immo.WertMietSteig) -> 16498.35 | E302: =$D$302*(1+Immo.WertMietSteig) -> 16663.3335 | F302: =$E$302*(1+Immo.WertMietSteig) -> 16829.96683 | G302: =$F$302*(1+Immo.WertMietSteig) -> 16998.2665 | H302: =$G$302*(1+Immo.WertMietSteig) -> 17168.24917 | I302: =$H$302*(1+Immo.WertMietSteig) -> 17339.93166
B303: nach Steuern | C303: =IF(LEFT(Immo.FallTyp,1)="2",Immo.MietzahlngAkt,Immo.MieteRealpa*(1-Immo.GStSatzUebernehmer))*Immo.ProRataTemp -> 4903.185205 | D303: =IF(LEFT(Immo.FallTyp,1)="2",Immo.MietzahlngAkt,Immo.MieteRealpa*(1-Immo.GStSatzUebernehmer))*(1+Immo.WertMietSteig) -> 9899.01 | E303: =$D$303*(1+Immo.WertMietSteig) -> 9998.0001 | F303: =$E$303*(1+Immo.WertMietSteig) -> 10097.9801 | G303: =$F$303*(1+Immo.WertMietSteig) -> 10198.9599 | H303: =$G$303*(1+Immo.WertMietSteig) -> 10300.9495 | I303: =$H$303*(1+Immo.WertMietSteig) -> 10403.959 | J303: =SUM(C303:H303) -> 55398.08481
B304: Wertsteigerung Immobilie | C304: =-$C$294 -> 2179.193425 | D304: =-$D$294-Immo.EGIZulage1 -> 4399.56 | E304: =-$E$294-Immo.EGIZulage2 -> 4443.5556 | F304: =-$F$294-Immo.EGIZulage3 -> 4487.991156 | G304: =-$G$294-Immo.EGIZulage4 -> 4532.871068 | H304: =-$H$294-Immo.EGIZulage5 -> 4578.199778 | I304: =-$I$294-Immo.EGIZulage6 -> 4623.981776 | J304: 24621.37103
B305: Instandhaltungskosten nach Steuern | C305: =-IF(LEFT(Immo.FallTyp,1)="2",Immo.Verkehrswert*$G$25,Immo.Verkehrswert*$G$25*(1-Immo.GStSatzUebernehmer))*Immo.ProRataTemp -> -3268.790137 | D305: =-IF(LEFT(Immo.FallTyp,1)="2",Immo.Verkehrswert*$G$25,Immo.Verkehrswert*$G$25*(1-Immo.GStSatzUebernehmer))*(1+Immo.WertMietSteig) -> -6599.34 | E305: =$D$305*(1+Immo.WertMietSteig) -> -6665.3334 | F305: =$E$305*(1+Immo.WertMietSteig) -> -6731.986734 | G305: =$F$305*(1+Immo.WertMietSteig) -> -6799.306601 | H305: =$G$305*(1+Immo.WertMietSteig) -> -6867.299667 | I305: =$H$305*(1+Immo.WertMietSteig) -> -6935.972664 | J305: -36932.05654
B306: AfA Übernehmer | C306: =$C$242*(Immo.VKPreis-$C$307)*(1-AnteilGrundBoden)*Immo.GStSatzUebernehmer*Immo.ProRataTemp+1/3*Immo.NKProzErwerber*Immo.VKPreis -> 0 | D306: =$D$242*(Immo.VKPreis-$C$307)*(1-AnteilGrundBoden)*Immo.GStSatzUebernehmer -> 0 | E306: =$E$242*(Immo.VKPreis-$C$307)*(1-AnteilGrundBoden)*Immo.GStSatzUebernehmer -> 0 | F306: =$F$242*(Immo.VKPreis-$C$307)*(1-AnteilGrundBoden)*Immo.GStSatzUebernehmer -> 0 | G306: =$G$242*(Immo.VKPreis-$C$307)*(1-AnteilGrundBoden)*Immo.GStSatzUebernehmer -> 0 | H306: =$H$242*(Immo.VKPreis-$C$307)*(1-AnteilGrundBoden)*Immo.GStSatzUebernehmer -> 0 | I306: =$I$242*(Immo.VKPreis-$C$307)*(1-AnteilGrundBoden)*Immo.GStSatzUebernehmer -> 0 | J306: 0
B307: Nebenkosten des Erwerbers | C307: =-Immo.VKPreis*2/3*Immo.NKProzErwerber -> 0 | D307: 0 | E307: 0 | F307: 0 | G307: 0 | H307: 0 | I307: 0 | J307: 0
B308: Zinsbelastung komplette Schuld (inkl. Nebenkosten) nach Steuern | C308: =-(Immo.ZinsZahlungAlt+Immo.ZinsZahlungNeu)*(1-Immo.GStSatzUebernehmer)*Immo.ProRataTemp -> 0 | D308: =-(Immo.ZinsZahlungAlt+Immo.ZinsZahlungNeu)*(1-Immo.GStSatzUebernehmer) -> 0 | E308: 0 | F308: 0 | G308: 0 | H308: 0 | I308: 0 | J308: =SUM(C308:H308) -> 0
B309: Summe | C309: =SUM($C$303:$C$308) -> 3813.588493 | D309: =SUM($D$303:$D$308) -> 7699.23 | E309: =SUM($E$303:$E$308) -> 7776.2223 | F309: =SUM($F$303:$F$308) -> 7853.984523 | G309: =SUM($G$303:$G$308) -> 7932.524368 | H309: =SUM($H$303:$H$308) -> 8011.849612 | I309: =SUM($I$303:$I$308) -> 8091.968108 | J309: 43087.3993
B310: Summe Familienvorteil | C310: =$C$300+$C$309 -> -1089.596712 | D310: =$D$300+$D$309 -> -2199.78 | E310: =$E$300+$E$309 -> -2221.7778 | F310: =$F$300+$F$309 -> -2243.995578 | G310: =$G$300+$G$309 -> -2266.435534 | H310: =$H$300+$H$309 -> -2289.099889 | I310: =$I$300+$I$309 -> -2311.990888 | J310: -12310.68551
B312: ="E "&LEFT($G$5,1)&" verkauft in Teilen, "&$G$6&" behält" -> E E verkauft in Teilen, Kind behält | C312: 1. Teil | D312: 2. Teil | E312: Letzter Teil | K312: Nur bis HIER alles kontrolliert 2024-04 !!!!!!!
B313: Abgeber | C313: 0.33 | D313: 0.33 | E313: =1-$C$313-$D$313 -> 0.34
B314: =IF(LEFT(Immo.FallTyp,1)="1","zusätzliche Mietzahlung","Verlust Mieteinnahmen") -> zusätzliche Mietzahlung | C314: =IF(LEFT(Immo.FallTyp,1)="1",Immo.MieteRealpa,Immo.MietzahlngAkt)*Immo.ProRataTemp*$C$313 -> 2696.751863 | D314: =IF(LEFT(Immo.FallTyp,1)="1",Immo.MieteRealpa,Immo.MietzahlngAkt)*(1+Immo.WertMietSteig)*($C$313+$D$313) -> 10888.911 | E314: =IF(LEFT(Immo.FallTyp,1)="1",Immo.MieteRealpa,Immo.MietzahlngAkt)*POWER((1+Immo.WertMietSteig),2) -> 16663.3335 | F314: =$E$314*(1+Immo.WertMietSteig) -> 16829.96683 | G314: =$F$314*(1+Immo.WertMietSteig) -> 16998.2665 | H314: =$G$314*(1+Immo.WertMietSteig) -> 17168.24917
B315: nach Steuern | C315: =IF(LEFT(Immo.FallTyp,1)="1",Immo.MieteRealpa,Immo.MietzahlngAkt*(1-Immo.GStSatzAbgeber))*Immo.ProRataTemp*$C$313 -> 2696.751863 | D315: =IF(LEFT(Immo.FallTyp,1)="1",Immo.MieteRealpa,Immo.MietzahlngAkt*(1-Immo.GStSatzAbgeber))*(1+Immo.WertMietSteig)*($C$313+$D$313) -> 10888.911 | E315: =IF(LEFT(Immo.FallTyp,1)="1",Immo.MieteRealpa,Immo.MietzahlngAkt*(1-Immo.GStSatzAbgeber))*POWER((1+Immo.WertMietSteig),2) -> 16663.3335 | F315: =$E$315*(1+Immo.WertMietSteig) -> 16829.96683 | G315: =$F$315*(1+Immo.WertMietSteig) -> 16998.2665 | H315: =$G$315*(1+Immo.WertMietSteig) -> 17168.24917 | U315: =C239 -> 2024 | V315: 2025 | W315: 2026 | X315: 2027 | Y315: 2028 | Z315: 2029 | AA315: Summe
B316: =IF(LEFT(Immo.FallTyp,1)="1","Verlust Wertsteigerung Immobilie","Verlust Wertsteigerung Immobilie") -> Verlust Wertsteigerung Immobilie | C316: =Immo.WertMietSteig*Immo.Verkehrswert*Immo.ProRataTemp*$C$313 -> 719.1338301 | D316: =Immo.WertMietSteig*Immo.Verkehrswert*($C$313+$D$313)+(Immo.EGIZulage1*$C$313) -> 2874.96 | E316: =Immo.WertMietSteig*Immo.Verkehrswert*POWER((1+Immo.WertMietSteig),2)+(Immo.EGIZulage2*($C$313+$D$313)) -> 4443.5556 | F316: =$E$316*(1+Immo.WertMietSteig)+Immo.EGIZulage3 -> 4487.991156 | G316: =$F$316*(1+Immo.WertMietSteig)+Immo.EGIZulage4 -> 4532.871068 | H316: =$G$316*(1+Immo.WertMietSteig)+Immo.EGIZulage5 -> 4578.199778 | AA316: 6 Jahre
B317: Wegfall Instandhaltungskosten nach Steuern | C317: =IF(LEFT(Immo.FallTyp,1)="1",Immo.Verkehrswert*$G$25,Immo.Verkehrswert*$G$25*(1-Immo.GStSatzAbgeber))*Immo.ProRataTemp*$C$313 -> 1797.834575 | D317: =IF(LEFT(Immo.FallTyp,1)="1",Immo.Verkehrswert*$G$25,Immo.Verkehrswert*$G$25*(1-Immo.GStSatzAbgeber))*(1+Immo.WertMietSteig)*($C$313+$D$313) -> 7259.274 | E317: =IF(LEFT(Immo.FallTyp,1)="1",Immo.Verkehrswert*$G$25,Immo.Verkehrswert*$G$25*(1-Immo.GStSatzAbgeber))*POWER((1+Immo.WertMietSteig),2) -> 11108.889 | F317: =$E$317*(1+Immo.WertMietSteig) -> 11219.97789 | G317: =$F$317*(1+Immo.WertMietSteig) -> 11332.17767 | H317: =$G$317*(1+Immo.WertMietSteig) -> 11445.49945 | U317: 0 | V317: 0 | W317: 0 | X317: 0 | Y317: 0 | Z317: 0 | AA317: 0
B318: Zuwachs Geldanlage nach Steuern | C318: =(Immo.VKPreis-Immo.Restschuld)*Immo.GAWertSteig*Immo.ProRataTemp*$C$313 -> 0 | D318: =(Immo.VKPreis-Immo.Restschuld)*Immo.GAWertSteig*$C$313*(1+Immo.GAWertSteig)+(Immo.VKPreis-Immo.Restschuld)*Immo.GAWertSteig*$D$313 -> 0 | E318: =$D$318*(1+Immo.GAWertSteig) + (Immo.VKPreis-Immo.Restschuld)*(Immo.GAWertSteig)*$E$313 -> 0 | F318: =$E$318*(1+Immo.GAWertSteig) -> 0 | G318: =$F$318*(1+Immo.GAWertSteig) -> 0 | H318: =$G$318*(1+Immo.GAWertSteig) -> 0
B319: =IF(Immo.AfAAbg0>0,"Steuernachteil durch AfA Wegfall","Abgeber: keine AfA") -> Abgeber: keine AfA | C319: =Immo.AfAAbg0*Immo.KPvormalsohneNK*(1+Immo.NKLangfrAltProz)*(1-AnteilGrundBoden)*Immo.GStSatzAbgeber*Immo.ProRataTemp*$C$313 -> 0 | D319: =Immo.AfAAbg1*Immo.KPvormalsohneNK*(1+Immo.NKLangfrAltProz)*(1-AnteilGrundBoden)*Immo.GStSatzAbgeber*($C$313+$D$313) -> 0 | E319: =Immo.AfAAbg2*Immo.KPvormalsohneNK*(1+Immo.NKLangfrAltProz)*(1-AnteilGrundBoden)*Immo.GStSatzAbgeber -> 0 | F319: =Immo.AfAAbg3*Immo.KPvormalsohneNK*(1+Immo.NKLangfrAltProz)*(1-AnteilGrundBoden)*Immo.GStSatzAbgeber -> 0 | G319: =Immo.AfAAbg4*Immo.KPvormalsohneNK*(1+Immo.NKLangfrAltProz)*(1-AnteilGrundBoden)*Immo.GStSatzAbgeber -> 0 | H319: =Immo.AfAAbg5*Immo.KPvormalsohneNK*(1+Immo.NKLangfrAltProz)*(1-AnteilGrundBoden)*Immo.GStSatzAbgeber -> 0 | T319: =B249 -> B Eltern verkaufen, Kind verkauft (zum gleichen Preis sofort), Eltern zahlen Fremdem Miete
B320: Wegfall Zinsbelastung Restschuld nach Steuern | C320: =Immo.ZinsZahlungAlt*(1-Immo.GStSatzAbgeber)*Immo.ProRataTemp*$C$313 -> 0 | D320: =Immo.ZinsZahlungAlt*(1-Immo.GStSatzAbgeber)*($C$313+$D$313) -> 0 | E320: =(Immo.ZinsZahlungAlt)*(1-Immo.GStSatzAbgeber) -> 0 | F320: =(Immo.ZinsZahlungAlt)*(1-Immo.GStSatzAbgeber) -> 0 | G320: =(Immo.ZinsZahlungAlt)*(1-Immo.GStSatzAbgeber) -> 0 | H320: =(Immo.ZinsZahlungAlt)*(1-Immo.GStSatzAbgeber) -> 0 | T320: =G5 -> Eltern(-teil) | U320: =C259 -> -7627.176986 | V320: -15398.46 | W320: -15552.4446 | X320: -15707.96905 | Y320: -15865.04874 | Z320: -16023.69922 | AA320: =SUM(U320:Z320) -> -86174.79859
B321: Spekulationssteuer | C321: =IF($AB$246="ja",(Immo.VKPreis-$I$237)*$C$313*$AB$239,0) -> 0 | D321: =IF($AB$246="ja",(Immo.VKPreis-$I$237)*$D$313*$AB$239,0) -> 0 | E321: =IF($AB$246="ja",(Immo.VKPreis-$I$237)*$E$313*$AB$239,0) -> 0 | F321: 0 | G321: 0 | H321: 0 | T321: =G6 -> Kind | U321: =C267 -> 0 | V321: 0 | W321: 0 | X321: 0 | Y321: 0 | Z321: 0 | AA321: =SUM(U321:Z321) -> 0
B322: Summe | C322: =-$C$315-$C$316+$C$318-$C$319+$C$320+$C$317-$C$321 -> -1618.051118 | D322: =-$D$315-$D$316+$D$318-$D$319+$D$320+$D$317+$D$321 -> -6504.597 | E322: =-$E$315-$E$316+$E$318-$E$319+$E$320+$E$317+$E$321 -> -9998.0001 | F322: =-$F$315-$F$316+$F$318-$F$319+$F$320+$F$317+$F$321 -> -10097.9801 | G322: =-$G$315-$G$316+$G$318-$G$319+$G$320+$G$317+$G$321 -> -10198.9599 | H322: =-$H$315-$H$316+$H$318-$H$319+$H$320+$H$317+$H$321 -> -10300.9495 | J322: =SUM(C322:H322) -> -48718.53772 | T322: Familienvorteil Summe | U322: -7627.176986 | V322: -15398.46 | W322: -15552.4446 | X322: -15707.96905 | Y322: -15865.04874 | Z322: -16023.69922 | AA322: =SUM(U322:Z322) -> -86174.79859
B323: Übernehmer
B324: =IF(LEFT(Immo.FallTyp,1)="2","Ersparte Mietzahlung","Mieteinnahmen") -> Mieteinnahmen | C324: =IF(LEFT(Immo.FallTyp,1)="2",Immo.MietzahlngAkt,Immo.MieteRealpa)*Immo.ProRataTemp*$C$313 -> 2696.751863 | D324: =IF(LEFT(Immo.FallTyp,1)="2",Immo.MietzahlngAkt,Immo.MieteRealpa)*(1+Immo.WertMietSteig)*($C$313+$D$313) -> 10888.911 | E324: =IF(LEFT(Immo.FallTyp,1)="2",Immo.MietzahlngAkt,Immo.MieteRealpa)*POWER((1+Immo.WertMietSteig),2) -> 16663.3335 | F324: =$E$324*(1+Immo.WertMietSteig) -> 16829.96683 | G324: =$F$324*(1+Immo.WertMietSteig) -> 16998.2665 | H324: =$G$324*(1+Immo.WertMietSteig) -> 17168.24917 | T324: =B290 -> D Kind kauft elterliche Immobilie und vermietet an Eltern
B325: nach Steuern | C325: =IF(LEFT(Immo.FallTyp,1)="2",Immo.MietzahlngAkt,Immo.MieteRealpa*(1-Immo.GStSatzUebernehmer))*Immo.ProRataTemp*$C$313 -> 1618.051118 | D325: =IF(LEFT(Immo.FallTyp,1)="2",Immo.MietzahlngAkt,Immo.MieteRealpa*(1-Immo.GStSatzUebernehmer))*(1+Immo.WertMietSteig)*($C$313+$D$313) -> 6533.3466 | E325: =IF(LEFT(Immo.FallTyp,1)="2",Immo.MietzahlngAkt,Immo.MieteRealpa*(1-Immo.GStSatzUebernehmer))*POWER((1+Immo.WertMietSteig),2) -> 9998.0001 | F325: =$E$325*(1+Immo.WertMietSteig) -> 10097.9801 | G325: =$F$325*(1+Immo.WertMietSteig) -> 10198.9599 | H325: =$G$325*(1+Immo.WertMietSteig) -> 10300.9495 | T325: =T320 -> Eltern(-teil) | U325: =C300 -> -4903.185205 | V325: -9899.01 | W325: -9998.0001 | X325: -10097.9801 | Y325: -10198.9599 | Z325: -10300.9495 | AA325: =SUM(U325:Z325) -> -55398.08481
B326: Wertsteigerung Immobilie | C326: =$C$316 -> 719.1338301 | D326: =$D$316-(Immo.EGIZulage1*$C$313) -> 2874.96 | E326: =$E$316-(Immo.EGIZulage2*($C$313+$D$313)) -> 4443.5556 | F326: =$F$316-Immo.EGIZulage3 -> 4487.991156 | G326: =$G$316-Immo.EGIZulage4 -> 4532.871068 | H326: =$H$316-Immo.EGIZulage5 -> 4578.199778 | T326: =T321 -> Kind | U326: =C309 -> 3813.588493 | V326: 7699.23 | W326: 7776.2223 | X326: 7853.984523 | Y326: 7932.524368 | Z326: 8011.849612 | AA326: =SUM(U326:Z326) -> 43087.3993
B327: Instandhaltungskosten nach Steuern | C327: =IF(LEFT(Immo.FallTyp,1)="2",Immo.Verkehrswert*$G$25,Immo.Verkehrswert*$G$25*(1-Immo.GStSatzUebernehmer))*Immo.ProRataTemp*$C$313 -> 1078.700745 | D327: =IF(LEFT(Immo.FallTyp,1)="2",Immo.Verkehrswert*$G$25,Immo.Verkehrswert*$G$25*(1-Immo.GStSatzUebernehmer))*(1+Immo.WertMietSteig)*($C$313+$D$313) -> 4355.5644 | E327: =IF(LEFT(Immo.FallTyp,1)="2",Immo.Verkehrswert*$G$25,Immo.Verkehrswert*$G$25*(1-Immo.GStSatzUebernehmer))*POWER((1+Immo.WertMietSteig),2) -> 6665.3334 | F327: =$E$327*(1+Immo.WertMietSteig) -> 6731.986734 | G327: =$F$327*(1+Immo.WertMietSteig) -> 6799.306601 | H327: =$G$327*(1+Immo.WertMietSteig) -> 6867.299667 | T327: Familienvorteil Summe | U327: -1089.596712 | V327: -2199.78 | W327: -2221.7778 | X327: -2243.995578 | Y327: -2266.435534 | Z327: -2289.099889 | AA327: =SUM(AA325:AA326) -> -12310.68551
B328: AfA Übernehmer | C328: =$C$242*Immo.VKPreis*(1+Immo.NKProzErwerber)*(1-AnteilGrundBoden)*Immo.GStSatzUebernehmer*Immo.ProRataTemp*$C$313 -> 0 | D328: =$D$242*Immo.VKPreis*(1+Immo.NKProzErwerber)*(1-AnteilGrundBoden)*Immo.GStSatzUebernehmer*($C$313+$D$313) -> 0 | E328: =$E$242*Immo.VKPreis*(1+Immo.NKProzErwerber)*(1-AnteilGrundBoden)*Immo.GStSatzUebernehmer -> 0 | F328: =$F$242*Immo.VKPreis*(1+Immo.NKProzErwerber)*(1-AnteilGrundBoden)*Immo.GStSatzUebernehmer -> 0 | G328: =$G$242*Immo.VKPreis*(1+Immo.NKProzErwerber)*(1-AnteilGrundBoden)*Immo.GStSatzUebernehmer -> 0 | H328: =$H$242*Immo.VKPreis*(1+Immo.NKProzErwerber)*(1-AnteilGrundBoden)*Immo.GStSatzUebernehmer -> 0
B329: Spekulationssteuer | C329: 0 | D329: 0 | E329: 0 | F329: 0 | G329: 0 | H329: 0 | T329: =B334 -> F E verkauft zum Buchwert, Kind behält
B330: Zinsbelastung komplette Schuld (inkl. Nebenkosten) nach Steuern | C330: =Immo.ZinsZahlungNeu*(1-Immo.GStSatzUebernehmer)*Immo.ProRataTemp*$C$313 -> 0 | D330: =Immo.ZinsZahlungNeu*(1-Immo.GStSatzUebernehmer)*($C$313+$D$313) -> 0 | E330: =Immo.ZinsZahlungNeu*(1-Immo.GStSatzUebernehmer) -> 0 | F330: =Immo.ZinsZahlungNeu*(1-Immo.GStSatzUebernehmer) -> 0 | G330: =Immo.ZinsZahlungNeu*(1-Immo.GStSatzUebernehmer) -> 0 | H330: =Immo.ZinsZahlungNeu*(1-Immo.GStSatzUebernehmer) -> 0 | T330: =T320 -> Eltern(-teil) | U330: =C344 -> -4903.185205 | V330: -9899.01 | W330: -9998.0001 | X330: -10097.9801 | Y330: -10198.9599 | Z330: -10300.9495 | AA330: =SUM(U330:Z330) -> -55398.08481
B331: Summe | C331: =$C$325+$C$326+$C$328-$C$330-$C$327 -> 1258.484203 | D331: =$D$325+$D$326+$D$328-$D$330-$D$327 -> 5052.7422 | E331: =$E$325+$E$326+$E$328-$E$330-$E$327 -> 7776.2223 | F331: =$F$325+$F$326+$F$328-$F$330-$F$327 -> 7853.984523 | G331: =$G$325+$G$326+$G$328-$G$330-$G$327 -> 7932.524368 | H331: =$H$325+$H$326+$H$328-$H$330-$H$327 -> 8011.849612 | J331: =SUM(C331:H331) -> 37885.80721 | T331: =T321 -> Kind | U331: =C353 -> 3813.588493 | V331: 7699.23 | W331: 7776.2223 | X331: 7853.984523 | Y331: 7932.524368 | Z331: 8011.849612 | AA331: =SUM(U331:Z331) -> 43087.3993
B332: Summe Familienvorteil | C332: =$C$322+$C$331 -> -359.5669151 | D332: =$D$322+$D$331 -> -1451.8548 | E332: =$E$322+$E$331 -> -2221.7778 | F332: =$F$322+$F$331 -> -2243.995578 | G332: =$G$322+$G$331 -> -2266.435534 | H332: =$H$322+$H$331 -> -2289.099889 | J332: =SUM(C332:H332) -> -10832.73052 | T332: Familienvorteil Summe | U332: -1089.596712 | V332: -2199.78 | W332: -2221.7778 | X332: -2243.995578 | Y332: -2266.435534 | Z332: -2289.099889 | AA332: =SUM(AA330:AA331) -> -12310.68551 | AB332: geringere Nebenkosten als Var. 3)
B334: ="F "&LEFT($G$5,1)&" verkauft zum Buchwert, "&$G$6&" behält" -> F E verkauft zum Buchwert, Kind behält | T334: =B312 -> E E verkauft in Teilen, Kind behält | U334: =C313 -> 0.33 | V334: =D313 -> 0.33 | W334: =E313 -> 0.34
B335: Abgeber | T335: =T320 -> Eltern(-teil) | U335: =C322 -> -1618.051118 | V335: -6504.597 | W335: -9998.0001 | X335: -10097.9801 | Y335: -10198.9599 | Z335: -10300.9495 | AA335: =SUM(U335:Z335) -> -48718.53772
B336: =IF(LEFT(Immo.FallTyp,1)="1","zusätzliche Mietzahlung","Verlust Mieteinnahmen") -> zusätzliche Mietzahlung | C336: =IF(LEFT(Immo.FallTyp,1)="1",Immo.MieteRealpa,Immo.MietzahlngAkt)*Immo.ProRataTemp -> 8171.975342 | D336: =IF(LEFT(Immo.FallTyp,1)="1",Immo.MieteRealpa,Immo.MietzahlngAkt)*(1+Immo.WertMietSteig) -> 16498.35 | E336: =$D$336*(1+Immo.WertMietSteig) -> 16663.3335 | F336: =$E$336*(1+Immo.WertMietSteig) -> 16829.96683 | G336: =$F$336*(1+Immo.WertMietSteig) -> 16998.2665 | H336: =$G$336*(1+Immo.WertMietSteig) -> 17168.24917 | T336: =T321 -> Kind | U336: =C331 -> 1258.484203 | V336: 5052.7422 | W336: 7776.2223 | X336: 7853.984523 | Y336: 7932.524368 | Z336: 8011.849612 | AA336: =SUM(U336:Z336) -> 37885.80721
B337: nach Steuern | C337: =IF(LEFT(Immo.FallTyp,1)="1",Immo.MieteRealpa,Immo.MietzahlngAkt*(1-Immo.GStSatzAbgeber))*Immo.ProRataTemp -> 8171.975342 | D337: =IF(LEFT(Immo.FallTyp,1)="1",Immo.MieteRealpa,Immo.MietzahlngAkt*(1-Immo.GStSatzAbgeber))*(1+Immo.WertMietSteig) -> 16498.35 | E337: =$D$337*(1+Immo.WertMietSteig) -> 16663.3335 | F337: =$E$337*(1+Immo.WertMietSteig) -> 16829.96683 | G337: =$F$337*(1+Immo.WertMietSteig) -> 16998.2665 | H337: =$G$337*(1+Immo.WertMietSteig) -> 17168.24917 | T337: Familienvorteil Summe | U337: -359.5669151 | V337: -1451.8548 | W337: -2221.7778 | X337: -2243.995578 | Y337: -2266.435534 | Z337: -2289.099889 | AA337: =SUM(AA335:AA336) -> -10832.73052
B338: =IF(LEFT(Immo.FallTyp,1)="1","Verlust Wertsteigerung Immobilie","Verlust Wertsteigerung Immobilie") -> Verlust Wertsteigerung Immobilie | C338: =Immo.WertMietSteig*Immo.Verkehrswert*Immo.ProRataTemp -> 2179.193425 | D338: =Immo.WertMietSteig*Immo.Verkehrswert*(1+Immo.WertMietSteig)+Immo.EGIZulage1 -> 4399.56 | E338: =$D$338*(1+Immo.WertMietSteig)+Immo.EGIZulage2 -> 4443.5556 | F338: =$E$338*(1+Immo.WertMietSteig)+Immo.EGIZulage3 -> 4487.991156 | G338: =$F$338*(1+Immo.WertMietSteig)+Immo.EGIZulage4 -> 4532.871068 | H338: =$G$338*(1+Immo.WertMietSteig)+Immo.EGIZulage5 -> 4578.199778
B339: Wegfall Instandhaltungskosten nach Steuern | C339: =IF(LEFT(Immo.FallTyp,1)="1",Immo.Verkehrswert*$G$25,Immo.Verkehrswert*$G$25*(1-Immo.GStSatzAbgeber))*Immo.ProRataTemp -> 5447.983562 | D339: =IF(LEFT(Immo.FallTyp,1)="1",Immo.Verkehrswert*$G$25,Immo.Verkehrswert*$G$25*(1-Immo.GStSatzAbgeber))*(1+Immo.WertMietSteig) -> 10998.9 | E339: =$D$295*(1+Immo.WertMietSteig) -> 11108.889 | F339: =$E$295*(1+Immo.WertMietSteig) -> 11219.97789 | G339: =$F$295*(1+Immo.WertMietSteig) -> 11332.17767 | H339: =$G$295*(1+Immo.WertMietSteig) -> 11445.49945 | T339: =B270 -> C Eltern verschenken an Kind, das an sie vermietet
B340: Zuwachs Geldanlage nach Steuern | C340: =Immo.GAWertSteig*($I$237-Immo.Restschuld)*Immo.ProRataTemp -> 0 | D340: =($I$237-Immo.Restschuld)*Immo.GAWertSteig*(1+Immo.GAWertSteig) -> 0 | E340: =$D$340*(1+Immo.GAWertSteig) -> 0 | F340: =$E$340*(1+Immo.GAWertSteig) -> 0 | G340: =$F$340*(1+Immo.GAWertSteig) -> 0 | H340: =$G$340*(1+Immo.GAWertSteig) -> 0 | T340: =T320 -> Eltern(-teil) | U340: =C278 -> -4903.185205 | V340: -9899.01 | W340: -9998.0001 | X340: -10097.9801 | Y340: -10198.9599 | Z340: -10300.9495 | AA340: =SUM(U340:Z340) -> -55398.08481
B341: =IF(Immo.AfAAbg0>0,"Steuernachteil durch AfA Wegfall","Abgeber: keine AfA") -> Abgeber: keine AfA | C341: =Immo.AfAAbg0*Immo.KPvormalsohneNK*(1+Immo.NKLangfrAltProz)*(1-AnteilGrundBoden)*Immo.GStSatzAbgeber*Immo.ProRataTemp -> 0 | D341: =Immo.AfAAbg1*Immo.KPvormalsohneNK*(1+Immo.NKLangfrAltProz)*(1-AnteilGrundBoden)*Immo.GStSatzAbgeber -> 0 | E341: =Immo.AfAAbg2*Immo.KPvormalsohneNK*(1+Immo.NKLangfrAltProz)*(1-AnteilGrundBoden)*Immo.GStSatzAbgeber -> 0 | F341: =Immo.AfAAbg3*Immo.KPvormalsohneNK*(1+Immo.NKLangfrAltProz)*(1-AnteilGrundBoden)*Immo.GStSatzAbgeber -> 0 | G341: =Immo.AfAAbg4*Immo.KPvormalsohneNK*(1+Immo.NKLangfrAltProz)*(1-AnteilGrundBoden)*Immo.GStSatzAbgeber -> 0 | H341: =Immo.AfAAbg5*Immo.KPvormalsohneNK*(1+Immo.NKLangfrAltProz)*(1-AnteilGrundBoden)*Immo.GStSatzAbgeber -> 0 | T341: =T321 -> Kind | U341: =C287 -> 3813.588493 | V341: 7699.23 | W341: 7776.2223 | X341: 7853.984523 | Y341: 7932.524368 | Z341: 8011.849612 | AA341: =SUM(U341:Z341) -> 43087.3993
B342: Wegfall Zinsbelastung Restschuld nach Steuern | C342: =(Immo.ZinsZahlungAlt)*(1-Immo.GStSatzAbgeber)*Immo.ProRataTemp -> 0 | D342: =(Immo.ZinsZahlungAlt)*(1-Immo.GStSatzAbgeber) -> 0 | E342: =(Immo.ZinsZahlungAlt)*(1-Immo.GStSatzAbgeber) -> 0 | F342: =(Immo.ZinsZahlungAlt)*(1-Immo.GStSatzAbgeber) -> 0 | G342: =(Immo.ZinsZahlungAlt)*(1-Immo.GStSatzAbgeber) -> 0 | H342: =(Immo.ZinsZahlungAlt)*(1-Immo.GStSatzAbgeber) -> 0 | T342: Familienvorteil Summe | U342: -1089.596712 | V342: -2199.78 | W342: -2221.7778 | X342: -2243.995578 | Y342: -2266.435534 | Z342: -2289.099889 | AA342: =SUM(AA340:AA341) -> -12310.68551
B343: Spekulationssteuer | C343: 0 | D343: 0 | E343: 0 | F343: 0 | G343: 0 | H343: 0
B344: Summe | C344: =-$C$337-$C$338+$C$340-$C$341+$C$342+$C$339-$C$343 -> -4903.185205 | D344: =-$D$337-$D$338+$D$340-$D$341+$D$342+$D$339-$D$343 -> -9899.01 | E344: =-$E$337-$E$338+$E$340-$E$341+$E$342+$E$339-$E$343 -> -9998.0001 | F344: =-$F$337-$F$338+$F$340-$F$341+$F$342+$F$339-$F$343 -> -10097.9801 | G344: =-$G$337-$G$338+$G$340-$G$341+$G$342+$G$339-$G$343 -> -10198.9599 | H344: =-$H$337-$H$338+$H$340-$H$341+$H$342+$H$339-$H$343 -> -10300.9495 | J344: =SUM(C344:H344) -> -55398.08481 | T344: =B356 -> G E verschenkt (inkl. evtl. Restschuld), Kind verkauft sofort
B345: Übernehmer | T345: =T320 -> Eltern(-teil) | U345: =C364 -> -7627.176986 | V345: -15398.46 | W345: -15552.4446 | X345: -15707.96905 | Y345: -15865.04874 | Z345: -16023.69922 | AA345: =SUM(U345:Z345) -> -86174.79859
B346: =IF(LEFT(Immo.FallTyp,1)="2","Ersparte Mietzahlung","Mieteinnahmen") -> Mieteinnahmen | C346: =IF(LEFT(Immo.FallTyp,1)="2",Immo.MietzahlngAkt,Immo.MieteRealpa)*Immo.ProRataTemp -> 8171.975342 | D346: =IF(LEFT(Immo.FallTyp,1)="2",Immo.MietzahlngAkt,Immo.MieteRealpa)*(1+Immo.WertMietSteig) -> 16498.35 | E346: =$D$346*(1+Immo.WertMietSteig) -> 16663.3335 | F346: =$E$346*(1+Immo.WertMietSteig) -> 16829.96683 | G346: =$F$346*(1+Immo.WertMietSteig) -> 16998.2665 | H346: =$G$346*(1+Immo.WertMietSteig) -> 17168.24917 | T346: =T321 -> Kind | U346: =C370 -> 0 | V346: 0 | W346: 0 | X346: 0 | Y346: 0 | Z346: 0 | AA346: =SUM(U346:Z346) -> 0
B347: nach Steuern | C347: =IF(LEFT(Immo.FallTyp,1)="2",Immo.MietzahlngAkt,Immo.MieteRealpa*(1-Immo.GStSatzUebernehmer))*Immo.ProRataTemp -> 4903.185205 | D347: =IF(LEFT(Immo.FallTyp,1)="2",Immo.MietzahlngAkt,Immo.MieteRealpa*(1-Immo.GStSatzUebernehmer))*(1+Immo.WertMietSteig) -> 9899.01 | E347: =$D$347*(1+Immo.WertMietSteig) -> 9998.0001 | F347: =$E$347*(1+Immo.WertMietSteig) -> 10097.9801 | G347: =$F$347*(1+Immo.WertMietSteig) -> 10198.9599 | H347: =$G$347*(1+Immo.WertMietSteig) -> 10300.9495 | T347: Familienvorteil Summe | U347: -7627.176986 | V347: -15398.46 | W347: -15552.4446 | X347: -15707.96905 | Y347: -15865.04874 | Z347: -16023.69922 | AA347: =SUM(AA343:AA346) -> -86174.79859
B348: Wertsteigerung Immobilie | C348: =$C$338 -> 2179.193425 | D348: =$D$338-Immo.EGIZulage1 -> 4399.56 | E348: =$E$338-Immo.EGIZulage2 -> 4443.5556 | F348: =$F$338-Immo.EGIZulage3 -> 4487.991156 | G348: =$G$338-Immo.EGIZulage4 -> 4532.871068 | H348: =$H$338-Immo.EGIZulage5 -> 4578.199778
B349: Instandhaltungskosten nach Steuern | C349: =IF(LEFT(Immo.FallTyp,1)="2",Immo.Verkehrswert*$G$25,Immo.Verkehrswert*$G$25*(1-Immo.GStSatzUebernehmer))*Immo.ProRataTemp -> 3268.790137 | D349: =IF(LEFT(Immo.FallTyp,1)="2",Immo.Verkehrswert*$G$25,Immo.Verkehrswert*$G$25*(1-Immo.GStSatzUebernehmer))*(1+Immo.WertMietSteig) -> 6599.34 | E349: =$D$349*(1+Immo.WertMietSteig) -> 6665.3334 | F349: =$E$349*(1+Immo.WertMietSteig) -> 6731.986734 | G349: =$F$349*(1+Immo.WertMietSteig) -> 6799.306601 | H349: =$G$349*(1+Immo.WertMietSteig) -> 6867.299667
B350: AfA Übernehmer | C350: =$C$242*$I$237*(1-AnteilGrundBoden)*(1+Immo.NKProzErwerber)*Immo.GStSatzUebernehmer*Immo.ProRataTemp -> 0 | D350: =$D$242*$I$237*(1-AnteilGrundBoden)*(1+Immo.NKProzErwerber)*Immo.GStSatzUebernehmer -> 0 | E350: =$E$242*($I$237)*(1-AnteilGrundBoden)*(1+Immo.NKProzErwerber)*Immo.GStSatzUebernehmer -> 0 | F350: =$F$242*($I$237)*(1-AnteilGrundBoden)*(1+Immo.NKProzErwerber)*Immo.GStSatzUebernehmer -> 0 | G350: =$G$242*($I$237)*(1-AnteilGrundBoden)*(1+Immo.NKProzErwerber)*Immo.GStSatzUebernehmer -> 0 | H350: =$H$242*($I$237)*(1-AnteilGrundBoden)*(1+Immo.NKProzErwerber)*Immo.GStSatzUebernehmer -> 0
B351: Spekulationssteuer | C351: 0 | D351: 0 | E351: 0 | F351: 0 | G351: 0 | H351: 0
B352: Zinsbelastung komplette Schuld (inkl. Nebenkosten) nach Steuern | C352: =$C$237*(1-Immo.GStSatzUebernehmer)*Immo.ProRataTemp -> 0 | D352: =$C$237*(1-Immo.GStSatzUebernehmer) -> 0 | E352: =$C$237*(1-Immo.GStSatzUebernehmer) -> 0 | F352: =$C$237*(1-Immo.GStSatzUebernehmer) -> 0 | G352: =$C$237*(1-Immo.GStSatzUebernehmer) -> 0 | H352: =$C$237*(1-Immo.GStSatzUebernehmer) -> 0
B353: Summe | C353: =$C$347+$C$348-$C$349+$C$350-$C$352 -> 3813.588493 | D353: =$D$347+$D$348-$D$349+$D$350-$D$352 -> 7699.23 | E353: =$E$347+$E$348-$E$349+$E$350-$E$352 -> 7776.2223 | F353: =$F$347+$F$348-$F$349+$F$350-$F$352 -> 7853.984523 | G353: =$G$347+$G$348-$G$349+$G$350-$G$352 -> 7932.524368 | H353: =$H$347+$H$348-$H$349+$H$350-$H$352 -> 8011.849612 | J353: =SUM(C353:H353) -> 43087.3993
B354: Summe Familienvorteil | C354: =$C$344+$C$353 -> -1089.596712 | D354: =$D$344+$D$353 -> -2199.78 | E354: =$E$344+$E$353 -> -2221.7778 | F354: =$F$344+$F$353 -> -2243.995578 | G354: =$G$344+$G$353 -> -2266.435534 | H354: =$H$344+$H$353 -> -2289.099889 | J354: =SUM(C354:H354) -> -12310.68551 | K354: (geringere Nebenkosten als Verkauf zum Marktwert)
B356: ="G "&LEFT($G$5,1)&" verschenkt (inkl. evtl. Restschuld), "&$G$6&" verkauft sofort" -> G E verschenkt (inkl. evtl. Restschuld), Kind verkauft sofort
B357: Abgeber
B358: =IF(LEFT(Immo.FallTyp,1)="1","zusätzliche Mietzahlung","Verlust Mieteinnahmen") -> zusätzliche Mietzahlung | C358: =IF(LEFT(Immo.FallTyp,1)="1",Immo.Marktmietepa-Immo.MietzahlngAkt,IF(LEFT(Immo.FallTyp,1)="2",Immo.MietzahlngAkt,IF(LEFT(Immo.FallTyp,1)="3",Immo.MietzahlngAkt,0)))*Immo.ProRataTemp -> 10895.96712 | D358: =IF(LEFT(Immo.FallTyp,1)="1",Immo.Marktmietepa-Immo.MietzahlngAkt,IF(LEFT(Immo.FallTyp,1)="2",Immo.MietzahlngAkt,IF(LEFT(Immo.FallTyp,1)="3",Immo.MietzahlngAkt,0)))*(1+Immo.WertMietSteig) -> 21997.8 | E358: =$D$358*(1+Immo.WertMietSteig) -> 22217.778 | F358: =$E$358*(1+Immo.WertMietSteig) -> 22439.95578 | G358: =$F$358*(1+Immo.WertMietSteig) -> 22664.35534 | H358: =$G$358*(1+Immo.WertMietSteig) -> 22890.99889
B359: nach Steuern | C359: =IF(LEFT(Immo.FallTyp,1)="1",Immo.Marktmietepa-Immo.MietzahlngAkt,Immo.MietzahlngAkt*(1-Immo.GStSatzAbgeber))*Immo.ProRataTemp -> 10895.96712 | D359: =IF(LEFT(Immo.FallTyp,1)="1",Immo.Marktmietepa-Immo.MietzahlngAkt,Immo.MietzahlngAkt*(1-Immo.GStSatzAbgeber))*(1+Immo.WertMietSteig) -> 21997.8 | E359: =$D$359*(1+Immo.WertMietSteig) -> 22217.778 | F359: =$E$359*(1+Immo.WertMietSteig) -> 22439.95578 | G359: =$F$359*(1+Immo.WertMietSteig) -> 22664.35534 | H359: =$G$359*(1+Immo.WertMietSteig) -> 22890.99889
B360: =IF(LEFT(Immo.FallTyp,1)="1","Verlust Wertsteigerung Immobilie","Verlust Wertsteigerung Immobilie") -> Verlust Wertsteigerung Immobilie | C360: =Immo.Verkehrswert*Immo.WertMietSteig*Immo.ProRataTemp -> 2179.193425 | D360: =Immo.Verkehrswert*Immo.WertMietSteig*(1+Immo.WertMietSteig)+Immo.EGIZulage1 -> 4399.56 | E360: =$D$360*(1+Immo.WertMietSteig)+Immo.EGIZulage2 -> 4443.5556 | F360: =$E$360*(1+Immo.WertMietSteig)+Immo.EGIZulage3 -> 4487.991156 | G360: =$F$360*(1+Immo.WertMietSteig)+Immo.EGIZulage4 -> 4532.871068 | H360: =$G$360*(1+Immo.WertMietSteig)+Immo.EGIZulage5 -> 4578.199778
B361: Wegfall Instandhaltungskosten nach Steuern | C361: =IF(LEFT(Immo.FallTyp,1)="1",Immo.Verkehrswert*$G$25,Immo.Verkehrswert*$G$25*(1-Immo.GStSatzAbgeber))*Immo.ProRataTemp -> 5447.983562 | D361: =IF(LEFT(Immo.FallTyp,1)="1",Immo.Verkehrswert*$G$25,Immo.Verkehrswert*$G$25*(1-Immo.GStSatzAbgeber))*(1+Immo.WertMietSteig) -> 10998.9 | E361: =$D$361*(1+Immo.WertMietSteig) -> 11108.889 | F361: =$E$361*(1+Immo.WertMietSteig) -> 11219.97789 | G361: =$F$361*(1+Immo.WertMietSteig) -> 11332.17767 | H361: =$G$361*(1+Immo.WertMietSteig) -> 11445.49945
B362: =IF(Immo.AfAAbg0>0,"Steuernachteil durch AfA Wegfall","Abgeber: keine AfA") -> Abgeber: keine AfA | C362: =Immo.AfAAbg0*Immo.KPvormalsohneNK*(1+Immo.NKLangfrAltProz)*(1-AnteilGrundBoden)*Immo.GStSatzAbgeber*Immo.ProRataTemp -> 0 | D362: =Immo.KPvormalsohneNK*(1+Immo.NKLangfrAltProz)*Immo.AfAAbg1*(1-AnteilGrundBoden)*Immo.GStSatzAbgeber -> 0 | E362: =Immo.KPvormalsohneNK*(1+Immo.NKLangfrAltProz)*Immo.AfAAbg2*(1-AnteilGrundBoden)*Immo.GStSatzAbgeber -> 0 | F362: =Immo.KPvormalsohneNK*(1+Immo.NKLangfrAltProz)*Immo.AfAAbg3*(1-AnteilGrundBoden)*Immo.GStSatzAbgeber -> 0 | G362: =Immo.KPvormalsohneNK*(1+Immo.NKLangfrAltProz)*Immo.AfAAbg4*(1-AnteilGrundBoden)*Immo.GStSatzAbgeber -> 0 | H362: =Immo.KPvormalsohneNK*(1+Immo.NKLangfrAltProz)*Immo.AfAAbg5*(1-AnteilGrundBoden)*Immo.GStSatzAbgeber -> 0
B363: Wegfall Zinsbelastung Restschuld nach Steuern | C363: =Immo.ZinsZahlungAlt*(1-Immo.GStSatzAbgeber)*Immo.ProRataTemp -> 0 | D363: =Immo.ZinsZahlungAlt*(1-Immo.GStSatzAbgeber) -> 0 | E363: =Immo.ZinsZahlungAlt*(1-Immo.GStSatzAbgeber) -> 0 | F363: =Immo.ZinsZahlungAlt*(1-Immo.GStSatzAbgeber) -> 0 | G363: =Immo.ZinsZahlungAlt*(1-Immo.GStSatzAbgeber) -> 0 | H363: =Immo.ZinsZahlungAlt*(1-Immo.GStSatzAbgeber) -> 0
B364: Summe | C364: =-$C$359-$C$360+$C$361-$C$362+$C$363 -> -7627.176986 | D364: =-$D$359-$D$360+$D$361-$D$362+$D$363 -> -15398.46 | E364: =-$E$359-$E$360+$E$361-$E$362+$E$363 -> -15552.4446 | F364: =-$F$359-$F$360+$F$361-$F$362+$F$363 -> -15707.96905 | G364: =-$G$359-$G$360+$G$361-$G$362+$G$363 -> -15865.04874 | H364: =-$H$359-$H$360+$H$361-$H$362+$H$363 -> -16023.69922 | J364: =SUM(C364:H364) -> -86174.79859
B365: Übernehmer
B366: =IF(LEFT(Immo.FallTyp,1)="2","Zusätzliche Mietzahlung Übernehmer","Mietzahlungen") -> Mietzahlungen | C366: =IF(LEFT(Immo.FallTyp,1)="2",Immo.Marktmietepa-Immo.MietzahlngAkt,0) -> 0 | D366: =$C$366*(1+Immo.WertMietSteig) -> 0 | E366: =$D$366*(1+Immo.WertMietSteig) -> 0 | F366: =$E$366*(1+Immo.WertMietSteig) -> 0 | G366: =$F$366*(1+Immo.WertMietSteig) -> 0 | H366: =$G$366*(1+Immo.WertMietSteig) -> 0
B367: Zuwachs Geldanlage nach Steuern | C367: =(Immo.VKPreis-Immo.Restschuld)*Immo.GAWertSteig*Immo.ProRataTemp -> 0 | D367: =(Immo.VKPreis-Immo.Restschuld)*Immo.GAWertSteig -> 0 | E367: =$D$367*(1+Immo.GAWertSteig) -> 0 | F367: =$E$367*(1+Immo.GAWertSteig) -> 0 | G367: =$F$367*(1+Immo.GAWertSteig) -> 0 | H367: =$G$367*(1+Immo.GAWertSteig) -> 0
B368: AfA Übernehmer | C368: =IF(LEFT(Immo.FallTyp,1)="2",Immo.Marktmietepa-Immo.MietzahlngAkt,0) -> 0 | D368: =$C$261*(1+Immo.WertMietSteig) -> 0 | E368: =$D$261*(1+Immo.WertMietSteig) -> 0 | F368: =$E$261*(1+Immo.WertMietSteig) -> 0 | G368: =$F$261*(1+Immo.WertMietSteig) -> 0 | H368: =$G$261*(1+Immo.WertMietSteig) -> 0
B369: Spekulationssteuer | C369: =IF($AB$246="ja",(Immo.VKPreis-($I$237))*$AB$238,0) -> 0 | D369: 0 | E369: 0 | F369: 0 | G369: 0 | H369: 0
B370: Summe | C370: =$C$367-$C$369 -> 0 | D370: =$D$367-$D$369 -> 0 | E370: =$E$367-$E$369 -> 0 | F370: =$F$367-$F$369 -> 0 | G370: =$G$367-$G$369 -> 0 | H370: =$H$367-$H$369 -> 0 | J370: =SUM(C370:H370) -> 0
B371: Summe Familienvorteil | C371: =$C$364+$C$370 -> -7627.176986 | D371: =$D$364+$D$370 -> -15398.46 | E371: =$E$364+$E$370 -> -15552.4446 | F371: =$F$364+$F$370 -> -15707.96905 | G371: =$G$364+$G$370 -> -15865.04874 | H371: =$H$364+$H$370 -> -16023.69922 | J371: =SUM(C371:H371) -> -86174.79859
C374: Notar Kauf | D374: Gericht Kauf | E374: Grudnschuld Notar | F374: Gericht Grundschuld | G374: Summe einzeln
B375: 100000 | C375: 812 | D375: 410 | E375: 339 | F375: 219 | G375: =SUM(C375:F375) -> 1780 | H375: =(C375)/B375 -> 0.00812 | I375: =(E375+F375)/B375 -> 0.00558 | J375: =H375+I375 -> 0.0137
B376: 200000 | C376: 1294 | D376: 653 | E376: 548 | F376: 354 | G376: 2849 | H376: =(C376)/B376 -> 0.00647 | I376: =(E376)/B376 -> 0.00274 | J376: =H376+I376 -> 0.00921
B377: 400000 | C377: 2335 | D377: 1178 | E377: 982 | F377: 635 | G377: =SUM(C377:F377) -> 5130 | H377: 0.0058375 | I377: =(E377)/B377 -> 0.002455 | J377: 0.0082925
B378: 600000 | C378: 3258 | D378: 1643 | E378: 1214 | F378: 785 | G378: =SUM(C378:F378) -> 6900 | H378: 0.00543 | I378: 0.002023333333 | J378: 0.007453333333

Sheet Mtl-Crashkauf
B1: MSCI-Word: Monatlich fest investieren oder besser immer bei Crash (oder Boom) der Märkte um x Prozent? | N1: Stand: | O1: 2024-01-02
B2: Persönliche Verwendung für PROF. DR. KRIEBEL | N2: Gültig bis | O2: 31.01.2025
AA3: Anteile_nachKorrektur | AC3: =$G$9*$F$8/$G$8 -> 67.37428677
A4: Hauptmenu | AA4: Sparrate_nachKorrektur | AC4: =TEXT($G$7*$F$8/$G$8,"##.###,00 €") -> 30.000,00 €
C5: =TEXT($F$204,"TT.MM.JJ")&" bis " & TEXT($F$207,"TT.MM.JJ") &" = "&ROUND((DATEDIF($F$204,$F$207,"m")+1)/12,1)&" Jahre" -> 01.01.14 bis 29.12.23 = 10 Jahre | F5: Kauf | G5: Kauf | AA5: AnteilsDiff_rel | AC5: =($AC$3-$F$9)/$F$9 -> 0.1847691673 | AE5: =IFERROR(IF($F$8<>$G$8,""&TEXT($AC$3,"#0,00")&" Anteile korrigiert, d.h. bei angenommener Sparrate von "&$AC$4&", damit gleiche Summe investiert worden wäre.",""),"") -> 67,37 Anteile korrigiert, d.h. bei angenommener Sparrate von 30.000,00 €, damit gleiche Summe investiert worden wäre.
A6: AVP.Express | F6: fest mtl. | G6: bei Crash | AA6: Tage um die herum (+- 1/2 Monat) mind 5 Käufe bei Crash stattfanden | AE6: =COUNTIF(INDIRECT("$H$"&$F$205):INDIRECT("$H$"&$F$208),">4") -> 0
A7: AV-Planer | C7: Sparrate je Kaufvorgang | F7: 1000 | G7: 1000 | AA7: Tage um die herum (+- 1/2 Monat) mind 7 Käufen bei Crash stattfanden | AE7: =COUNTIF(INDIRECT("$H$"&$F$205):INDIRECT("$H$"&$F$208),">6") -> 0
A8: bAV | C8: Investiertes Geld | F8: =COUNTIF(INDIRECT("E"&$F$205):INDIRECT("$E"&$F$208),">0")*$F$7 -> 120000 | G8: =COUNTIF(INDIRECT("F"&$F$205):INDIRECT("$F"&$F$208),">0")*$F$7 -> 4000 | AA8: Tage um die herum (+- 1/2 Monat) mind 10 Käufen bei Crash stattfanden | AE8: =COUNTIF(INDIRECT("$H$"&$F$205):INDIRECT("$H$"&$F$208),">9") -> 0
C9: Gekaufte Anteile* | F9: =SUM(INDIRECT("$E"&$F$205):INDIRECT("$E"&$F$208)) -> 56.86701564 | G9: =SUM(INDIRECT("$F"&$F$205):INDIRECT("$F"&$F$208)) -> 2.245809559 | AA9: Anzahl Crashs im hellblauen Zeitraum: | AD9: =COUNTIF(INDIRECT("$F"&$F$205):INDIRECT("$F"&$F$208),">0") -> 4 | AE9: Wie viel Monate? | AG9: =DATEDIF(INDIRECT("B"&$F$205),INDIRECT("B"&$F$208),"M")+1 -> 120 | AH9: Text: | AI9: =IF($G$11=0,"","Hinweis: "&IF(MIN($AD$9/$AG$9,1)=1,"Jeder Monat hat im Durchschnitt mindestens eine solche Veränderung.",(TEXT(MIN(100,100*$AD$9/$AG$9),"#0")&"% aller Monate hatten mindestens eine solche Veränderung."))) -> Hinweis: 3% aller Monate hatten mindestens eine solche Veränderung.
A10: Cost.Average_Pos | C10: ="Anteile bei Investition von "& TEXT($F$8,"#.##0.00 €") -> Anteile bei Investition von 120.000 € | F10: =$F$9 -> 56.86701564 | G10: =IFERROR($AC$3,"--") -> 67.37428677 | AE10: Info: Vom 01.01. bis 27.02. zählt er nur 1 Monat
A11: Cost.Average_Neg | C11: Crashgrenze für Kauf (z.B. -1,5%) | G11: -0.05 | AA11: Anteile_nachKorrektur | AC11: =IFERROR($G$20*$F$19/$G$19,"--") -> --
AA12: Sparrate_nachKorrektur | AC12: =IFERROR(TEXT($G$7*$F$19/$G$19,"##.###,00 €"),"--") -> --
A13: Immobilie.Familie | C13: =IFERROR("Ergebnis: "&IF($AC$3<$F$9,TEXT($AC$5,"0,0%")&" weniger","+"&TEXT($AC$5,"0,0%")&" mehr")& " Anteile durch "&IF($G$11<0,"Crash","Boom")&"kauf","--") -> Ergebnis: +18,5% mehr Anteile durch Crashkauf | AA13: AnteilsDiff_rel | AC13: =IFERROR(($AC$11-$F$20)/$F$20,"--") -> --
C14: ="30-Tage Abschnitte mit mind. 5 Käufen: "&$AE$6&" (!!)" -> 30-Tage Abschnitte mit mind. 5 Käufen: 0 (!!)
A15: Mtl-Crashkauf | C15: ="("&$AE$8&" x galt für Sie: 'Ich habe die letzten 30 Tage mind. 10x investiert!')" -> (0 x galt für Sie: 'Ich habe die letzten 30 Tage mind. 10x investiert!') | AE15: =IFERROR(IF($F$19<>$G$19,"Erläuterung: "&TEXT($AC$11,"#0,00")&" Anteile korrigiert, d.h. bei angenommener Sparrate von "&$AC$12&", damit gleiche Summe investiert worden wäre.",""),"") -> Erläuterung: -- Anteile korrigiert, d.h. bei angenommener Sparrate von --, damit gleiche Summe investiert worden wäre.
A17: Photovoltaik | C17: =TEXT($G$204,"TT.MM.JJ")&" bis " & TEXT($G$207,"TT.MM.JJ") & ", d.h. für "&DATEDIF($G$204,$G$207,"m")+1& " Monate" -> 03.01.22 bis 29.12.23, d.h. für 24 Monate | F17: (schwankungsreicher Zeitraum)
A18: Produktprüfer
C19: Investiertes Geld | F19: =COUNTIF(INDIRECT("E"&$G$205):INDIRECT("E"&$G$208),">0")*$F$7 -> 24000 | G19: =COUNTIF(INDIRECT("$G"&$G$205):INDIRECT("G"&$G$208),">0")*$G$7 -> 0
A20: Rechnen.komplex | C20: Gekaufte Anteile | F20: =SUM(INDIRECT("E"&$G$205):INDIRECT("E"&$G$208)) -> 8.535109669 | G20: =SUM(INDIRECT("G"&G205):INDIRECT("G"&G208)) -> 0
A21: Rendite.GRV | C21: Korrigierte Anteile | F21: =$F$20 -> 8.535109669 | G21: =IFERROR($AC$11,"--") -> --
A22: Rentenschätzer | C22: Crashgrenze für Kauf identische Summe | G22: -0.05
A24: Steuerrechner | C24: =IFERROR("Ergebnis: "&IF($AC$11<$F$20,TEXT($AC$13,"0,0%")&" weniger","+"&TEXT($AC$13,"0,0%")&" mehr")& " Anteile durch "&IF($G$22<0,"Crash","Boom")&"kauf","--") -> Ergebnis: +-- mehr Anteile durch Crashkauf
A26: Vergleich.ETF-LV
A27: Verluste_TopPerf | C27: Fazit zum Crashkauf* 1. Langfristig wenig Unterschied, d.h. genauso viele Anteile wie bei monatlichem Kauf. 2. Stark abhängig von Startjahr. Seit 2010 ca. +5% bei Crashkauf, seit 2013: -5% 3. Problem bei Crashkauf: Sehr stark schwankende Liquidität. In manchen Monaten werden mehr als 10 Beiträge fällig -anstatt nur einem! 4. Bei positiven Kursentwicklungen zu kaufen, ist langfristig noch etwas schlechter. 5. Crashgrenze liegt bei ca. -1,5%, schwankt aber je nach Zeitraum stark, d.h. für die Zukunft unbekannt! MERKE: DER MONATLICHE KAUF IST DER BESTE !! | J27: Bemerkungen
J28: Dieses Tool beantwortet also folgende Fragen: 1) Was lohnt mehr: monatlich Sparen oder immer, wenn die Märkte …
A40: Einstellungen | C40: ="Zusatzinformation für Einmalanlage seit 01.01.2008: In "&TEXT($N$340/$N$342,"0,0 %")&" aller Fälle hätte das Verteilen der Investition über 12 Monate weniger Ertrag gebracht als die sofortige Einmalanlage. Performance insgesamt durchschnittlich verringert um "&TEXT($N$362/$N$354,"0,00%")&" über die gesamte Laufzeit (nicht p.a.). Der Lohn dafür: Ein deutlich (!) reduziertes Risiko (Tool folgt)." -> Zusatzinformation für Einmalanlage seit 01.01.2008: In 65,2 % aller Fälle hätte das Verteilen der Investition über 12 Monate weniger Ertrag gebracht als die sofortige Einmalanlage. Performance insgesamt durchschnittlich verringert um 1,63% über die gesamte Laufzeit (nicht p.a.). Der Lohn dafür: Ein deutlich (!) reduziertes Risiko (Tool folgt).
A45: Version: 4.22, 1D
A46: DEMO VERSION | C46: Copyright und Autor: Prof. Dr. Claus Kriebel
C47: Trotz aller Sorgfalt kann für die Berechnungen keine Gewähr übernommen werden.
C48: Persönliche Version für: PROF. DR. KRIEBEL
A49: (c) Dr. C. Kriebel
A50: 2008 - 2024
B200: ACHTUNG: Es wird DRINGEND EMPFOHLEN, SICH NICHT WEITER NACH UNTEN ZU BEWEGEN. DAS TOOL KANN DADURCH SEHR SCHNELL IRREPERABEL ZERSTÖRT WERDEN!!
B201: 2991 (1.1.13, Mittwoch), 4265 (2.1.08). 3759 (4.1.2010 (Montag), d.h. ohne Finanzkrise). 2022: 384 (30.12.22, Freitag), 643 (1.1.22)
F203: Ab Datum | G203: Ab Datum
F204: 2014-01-01 | G204: 2022-01-03
B205: Absolut oberste Zeile | D205: =E212 -> 213 | E205: ="d.h. "&TEXT(INDIRECT("B"&$D$205),"TT.MM.JJ") -> d.h. 29.12.23 | F205: =INDEX(ROW($B$220:$B$10009), MATCH($F$204, $B$220:$B$10009, 0)) -> 2811 | G205: =INDEX(ROW($B$220:$B$10009), MATCH($G$204, $B$220:$B$10009, 0)) -> 724
B206: Absolut tiefste Zeile | D206: =INDEX(ROW($B$220:$B$10009), MATCH(DATE(2007,12,28), $B$220:$B$10009, 0)) -> 4348 | E206: ="d.h. "&TEXT(INDIRECT("B"&$D$206),"TT.MM.JJ") -> d.h. 28.12.07 | F206: Bis Datum | G206: Bis Datum | H206: 2. Fragestellung (Spalte H auch noch für "blaue" Fragestellungen
F207: 2023-12-29 | G207: 2023-12-29 | H207: ="Einmalanlage (ab "&TEXT(INDIRECT("B"&$D$206),"TT.MM.JJ")&")" -> Einmalanlage (ab 28.12.07) | K207: mit Betrag: | L207: 100000
F208: =INDEX(ROW(INDIRECT("B"&$E$212):$B$10009), MATCH(F$207, INDIRECT("B"&$E$212):$B$10009, 0)) -> 213 | G208: =INDEX(ROW(INDIRECT("B"&$E$212):$B$10009), MATCH(G$207, INDIRECT("B"&$E$212):$B$10009, 0)) -> 213 | H208: Alles sofort oder Verteilen über x Monate?
B209: Verlauf MSCI World Kursindex | F209: Kauf nur bei Crash (-%) / Boom (+%) | K209: Hilfsspalte | L209: Ergebnis
B210: Datum | C210: Zuletzt | D210: +/- % | E210: Fest mtl. | F210: … seit 2008 | G210: … seit 2022 | H210: Börsentage, an denen ich dank Crash kaufte UND an denen ich in den +-11 BörsenTagen darum AUCH gekauft habe , d.h. 22 Börsentage bzw. 30-Tage-Abschnitte, in n-fach gekauft wurde) | I210: Einmalig | J210: oder alle | K210: Summe | L210: Differenz | N210: Erste Zeile, die > 12 Monate zurück liegt (was für dieser Betrachtung zwingend ist)
I211: zum 1. | J211: 12 | K211: nächste | L211: mtl. zu | N211: 520
B212: Tabellenwerte starten ab Zeile: | E212: 213 | H212: Vielfachkäufe | J212: Monate | K212: =$J$211 & " Monate" -> 12 Monate | L212: einmalig | N212: Bedienungsanleitung: ab 2024 lasse ich für die Frage: Einmal oder verteilt 2023 komplett außen vor (also das komplette Vorjahr), nichts unterjähriges mehr, dann kann ich die Datumswerte direkt aus den gelben Feldern mit den Zeilen nehmen
B213: 2023-12-29 | C213: 3169.18 | D213: =($C213-$C214)/$C214 -> -0.00279039209 | E213: =IF(MONTH($B213)=1,IF(MONTH($B214)=12,$F$7/$C213,0),IF(MONTH($B213)=MONTH($B214)+1,$F$7/$C213,0)) -> 0 | F213: =IF(_xlfn.NUMBERVALUE($D213)*$G$11>$G$11*$G$11,$G$7/$C213,0) -> 0 | G213: =IF(_xlfn.NUMBERVALUE($D213)*$G$22>$G$22*$G$22,G$7/$C213,0) -> 0 | H213: =IF($F213>0,COUNTIF(INDIRECT("$F"&ROW()-10):INDIRECT("$F$"&ROW()+11),">0"),0) -> 0 | I213: =IF($E213>0,$L$207/$C213,0) -> 0 | J213: =IF($E213>0,$L$207/$J$211/$C213,0) -> 0 | K213: =IF($E213>0,SUM(INDIRECT("J"&MAX(258,(ROW()-21*($J$211-1)-10))):INDIRECT("J"&(ROW()))),0) -> 0 | L213: =$I213-$K213 -> 0
B214: 2023-12-28 | C214: 3178.048 | D214: 0.0007544907314 | E214: 0 | F214: 0 | G214: 0 | H214: =IF($F214>0,COUNTIF(INDIRECT("$F"&ROW()-10):INDIRECT("$F$"&ROW()+11),">0"),0) -> 0 | I214: 0 | J214: 0 | K214: =IF($E214>0,SUM(INDIRECT("J"&MAX(258,(ROW()-21*($J$211-1)-10))):INDIRECT("J"&(ROW()))),0) -> 0 | L214: 0
B215: 2023-12-27 | C215: 3175.652 | D215: 0.004110791864 | E215: 0 | F215: 0 | G215: 0 | H215: =IF($F215>0,COUNTIF(INDIRECT("$F"&ROW()-10):INDIRECT("$F$"&ROW()+11),">0"),0) -> 0 | I215: 0 | J215: 0 | K215: =IF($E215>0,SUM(INDIRECT("J"&MAX(258,(ROW()-21*($J$211-1)-10))):INDIRECT("J"&(ROW()))),0) -> 0 | L215: 0
B216: 2023-12-26 | C216: 3162.651 | D216: 0.003297001705 | E216: 0 | F216: 0 | G216: 0 | H216: =IF($F216>0,COUNTIF(INDIRECT("$F"&ROW()-10):INDIRECT("$F$"&ROW()+11),">0"),0) -> 0 | I216: 0 | J216: 0 | K216: =IF($E216>0,SUM(INDIRECT("J"&MAX(258,(ROW()-21*($J$211-1)-10))):INDIRECT("J"&(ROW()))),0) -> 0 | L216: 0
B217: 2023-12-22 | C217: 3152.258 | D217: 0.002279426751 | E217: 0 | F217: 0 | G217: 0 | H217: =IF($F217>0,COUNTIF(INDIRECT("$F"&ROW()-10):INDIRECT("$F$"&ROW()+11),">0"),0) -> 0 | I217: 0 | J217: 0 | K217: =IF($E217>0,SUM(INDIRECT("J"&MAX(258,(ROW()-21*($J$211-1)-10))):INDIRECT("J"&(ROW()))),0) -> 0 | L217: 0
B218: 2023-12-21 | C218: 3145.089 | D218: 0.007463346349 | E218: 0 | F218: 0 | G218: 0 | H218: =IF($F218>0,COUNTIF(INDIRECT("$F"&ROW()-10):INDIRECT("$F$"&ROW()+11),">0"),0) -> 0 | I218: 0 | J218: 0 | K218: =IF($E218>0,SUM(INDIRECT("J"&MAX(258,(ROW()-21*($J$211-1)-10))):INDIRECT("J"&(ROW()))),0) -> 0 | L218: 0
B219: 2023-12-20 | C219: 3121.79 | D219: =($C219-$C220)/$C220 -> -0.01000683401 | E219: =IF(MONTH($B219)=1,IF(MONTH($B220)=12,$F$7/$C219,0),IF(MONTH($B219)=MONTH($B220)+1,$F$7/$C219,0)) -> 0 | F219: 0 | G219: 0 | H219: =IF($F219>0,COUNTIF(INDIRECT("$F"&ROW()-10):INDIRECT("$F$"&ROW()+11),">0"),0) -> 0 | I219: =IF($E219>0,$L$207/$C219,0) -> 0 | J219: =IF($E219>0,$L$207/$J$211/$C219,0) -> 0 | K219: =IF($E219>0,SUM(INDIRECT("J"&MAX(258,(ROW()-21*($J$211-1)-10))):INDIRECT("J"&(ROW()))),0) -> 0 | L219: 0
B220: 2023-12-19 | C220: 3153.345 | D220: 0.007024448568 | E220: 0 | F220: 0 | G220: 0 | H220: =IF($F220>0,COUNTIF(INDIRECT("$F"&ROW()-10):INDIRECT("$F$"&ROW()+11),">0"),0) -> 0 | I220: =IF($E220>0,$L$207/$C220,0) -> 0 | J220: =IF($E220>0,$L$207/$J$211/$C220,0) -> 0 | K220: =IF($E220>0,SUM(INDIRECT("J"&MAX(258,(ROW()-21*($J$211-1)-10))):INDIRECT("J"&(ROW()))),0) -> 0 | L220: 0
B221: 2023-12-18 | C221: 3131.349 | D221: 0.001666912977 | E221: 0 | F221: 0 | G221: 0 | H221: =IF($F221>0,COUNTIF(INDIRECT("$F"&ROW()-10):INDIRECT("$F$"&ROW()+11),">0"),0) -> 0 | I221: 0 | J221: 0 | K221: =IF($E221>0,SUM(INDIRECT("J"&MAX(258,(ROW()-21*($J$211-1)-10))):INDIRECT("J"&(ROW()))),0) -> 0 | L221: 0
B222: 2023-12-15 | C222: 3126.138 | D222: -0.0008805031045 | E222: 0 | F222: 0 | G222: 0 | H222: =IF($F222>0,COUNTIF(INDIRECT("$F"&ROW()-10):INDIRECT("$F$"&ROW()+11),">0"),0) -> 0 | I222: 0 | J222: 0 | K222: =IF($E222>0,SUM(INDIRECT("J"&MAX(258,(ROW()-21*($J$211-1)-10))):INDIRECT("J"&(ROW()))),0) -> 0 | L222: 0
B223: 2023-12-14 | C223: 3128.893 | D223: 0.008969136226 | E223: 0 | F223: 0 | G223: 0 | H223: =IF($F223>0,COUNTIF(INDIRECT("$F"&ROW()-10):INDIRECT("$F$"&ROW()+11),">0"),0) -> 0 | I223: 0 | J223: 0 | K223: =IF($E223>0,SUM(INDIRECT("J"&MAX(258,(ROW()-21*($J$211-1)-10))):INDIRECT("J"&(ROW()))),0) -> 0 | L223: 0
B224: 2023-12-13 | C224: 3101.079 | D224: 0.01096548493 | E224: 0 | F224: 0 | G224: 0 | H224: =IF($F224>0,COUNTIF(INDIRECT("$F"&ROW()-10):INDIRECT("$F$"&ROW()+11),">0"),0) -> 0 | I224: 0 | J224: 0 | K224: =IF($E224>0,SUM(INDIRECT("J"&MAX(258,(ROW()-21*($J$211-1)-10))):INDIRECT("J"&(ROW()))),0) -> 0 | L224: 0
B225: 2023-12-12 | C225: 3067.443 | D225: 0.003607492041 | E225: 0 | F225: 0 | G225: 0 | H225: =IF($F225>0,COUNTIF(INDIRECT("$F"&ROW()-10):INDIRECT("$F$"&ROW()+11),">0"),0) -> 0 | I225: 0 | J225: 0 | K225: =IF($E225>0,SUM(INDIRECT("J"&MAX(258,(ROW()-21*($J$211-1)-10))):INDIRECT("J"&(ROW()))),0) -> 0 | L225: 0
B226: 2023-12-11 | C226: 3056.417 | D226: 0.00302013577 | E226: 0 | F226: 0 | G226: 0 | H226: =IF($F226>0,COUNTIF(INDIRECT("$F"&ROW()-10):INDIRECT("$F$"&ROW()+11),">0"),0) -> 0 | I226: 0 | J226: 0 | K226: =IF($E226>0,SUM(INDIRECT("J"&MAX(258,(ROW()-21*($J$211-1)-10))):INDIRECT("J"&(ROW()))),0) -> 0 | L226: 0
B227: 2023-12-08 | C227: 3047.214 | D227: 0.003214538511 | E227: 0 | F227: 0 | G227: 0 | H227: =IF($F227>0,COUNTIF(INDIRECT("$F"&ROW()-10):INDIRECT("$F$"&ROW()+11),">0"),0) -> 0 | I227: 0 | J227: 0 | K227: =IF($E227>0,SUM(INDIRECT("J"&MAX(258,(ROW()-21*($J$211-1)-10))):INDIRECT("J"&(ROW()))),0) -> 0 | L227: 0
B228: 2023-12-07 | C228: 3037.45 | D228: 0.005451207587 | E228: 0 | F228: 0 | G228: 0 | H228: =IF($F228>0,COUNTIF(INDIRECT("$F"&ROW()-10):INDIRECT("$F$"&ROW()+11),">0"),0) -> 0 | I228: 0 | J228: 0 | K228: =IF($E228>0,SUM(INDIRECT("J"&MAX(258,(ROW()-21*($J$211-1)-10))):INDIRECT("J"&(ROW()))),0) -> 0 | L228: 0
B229: 2023-12-06 | C229: 3020.982 | D229: -0.000740931364 | E229: 0 | F229: 0 | G229: 0 | H229: =IF($F229>0,COUNTIF(INDIRECT("$F"&ROW()-10):INDIRECT("$F$"&ROW()+11),">0"),0) -> 0 | I229: 0 | J229: 0 | K229: =IF($E229>0,SUM(INDIRECT("J"&MAX(258,(ROW()-21*($J$211-1)-10))):INDIRECT("J"&(ROW()))),0) -> 0 | L229: 0
B230: 2023-12-05 | C230: 3023.222 | D230: -0.001111483368 | E230: 0 | F230: 0 | G230: 0 | H230: =IF($F230>0,COUNTIF(INDIRECT("$F"&ROW()-10):INDIRECT("$F$"&ROW()+11),">0"),0) -> 0 | I230: 0 | J230: 0 | K230: =IF($E230>0,SUM(INDIRECT("J"&MAX(258,(ROW()-21*($J$211-1)-10))):INDIRECT("J"&(ROW()))),0) -> 0 | L230: 0
B231: 2023-12-04 | C231: 3026.586 | D231: -0.004640384964 | E231: 0 | F231: 0 | G231: 0 | H231: =IF($F231>0,COUNTIF(INDIRECT("$F"&ROW()-10):INDIRECT("$F$"&ROW()+11),">0"),0) -> 0 | I231: 0 | J231: 0 | K231: =IF($E231>0,SUM(INDIRECT("J"&MAX(258,(ROW()-21*($J$211-1)-10))):INDIRECT("J"&(ROW()))),0) -> 0 | L231: 0
B232: 2023-12-01 | C232: 3040.696 | D232: 0.005644209113 | E232: 0.328872074 | F232: 0 | G232: 0 | H232: =IF($F232>0,COUNTIF(INDIRECT("$F"&ROW()-10):INDIRECT("$F$"&ROW()+11),">0"),0) -> 0 | I232: 32.8872074 | J232: 2.740600617 | K232: =IF($E232>0,SUM(INDIRECT("J"&MAX(258,(ROW()-21*($J$211-1)-10))):INDIRECT("J"&(ROW()))),0) -> 5.719460364 | L232: 27.16774704
B233: 2023-11-30 | C233: 3023.63 | D233: 0.003218389279 | E233: 0 | F233: 0 | G233: 0 | H233: =IF($F233>0,COUNTIF(INDIRECT("$F"&ROW()-10):INDIRECT("$F$"&ROW()+11),">0"),0) -> 0 | I233: 0 | J233: 0 | K233: =IF($E233>0,SUM(INDIRECT("J"&MAX(258,(ROW()-21*($J$211-1)-10))):INDIRECT("J"&(ROW()))),0) -> 0 | L233: 0
B234: 2023-11-29 | C234: 3013.93 | D234: 0.0004521059774 | E234: 0 | F234: 0 | G234: 0 | H234: =IF($F234>0,COUNTIF(INDIRECT("$F"&ROW()-10):INDIRECT("$F$"&ROW()+11),">0"),0) -> 0 | I234: 0 | J234: 0 | K234: =IF($E234>0,SUM(INDIRECT("J"&MAX(258,(ROW()-21*($J$211-1)-10))):INDIRECT("J"&(ROW()))),0) -> 0 | L234: 0
B235: 2023-11-28 | C235: 3012.568 | D235: 0.001521280642 | E235: 0 | F235: 0 | G235: 0 | H235: =IF($F235>0,COUNTIF(INDIRECT("$F"&ROW()-10):INDIRECT("$F$"&ROW()+11),">0"),0) -> 0 | I235: 0 | J235: 0 | K235: =IF($E235>0,SUM(INDIRECT("J"&MAX(258,(ROW()-21*($J$211-1)-10))):INDIRECT("J"&(ROW()))),0) -> 0 | L235: 0
B236: 2023-11-27 | C236: 3007.992 | D236: -0.002387245912 | E236: 0 | F236: 0 | G236: 0 | H236: =IF($F236>0,COUNTIF(INDIRECT("$F"&ROW()-10):INDIRECT("$F$"&ROW()+11),">0"),0) -> 0 | I236: 0 | J236: 0 | K236: =IF($E236>0,SUM(INDIRECT("J"&MAX(258,(ROW()-21*($J$211-1)-10))):INDIRECT("J"&(ROW()))),0) -> 0 | L236: 0
B237: 2023-11-24 | C237: 3015.19 | D237: 0.003471827016 | E237: 0 | F237: 0 | G237: 0 | H237: =IF($F237>0,COUNTIF(INDIRECT("$F"&ROW()-10):INDIRECT("$F$"&ROW()+11),">0"),0) -> 0 | I237: 0 | J237: 0 | K237: =IF($E237>0,SUM(INDIRECT("J"&MAX(258,(ROW()-21*($J$211-1)-10))):INDIRECT("J"&(ROW()))),0) -> 0 | L237: 0
B238: 2023-11-22 | C238: 3004.758 | D238: 0.001630071723 | E238: 0 | F238: 0 | G238: 0 | H238: =IF($F238>0,COUNTIF(INDIRECT("$F"&ROW()-10):INDIRECT("$F$"&ROW()+11),">0"),0) -> 0 | I238: 0 | J238: 0 | K238: =IF($E238>0,SUM(INDIRECT("J"&MAX(258,(ROW()-21*($J$211-1)-10))):INDIRECT("J"&(ROW()))),0) -> 0 | L238: 0
B239: 2023-11-21 | C239: 2999.868 | D239: -0.001666956751 | E239: 0 | F239: 0 | G239: 0 | H239: =IF($F239>0,COUNTIF(INDIRECT("$F"&ROW()-10):INDIRECT("$F$"&ROW()+11),">0"),0) -> 0 | I239: 0 | J239: 0 | K239: =IF($E239>0,SUM(INDIRECT("J"&MAX(258,(ROW()-21*($J$211-1)-10))):INDIRECT("J"&(ROW()))),0) -> 0 | L239: 0
B240: 2023-11-20 | C240: 3004.877 | D240: 0.0065955645 | E240: 0 | F240: 0 | G240: 0 | H240: =IF($F240>0,COUNTIF(INDIRECT("$F"&ROW()-10):INDIRECT("$F$"&ROW()+11),">0"),0) -> 0 | I240: 0 | J240: 0 | K240: =IF($E240>0,SUM(INDIRECT("J"&MAX(258,(ROW()-21*($J$211-1)-10))):INDIRECT("J"&(ROW()))),0) -> 0 | L240: 0
B241: 2023-11-17 | C241: 2985.188 | D241: 0.004098549514 | E241: 0 | F241: 0 | G241: 0 | H241: =IF($F241>0,COUNTIF(INDIRECT("$F"&ROW()-10):INDIRECT("$F$"&ROW()+11),">0"),0) -> 0 | I241: 0 | J241: 0 | K241: =IF($E241>0,SUM(INDIRECT("J"&MAX(258,(ROW()-21*($J$211-1)-10))):INDIRECT("J"&(ROW()))),0) -> 0 | L241: 0
B242: 2023-11-16 | C242: 2973.003 | D242: -0.00073541497 | E242: 0 | F242: 0 | G242: 0 | H242: =IF($F242>0,COUNTIF(INDIRECT("$F"&ROW()-10):INDIRECT("$F$"&ROW()+11),">0"),0) -> 0 | I242: 0 | J242: 0 | K242: =IF($E242>0,SUM(INDIRECT("J"&MAX(258,(ROW()-21*($J$211-1)-10))):INDIRECT("J"&(ROW()))),0) -> 0 | L242: 0
B243: 2023-11-15 | C243: 2975.191 | D243: 0.003993782725 | E243: 0 | F243: 0 | G243: 0 | H243: =IF($F243>0,COUNTIF(INDIRECT("$F"&ROW()-10):INDIRECT("$F$"&ROW()+11),">0"),0) -> 0 | I243: 0 | J243: 0 | K243: =IF($E243>0,SUM(INDIRECT("J"&MAX(258,(ROW()-21*($J$211-1)-10))):INDIRECT("J"&(ROW()))),0) -> 0 | L243: 0
B244: 2023-11-14 | C244: 2963.356 | D244: 0.02021385079 | E244: 0 | F244: 0 | G244: 0 | H244: =IF($F244>0,COUNTIF(INDIRECT("$F"&ROW()-10):INDIRECT("$F$"&ROW()+11),">0"),0) -> 0 | I244: 0 | J244: 0 | K244: =IF($E244>0,SUM(INDIRECT("J"&MAX(258,(ROW()-21*($J$211-1)-10))):INDIRECT("J"&(ROW()))),0) -> 0 | L244: 0
B245: 2023-11-13 | C245: 2904.642 | D245: 0.001337234376 | E245: 0 | F245: 0 | G245: 0 | H245: =IF($F245>0,COUNTIF(INDIRECT("$F"&ROW()-10):INDIRECT("$F$"&ROW()+11),">0"),0) -> 0 | I245: 0 | J245: 0 | K245: =IF($E245>0,SUM(INDIRECT("J"&MAX(258,(ROW()-21*($J$211-1)-10))):INDIRECT("J"&(ROW()))),0) -> 0 | L245: 0
B246: 2023-11-10 | C246: 2900.763 | D246: 0.007567271291 | E246: 0 | F246: 0 | G246: 0 | H246: =IF($F246>0,COUNTIF(INDIRECT("$F"&ROW()-10):INDIRECT("$F$"&ROW()+11),">0"),0) -> 0 | I246: 0 | J246: 0 | K246: =IF($E246>0,SUM(INDIRECT("J"&MAX(258,(ROW()-21*($J$211-1)-10))):INDIRECT("J"&(ROW()))),0) -> 0 | L246: 0
B247: 2023-11-09 | C247: 2878.977 | D247: -0.003265810602 | E247: 0 | F247: 0 | G247: 0 | H247: =IF($F247>0,COUNTIF(INDIRECT("$F"&ROW()-10):INDIRECT("$F$"&ROW()+11),">0"),0) -> 0 | I247: 0 | J247: 0 | K247: =IF($E247>0,SUM(INDIRECT("J"&MAX(258,(ROW()-21*($J$211-1)-10))):INDIRECT("J"&(ROW()))),0) -> 0 | L247: 0
B248: 2023-11-08 | C248: 2888.41 | D248: 0.0003522208442 | E248: 0 | F248: 0 | G248: 0 | H248: =IF($F248>0,COUNTIF(INDIRECT("$F"&ROW()-10):INDIRECT("$F$"&ROW()+11),">0"),0) -> 0 | I248: 0 | J248: 0 | K248: =IF($E248>0,SUM(INDIRECT("J"&MAX(258,(ROW()-21*($J$211-1)-10))):INDIRECT("J"&(ROW()))),0) -> 0 | L248: 0
B249: 2023-11-07 | C249: 2887.393 | D249: -0.0007074042452 | E249: 0 | F249: 0 | G249: 0 | H249: =IF($F249>0,COUNTIF(INDIRECT("$F"&ROW()-10):INDIRECT("$F$"&ROW()+11),">0"),0) -> 0 | I249: 0 | J249: 0 | K249: =IF($E249>0,SUM(INDIRECT("J"&MAX(258,(ROW()-21*($J$211-1)-10))):INDIRECT("J"&(ROW()))),0) -> 0 | L249: 0
B250: 2023-11-06 | C250: 2889.437 | D250: 0.00195436509 | E250: 0 | F250: 0 | G250: 0 | H250: =IF($F250>0,COUNTIF(INDIRECT("$F"&ROW()-10):INDIRECT("$F$"&ROW()+11),">0"),0) -> 0 | I250: 0 | J250: 0 | K250: =IF($E250>0,SUM(INDIRECT("J"&MAX(258,(ROW()-21*($J$211-1)-10))):INDIRECT("J"&(ROW()))),0) -> 0 | L250: 0
B251: 2023-11-03 | C251: 2883.801 | D251: 0.01095439769 | E251: 0 | F251: 0 | G251: 0 | H251: =IF($F251>0,COUNTIF(INDIRECT("$F"&ROW()-10):INDIRECT("$F$"&ROW()+11),">0"),0) -> 0 | I251: 0 | J251: 0 | K251: =IF($E251>0,SUM(INDIRECT("J"&MAX(258,(ROW()-21*($J$211-1)-10))):INDIRECT("J"&(ROW()))),0) -> 0 | L251: 0
B252: 2023-11-02 | C252: 2852.553 | D252: 0.01968263705 | E252: 0 | F252: 0 | G252: 0 | H252: =IF($F252>0,COUNTIF(INDIRECT("$F"&ROW()-10):INDIRECT("$F$"&ROW()+11),">0"),0) -> 0 | I252: 0 | J252: 0 | K252: =IF($E252>0,SUM(INDIRECT("J"&MAX(258,(ROW()-21*($J$211-1)-10))):INDIRECT("J"&(ROW()))),0) -> 0 | L252: 0
B253: 2023-11-01 | C253: 2797.491 | D253: 0.01042757387 | E253: 0.3574631697 | F253: 0 | G253: 0 | H253: =IF($F253>0,COUNTIF(INDIRECT("$F"&ROW()-10):INDIRECT("$F$"&ROW()+11),">0"),0) -> 0 | I253: 35.74631697 | J253: 2.978859747 | K253: =IF($E253>0,SUM(INDIRECT("J"&MAX(258,(ROW()-21*($J$211-1)-10))):INDIRECT("J"&(ROW()))),0) -> 2.978859747 | L253: 32.76745722
B254: 2023-10-31 | C254: 2768.621 | D254: 0.004000596173 | E254: 0 | F254: 0 | G254: 0 | H254: =IF($F254>0,COUNTIF(INDIRECT("$F"&ROW()-10):INDIRECT("$F$"&ROW()+11),">0"),0) -> 0 | I254: 0 | J254: 0 | K254: =IF($E254>0,SUM(INDIRECT("J"&MAX(258,(ROW()-21*($J$211-1)-10))):INDIRECT("J"&(ROW()))),0) -> 0 | L254: 0
B255: 2023-10-30 | C255: 2757.589 | D255: 0.009369353937 | E255: 0 | F255: 0 | G255: 0 | H255: =IF($F255>0,COUNTIF(INDIRECT("$F"&ROW()-10):INDIRECT("$F$"&ROW()+11),">0"),0) -> 0 | I255: 0 | J255: 0 | K255: =IF($E255>0,SUM(INDIRECT("J"&MAX(258,(ROW()-21*($J$211-1)-10))):INDIRECT("J"&(ROW()))),0) -> 0 | L255: 0
B256: 2023-10-27 | C256: 2731.992 | D256: -0.003273300926 | E256: 0 | F256: 0 | G256: 0 | H256: =IF($F256>0,COUNTIF(INDIRECT("$F"&ROW()-10):INDIRECT("$F$"&ROW()+11),">0"),0) -> 0 | I256: 0 | J256: 0 | K256: =IF($E256>0,SUM(INDIRECT("J"&MAX(258,(ROW()-21*($J$211-1)-10))):INDIRECT("J"&(ROW()))),0) -> 0 | L256: 0
B257: 2023-10-26 | C257: 2740.964 | D257: -0.01123477152 | E257: 0 | F257: 0 | G257: 0 | H257: =IF($F257>0,COUNTIF(INDIRECT("$F"&ROW()-10):INDIRECT("$F$"&ROW()+11),">0"),0) -> 0 | I257: 0 | J257: 0 | K257: =IF($E257>0,SUM(INDIRECT("J"&MAX(258,(ROW()-21*($J$211-1)-10))):INDIRECT("J"&(ROW()))),0) -> 0 | L257: 0
B258: 2023-10-25 | C258: 2772.108 | D258: -0.01065538315 | E258: 0 | F258: 0 | G258: 0 | H258: =IF($F258>0,COUNTIF(INDIRECT("$F"&ROW()-10):INDIRECT("$F$"&ROW()+11),">0"),0) -> 0 | I258: 0 | J258: 0 | K258: =IF($E258>0,SUM(INDIRECT("J"&MAX(258,(ROW()-21*($J$211-1)-10))):INDIRECT("J"&(ROW()))),0) -> 0 | L258: 0
B259: 2023-10-24 | C259: 2801.964 | D259: 0.005460127719 | E259: 0 | F259: 0 | G259: 0 | H259: =IF($F259>0,COUNTIF(INDIRECT("$F"&ROW()-10):INDIRECT("$F$"&ROW()+11),">0"),0) -> 0 | I259: 0 | J259: 0 | K259: =IF($E259>0,SUM(INDIRECT("J"&MAX(258,(ROW()-21*($J$211-1)-10))):INDIRECT("J"&(ROW()))),0) -> 0 | L259: 0
B260: 2023-10-23 | C260: 2786.748 | D260: -0.001609678276 | E260: 0 | F260: 0 | G260: 0 | H260: =IF($F260>0,COUNTIF(INDIRECT("$F"&ROW()-10):INDIRECT("$F$"&ROW()+11),">0"),0) -> 0 | I260: 0 | J260: 0 | K260: =IF($E260>0,SUM(INDIRECT("J"&MAX(258,(ROW()-21*($J$211-1)-10))):INDIRECT("J"&(ROW()))),0) -> 0 | L260: 0
B261: 2023-10-20 | C261: 2791.241 | D261: -0.01175733745 | E261: 0 | F261: 0 | G261: 0 | H261: =IF($F261>0,COUNTIF(INDIRECT("$F"&ROW()-10):INDIRECT("$F$"&ROW()+11),">0"),0) -> 0 | I261: 0 | J261: 0 | K261: =IF($E261>0,SUM(INDIRECT("J"&MAX(258,(ROW()-21*($J$211-1)-10))):INDIRECT("J"&(ROW()))),0) -> 0 | L261: 0
B262: 2023-10-19 | C262: 2824.449 | D262: -0.009620651036 | E262: 0 | F262: 0 | G262: 0 | H262: =IF($F262>0,COUNTIF(INDIRECT("$F"&ROW()-10):INDIRECT("$F$"&ROW()+11),">0"),0) -> 0 | I262: 0 | J262: 0 | K262: =IF($E262>0,SUM(INDIRECT("J"&MAX(258,(ROW()-21*($J$211-1)-10))):INDIRECT("J"&(ROW()))),0) -> 0 | L262: 0
B263: 2023-10-18 | C263: 2851.886 | D263: -0.01271645724 | E263: 0 | F263: 0 | G263: 0 | H263: =IF($F263>0,COUNTIF(INDIRECT("$F"&ROW()-10):INDIRECT("$F$"&ROW()+11),">0"),0) -> 0 | I263: 0 | J263: 0 | K263: =IF($E263>0,SUM(INDIRECT("J"&MAX(258,(ROW()-21*($J$211-1)-10))):INDIRECT("J"&(ROW()))),0) -> 0 | L263: 0
B264: 2023-10-17 | C264: 2888.619 | D264: 0.001133658748 | E264: 0 | F264: 0 | G264: 0 | H264: =IF($F264>0,COUNTIF(INDIRECT("$F"&ROW()-10):INDIRECT("$F$"&ROW()+11),">0"),0) -> 0 | I264: 0 | J264: 0 | K264: =IF($E264>0,SUM(INDIRECT("J"&MAX(258,(ROW()-21*($J$211-1)-10))):INDIRECT("J"&(ROW()))),0) -> 0 | L264: 0
B265: 2023-10-16 | C265: 2885.348 | D265: 0.008107209141 | E265: 0 | F265: 0 | G265: 0 | H265: =IF($F265>0,COUNTIF(INDIRECT("$F"&ROW()-10):INDIRECT("$F$"&ROW()+11),">0"),0) -> 0 | I265: 0 | J265: 0 | K265: =IF($E265>0,SUM(INDIRECT("J"&MAX(258,(ROW()-21*($J$211-1)-10))):INDIRECT("J"&(ROW()))),0) -> 0 | L265: 0
B266: 2023-10-13 | C266: 2862.144 | D266: -0.007598665631 | E266: 0 | F266: 0 | G266: 0 | H266: =IF($F266>0,COUNTIF(INDIRECT("$F"&ROW()-10):INDIRECT("$F$"&ROW()+11),">0"),0) -> 0 | I266: 0 | J266: 0 | K266: =IF($E266>0,SUM(INDIRECT("J"&MAX(258,(ROW()-21*($J$211-1)-10))):INDIRECT("J"&(ROW()))),0) -> 0 | L266: 0
B267: 2023-10-12 | C267: 2884.059 | D267: -0.005326773131 | E267: 0 | F267: 0 | G267: 0 | H267: =IF($F267>0,COUNTIF(INDIRECT("$F"&ROW()-10):INDIRECT("$F$"&ROW()+11),">0"),0) -> 0 | I267: 0 | J267: 0 | K267: =IF($E267>0,SUM(INDIRECT("J"&MAX(258,(ROW()-21*($J$211-1)-10))):INDIRECT("J"&(ROW()))),0) -> 0 | L267: 0
B268: 2023-10-11 | C268: 2899.504 | D268: 0.004019882994 | E268: 0 | F268: 0 | G268: 0 | H268: =IF($F268>0,COUNTIF(INDIRECT("$F"&ROW()-10):INDIRECT("$F$"&ROW()+11),">0"),0) -> 0 | I268: 0 | J268: 0 | K268: =IF($E268>0,SUM(INDIRECT("J"&MAX(258,(ROW()-21*($J$211-1)-10))):INDIRECT("J"&(ROW()))),0) -> 0 | L268: 0
B269: 2023-10-10 | C269: 2887.895 | D269: 0.01021091718 | E269: 0 | F269: 0 | G269: 0 | H269: =IF($F269>0,COUNTIF(INDIRECT("$F"&ROW()-10):INDIRECT("$F$"&ROW()+11),">0"),0) -> 0 | I269: 0 | J269: 0 | K269: =IF($E269>0,SUM(INDIRECT("J"&MAX(258,(ROW()-21*($J$211-1)-10))):INDIRECT("J"&(ROW()))),0) -> 0 | L269: 0
B270: 2023-10-09 | C270: 2858.705 | D270: 0.004736702999 | E270: 0 | F270: 0 | G270: 0 | H270: =IF($F270>0,COUNTIF(INDIRECT("$F"&ROW()-10):INDIRECT("$F$"&ROW()+11),">0"),0) -> 0 | I270: 0 | J270: 0 | K270: =IF($E270>0,SUM(INDIRECT("J"&MAX(258,(ROW()-21*($J$211-1)-10))):INDIRECT("J"&(ROW()))),0) -> 0 | L270: 0
B271: 2023-10-06 | C271: 2845.228 | D271: 0.01022428377 | E271: 0 | F271: 0 | G271: 0 | H271: =IF($F271>0,COUNTIF(INDIRECT("$F"&ROW()-10):INDIRECT("$F$"&ROW()+11),">0"),0) -> 0 | I271: 0 | J271: 0 | K271: =IF($E271>0,SUM(INDIRECT("J"&MAX(258,(ROW()-21*($J$211-1)-10))):INDIRECT("J"&(ROW()))),0) -> 0 | L271: 0
B272: 2023-10-05 | C272: 2816.432 | D272: 0.001981954995 | E272: 0 | F272: 0 | G272: 0 | H272: =IF($F272>0,COUNTIF(INDIRECT("$F"&ROW()-10):INDIRECT("$F$"&ROW()+11),">0"),0) -> 0 | I272: 0 | J272: 0 | K272: =IF($E272>0,SUM(INDIRECT("J"&MAX(258,(ROW()-21*($J$211-1)-10))):INDIRECT("J"&(ROW()))),0) -> 0 | L272: 0
B273: 2023-10-04 | C273: 2810.861 | D273: 0.0040094498 | E273: 0 | F273: 0 | G273: 0 | H273: =IF($F273>0,COUNTIF(INDIRECT("$F"&ROW()-10):INDIRECT("$F$"&ROW()+11),">0"),0) -> 0 | I273: 0 | J273: 0 | K273: =IF($E273>0,SUM(INDIRECT("J"&MAX(258,(ROW()-21*($J$211-1)-10))):INDIRECT("J"&(ROW()))),0) -> 0 | L273: 0
B274: 2023-10-03 | C274: 2799.636 | D274: -0.01378763242 | E274: 0 | F274: 0 | G274: 0 | H274: =IF($F274>0,COUNTIF(INDIRECT("$F"&ROW()-10):INDIRECT("$F$"&ROW()+11),">0"),0) -> 0 | I274: 0 | J274: 0 | K274: =IF($E274>0,SUM(INDIRECT("J"&MAX(258,(ROW()-21*($J$211-1)-10))):INDIRECT("J"&(ROW()))),0) -> 0 | L274: 0
B275: 2023-10-02 | C275: 2838.776 | D275: -0.005067581184 | E275: 0.3522644971 | F275: 0 | G275: 0 | H275: =IF($F275>0,COUNTIF(INDIRECT("$F"&ROW()-10):INDIRECT("$F$"&ROW()+11),">0"),0) -> 0 | I275: 35.22644971 | J275: 2.935537476 | K275: =IF($E275>0,SUM(INDIRECT("J"&MAX(258,(ROW()-21*($J$211-1)-10))):INDIRECT("J"&(ROW()))),0) -> 2.935537476 | L275: 32.29091223
B276: 2023-09-29 | C276: 2853.235 | D276: -0.0009251098699 | E276: 0 | F276: 0 | G276: 0 | H276: =IF($F276>0,COUNTIF(INDIRECT("$F"&ROW()-10):INDIRECT("$F$"&ROW()+11),">0"),0) -> 0 | I276: 0 | J276: 0 | K276: =IF($E276>0,SUM(INDIRECT("J"&MAX(258,(ROW()-21*($J$211-1)-10))):INDIRECT("J"&(ROW()))),0) -> 0 | L276: 0
B277: 2023-09-28 | C277: 2855.877 | D277: 0.005301645724 | E277: 0 | F277: 0 | G277: 0 | H277: =IF($F277>0,COUNTIF(INDIRECT("$F"&ROW()-10):INDIRECT("$F$"&ROW()+11),">0"),0) -> 0 | I277: 0 | J277: 0 | K277: =IF($E277>0,SUM(INDIRECT("J"&MAX(258,(ROW()-21*($J$211-1)-10))):INDIRECT("J"&(ROW()))),0) -> 0 | L277: 0
B278: 2023-09-27 | C278: 2840.816 | D278: -0.001411682658 | E278: 0 | F278: 0 | G278: 0 | H278: =IF($F278>0,COUNTIF(INDIRECT("$F"&ROW()-10):INDIRECT("$F$"&ROW()+11),">0"),0) -> 0 | I278: 0 | J278: 0 | K278: =IF($E278>0,SUM(INDIRECT("J"&MAX(258,(ROW()-21*($J$211-1)-10))):INDIRECT("J"&(ROW()))),0) -> 0 | L278: 0
B279: 2023-09-26 | C279: 2844.832 | D279: -0.01213770745 | E279: 0 | F279: 0 | G279: 0 | H279: =IF($F279>0,COUNTIF(INDIRECT("$F"&ROW()-10):INDIRECT("$F$"&ROW()+11),">0"),0) -> 0 | I279: 0 | J279: 0 | K279: =IF($E279>0,SUM(INDIRECT("J"&MAX(258,(ROW()-21*($J$211-1)-10))):INDIRECT("J"&(ROW()))),0) -> 0 | L279: 0
B280: 2023-09-25 | C280: 2879.786 | D280: -2.187614698e-05 | E280: 0 | F280: 0 | G280: 0 | H280: =IF($F280>0,COUNTIF(INDIRECT("$F"&ROW()-10):INDIRECT("$F$"&ROW()+11),">0"),0) -> 0 | I280: 0 | J280: 0 | K280: =IF($E280>0,SUM(INDIRECT("J"&MAX(258,(ROW()-21*($J$211-1)-10))):INDIRECT("J"&(ROW()))),0) -> 0 | L280: 0
B281: 2023-09-22 | C281: 2879.849 | D281: -0.002155872118 | E281: 0 | F281: 0 | G281: 0 | H281: =IF($F281>0,COUNTIF(INDIRECT("$F"&ROW()-10):INDIRECT("$F$"&ROW()+11),">0"),0) -> 0 | I281: 0 | J281: 0 | K281: =IF($E281>0,SUM(INDIRECT("J"&MAX(258,(ROW()-21*($J$211-1)-10))):INDIRECT("J"&(ROW()))),0) -> 0 | L281: 0
B282: 2023-09-21 | C282: 2886.071 | D282: -0.01712563659 | E282: 0 | F282: 0 | G282: 0 | H282: =IF($F282>0,COUNTIF(INDIRECT("$F"&ROW()-10):INDIRECT("$F$"&ROW()+11),">0"),0) -> 0 | I282: 0 | J282: 0 | K282: =IF($E282>0,SUM(INDIRECT("J"&MAX(258,(ROW()-21*($J$211-1)-10))):INDIRECT("J"&(ROW()))),0) -> 0 | L282: 0
B283: 2023-09-20 | C283: 2936.358 | D283: -0.0050193635 | E283: 0 | F283: 0 | G283: 0 | H283: =IF($F283>0,COUNTIF(INDIRECT("$F"&ROW()-10):INDIRECT("$F$"&ROW()+11),">0"),0) -> 0 | I283: 0 | J283: 0 | K283: =IF($E283>0,SUM(INDIRECT("J"&MAX(258,(ROW()-21*($J$211-1)-10))):INDIRECT("J"&(ROW()))),0) -> 0 | L283: 0
B284: 2023-09-19 | C284: 2951.171 | D284: =($C284-$C285)/$C285 -> -0.001681245922 | E284: =IF(MONTH($B284)=1,IF(MONTH($B285)=12,$F$7/$C284,0),IF(MONTH($B284)=MONTH($B285)+1,$F$7/$C284,0)) -> 0 | F284: =IF(_xlfn.NUMBERVALUE($D284)*$G$11>$G$11*$G$11,$G$7/$C284,0) -> 0 | G284: =IF(_xlfn.NUMBERVALUE($D284)*$G$22>$G$22*$G$22,G$7/$C284,0) -> 0 | H284: =IF($F284>0,COUNTIF(INDIRECT("$F"&ROW()-10):INDIRECT("$F$"&ROW()+11),">0"),0) -> 0 | I284: =IF($E284>0,$L$207/$C284,0) -> 0 | J284: =IF($E284>0,$L$207/$J$211/$C284,0) -> 0 | K284: =IF($E284>0,SUM(INDIRECT("J"&MAX(258,(ROW()-21*($J$211-1)-10))):INDIRECT("J"&(ROW()))),0) -> 0 | L284: =$I284-$K284 -> 0
B285: 2023-09-18 | C285: 2956.141 | D285: -0.001632907528 | E285: 0 | F285: 0 | G285: 0 | H285: =IF($F285>0,COUNTIF(INDIRECT("$F"&ROW()-10):INDIRECT("$F$"&ROW()+11),">0"),0) -> 0 | I285: 0 | J285: 0 | K285: =IF($E285>0,SUM(INDIRECT("J"&MAX(258,(ROW()-21*($J$211-1)-10))):INDIRECT("J"&(ROW()))),0) -> 0 | L285: 0
B286: 2023-09-15 | C286: 2960.976 | D286: -0.007278341494 | E286: 0 | F286: 0 | G286: 0 | H286: =IF($F286>0,COUNTIF(INDIRECT("$F"&ROW()-10):INDIRECT("$F$"&ROW()+11),">0"),0) -> 0 | I286: 0 | J286: 0 | K286: =IF($E286>0,SUM(INDIRECT("J"&MAX(258,(ROW()-21*($J$211-1)-10))):INDIRECT("J"&(ROW()))),0) -> 0 | L286: 0
B287: 2023-09-14 | C287: 2982.685 | D287: 0.008740067951 | E287: 0 | F287: 0 | G287: 0 | H287: =IF($F287>0,COUNTIF(INDIRECT("$F"&ROW()-10):INDIRECT("$F$"&ROW()+11),">0"),0) -> 0 | I287: 0 | J287: 0 | K287: =IF($E287>0,SUM(INDIRECT("J"&MAX(258,(ROW()-21*($J$211-1)-10))):INDIRECT("J"&(ROW()))),0) -> 0 | L287: 0
B288: 2023-09-13 | C288: 2956.842 | D288: 0.0003291756164 | E288: 0 | F288: 0 | G288: 0 | H288: =IF($F288>0,COUNTIF(INDIRECT("$F"&ROW()-10):INDIRECT("$F$"&ROW()+11),">0"),0) -> 0 | I288: 0 | J288: 0 | K288: =IF($E288>0,SUM(INDIRECT("J"&MAX(258,(ROW()-21*($J$211-1)-10))):INDIRECT("J"&(ROW()))),0) -> 0 | L288: 0
B289: 2023-09-12 | C289: 2955.869 | D289: -0.004573574231 | E289: 0 | F289: 0 | G289: 0 | H289: =IF($F289>0,COUNTIF(INDIRECT("$F"&ROW()-10):INDIRECT("$F$"&ROW()+11),">0"),0) -> 0 | I289: 0 | J289: 0 | K289: =IF($E289>0,SUM(INDIRECT("J"&MAX(258,(ROW()-21*($J$211-1)-10))):INDIRECT("J"&(ROW()))),0) -> 0 | L289: 0
B290: 2023-09-11 | C290: 2969.45 | D290: 0.007000458151 | E290: 0 | F290: 0 | G290: 0 | H290: =IF($F290>0,COUNTIF(INDIRECT("$F"&ROW()-10):INDIRECT("$F$"&ROW()+11),">0"),0) -> 0 | I290: 0 | J290: 0 | K290: =IF($E290>0,SUM(INDIRECT("J"&MAX(258,(ROW()-21*($J$211-1)-10))):INDIRECT("J"&(ROW()))),0) -> 0 | L290: 0
B291: 2023-09-08 | C291: 2948.807 | D291: 0.0005747998126 | E291: 0 | F291: 0 | G291: 0 | H291: =IF($F291>0,COUNTIF(INDIRECT("$F"&ROW()-10):INDIRECT("$F$"&ROW()+11),">0"),0) -> 0 | I291: 0 | J291: 0 | K291: =IF($E291>0,SUM(INDIRECT("J"&MAX(258,(ROW()-21*($J$211-1)-10))):INDIRECT("J"&(ROW()))),0) -> 0 | L291: 0
B292: 2023-09-07 | C292: 2947.113 | D292: -0.002944027282 | E292: 0 | F292: 0 | G292: 0 | H292: =IF($F292>0,COUNTIF(INDIRECT("$F"&ROW()-10):INDIRECT("$F$"&ROW()+11),">0"),0) -> 0 | I292: 0 | J292: 0 | K292: =IF($E292>0,SUM(INDIRECT("J"&MAX(258,(ROW()-21*($J$211-1)-10))):INDIRECT("J"&(ROW()))),0) -> 0 | L292: 0
B293: 2023-09-06 | C293: 2955.815 | D293: -0.005932158359 | E293: 0 | F293: 0 | G293: 0 | H293: =IF($F293>0,COUNTIF(INDIRECT("$F"&ROW()-10):INDIRECT("$F$"&ROW()+11),">0"),0) -> 0 | I293: 0 | J293: 0 | K293: =IF($E293>0,SUM(INDIRECT("J"&MAX(258,(ROW()-21*($J$211-1)-10))):INDIRECT("J"&(ROW()))),0) -> 0 | L293: 0
B294: 2023-09-05 | C294: 2973.454 | D294: -0.005369116292 | E294: 0 | F294: 0 | G294: 0 | H294: =IF($F294>0,COUNTIF(INDIRECT("$F"&ROW()-10):INDIRECT("$F$"&ROW()+11),">0"),0) -> 0 | I294: 0 | J294: 0 | K294: =IF($E294>0,SUM(INDIRECT("J"&MAX(258,(ROW()-21*($J$211-1)-10))):INDIRECT("J"&(ROW()))),0) -> 0 | L294: 0
B295: 2023-09-01 | C295: 2989.505 | D295: 0.001166099524 | E295: 0.3345035382 | F295: 0 | G295: 0 | H295: =IF($F295>0,COUNTIF(INDIRECT("$F"&ROW()-10):INDIRECT("$F$"&ROW()+11),">0"),0) -> 0 | I295: 33.45035382 | J295: 2.787529485 | K295: =IF($E295>0,SUM(INDIRECT("J"&MAX(258,(ROW()-21*($J$211-1)-10))):INDIRECT("J"&(ROW()))),0) -> 5.723066961 | L295: 27.72728686
B296: 2023-08-31 | C296: 2986.023 | D296: -0.001838528402 | E296: 0 | F296: 0 | G296: 0 | H296: =IF($F296>0,COUNTIF(INDIRECT("$F"&ROW()-10):INDIRECT("$F$"&ROW()+11),">0"),0) -> 0 | I296: 0 | J296: 0 | K296: =IF($E296>0,SUM(INDIRECT("J"&MAX(258,(ROW()-21*($J$211-1)-10))):INDIRECT("J"&(ROW()))),0) -> 0 | L296: 0
B297: 2023-08-30 | C297: 2991.523 | D297: 0.005384639427 | E297: 0 | F297: 0 | G297: 0 | H297: =IF($F297>0,COUNTIF(INDIRECT("$F"&ROW()-10):INDIRECT("$F$"&ROW()+11),">0"),0) -> 0 | I297: 0 | J297: 0 | K297: =IF($E297>0,SUM(INDIRECT("J"&MAX(258,(ROW()-21*($J$211-1)-10))):INDIRECT("J"&(ROW()))),0) -> 0 | L297: 0
B298: 2023-08-29 | C298: 2975.501 | D298: 0.01355516746 | E298: 0 | F298: 0 | G298: 0 | H298: =IF($F298>0,COUNTIF(INDIRECT("$F"&ROW()-10):INDIRECT("$F$"&ROW()+11),">0"),0) -> 0 | I298: 0 | J298: 0 | K298: =IF($E298>0,SUM(INDIRECT("J"&MAX(258,(ROW()-21*($J$211-1)-10))):INDIRECT("J"&(ROW()))),0) -> 0 | L298: 0
B299: 2023-08-28 | C299: 2935.707 | D299: 0.008145294555 | E299: 0 | F299: 0 | G299: 0 | H299: =IF($F299>0,COUNTIF(INDIRECT("$F"&ROW()-10):INDIRECT("$F$"&ROW()+11),">0"),0) -> 0 | I299: 0 | J299: 0 | K299: =IF($E299>0,SUM(INDIRECT("J"&MAX(258,(ROW()-21*($J$211-1)-10))):INDIRECT("J"&(ROW()))),0) -> 0 | L299: 0
B300: 2023-08-25 | C300: 2911.988 | D300: 0.001972986532 | E300: 0 | F300: 0 | G300: 0 | H300: =IF($F300>0,COUNTIF(INDIRECT("$F"&ROW()-10):INDIRECT("$F$"&ROW()+11),">0"),0) -> 0 | I300: 0 | J300: 0 | K300: =IF($E300>0,SUM(INDIRECT("J"&MAX(258,(ROW()-21*($J$211-1)-10))):INDIRECT("J"&(ROW()))),0) -> 0 | L300: 0
B301: 2023-08-24 | C301: 2906.254 | D301: -0.01070294544 | E301: 0 | F301: 0 | G301: 0 | H301: =IF($F301>0,COUNTIF(INDIRECT("$F"&ROW()-10):INDIRECT("$F$"&ROW()+11),">0"),0) -> 0 | I301: 0 | J301: 0 | K301: =IF($E301>0,SUM(INDIRECT("J"&MAX(258,(ROW()-21*($J$211-1)-10))):INDIRECT("J"&(ROW()))),0) -> 0 | L301: 0
B302: 2023-08-23 | C302: 2937.696 | D302: 0.009799992163 | E302: 0 | F302: 0 | G302: 0 | H302: =IF($F302>0,COUNTIF(INDIRECT("$F"&ROW()-10):INDIRECT("$F$"&ROW()+11),">0"),0) -> 0 | I302: 0 | J302: 0 | K302: =IF($E302>0,SUM(INDIRECT("J"&MAX(258,(ROW()-21*($J$211-1)-10))):INDIRECT("J"&(ROW()))),0) -> 0 | L302: 0
B303: 2023-08-22 | C303: 2909.186 | D303: -0.0004590241888 | E303: 0 | F303: 0 | G303: 0 | H303: =IF($F303>0,COUNTIF(INDIRECT("$F"&ROW()-10):INDIRECT("$F$"&ROW()+11),">0"),0) -> 0 | I303: 0 | J303: 0 | K303: =IF($E303>0,SUM(INDIRECT("J"&MAX(258,(ROW()-21*($J$211-1)-10))):INDIRECT("J"&(ROW()))),0) -> 0 | L303: 0
B304: 2023-08-21 | C304: 2910.522 | D304: 0.004492832452 | E304: 0 | F304: 0 | G304: 0 | H304: =IF($F304>0,COUNTIF(INDIRECT("$F"&ROW()-10):INDIRECT("$F$"&ROW()+11),">0"),0) -> 0 | I304: 0 | J304: 0 | K304: =IF($E304>0,SUM(INDIRECT("J"&MAX(258,(ROW()-21*($J$211-1)-10))):INDIRECT("J"&(ROW()))),0) -> 0 | L304: 0
B305: 2023-08-18 | C305: 2897.504 | D305: -0.00149388026 | E305: 0 | F305: 0 | G305: 0 | H305: =IF($F305>0,COUNTIF(INDIRECT("$F"&ROW()-10):INDIRECT("$F$"&ROW()+11),">0"),0) -> 0 | I305: 0 | J305: 0 | K305: =IF($E305>0,SUM(INDIRECT("J"&MAX(258,(ROW()-21*($J$211-1)-10))):INDIRECT("J"&(ROW()))),0) -> 0 | L305: 0
B306: 2023-08-17 | C306: 2901.839 | D306: -0.008132940803 | E306: 0 | F306: 0 | G306: 0 | H306: =IF($F306>0,COUNTIF(INDIRECT("$F"&ROW()-10):INDIRECT("$F$"&ROW()+11),">0"),0) -> 0 | I306: 0 | J306: 0 | K306: =IF($E306>0,SUM(INDIRECT("J"&MAX(258,(ROW()-21*($J$211-1)-10))):INDIRECT("J"&(ROW()))),0) -> 0 | L306: 0
B307: 2023-08-16 | C307: 2925.633 | D307: -0.007661906057 | E307: 0 | F307: 0 | G307: 0 | H307: =IF($F307>0,COUNTIF(INDIRECT("$F"&ROW()-10):INDIRECT("$F$"&ROW()+11),">0"),0) -> 0 | I307: 0 | J307: 0 | K307: =IF($E307>0,SUM(INDIRECT("J"&MAX(258,(ROW()-21*($J$211-1)-10))):INDIRECT("J"&(ROW()))),0) -> 0 | L307: 0
B308: 2023-08-15 | C308: 2948.222 | D308: -0.00961920576 | E308: 0 | F308: 0 | G308: 0 | H308: =IF($F308>0,COUNTIF(INDIRECT("$F"&ROW()-10):INDIRECT("$F$"&ROW()+11),">0"),0) -> 0 | I308: 0 | J308: 0 | K308: =IF($E308>0,SUM(INDIRECT("J"&MAX(258,(ROW()-21*($J$211-1)-10))):INDIRECT("J"&(ROW()))),0) -> 0 | L308: 0
B309: 2023-08-14 | C309: 2976.857 | D309: 0.001386938757 | E309: 0 | F309: 0 | G309: 0 | H309: =IF($F309>0,COUNTIF(INDIRECT("$F"&ROW()-10):INDIRECT("$F$"&ROW()+11),">0"),0) -> 0 | I309: 0 | J309: 0 | K309: =IF($E309>0,SUM(INDIRECT("J"&MAX(258,(ROW()-21*($J$211-1)-10))):INDIRECT("J"&(ROW()))),0) -> 0 | L309: 0
B310: 2023-08-11 | C310: 2972.734 | D310: -0.004046152336 | E310: 0 | F310: 0 | G310: 0 | H310: =IF($F310>0,COUNTIF(INDIRECT("$F"&ROW()-10):INDIRECT("$F$"&ROW()+11),">0"),0) -> 0 | I310: 0 | J310: 0 | K310: =IF($E310>0,SUM(INDIRECT("J"&MAX(258,(ROW()-21*($J$211-1)-10))):INDIRECT("J"&(ROW()))),0) -> 0 | L310: 0
B311: 2023-08-10 | C311: 2984.811 | D311: 0.002854873511 | E311: 0 | F311: 0 | G311: 0 | H311: =IF($F311>0,COUNTIF(INDIRECT("$F"&ROW()-10):INDIRECT("$F$"&ROW()+11),">0"),0) -> 0 | I311: 0 | J311: 0 | K311: =IF($E311>0,SUM(INDIRECT("J"&MAX(258,(ROW()-21*($J$211-1)-10))):INDIRECT("J"&(ROW()))),0) -> 0 | L311: 0
B312: 2023-08-09 | C312: 2976.314 | D312: -0.003943312416 | E312: 0 | F312: 0 | G312: 0 | H312: =IF($F312>0,COUNTIF(INDIRECT("$F"&ROW()-10):INDIRECT("$F$"&ROW()+11),">0"),0) -> 0 | I312: 0 | J312: 0 | K312: =IF($E312>0,SUM(INDIRECT("J"&MAX(258,(ROW()-21*($J$211-1)-10))):INDIRECT("J"&(ROW()))),0) -> 0 | L312: 0
B313: 2023-08-08 | C313: 2988.097 | D313: -0.005216782793 | E313: 0 | F313: 0 | G313: 0 | H313: =IF($F313>0,COUNTIF(INDIRECT("$F"&ROW()-10):INDIRECT("$F$"&ROW()+11),">0"),0) -> 0 | I313: 0 | J313: 0 | K313: =IF($E313>0,SUM(INDIRECT("J"&MAX(258,(ROW()-21*($J$211-1)-10))):INDIRECT("J"&(ROW()))),0) -> 0 | L313: 0
B314: 2023-08-07 | C314: 3003.767 | D314: 0.005766866318 | E314: 0 | F314: 0 | G314: 0 | H314: =IF($F314>0,COUNTIF(INDIRECT("$F"&ROW()-10):INDIRECT("$F$"&ROW()+11),">0"),0) -> 0 | I314: 0 | J314: 0 | K314: =IF($E314>0,SUM(INDIRECT("J"&MAX(258,(ROW()-21*($J$211-1)-10))):INDIRECT("J"&(ROW()))),0) -> 0 | L314: 0
B315: 2023-08-04 | C315: 2986.544 | D315: -0.001200281058 | E315: 0 | F315: 0 | G315: 0 | H315: =IF($F315>0,COUNTIF(INDIRECT("$F"&ROW()-10):INDIRECT("$F$"&ROW()+11),">0"),0) -> 0 | I315: 0 | J315: 0 | K315: =IF($E315>0,SUM(INDIRECT("J"&MAX(258,(ROW()-21*($J$211-1)-10))):INDIRECT("J"&(ROW()))),0) -> 0 | L315: 0
B316: 2023-08-03 | C316: 2990.133 | D316: -0.003466715102 | E316: 0 | F316: 0 | G316: 0 | H316: =IF($F316>0,COUNTIF(INDIRECT("$F"&ROW()-10):INDIRECT("$F$"&ROW()+11),">0"),0) -> 0 | I316: 0 | J316: 0 | K316: =IF($E316>0,SUM(INDIRECT("J"&MAX(258,(ROW()-21*($J$211-1)-10))):INDIRECT("J"&(ROW()))),0) -> 0 | L316: 0
B317: 2023-08-02 | C317: 3000.535 | D317: -0.01576496197 | E317: 0 | F317: 0 | G317: 0 | H317: =IF($F317>0,COUNTIF(INDIRECT("$F"&ROW()-10):INDIRECT("$F$"&ROW()+11),">0"),0) -> 0 | I317: 0 | J317: 0 | K317: =IF($E317>0,SUM(INDIRECT("J"&MAX(258,(ROW()-21*($J$211-1)-10))):INDIRECT("J"&(ROW()))),0) -> 0 | L317: 0
B318: 2023-08-01 | C318: 3048.596 | D318: -0.005123850593 | E318: 0.3280198491 | F318: 0 | G318: 0 | H318: =IF($F318>0,COUNTIF(INDIRECT("$F"&ROW()-10):INDIRECT("$F$"&ROW()+11),">0"),0) -> 0 | I318: 32.80198491 | J318: 2.733498743 | K318: =IF($E318>0,SUM(INDIRECT("J"&MAX(258,(ROW()-21*($J$211-1)-10))):INDIRECT("J"&(ROW()))),0) -> 8.456565704 | L318: 24.34541921
B319: 2023-07-31 | C319: 3064.297 | D319: 0.002112276713 | E319: 0 | F319: 0 | G319: 0 | H319: =IF($F319>0,COUNTIF(INDIRECT("$F"&ROW()-10):INDIRECT("$F$"&ROW()+11),">0"),0) -> 0 | I319: 0 | J319: 0 | K319: =IF($E319>0,SUM(INDIRECT("J"&MAX(258,(ROW()-21*($J$211-1)-10))):INDIRECT("J"&(ROW()))),0) -> 0 | L319: 0
B320: 2023-07-28 | C320: 3057.838 | D320: 0.00771977974 | E320: 0 | F320: 0 | G320: 0 | H320: =IF($F320>0,COUNTIF(INDIRECT("$F"&ROW()-10):INDIRECT("$F$"&ROW()+11),">0"),0) -> 0 | I320: 0 | J320: 0 | K320: =IF($E320>0,SUM(INDIRECT("J"&MAX(258,(ROW()-21*($J$211-1)-10))):INDIRECT("J"&(ROW()))),0) -> 0 | L320: 0
B321: 2023-07-27 | C321: 3034.413 | D321: -0.003379967314 | E321: 0 | F321: 0 | G321: 0 | H321: =IF($F321>0,COUNTIF(INDIRECT("$F"&ROW()-10):INDIRECT("$F$"&ROW()+11),">0"),0) -> 0 | I321: 0 | J321: 0 | K321: =IF($E321>0,SUM(INDIRECT("J"&MAX(258,(ROW()-21*($J$211-1)-10))):INDIRECT("J"&(ROW()))),0) -> 0 | L321: 0
B322: 2023-07-26 | C322: 3044.704 | D322: -0.0002249302142 | E322: 0 | F322: 0 | G322: 0 | H322: =IF($F322>0,COUNTIF(INDIRECT("$F"&ROW()-10):INDIRECT("$F$"&ROW()+11),">0"),0) -> 0 | I322: 0 | J322: 0 | K322: =IF($E322>0,SUM(INDIRECT("J"&MAX(258,(ROW()-21*($J$211-1)-10))):INDIRECT("J"&(ROW()))),0) -> 0 | L322: 0
B323: 2023-07-25 | C323: 3045.389 | D323: 0.002618326773 | E323: 0 | F323: 0 | G323: 0 | H323: =IF($F323>0,COUNTIF(INDIRECT("$F"&ROW()-10):INDIRECT("$F$"&ROW()+11),">0"),0) -> 0 | I323: 0 | J323: 0 | K323: =IF($E323>0,SUM(INDIRECT("J"&MAX(258,(ROW()-21*($J$211-1)-10))):INDIRECT("J"&(ROW()))),0) -> 0 | L323: 0
B324: 2023-07-24 | C324: 3037.436 | D324: 0.002881425716 | E324: 0 | F324: 0 | G324: 0 | H324: =IF($F324>0,COUNTIF(INDIRECT("$F"&ROW()-10):INDIRECT("$F$"&ROW()+11),">0"),0) -> 0 | I324: 0 | J324: 0 | K324: =IF($E324>0,SUM(INDIRECT("J"&MAX(258,(ROW()-21*($J$211-1)-10))):INDIRECT("J"&(ROW()))),0) -> 0 | L324: 0
B325: 2023-07-21 | C325: 3028.709 | D325: -0.0003257752593 | E325: 0 | F325: 0 | G325: 0 | H325: =IF($F325>0,COUNTIF(INDIRECT("$F"&ROW()-10):INDIRECT("$F$"&ROW()+11),">0"),0) -> 0 | I325: 0 | J325: 0 | K325: =IF($E325>0,SUM(INDIRECT("J"&MAX(258,(ROW()-21*($J$211-1)-10))):INDIRECT("J"&(ROW()))),0) -> 0 | L325: 0
B326: 2023-07-20 | C326: 3029.696 | D326: -0.00600068373 | E326: 0 | F326: 0 | G326: 0 | H326: =IF($F326>0,COUNTIF(INDIRECT("$F"&ROW()-10):INDIRECT("$F$"&ROW()+11),">0"),0) -> 0 | I326: 0 | J326: 0 | K326: =IF($E326>0,SUM(INDIRECT("J"&MAX(258,(ROW()-21*($J$211-1)-10))):INDIRECT("J"&(ROW()))),0) -> 0 | L326: 0
B327: 2023-07-19 | C327: 3047.986 | D327: 0.001793902965 | E327: 0 | F327: 0 | G327: 0 | H327: =IF($F327>0,COUNTIF(INDIRECT("$F"&ROW()-10):INDIRECT("$F$"&ROW()+11),">0"),0) -> 0 | I327: 0 | J327: 0 | K327: =IF($E327>0,SUM(INDIRECT("J"&MAX(258,(ROW()-21*($J$211-1)-10))):INDIRECT("J"&(ROW()))),0) -> 0 | L327: 0
B328: 2023-07-18 | C328: 3042.528 | D328: 0.00680484612 | E328: 0 | F328: 0 | G328: 0 | H328: =IF($F328>0,COUNTIF(INDIRECT("$F"&ROW()-10):INDIRECT("$F$"&ROW()+11),">0"),0) -> 0 | I328: 0 | J328: 0 | K328: =IF($E328>0,SUM(INDIRECT("J"&MAX(258,(ROW()-21*($J$211-1)-10))):INDIRECT("J"&(ROW()))),0) -> 0 | L328: 0
B329: 2023-07-17 | C329: 3021.964 | D329: 0.001334687018 | E329: 0 | F329: 0 | G329: 0 | H329: =IF($F329>0,COUNTIF(INDIRECT("$F"&ROW()-10):INDIRECT("$F$"&ROW()+11),">0"),0) -> 0 | I329: 0 | J329: 0 | K329: =IF($E329>0,SUM(INDIRECT("J"&MAX(258,(ROW()-21*($J$211-1)-10))):INDIRECT("J"&(ROW()))),0) -> 0 | L329: 0
B330: 2023-07-14 | C330: 3017.936 | D330: -0.0005874736316 | E330: 0 | F330: 0 | G330: 0 | H330: =IF($F330>0,COUNTIF(INDIRECT("$F"&ROW()-10):INDIRECT("$F$"&ROW()+11),">0"),0) -> 0 | I330: 0 | J330: 0 | K330: =IF($E330>0,SUM(INDIRECT("J"&MAX(258,(ROW()-21*($J$211-1)-10))):INDIRECT("J"&(ROW()))),0) -> 0 | L330: 0
B331: 2023-07-13 | C331: 3019.71 | D331: 0.01088648529 | E331: 0 | F331: 0 | G331: 0 | H331: =IF($F331>0,COUNTIF(INDIRECT("$F"&ROW()-10):INDIRECT("$F$"&ROW()+11),">0"),0) -> 0 | I331: 0 | J331: 0 | K331: =IF($E331>0,SUM(INDIRECT("J"&MAX(258,(ROW()-21*($J$211-1)-10))):INDIRECT("J"&(ROW()))),0) -> 0 | L331: 0
B332: 2023-07-12 | C332: 2987.19 | D332: 0.01153626569 | E332: 0 | F332: 0 | G332: 0 | H332: =IF($F332>0,COUNTIF(INDIRECT("$F"&ROW()-10):INDIRECT("$F$"&ROW()+11),">0"),0) -> 0 | I332: 0 | J332: 0 | K332: =IF($E332>0,SUM(INDIRECT("J"&MAX(258,(ROW()-21*($J$211-1)-10))):INDIRECT("J"&(ROW()))),0) -> 0 | L332: 0
B333: 2023-07-11 | C333: 2953.122 | D333: 0.007531438425 | E333: 0 | F333: 0 | G333: 0 | H333: =IF($F333>0,COUNTIF(INDIRECT("$F"&ROW()-10):INDIRECT("$F$"&ROW()+11),">0"),0) -> 0 | I333: 0 | J333: 0 | K333: =IF($E333>0,SUM(INDIRECT("J"&MAX(258,(ROW()-21*($J$211-1)-10))):INDIRECT("J"&(ROW()))),0) -> 0 | L333: 0
B334: 2023-07-10 | C334: 2931.047 | D334: 0.002344237314 | E334: 0 | F334: 0 | G334: 0 | H334: =IF($F334>0,COUNTIF(INDIRECT("$F"&ROW()-10):INDIRECT("$F$"&ROW()+11),">0"),0) -> 0 | I334: 0 | J334: 0 | K334: =IF($E334>0,SUM(INDIRECT("J"&MAX(258,(ROW()-21*($J$211-1)-10))):INDIRECT("J"&(ROW()))),0) -> 0 | L334: 0
B335: 2023-07-07 | C335: 2924.192 | D335: -0.0001230957767 | E335: 0 | F335: 0 | G335: 0 | H335: =IF($F335>0,COUNTIF(INDIRECT("$F"&ROW()-10):INDIRECT("$F$"&ROW()+11),">0"),0) -> 0 | I335: 0 | J335: 0 | K335: =IF($E335>0,SUM(INDIRECT("J"&MAX(258,(ROW()-21*($J$211-1)-10))):INDIRECT("J"&(ROW()))),0) -> 0 | L335: 0
B336: 2023-07-06 | C336: 2924.552 | D336: -0.01222829162 | E336: 0 | F336: 0 | G336: 0 | H336: =IF($F336>0,COUNTIF(INDIRECT("$F"&ROW()-10):INDIRECT("$F$"&ROW()+11),">0"),0) -> 0 | I336: 0 | J336: 0 | K336: =IF($E336>0,SUM(INDIRECT("J"&MAX(258,(ROW()-21*($J$211-1)-10))):INDIRECT("J"&(ROW()))),0) -> 0 | L336: 0
B337: 2023-07-05 | C337: 2960.757 | D337: -0.003793030353 | E337: 0 | F337: 0 | G337: 0 | H337: =IF($F337>0,COUNTIF(INDIRECT("$F"&ROW()-10):INDIRECT("$F$"&ROW()+11),">0"),0) -> 0 | I337: 0 | J337: 0 | K337: =IF($E337>0,SUM(INDIRECT("J"&MAX(258,(ROW()-21*($J$211-1)-10))):INDIRECT("J"&(ROW()))),0) -> 0 | L337: 0
B338: 2023-07-03 | C338: 2972.03 | D338: 0.001788504761 | E338: 0.3364703586 | F338: 0 | G338: 0 | H338: =IF($F338>0,COUNTIF(INDIRECT("$F"&ROW()-10):INDIRECT("$F$"&ROW()+11),">0"),0) -> 0 | I338: 33.64703586 | J338: 2.803919655 | K338: =IF($E338>0,SUM(INDIRECT("J"&MAX(258,(ROW()-21*($J$211-1)-10))):INDIRECT("J"&(ROW()))),0) -> 11.26048536 | L338: 22.38655051
B339: 2023-06-30 | C339: 2966.724 | D339: =($C339-$C340)/$C340 -> 0.0112002465 | E339: =IF(MONTH($B339)=1,IF(MONTH($B340)=12,$F$7/$C339,0),IF(MONTH($B339)=MONTH($B340)+1,$F$7/$C339,0)) -> 0 | F339: =IF(_xlfn.NUMBERVALUE($D339)*$G$11>$G$11*$G$11,$G$7/$C339,0) -> 0 | G339: =IF(_xlfn.NUMBERVALUE($D339)*$G$22>$G$22*$G$22,G$7/$C339,0) -> 0 | H339: =IF($F339>0,COUNTIF(INDIRECT("$F"&ROW()-10):INDIRECT("$F$"&ROW()+11),">0"),0) -> 0 | I339: 0 | J339: 0 | K339: =IF($E339>0,SUM(INDIRECT("J"&MAX(258,(ROW()-21*($J$211-1)-10))):INDIRECT("J"&(ROW()))),0) -> 0 | L339: =$I339-$K339 -> 0
B340: 2023-06-29 | C340: 2933.864 | D340: 0.003057861412 | E340: 0 | F340: 0 | G340: 0 | H340: =IF($F340>0,COUNTIF(INDIRECT("$F"&ROW()-10):INDIRECT("$F$"&ROW()+11),">0"),0) -> 0 | I340: 0 | J340: 0 | K340: =IF($E340>0,SUM(INDIRECT("J"&MAX(258,(ROW()-21*($J$211-1)-10))):INDIRECT("J"&(ROW()))),0) -> 0 | L340: 0 | N340: =COUNTIF(INDIRECT("L"&$N$211):INDIRECT("$L"&D$206),">0") -> 116 | O340: Monate wäre Einmalanlage besser gewesen seit 01.01.08 (jüngste 12 Monate unberücksichtigt)
B341: 2023-06-28 | C341: 2924.92 | D341: 0.0012758486 | E341: 0 | F341: 0 | G341: 0 | H341: =IF($F341>0,COUNTIF(INDIRECT("$F"&ROW()-10):INDIRECT("$F$"&ROW()+11),">0"),0) -> 0 | I341: 0 | J341: 0 | K341: =IF($E341>0,SUM(INDIRECT("J"&MAX(258,(ROW()-21*($J$211-1)-10))):INDIRECT("J"&(ROW()))),0) -> 0 | L341: 0 | N341: =COUNTIF(INDIRECT("L"&$N$211):INDIRECT("$L"&D$206),"<0") -> 62 | O341: Monate wäre Verteilen über x Monate besser gewesen seit 2010 | T341: ="= "&TEXT($N$341/$N$342,"0,0 %")&" aller Situationen" -> = 34,8 % aller Situationen
B342: 2023-06-27 | C342: 2921.193 | D342: 0.009071021678 | E342: 0 | F342: 0 | G342: 0 | H342: =IF($F342>0,COUNTIF(INDIRECT("$F"&ROW()-10):INDIRECT("$F$"&ROW()+11),">0"),0) -> 0 | I342: 0 | J342: 0 | K342: =IF($E342>0,SUM(INDIRECT("J"&MAX(258,(ROW()-21*($J$211-1)-10))):INDIRECT("J"&(ROW()))),0) -> 0 | L342: 0 | N342: =SUM(N340:N341) -> 178
B343: 2023-06-26 | C343: 2894.933 | D343: -0.002551047656 | E343: 0 | F343: 0 | G343: 0 | H343: =IF($F343>0,COUNTIF(INDIRECT("$F"&ROW()-10):INDIRECT("$F$"&ROW()+11),">0"),0) -> 0 | I343: 0 | J343: 0 | K343: =IF($E343>0,SUM(INDIRECT("J"&MAX(258,(ROW()-21*($J$211-1)-10))):INDIRECT("J"&(ROW()))),0) -> 0 | L343: 0 | N343: 12 | O343: unberücksichtigt (jüngste 12)
B344: 2023-06-23 | C344: 2902.337 | D344: -0.009565016793 | E344: 0 | F344: 0 | G344: 0 | H344: =IF($F344>0,COUNTIF(INDIRECT("$F"&ROW()-10):INDIRECT("$F$"&ROW()+11),">0"),0) -> 0 | I344: 0 | J344: 0 | K344: =IF($E344>0,SUM(INDIRECT("J"&MAX(258,(ROW()-21*($J$211-1)-10))):INDIRECT("J"&(ROW()))),0) -> 0 | L344: 0 | N344: =SUM(N342:N343) -> 190
B345: 2023-06-22 | C345: 2930.366 | D345: 0.0009034330799 | E345: 0 | F345: 0 | G345: 0 | H345: =IF($F345>0,COUNTIF(INDIRECT("$F"&ROW()-10):INDIRECT("$F$"&ROW()+11),">0"),0) -> 0 | I345: 0 | J345: 0 | K345: =IF($E345>0,SUM(INDIRECT("J"&MAX(258,(ROW()-21*($J$211-1)-10))):INDIRECT("J"&(ROW()))),0) -> 0 | L345: 0
B346: 2023-06-21 | C346: 2927.721 | D346: -0.004020019472 | E346: 0 | F346: 0 | G346: 0 | H346: =IF($F346>0,COUNTIF(INDIRECT("$F"&ROW()-10):INDIRECT("$F$"&ROW()+11),">0"),0) -> 0 | I346: 0 | J346: 0 | K346: =IF($E346>0,SUM(INDIRECT("J"&MAX(258,(ROW()-21*($J$211-1)-10))):INDIRECT("J"&(ROW()))),0) -> 0 | L346: 0 | N346: Kontrolle | O346: =COUNTIF($L$339:$L$4347,">0,0001") -> 124 | P346: =COUNTIF(L339:L4347,"<-0,0001") -> 62 | Q346: =SUM(O346:P346) -> 186
B347: 2023-06-20 | C347: 2939.538 | D347: -0.007695953464 | E347: 0 | F347: 0 | G347: 0 | H347: =IF($F347>0,COUNTIF(INDIRECT("$F"&ROW()-10):INDIRECT("$F$"&ROW()+11),">0"),0) -> 0 | I347: 0 | J347: 0 | K347: =IF($E347>0,SUM(INDIRECT("J"&MAX(258,(ROW()-21*($J$211-1)-10))):INDIRECT("J"&(ROW()))),0) -> 0 | L347: 0 | N347: per Hand
B348: 2023-06-16 | C348: 2962.336 | D348: -0.001381456658 | E348: 0 | F348: 0 | G348: 0 | H348: =IF($F348>0,COUNTIF(INDIRECT("$F"&ROW()-10):INDIRECT("$F$"&ROW()+11),">0"),0) -> 0 | I348: =IF($E348>0,$L$207/$C348,0) -> 0 | J348: =IF($E348>0,$L$207/$J$211/$C348,0) -> 0 | K348: =IF($E348>0,SUM(INDIRECT("J"&MAX(258,(ROW()-21*($J$211-1)-10))):INDIRECT("J"&(ROW()))),0) -> 0 | L348: 0
B349: 2023-06-15 | C349: 2966.434 | D349: 0.009131542449 | E349: 0 | F349: 0 | G349: 0 | H349: =IF($F349>0,COUNTIF(INDIRECT("$F"&ROW()-10):INDIRECT("$F$"&ROW()+11),">0"),0) -> 0 | I349: 0 | J349: 0 | K349: =IF($E349>0,SUM(INDIRECT("J"&MAX(258,(ROW()-21*($J$211-1)-10))):INDIRECT("J"&(ROW()))),0) -> 0 | L349: 0 | N349: Annahme: Ich habe 2x über jeden Monat je einen Kunden. Gruppe A und B. A investiert einmalig, B mtl. Jeden Monat investiert Kunde i aus A einmalig und Kunde j aus B 1/12 verteilt über 12 Monate.
B350: 2023-06-14 | C350: 2939.591 | D350: 0.003382620838 | E350: 0 | F350: 0 | G350: 0 | H350: =IF($F350>0,COUNTIF(INDIRECT("$F"&ROW()-10):INDIRECT("$F$"&ROW()+11),">0"),0) -> 0 | I350: 0 | J350: 0 | K350: =IF($E350>0,SUM(INDIRECT("J"&MAX(258,(ROW()-21*($J$211-1)-10))):INDIRECT("J"&(ROW()))),0) -> 0 | L350: 0 | N350: Wie sieht der Durchschnitt aus?
B351: 2023-06-13 | C351: 2929.681 | D351: 0.008144145211 | E351: 0 | F351: 0 | G351: 0 | H351: =IF($F351>0,COUNTIF(INDIRECT("$F"&ROW()-10):INDIRECT("$F$"&ROW()+11),">0"),0) -> 0 | I351: 0 | J351: 0 | K351: =IF($E351>0,SUM(INDIRECT("J"&MAX(258,(ROW()-21*($J$211-1)-10))):INDIRECT("J"&(ROW()))),0) -> 0 | L351: 0 | N351: Gruppe A
B352: 2023-06-12 | C352: 2906.014 | D352: 0.007063619707 | E352: 0 | F352: 0 | G352: 0 | H352: =IF($F352>0,COUNTIF(INDIRECT("$F"&ROW()-10):INDIRECT("$F$"&ROW()+11),">0"),0) -> 0 | I352: 0 | J352: 0 | K352: =IF($E352>0,SUM(INDIRECT("J"&MAX(258,(ROW()-21*($J$211-1)-10))):INDIRECT("J"&(ROW()))),0) -> 0 | L352: 0 | N352: =I4349 -> 11408.37631 | O352: gesamte gekaufte Anteile unten stehend Gruppe A seit 01.01.2008
B353: 2023-06-09 | C353: 2885.631 | D353: 0.001214031835 | E353: 0 | F353: 0 | G353: 0 | H353: =IF($F353>0,COUNTIF(INDIRECT("$F"&ROW()-10):INDIRECT("$F$"&ROW()+11),">0"),0) -> 0 | I353: 0 | J353: 0 | K353: =IF($E353>0,SUM(INDIRECT("J"&MAX(258,(ROW()-21*($J$211-1)-10))):INDIRECT("J"&(ROW()))),0) -> 0 | L353: 0 | N353: =-SUM(INDIRECT("I"&$D$205):INDIRECT("I"&$N$211)) -> -496.6729657 | O353: minus Anteile der jüngsten 12 Monate
B354: 2023-06-08 | C354: 2882.132 | D354: 0.005423175861 | E354: 0 | F354: 0 | G354: 0 | H354: =IF($F354>0,COUNTIF(INDIRECT("$F"&ROW()-10):INDIRECT("$F$"&ROW()+11),">0"),0) -> 0 | I354: 0 | J354: 0 | K354: =IF($E354>0,SUM(INDIRECT("J"&MAX(258,(ROW()-21*($J$211-1)-10))):INDIRECT("J"&(ROW()))),0) -> 0 | L354: 0 | N354: =SUM(N352:N353) -> 10911.70334 | O354: ="(gesamt gekaufte Anteile Gruppe B bis Zeile "&$N$211&")" -> (gesamt gekaufte Anteile Gruppe B bis Zeile 520)
B355: 2023-06-07 | C355: 2866.586 | D355: =($C355-$C356)/$C356 -> -0.00395418153 | E355: =IF(MONTH($B355)=1,IF(MONTH($B356)=12,$F$7/$C355,0),IF(MONTH($B355)=MONTH($B356)+1,$F$7/$C355,0)) -> 0 | F355: =IF(_xlfn.NUMBERVALUE($D355)*$G$11>$G$11*$G$11,$G$7/$C355,0) -> 0 | G355: =IF(_xlfn.NUMBERVALUE($D355)*$G$22>$G$22*$G$22,G$7/$C355,0) -> 0 | H355: =IF($F355>0,COUNTIF(INDIRECT("$F"&ROW()-10):INDIRECT("$F$"&ROW()+11),">0"),0) -> 0 | I355: 0 | J355: 0 | K355: =IF($E355>0,SUM(INDIRECT("J"&MAX(258,(ROW()-21*($J$211-1)-10))):INDIRECT("J"&(ROW()))),0) -> 0 | L355: =$I355-$K355 -> 0
B356: 2023-06-06 | C356: 2877.966 | D356: 0.002680582189 | E356: 0 | F356: 0 | G356: 0 | H356: =IF($F356>0,COUNTIF(INDIRECT("$F"&ROW()-10):INDIRECT("$F$"&ROW()+11),">0"),0) -> 0 | I356: 0 | J356: 0 | K356: =IF($E356>0,SUM(INDIRECT("J"&MAX(258,(ROW()-21*($J$211-1)-10))):INDIRECT("J"&(ROW()))),0) -> 0 | L356: 0 | N356: Gruppe B
B357: 2023-06-05 | C357: 2870.272 | D357: -0.001076438253 | E357: 0 | F357: 0 | G357: 0 | H357: =IF($F357>0,COUNTIF(INDIRECT("$F"&ROW()-10):INDIRECT("$F$"&ROW()+11),">0"),0) -> 0 | I357: 0 | J357: 0 | K357: =IF($E357>0,SUM(INDIRECT("J"&MAX(258,(ROW()-21*($J$211-1)-10))):INDIRECT("J"&(ROW()))),0) -> 0 | L357: 0 | N357: =SUM(INDIRECT("K"&$D$205):INDIRECT("K"&$D$206)) -> 11172.49141
B358: 2023-06-02 | C358: 2873.365 | D358: 0.01472918507 | E358: 0 | F358: 0 | G358: 0 | H358: =IF($F358>0,COUNTIF(INDIRECT("$F"&ROW()-10):INDIRECT("$F$"&ROW()+11),">0"),0) -> 0 | I358: 0 | J358: 0 | K358: =IF($E358>0,SUM(INDIRECT("J"&MAX(258,(ROW()-21*($J$211-1)-10))):INDIRECT("J"&(ROW()))),0) -> 0 | L358: 0 | N358: =-SUM(INDIRECT("K"&$D$205):INDIRECT("K"&$N$211)) -> -235.3191259 | O358: minus Anteile der jüngsten 12 Monate
B359: 2023-06-01 | C359: 2831.657 | D359: 0.002145388847 | E359: 0.3531501167 | F359: 0 | G359: 0 | H359: =IF($F359>0,COUNTIF(INDIRECT("$F"&ROW()-10):INDIRECT("$F$"&ROW()+11),">0"),0) -> 0 | I359: 35.31501167 | J359: 2.942917639 | K359: =IF($E359>0,SUM(INDIRECT("J"&MAX(258,(ROW()-21*($J$211-1)-10))):INDIRECT("J"&(ROW()))),0) -> 14.203403 | L359: 21.11160867 | N359: =SUM(N357:N358) -> 10937.17229 | O359: ="(gesamt gekaufte Anteile Gruppe A bis Zeile "&$N$211&")" -> (gesamt gekaufte Anteile Gruppe A bis Zeile 520)
B360: 2023-05-30 | C360: 2825.595 | D360: 0.01027329915 | E360: 0 | F360: 0 | G360: 0 | H360: =IF($F360>0,COUNTIF(INDIRECT("$F"&ROW()-10):INDIRECT("$F$"&ROW()+11),">0"),0) -> 0 | I360: 0 | J360: 0 | K360: =IF($E360>0,SUM(INDIRECT("J"&MAX(258,(ROW()-21*($J$211-1)-10))):INDIRECT("J"&(ROW()))),0) -> 0 | L360: 0
B361: 2023-05-25 | C361: 2796.862 | D361: 0.002884735714 | E361: 0 | F361: 0 | G361: 0 | H361: =IF($F361>0,COUNTIF(INDIRECT("$F"&ROW()-10):INDIRECT("$F$"&ROW()+11),">0"),0) -> 0 | I361: 0 | J361: 0 | K361: =IF($E361>0,SUM(INDIRECT("J"&MAX(258,(ROW()-21*($J$211-1)-10))):INDIRECT("J"&(ROW()))),0) -> 0 | L361: 0 | N361: Differenz A und B (hier zur Kontrolle direkt auch aus Spalte L)
B362: 2023-05-24 | C362: 2788.817 | D362: -0.009950842201 | E362: 0 | F362: 0 | G362: 0 | H362: =IF($F362>0,COUNTIF(INDIRECT("$F"&ROW()-10):INDIRECT("$F$"&ROW()+11),">0"),0) -> 0 | I362: 0 | J362: 0 | K362: =IF($E362>0,SUM(INDIRECT("J"&MAX(258,(ROW()-21*($J$211-1)-10))):INDIRECT("J"&(ROW()))),0) -> 0 | L362: 0 | N362: =SUM(INDIRECT("L"&$N$211):INDIRECT("L"&D206)) -> 178.2904036 | O362: Anteile mehr bei Einmalanlage
B363: 2023-05-23 | C363: 2816.847 | D363: -0.01014159223 | E363: 0 | F363: 0 | G363: 0 | H363: =IF($F363>0,COUNTIF(INDIRECT("$F"&ROW()-10):INDIRECT("$F$"&ROW()+11),">0"),0) -> 0 | I363: 0 | J363: 0 | K363: =IF($E363>0,SUM(INDIRECT("J"&MAX(258,(ROW()-21*($J$211-1)-10))):INDIRECT("J"&(ROW()))),0) -> 0 | L363: 0
B364: 2023-05-22 | C364: 2845.707 | D364: 0.001036316454 | E364: 0 | F364: 0 | G364: 0 | H364: =IF($F364>0,COUNTIF(INDIRECT("$F"&ROW()-10):INDIRECT("$F$"&ROW()+11),">0"),0) -> 0 | I364: 0 | J364: 0 | K364: =IF($E364>0,SUM(INDIRECT("J"&MAX(258,(ROW()-21*($J$211-1)-10))):INDIRECT("J"&(ROW()))),0) -> 0 | L364: 0 | N364: ="==> Dies sind NUR "&TEXT($N$362/$N$354,"0,00%")&" Anteile mehr für Gruppe A!!!" -> ==> Dies sind NUR 1,63% Anteile mehr für Gruppe A!!!
B365: 2023-05-19 | C365: 2842.761 | D365: 0.0009291854364 | E365: 0 | F365: 0 | G365: 0 | H365: =IF($F365>0,COUNTIF(INDIRECT("$F"&ROW()-10):INDIRECT("$F$"&ROW()+11),">0"),0) -> 0 | I365: 0 | J365: 0 | K365: =IF($E365>0,SUM(INDIRECT("J"&MAX(258,(ROW()-21*($J$211-1)-10))):INDIRECT("J"&(ROW()))),0) -> 0 | L365: 0 | N365: ="Auch wenn sich "& TEXT($N$340/$N$342,"0,0 %") &" aller Kunden aus Gruppe A besser stehen: Diejenigen, die sich schlechter stehen, die haben so richtig Pech!!!" -> Auch wenn sich 65,2 % aller Kunden aus Gruppe A besser stehen: Diejenigen, die sich schlechter stehen, die haben so richtig Pech!!!
B366: 2023-05-18 | C366: 2840.122 | D366: 0.006806285321 | E366: 0 | F366: 0 | G366: 0 | H366: =IF($F366>0,COUNTIF(INDIRECT("$F"&ROW()-10):INDIRECT("$F$"&ROW()+11),">0"),0) -> 0 | I366: 0 | J366: 0 | K366: =IF($E366>0,SUM(INDIRECT("J"&MAX(258,(ROW()-21*($J$211-1)-10))):INDIRECT("J"&(ROW()))),0) -> 0 | L366: 0 | N366: Auch noch berechnen (todo): Wie viele Kunden hätten in Gruppe A nach 1 oder 2 Jahren Minus, wie viele in Gruppe B??
B367: 2023-05-17 | C367: 2820.922 | D367: 0.006612926823 | E367: 0 | F367: 0 | G367: 0 | H367: =IF($F367>0,COUNTIF(INDIRECT("$F"&ROW()-10):INDIRECT("$F$"&ROW()+11),">0"),0) -> 0 | I367: 0 | J367: 0 | K367: =IF($E367>0,SUM(INDIRECT("J"&MAX(258,(ROW()-21*($J$211-1)-10))):INDIRECT("J"&(ROW()))),0) -> 0 | L367: 0 | N367: Beste 10 Kunden aus Gruppe B kaufen mehr Anteile als Gruppe A: (per Hand geprüft)
B368: 2023-05-16 | C368: 2802.39 | D368: -0.006057876126 | E368: 0 | F368: 0 | G368: 0 | H368: =IF($F368>0,COUNTIF(INDIRECT("$F"&ROW()-10):INDIRECT("$F$"&ROW()+11),">0"),0) -> 0 | I368: 0 | J368: 0 | K368: =IF($E368>0,SUM(INDIRECT("J"&MAX(258,(ROW()-21*($J$211-1)-10))):INDIRECT("J"&(ROW()))),0) -> 0 | L368: 0 | N368: Kunde 1 hat | O368: =-SMALL($L$601:INDIRECT("L"&$D$206),1) -> 32.54652862 | P368: mehr Anteile als einmalige Investition | S368: =+49.100 € | T368: Zeile 4161 lies sich weder mit Vergleich noch mit S-Verweis finden (trotz Formatierung Spalte L als Zahl)
... 3987 more rows

Sheet Rechnen.komplex
B1: Finanzmathematik auf einer Seite: Sparen, Finanzieren, Rentenentnahme | N1: Stand: | O1: 2024-02-28
B2: Persönliche Verwendung für PROF. DR. KRIEBEL | N2: Gültig bis | O2: 31.01.2025
A4: Hauptmenu
C5: Alter | F5: 35 | G5: 0 | H5: Monate | I5: Zahlweise
A6: AVP.Express | C6: Zielalter | F6: 65 | G6: 0 | H6: Monate
A7: AV-Planer | C7: Einmalanlage/Barwert | F7: 1000 | I7: Rate vorschüssig
A8: bAV | C8: Sparrate | F8: 100
C9: Ausgabeaufschlag | F9: 0 | I9: Mit Steuerbetrachtung?
A10: Cost.Average_Pos | C10: Beitragszahldauer | F10: 30 | I10: zu versteuernder Anteil | K10: 0
A11: Cost.Average_Neg | I11: Grenzsteuersatz | K11: 0
C12: Zins (nominal) | F12: 0.04 | G12: p.a.
A13: Immobilie.Familie | C13: -- > Zins effektiv | F13: 0.04074154292 | G13: p.a.
A15: Mtl-Crashkauf | C15: Dynamik | F15: 0 | G15: p.a. | I15: Summe der Raten | K15: 36000
C16: für Beitragszahldauer?
A17: Photovoltaik | C17: Anzahl angenommener Dynamiken | F17: 29 | I17: Endwert
A18: Produktprüfer | I18: Heute | K18: 72949.78825
I19: In einem Monat* | K19: -
A20: Rechnen.komplex | I20: Differenz | K20: -
A21: Rendite.GRV | I21: Letzte Rate | K21: -
A22: Rentenschätzer
A24: Steuerrechner
A26: Vergleich.ETF-LV
A27: Verluste_TopPerf
I28: Bemerkungen
I29: * Die Differenz ist der tatsächliche Verlust, der durch Warten entsteht (siehe Bemerkung unten)
I30: Der Endwert wird immer nachschüssig betrachtet, also etwa am Ende eines Monats. Das Warten …
A40: Einstellungen
C42: Copyright und Autor: Prof. Dr. Claus Kriebel
C43: Trotz aller Sorgfalt kann für die Berechnungen keine Gewähr übernommen werden.
C44: Persönliche Version für: PROF. DR. KRIEBEL
A45: Version: 4.21, 2K
A46: CLAUS KRIEBEL
A49: (C) Prof. Dr. Kriebel
A50: 2008 - 2024
C201: 1/12 monatl. | D201: Sparen
C202: 1/6 2-monatl. | D202: Finanzieren
C203: 1/4 vierteljährl. | D203: Rentenentnahme
C204: 1/2 halbjährl.
C205: 1/1 jährlich
G222: BS netto | H222: =SUM(G226:G346) -> 4970.873786
G223: BS brutto | H223: =H222*(1+$F$9) -> 4970.873786
G224: EW vor | H224: =H346 -> 7283.766755
F226: Monat | G226: =F7/1.03 -> 970.8737864 | H226: =G226 -> 970.8737864
F227: 1 | G227: =F8/(1+$F$9) -> 100 | H227: =(H226+G227)*1.005 -> 1076.228155
F228: 2 | G228: 0 | H228: =(H227+G228)*1.005 -> 1081.609296
F229: 3 | G229: 0 | H229: 1087.017343
F230: 4 | G230: =$G$227 -> 100 | H230: 1192.952429
F231: 5 | G231: 0 | H231: 1198.917191
F232: 6 | G232: 0 | H232: 1204.911777
D233: Dyn 1 | F233: 7 | G233: =$G$227 -> 100 | H233: 1311.436336
F234: 8 | G234: 0 | H234: 1317.993518
F235: 9 | G235: 0 | H235: 1324.583486
F236: 10 | G236: =$G$227 -> 100 | H236: 1431.706403
F237: 11 | G237: 0 | H237: 1438.864935
F238: 12 | G238: 0 | H238: 1446.05926
F239: 13 | G239: =$G$227*(1+$F$15) -> 100 | H239: 1553.789556
F240: 14 | G240: 0 | H240: 1561.558504
F241: 15 | G241: 0 | H241: 1569.366296
F242: 16 | G242: =$G$227*(1+$F$15) -> 100 | H242: 1677.713128
F243: 17 | G243: 0 | H243: 1686.101693
F244: 18 | G244: 0 | H244: 1694.532202
D245: Dyn 2 | F245: 19 | G245: =$G$227*(1+$F$15) -> 100 | H245: 1803.504863
F246: 20 | G246: 0 | H246: 1812.522387
F247: 21 | G247: 0 | H247: 1821.584999
F248: 22 | G248: =$G$227*(1+$F$15) -> 100 | H248: 1931.192924
F249: 23 | G249: 0 | H249: 1940.848889
F250: 24 | G250: 0 | H250: 1950.553133
F251: 25 | G251: =$G$239*(1+$F$15) -> 100 | H251: 2060.805899
F252: 26 | G252: 0 | H252: 2071.109928
F253: 27 | G253: 0 | H253: 2081.465478
F254: 28 | G254: =$G$239*(1+$F$15) -> 100 | H254: 2192.372805
F255: 29 | G255: 0 | H255: 2203.334669
F256: 30 | G256: 0 | H256: 2214.351343
D257: Dyn 3 | F257: 31 | G257: =$G$239*(1+$F$15) -> 100 | H257: 2325.923099
F258: 32 | G258: 0 | H258: 2337.552715
F259: 33 | G259: 0 | H259: 2349.240479
F260: 34 | G260: =$G$239*(1+$F$15) -> 100 | H260: 2461.486681
F261: 35 | G261: 0 | H261: 2473.794114
F262: 36 | G262: 0 | H262: 2486.163085
F263: 37 | G263: =$G$251*(1+$F$15) -> 100 | H263: 2599.0939
F264: 38 | G264: 0 | H264: 2612.08937
F265: 39 | G265: 0 | H265: 2625.149817
F266: 40 | G266: =$G$251*(1+$F$15) -> 100 | H266: 2738.775566
F267: 41 | G267: 0 | H267: 2752.469444
F268: 42 | G268: 0 | H268: 2766.231791
F269: 43 | G269: =$G$251*(1+$F$15) -> 100 | H269: 2880.56295
F270: 44 | G270: 0 | H270: 2894.965765
F271: 45 | G271: 0 | H271: 2909.440593
D272: Dyn 4 | F272: 46 | G272: =$G$251*(1+$F$15) -> 100 | H272: 3024.487796
F273: 47 | G273: 0 | H273: 3039.610235
F274: 48 | G274: 0 | H274: 3054.808286
F275: 49 | G275: =$G$263*(1+$F$15) -> 100 | H275: 3170.582328
F276: 50 | G276: 0 | H276: 3186.43524
F277: 51 | G277: 0 | H277: 3202.367416
F278: 52 | G278: =$G$263*(1+$F$15) -> 100 | H278: 3318.879253
F279: 53 | G279: 0 | H279: 3335.473649
D280: Dyn 5 | F280: 54 | G280: 0 | H280: 3352.151017
F281: 55 | G281: =$G$263*(1+$F$15) -> 100 | H281: 3469.411772
F282: 56 | G282: 0 | H282: 3486.758831
F283: 57 | G283: 0 | H283: 3504.192625
F284: 58 | G284: =$G$263*(1+$F$15) -> 100 | H284: 3622.213589
F285: 59 | G285: 0 | H285: 3640.324657
F286: 60 | G286: 0 | H286: 3658.52628
F287: 61 | G287: =$G$275*(1+$F$15) -> 100 | H287: 3777.318911
C288: Ab hier Dynamik | D288: 0 | F288: 62 | G288: 0 | H288: 3796.205506
F289: 63 | G289: 0 | H289: 3815.186533
F290: 64 | G290: =$G$275*(1+$F$15) -> 100 | H290: 3934.762466
F291: 65 | G291: 0 | H291: 3954.436278
F292: 66 | G292: 0 | H292: =(H291+G292)*1.005 -> 3974.20846
D293: Dyn 6 | F293: 67 | G293: =$G$275*(1+$F$15) -> 100 | H293: 4094.579502
F294: 68 | G294: 0 | H294: 4115.052399
F295: 69 | G295: 0 | H295: 4135.627661
F296: 70 | G296: =$G$275*(1+$F$15) -> 100 | H296: 4256.8058
F297: 71 | G297: 0 | H297: 4278.089829
F298: 72 | G298: 0 | H298: 4299.480278
F299: 73 | G299: =$G$287*(1+$D$288) -> 100 | H299: 4421.477679
F300: 74 | G300: 0 | H300: 4443.585068
F301: 75 | G301: 0 | H301: 4465.802993
F302: 76 | G302: =$G$287*(1+$D$288) -> 100 | H302: 4588.632008
F303: 77 | G303: 0 | H303: 4611.575168
D304: Dyn 7 | F304: 78 | G304: 0 | H304: 4634.633044
F305: 79 | G305: =$G$287*(1+$D$288) -> 100 | H305: 4758.306209
F306: 80 | G306: 0 | H306: 4782.09774
F307: 81 | G307: 0 | H307: 4806.008229
F308: 82 | G308: =$G$287*(1+$D$288) -> 100 | H308: 4930.53827
F309: 83 | G309: 0 | H309: 4955.190961
F310: 84 | G310: 0 | H310: 4979.966916
F311: 85 | G311: =$G$299*(1+$D$288) -> 100 | H311: 5105.366751
F312: 86 | G312: 0 | H312: 5130.893584
F313: 87 | G313: 0 | H313: 5156.548052
F314: 88 | G314: =$G$299*(1+$D$288) -> 100 | H314: 5282.830793
F315: 89 | G315: 0 | H315: 5309.244947
D316: Dyn 8 | F316: 90 | G316: 0 | H316: 5335.791171
F317: 91 | G317: =$G$299*(1+$D$288) -> 100 | H317: 5462.970127
F318: 92 | G318: 0 | H318: 5490.284978
F319: 93 | G319: 0 | H319: 5517.736403
F320: 94 | G320: =$G$299*(1+$D$288) -> 100 | H320: 5645.825085
F321: 95 | G321: 0 | H321: 5674.05421
F322: 96 | G322: 0 | H322: 5702.424481
F323: 97 | G323: =$G$311*(1+$D$288) -> 100 | H323: 5831.436604
F324: 98 | G324: 0 | H324: 5860.593787
F325: 99 | G325: 0 | H325: 5889.896756
F326: 100 | G326: =$G$311*(1+$D$288) -> 100 | H326: 6019.846239
D327: Dyn 9 | F327: 101 | G327: 0 | H327: 6049.945471
F328: 102 | G328: 0 | H328: 6080.195198
F329: 103 | G329: =$G$311*(1+$D$288) -> 100 | H329: 6211.096174
F330: 104 | G330: 0 | H330: 6242.151655
F331: 105 | G331: 0 | H331: 6273.362413
F332: 106 | G332: =$G$311*(1+$D$288) -> 100 | H332: 6405.229225
F333: 107 | G333: 0 | H333: 6437.255371
F334: 108 | G334: 0 | H334: 6469.441648
F335: 109 | G335: =$G$323*(1+$D$288) -> 100 | H335: 6602.288856
F336: 110 | G336: 0 | H336: 6635.300301
F337: 111 | G337: 0 | H337: 6668.476802
F338: 112 | G338: =$G$323*(1+$D$288) -> 100 | H338: 6802.319186
F339: 113 | G339: 0 | H339: 6836.330782
F340: 114 | G340: 0 | H340: 6870.512436
F341: 115 | G341: =$G$323*(1+$D$288) -> 100 | H341: 7005.364998
F342: 116 | G342: 0 | H342: 7040.391823
F343: 117 | G343: 0 | H343: 7075.593782
F344: 118 | G344: =$G$323*(1+$D$288) -> 100 | H344: 7211.471751
F345: 119 | G345: 0 | H345: 7247.52911
F346: 120 | G346: 0 | H346: 7283.766755
G347: =SUM(G226:G346) -> 4970.873786

Sheet Rendite.GRV
B1: Welche Rendite haben Sie bei der Gesetzlichen Rentenversicherung zu erwarten? | N1: Stand: | O1: 2024-04-19
B2: Persönliche Verwendung für PROF. DR. KRIEBEL | N2: Gültig bis | O2: 31.01.2025
A4: Hauptmenu
B5: Ihr Alter | G5: 35
A6: AVP.Express | B6: Ihr gesetzliches Ruhestandsalter | G6: 67
A7: AV-Planer
A8: bAV | B8: Geschlecht
A10: Cost.Average_Pos | B10: ="Lebenserwartung mit "&G6 -> Lebenserwartung mit 67 | G10: 0
A11: Cost.Average_Neg
B12: Welche Rentensteigerungen erwarten Sie bei 2% Inflation?
A13: Immobilie.Familie | B13: ="Mit welcher Rentensteigerung bis "&$G$6 &" sollen wir rechnen?" -> Mit welcher Rentensteigerung bis 67 sollen wir rechnen? | G13: 0.01 | H13: p.a.
B14: ="… und mit welcher Rentensteigerung ab "&$G$6 &"?" -> … und mit welcher Rentensteigerung ab 67? | G14: 0.005 | H14: p.a.
A15: Mtl-Crashkauf
A17: Photovoltaik | B17: Ergebnis für eine freiwillige Zahlung (ohne Steuern/KV)
A18: Produktprüfer | B18: Frage vorab: Mindestrendite, damit Sie freiwillig zuzahlen? | G18: 0.04 | H18: p.a.
B19: ="Zu erwartende Rendite, wenn Sie heute in die GRV einzahlen*" -> Zu erwartende Rendite, wenn Sie heute in die GRV einzahlen* | G19: 0 | H19: p.a.
A20: Rechnen.komplex
A21: Rendite.GRV
A22: Rentenschätzer
A24: Steuerrechner
A26: Vergleich.ETF-LV | I26: Bemerkungen
A27: Verluste_TopPerf | I27: Renditeberechnung im Sinne einer klassischen Investitionsrechnung für einen (freiwilligen) …
I28: Da die Sozialversicherungwerte (Beitragssatz, Punktwert, Durchschnittseinkommen zur Erlangung …
I29: * Sofern Sie vor dem Beginn des Ruhestands sterben sollten, sind die Beiträge teilweise "verloren" …
B39: Copyright und Autor: Prof. Dr. Claus Kriebel
A40: Einstellungen | B40: Trotz aller Sorgfalt kann für die Berechnungen keine Gewähr übernommen werden.
B41: Persönliche Version für: PROF. DR. KRIEBEL
A45: Version: 4.21, 2K
A46: CLAUS KRIEBEL
A49: (C) Prof. Dr. Kriebel
A50: 2008 - 2024
C200: Hier jährliche Betrachtung. Intern mit VBA IRR mtl. klappte nicht (siehe function), hätte Vorteile gehabt, weil ich dann 1) genauere Ergebnisse habe (diese hier waren mit Korrektur auch auf unter 0,05% genau) 2) Bei krummen LE kein Interpolationsproblem habe (was zusätzliche ca. 0,05% Ungenauigkeit erzeugte)
C201: Alter | D201: Zahlung | E201: IRR
C202: =G5 -> 35 | D202: =H202 -> -8436.588 | G202: Einzahlung | H202: =IF($C202=$G$5,-Tabelle15!$B$221*Tabelle15!$B$214) -> -8436.588
C203: =C202+1 -> 36 | D203: =Tabelle15!$B$220*12*IF($C203>=$G$6,(1+$G$13)^($G$6-$G$5)*(1+$G$14)^($C203-$G$6),0) -> 0 | E203: =IF($C203>=$G$6,IRR($D$202:D203),0) -> 0 | G203: Rentenpunkt | H203: =Tabelle15!$B$220 -> 37.6
C204: =C203+1 -> 37 | D204: =Tabelle15!$B$220*12*IF($C204>=$G$6,(1+$G$13)^($G$6-$G$5)*(1+$G$14)^($C204-$G$6),0) -> 0 | E204: =IF($C204>=$G$6,IRR($D$202:D204),0) -> 0
C205: 38 | D205: =Tabelle15!$B$220*12*IF($C205>=$G$6,(1+$G$13)^($G$6-$G$5)*(1+$G$14)^($C205-$G$6),0) -> 0 | E205: =IF($C205>=$G$6,IRR($D$202:D205),0) -> 0
C206: 39 | D206: =Tabelle15!$B$220*12*IF($C206>=$G$6,(1+$G$13)^($G$6-$G$5)*(1+$G$14)^($C206-$G$6),0) -> 0 | E206: =IF($C206>=$G$6,IRR($D$202:D206),0) -> 0
C207: 40 | D207: =Tabelle15!$B$220*12*IF($C207>=$G$6,(1+$G$13)^($G$6-$G$5)*(1+$G$14)^($C207-$G$6),0) -> 0 | E207: =IF($C207>=$G$6,IRR($D$202:D207),0) -> 0
C208: 41 | D208: =Tabelle15!$B$220*12*IF($C208>=$G$6,(1+$G$13)^($G$6-$G$5)*(1+$G$14)^($C208-$G$6),0) -> 0 | E208: =IF($C208>=$G$6,IRR($D$202:D208),0) -> 0
C209: 42 | D209: =Tabelle15!$B$220*12*IF($C209>=$G$6,(1+$G$13)^($G$6-$G$5)*(1+$G$14)^($C209-$G$6),0) -> 0 | E209: =IF($C209>=$G$6,IRR($D$202:D209),0) -> 0
C210: 43 | D210: =Tabelle15!$B$220*12*IF($C210>=$G$6,(1+$G$13)^($G$6-$G$5)*(1+$G$14)^($C210-$G$6),0) -> 0 | E210: =IF($C210>=$G$6,IRR($D$202:D210),0) -> 0 | G210: Auswahlfeld Geschlecht
C211: 44 | D211: =Tabelle15!$B$220*12*IF($C211>=$G$6,(1+$G$13)^($G$6-$G$5)*(1+$G$14)^($C211-$G$6),0) -> 0 | E211: =IF($C211>=$G$6,IRR($D$202:D211),0) -> 0 | G211: m | H211: Sparen
C212: 45 | D212: =Tabelle15!$B$220*12*IF($C212>=$G$6,(1+$G$13)^($G$6-$G$5)*(1+$G$14)^($C212-$G$6),0) -> 0 | E212: =IF($C212>=$G$6,IRR($D$202:D212),0) -> 0 | G212: w | H212: Finanzieren
C213: 46 | D213: =Tabelle15!$B$220*12*IF($C213>=$G$6,(1+$G$13)^($G$6-$G$5)*(1+$G$14)^($C213-$G$6),0) -> 0 | E213: =IF($C213>=$G$6,IRR($D$202:D213),0) -> 0 | G213: keine Angabe | H213: Rentenentnahme
C214: 47 | D214: =Tabelle15!$B$220*12*IF($C214>=$G$6,(1+$G$13)^($G$6-$G$5)*(1+$G$14)^($C214-$G$6),0) -> 0 | E214: =IF($C214>=$G$6,IRR($D$202:D214),0) -> 0
C215: 48 | D215: =Tabelle15!$B$220*12*IF($C215>=$G$6,(1+$G$13)^($G$6-$G$5)*(1+$G$14)^($C215-$G$6),0) -> 0 | E215: =IF($C215>=$G$6,IRR($D$202:D215),0) -> 0 | G215: IKV (=jährliche ZW), lineare Interpolation
C216: 49 | D216: =Tabelle15!$B$220*12*IF($C216>=$G$6,(1+$G$13)^($G$6-$G$5)*(1+$G$14)^($C216-$G$6),0) -> 0 | E216: =IF($C216>=$G$6,IRR($D$202:D216),0) -> 0 | G216: =$H$216+($I$216-$H$216)*($G$10-ROUNDDOWN($G$10,0)) ->  | H216: =VLOOKUP($J$216,$C$203:$E$300,3) ->  | I216: =VLOOKUP($K$216,$C$203:$E$300,3) ->  | J216: =ROUNDDOWN($G$10,0) -> 0 | K216: =ROUNDUP($G$10,0) -> 0
C217: 50 | D217: =Tabelle15!$B$220*12*IF($C217>=$G$6,(1+$G$13)^($G$6-$G$5)*(1+$G$14)^($C217-$G$6),0) -> 0 | E217: =IF($C217>=$G$6,IRR($D$202:D217),0) -> 0
C218: 51 | D218: =Tabelle15!$B$220*12*IF($C218>=$G$6,(1+$G$13)^($G$6-$G$5)*(1+$G$14)^($C218-$G$6),0) -> 0 | E218: =IF($C218>=$G$6,IRR($D$202:D218),0) -> 0 | G218: Korrektur (s. Tabelle unten) wg. mtl. ZW; zur Sicherheit auf [-0,1%;0,1%] begrenzt
C219: 52 | D219: =Tabelle15!$B$220*12*IF($C219>=$G$6,(1+$G$13)^($G$6-$G$5)*(1+$G$14)^($C219-$G$6),0) -> 0 | E219: =IF($C219>=$G$6,IRR($D$202:D219),0) -> 0 | G219: =MAX(MIN(1%*($G$13+$G$14)/2*$G$5/25,0.1%),-0.1%) -> 0.000105
C220: 53 | D220: =Tabelle15!$B$220*12*IF($C220>=$G$6,(1+$G$13)^($G$6-$G$5)*(1+$G$14)^($C220-$G$6),0) -> 0 | E220: =IF($C220>=$G$6,IRR($D$202:D220),0) -> 0
C221: 54 | D221: =Tabelle15!$B$220*12*IF($C221>=$G$6,(1+$G$13)^($G$6-$G$5)*(1+$G$14)^($C221-$G$6),0) -> 0 | E221: =IF($C221>=$G$6,IRR($D$202:D221),0) -> 0 | G221: Testtabelle: IRR Berechnung mit diesem Tool und mit PP. PP mit jeweils Datum 1.1. ergibt exakt dasselbe Ergebnis
C222: 55 | D222: =Tabelle15!$B$220*12*IF($C222>=$G$6,(1+$G$13)^($G$6-$G$5)*(1+$G$14)^($C222-$G$6),0) -> 0 | E222: =IF($C222>=$G$6,IRR($D$202:D222),0) -> 0 | G222: Ergebnis: Bei 55-jähriger Frau max. Abweichung jährlich und mtl. Zahlweise von 0,053% | N222: Grob Korrektur
C223: 56 | D223: =Tabelle15!$B$220*12*IF($C223>=$G$6,(1+$G$13)^($G$6-$G$5)*(1+$G$14)^($C223-$G$6),0) -> 0 | E223: =IF($C223>=$G$6,IRR($D$202:D223),0) -> 0 | G223: Alter | H223: LE | I223: IRR p.a. | J223: IRR PP p.a. | K223: IRR korrekt | L223: Delta abs | M223: Delta rel | N223: absolut = | P223: Delta abs
C224: 57 | D224: =Tabelle15!$B$220*12*IF($C224>=$G$6,(1+$G$13)^($G$6-$G$5)*(1+$G$14)^($C224-$G$6),0) -> 0 | E224: =IF($C224>=$G$6,IRR($D$202:D224),0) -> 0 | G224: R-Steigerung bis: 1%, ab: 0,5% | N224: 0,01x Rentensteig. | O224: Ergibt | P224: neu
C225: 58 | D225: =Tabelle15!$B$220*12*IF($C225>=$G$6,(1+$G$13)^($G$6-$G$5)*(1+$G$14)^($C225-$G$6),0) -> 0 | E225: =IF($C225>=$G$6,IRR($D$202:D225),0) -> 0 | G225: 25 | H225: 85 (m) | I225: 0.010433 | J225: = | K225: 0.01034 | L225: =I225-K225 -> 9.3e-05 | M225: =I225/K225-1 -> 0.008994197292 | N225: =1%*0.75%*(G225/25) -> 7.5e-05 | O225: =I225-N225 -> 0.010358 | P225: =O225-K225 -> 1.8e-05
C226: 59 | D226: =Tabelle15!$B$220*12*IF($C226>=$G$6,(1+$G$13)^($G$6-$G$5)*(1+$G$14)^($C226-$G$6),0) -> 0 | E226: =IF($C226>=$G$6,IRR($D$202:D226),0) -> 0 | G226: 25 | H226: 88 (w) | I226: 0.01311906127 | J226: = | K226: 0.013005 | L226: =I226-K226 -> 0.0001140612657 | M226: =I226/K226-1 -> 0.008770570217 | N226: 7.5e-05 | O226: =I226-N226 -> 0.01304406127 | P226: =O226-K226 -> 3.906126567e-05
C227: 60 | D227: =Tabelle15!$B$220*12*IF($C227>=$G$6,(1+$G$13)^($G$6-$G$5)*(1+$G$14)^($C227-$G$6),0) -> 0 | E227: =IF($C227>=$G$6,IRR($D$202:D227),0) -> 0 | G227: 35 | H227: 85 | I227: 0.0105389124 | J227: = | K227: 0.010422 | L227: 0.0001169124049 | M227: 0.01121784733 | N227: 0.000105 | O227: 0.0104339124 | P227: 1.191240487e-05
C228: 61 | D228: =Tabelle15!$B$220*12*IF($C228>=$G$6,(1+$G$13)^($G$6-$G$5)*(1+$G$14)^($C228-$G$6),0) -> 0 | E228: =IF($C228>=$G$6,IRR($D$202:D228),0) -> 0 | G228: 35 | H228: 88 | I228: 0.01386026033 | J228: = | K228: 0.013711 | L228: 0.0001492603257 | M228: 0.01088617356 | N228: 0.000105 | O228: 0.01375526033 | P228: 4.426032569e-05
C229: 62 | D229: =Tabelle15!$B$220*12*IF($C229>=$G$6,(1+$G$13)^($G$6-$G$5)*(1+$G$14)^($C229-$G$6),0) -> 0 | E229: =IF($C229>=$G$6,IRR($D$202:D229),0) -> 0 | G229: 45 | H229: 85 | I229: 0.010713761 | J229: = | K229: 0.010556 | L229: =I229-K229 -> 0.000157760997 | M229: 0.01494514939 | N229: 0.000135 | O229: 0.010578761 | P229: 2.276099696e-05
C230: 63 | D230: =Tabelle15!$B$220*12*IF($C230>=$G$6,(1+$G$13)^($G$6-$G$5)*(1+$G$14)^($C230-$G$6),0) -> 0 | E230: =IF($C230>=$G$6,IRR($D$202:D230),0) -> 0 | G230: 45 | H230: 87 | I230: 0.01372836586 | J230: = | K230: 0.013531 | L230: 0.0001973658572 | M230: 0.01458619889 | N230: 0.000135 | O230: 0.01359336586 | P230: 6.236585716e-05
C231: 64 | D231: =Tabelle15!$B$220*12*IF($C231>=$G$6,(1+$G$13)^($G$6-$G$5)*(1+$G$14)^($C231-$G$6),0) -> 0 | E231: =IF($C231>=$G$6,IRR($D$202:D231),0) -> 0 | G231: R-Steigerung bis: 2%, ab: 1,5%
C232: 65 | D232: =Tabelle15!$B$220*12*IF($C232>=$G$6,(1+$G$13)^($G$6-$G$5)*(1+$G$14)^($C232-$G$6),0) -> 0 | E232: =IF($C232>=$G$6,IRR($D$202:D232),0) -> 0 | G232: 25 | H232: 85 | I232: 0.02044582047 | J232: = | K232: 0.020263 | L232: 0.0001828204705 | M232: 0.009022379239 | N232: =1%*1.75%*(G232/25) -> 0.000175 | O232: 0.02027082047 | P232: 7.820470519e-06
C233: 66 | D233: =Tabelle15!$B$220*12*IF($C233>=$G$6,(1+$G$13)^($G$6-$G$5)*(1+$G$14)^($C233-$G$6),0) -> 0 | E233: =IF($C233>=$G$6,IRR($D$202:D233),0) -> 0 | G233: 25 | H233: 88 | I233: 0.02315967677 | J233: = | K233: 0.022957 | L233: 0.0002026767742 | M233: 0.008828539189 | N233: =1%*1.75%*(G233/25) -> 0.000175 | O233: 0.02298467677 | P233: 2.767677415e-05
C234: 67 | D234: =Tabelle15!$B$220*12*IF($C234>=$G$6,(1+$G$13)^($G$6-$G$5)*(1+$G$14)^($C234-$G$6),0) -> 620.3732342 | E234: =IF($C234>=$G$6,IRR($D$202:D234),0) -> -0.07832524091 | G234: 35 | H234: 85 | I234: 0.0205550185 | J234: = | K234: 0.020326 | L234: 0.0002290184984 | M234: 0.01126726845 | N234: 0.000245 | O234: 0.0203100185 | P234: -1.598150156e-05
C235: 68 | D235: =Tabelle15!$B$220*12*IF($C235>=$G$6,(1+$G$13)^($G$6-$G$5)*(1+$G$14)^($C235-$G$6),0) -> 623.4751003 | E235: =IF($C235>=$G$6,IRR($D$202:D235),0) -> -0.05718767302 | G235: 35 | H235: 88 | I235: 0.02391050462 | J235: = | K235: 0.023651 | L235: 0.0002595046238 | M235: 0.01097224742 | N235: 0.000245 | O235: 0.02366550462 | P235: 1.450462379e-05
C236: 69 | D236: =Tabelle15!$B$220*12*IF($C236>=$G$6,(1+$G$13)^($G$6-$G$5)*(1+$G$14)^($C236-$G$6),0) -> 626.5924758 | E236: =IF($C236>=$G$6,IRR($D$202:D236),0) -> -0.04459790453 | G236: 45 | H236: 85 | I236: 0.02073508753 | J236: = | K236: 0.02043 | L236: 0.0003050875304 | M236: 0.01493331035 | N236: 0.000315 | O236: 0.02042008753 | P236: -9.91246955e-06
C237: 70 | D237: =Tabelle15!$B$220*12*IF($C237>=$G$6,(1+$G$13)^($G$6-$G$5)*(1+$G$14)^($C237-$G$6),0) -> 629.7254382 | E237: =IF($C237>=$G$6,IRR($D$202:D237),0) -> -0.0356237939 | G237: 45 | H237: 87 | I237: 0.02378054207 | J237: = | K237: 0.023439 | L237: 0.0003415420707 | M237: 0.01457152911 | N237: 0.000315 | O237: 0.02346554207 | P237: 2.654207072e-05
C238: 71 | D238: =Tabelle15!$B$220*12*IF($C238>=$G$6,(1+$G$13)^($G$6-$G$5)*(1+$G$14)^($C238-$G$6),0) -> 632.8740654 | E238: =IF($C238>=$G$6,IRR($D$202:D238),0) -> -0.02868173548 | G238: 55 | H238: 84 | I238: 0.018529 | J238: = | K238: 0.018123 | L238: 0.000406 | M238: 0.022402472 | N238: 0.000385 | O238: 0.018144 | P238: 2.1e-05
C239: 72 | D239: =Tabelle15!$B$220*12*IF($C239>=$G$6,(1+$G$13)^($G$6-$G$5)*(1+$G$14)^($C239-$G$6),0) -> 636.0384357 | E239: =IF($C239>=$G$6,IRR($D$202:D239),0) -> -0.02305231829 | G239: 55 | H239: 87 | I239: 0.025531 | J239: = | K239: 0.025 | L239: 0.000531 | M239: 0.02124 | N239: 0.000385 | O239: 0.025146 | P239: 0.000146
C240: 73 | D240: =Tabelle15!$B$220*12*IF($C240>=$G$6,(1+$G$13)^($G$6-$G$5)*(1+$G$14)^($C240-$G$6),0) -> 639.2186279 | E240: =IF($C240>=$G$6,IRR($D$202:D240),0) -> -0.01834492153 | G240: R-Steigerung bis: 3%, ab: 2,5%
C241: 74 | D241: =Tabelle15!$B$220*12*IF($C241>=$G$6,(1+$G$13)^($G$6-$G$5)*(1+$G$14)^($C241-$G$6),0) -> 642.414721 | E241: =IF($C241>=$G$6,IRR($D$202:D241),0) -> -0.01432249624 | G241: 55 | H241: 84 | I241: 0.028535 | J241: = | K241: 0.027902 | L241: =I241-K241 -> 0.000633 | M241: =I241/K241-1 -> 0.02268654577 | N241: =1%*2.75%*(G241/25) -> 0.000605 | O241: 0.02793 | P241: 2.8e-05
C242: 75 | D242: =Tabelle15!$B$220*12*IF($C242>=$G$6,(1+$G$13)^($G$6-$G$5)*(1+$G$14)^($C242-$G$6),0) -> 645.6267946 | E242: =IF($C242>=$G$6,IRR($D$202:D242),0) -> -0.01082974147 | G242: 55 | H242: 87 | I242: 0.035607 | J242: = | K242: 0.03486 | L242: =I242-K242 -> 0.000747 | M242: =I242/K242-1 -> 0.02142857143 | N242: =1%*2.75%*(G242/25) -> 0.000605 | O242: 0.035002 | P242: 0.000142
C243: 76 | D243: =Tabelle15!$B$220*12*IF($C243>=$G$6,(1+$G$13)^($G$6-$G$5)*(1+$G$14)^($C243-$G$6),0) -> 648.8549286 | E243: =IF($C243>=$G$6,IRR($D$202:D243),0) -> -0.007759046597
C244: 77 | D244: =Tabelle15!$B$220*12*IF($C244>=$G$6,(1+$G$13)^($G$6-$G$5)*(1+$G$14)^($C244-$G$6),0) -> 652.0992033 | E244: =IF($C244>=$G$6,IRR($D$202:D244),0) -> -0.005032584051
C245: 78 | D245: =Tabelle15!$B$220*12*IF($C245>=$G$6,(1+$G$13)^($G$6-$G$5)*(1+$G$14)^($C245-$G$6),0) -> 655.3596993 | E245: =IF($C245>=$G$6,IRR($D$202:D245),0) -> -0.002592134058
C246: 79 | D246: =Tabelle15!$B$220*12*IF($C246>=$G$6,(1+$G$13)^($G$6-$G$5)*(1+$G$14)^($C246-$G$6),0) -> 658.6364978 | E246: =IF($C246>=$G$6,IRR($D$202:D246),0) -> -0.000392941246
C247: 80 | D247: =Tabelle15!$B$220*12*IF($C247>=$G$6,(1+$G$13)^($G$6-$G$5)*(1+$G$14)^($C247-$G$6),0) -> 661.9296803 | E247: =IF($C247>=$G$6,IRR($D$202:D247),0) -> 0.001600180045
C248: 81 | D248: =Tabelle15!$B$220*12*IF($C248>=$G$6,(1+$G$13)^($G$6-$G$5)*(1+$G$14)^($C248-$G$6),0) -> 665.2393287 | E248: =IF($C248>=$G$6,IRR($D$202:D248),0) -> 0.003415416153
C249: 82 | D249: =Tabelle15!$B$220*12*IF($C249>=$G$6,(1+$G$13)^($G$6-$G$5)*(1+$G$14)^($C249-$G$6),0) -> 668.5655253 | E249: =IF($C249>=$G$6,IRR($D$202:D249),0) -> 0.005075708642
C250: 83 | D250: =Tabelle15!$B$220*12*IF($C250>=$G$6,(1+$G$13)^($G$6-$G$5)*(1+$G$14)^($C250-$G$6),0) -> 671.9083529 | E250: =IF($C250>=$G$6,IRR($D$202:D250),0) -> 0.006599986784
C251: 84 | D251: =Tabelle15!$B$220*12*IF($C251>=$G$6,(1+$G$13)^($G$6-$G$5)*(1+$G$14)^($C251-$G$6),0) -> 675.2678947 | E251: =IF($C251>=$G$6,IRR($D$202:D251),0) -> 0.008004054976
C252: 85 | D252: =Tabelle15!$B$220*12*IF($C252>=$G$6,(1+$G$13)^($G$6-$G$5)*(1+$G$14)^($C252-$G$6),0) -> 678.6442342 | E252: =IF($C252>=$G$6,IRR($D$202:D252),0) -> 0.009301245574
C253: 86 | D253: =Tabelle15!$B$220*12*IF($C253>=$G$6,(1+$G$13)^($G$6-$G$5)*(1+$G$14)^($C253-$G$6),0) -> 682.0374553 | E253: =IF($C253>=$G$6,IRR($D$202:D253),0) -> 0.0105029083
C254: 87 | D254: =Tabelle15!$B$220*12*IF($C254>=$G$6,(1+$G$13)^($G$6-$G$5)*(1+$G$14)^($C254-$G$6),0) -> 685.4476426 | E254: =IF($C254>=$G$6,IRR($D$202:D254),0) -> 0.0116187833
C255: 88 | D255: =Tabelle15!$B$220*12*IF($C255>=$G$6,(1+$G$13)^($G$6-$G$5)*(1+$G$14)^($C255-$G$6),0) -> 688.8748808 | E255: =IF($C255>=$G$6,IRR($D$202:D255),0) -> 0.01265728981
C256: 89 | D256: =Tabelle15!$B$220*12*IF($C256>=$G$6,(1+$G$13)^($G$6-$G$5)*(1+$G$14)^($C256-$G$6),0) -> 692.3192552 | E256: =IF($C256>=$G$6,IRR($D$202:D256),0) -> 0.01362575241
C257: 90 | D257: =Tabelle15!$B$220*12*IF($C257>=$G$6,(1+$G$13)^($G$6-$G$5)*(1+$G$14)^($C257-$G$6),0) -> 695.7808515 | E257: =IF($C257>=$G$6,IRR($D$202:D257),0) -> 0.01453058065
C258: 91 | D258: =Tabelle15!$B$220*12*IF($C258>=$G$6,(1+$G$13)^($G$6-$G$5)*(1+$G$14)^($C258-$G$6),0) -> 699.2597558 | E258: =IF($C258>=$G$6,IRR($D$202:D258),0) -> 0.01537741306
C259: 92 | D259: =Tabelle15!$B$220*12*IF($C259>=$G$6,(1+$G$13)^($G$6-$G$5)*(1+$G$14)^($C259-$G$6),0) -> 702.7560546 | E259: =IF($C259>=$G$6,IRR($D$202:D259),0) -> 0.01617123384
C260: 93 | D260: =Tabelle15!$B$220*12*IF($C260>=$G$6,(1+$G$13)^($G$6-$G$5)*(1+$G$14)^($C260-$G$6),0) -> 706.2698348 | E260: =IF($C260>=$G$6,IRR($D$202:D260),0) -> 0.01691646824
C261: 94 | D261: =Tabelle15!$B$220*12*IF($C261>=$G$6,(1+$G$13)^($G$6-$G$5)*(1+$G$14)^($C261-$G$6),0) -> 709.801184 | E261: =IF($C261>=$G$6,IRR($D$202:D261),0) -> 0.01761706116
C262: 95 | D262: =Tabelle15!$B$220*12*IF($C262>=$G$6,(1+$G$13)^($G$6-$G$5)*(1+$G$14)^($C262-$G$6),0) -> 713.3501899 | E262: =IF($C262>=$G$6,IRR($D$202:D262),0) -> 0.01827654244
C263: 96 | D263: =Tabelle15!$B$220*12*IF($C263>=$G$6,(1+$G$13)^($G$6-$G$5)*(1+$G$14)^($C263-$G$6),0) -> 716.9169409 | E263: =IF($C263>=$G$6,IRR($D$202:D263),0) -> 0.01889808137
C264: 97 | D264: =Tabelle15!$B$220*12*IF($C264>=$G$6,(1+$G$13)^($G$6-$G$5)*(1+$G$14)^($C264-$G$6),0) -> 720.5015256 | E264: =IF($C264>=$G$6,IRR($D$202:D264),0) -> 0.0194845327
C265: 98 | D265: =Tabelle15!$B$220*12*IF($C265>=$G$6,(1+$G$13)^($G$6-$G$5)*(1+$G$14)^($C265-$G$6),0) -> 724.1040332 | E265: =IF($C265>=$G$6,IRR($D$202:D265),0) -> 0.02003847545
C266: 99 | D266: =Tabelle15!$B$220*12*IF($C266>=$G$6,(1+$G$13)^($G$6-$G$5)*(1+$G$14)^($C266-$G$6),0) -> 727.7245534 | E266: =IF($C266>=$G$6,IRR($D$202:D266),0) -> 0.02056224604
C267: 100 | D267: =Tabelle15!$B$220*12*IF($C267>=$G$6,(1+$G$13)^($G$6-$G$5)*(1+$G$14)^($C267-$G$6),0) -> 731.3631761 | E267: =IF($C267>=$G$6,IRR($D$202:D267),0) -> 0.02105796659
C268: =C267+1 -> 101 | D268: =Tabelle15!$B$220*12*IF($C268>=$G$6,(1+$G$13)^($G$6-$G$5)*(1+$G$14)^($C268-$G$6),0) -> 735.019992 | E268: =IF($C268>=$G$6,IRR($D$202:D268),0) -> 0.02152756926
C269: 102 | D269: =Tabelle15!$B$220*12*IF($C269>=$G$6,(1+$G$13)^($G$6-$G$5)*(1+$G$14)^($C269-$G$6),0) -> 738.695092 | E269: =IF($C269>=$G$6,IRR($D$202:D269),0) -> 0.02197281729
C270: 103 | D270: =Tabelle15!$B$220*12*IF($C270>=$G$6,(1+$G$13)^($G$6-$G$5)*(1+$G$14)^($C270-$G$6),0) -> 742.3885674 | E270: =IF($C270>=$G$6,IRR($D$202:D270),0) -> 0.02239532323
C271: 104 | D271: =Tabelle15!$B$220*12*IF($C271>=$G$6,(1+$G$13)^($G$6-$G$5)*(1+$G$14)^($C271-$G$6),0) -> 746.1005103 | E271: =IF($C271>=$G$6,IRR($D$202:D271),0) -> 0.02279656479
C272: 105 | D272: =Tabelle15!$B$220*12*IF($C272>=$G$6,(1+$G$13)^($G$6-$G$5)*(1+$G$14)^($C272-$G$6),0) -> 749.8310128 | E272: =IF($C272>=$G$6,IRR($D$202:D272),0) -> 0.02317789872
C273: 106 | D273: =Tabelle15!$B$220*12*IF($C273>=$G$6,(1+$G$13)^($G$6-$G$5)*(1+$G$14)^($C273-$G$6),0) -> 753.5801679 | E273: =IF($C273>=$G$6,IRR($D$202:D273),0) -> 0.02354057297
C274: 107 | D274: =Tabelle15!$B$220*12*IF($C274>=$G$6,(1+$G$13)^($G$6-$G$5)*(1+$G$14)^($C274-$G$6),0) -> 757.3480687 | E274: =IF($C274>=$G$6,IRR($D$202:D274),0) -> 0.02388573743
C275: 108 | D275: =Tabelle15!$B$220*12*IF($C275>=$G$6,(1+$G$13)^($G$6-$G$5)*(1+$G$14)^($C275-$G$6),0) -> 761.1348091 | E275: =IF($C275>=$G$6,IRR($D$202:D275),0) -> 0.0242144533
C276: 109 | D276: =Tabelle15!$B$220*12*IF($C276>=$G$6,(1+$G$13)^($G$6-$G$5)*(1+$G$14)^($C276-$G$6),0) -> 764.9404831 | E276: =IF($C276>=$G$6,IRR($D$202:D276),0) -> 0.02452770151
C277: 110 | D277: =Tabelle15!$B$220*12*IF($C277>=$G$6,(1+$G$13)^($G$6-$G$5)*(1+$G$14)^($C277-$G$6),0) -> 768.7651855 | E277: =IF($C277>=$G$6,IRR($D$202:D277),0) -> 0.02482639011
C278: 111 | D278: =Tabelle15!$B$220*12*IF($C278>=$G$6,(1+$G$13)^($G$6-$G$5)*(1+$G$14)^($C278-$G$6),0) -> 772.6090115 | E278: =IF($C278>=$G$6,IRR($D$202:D278),0) -> 0.02511136087
C279: 112 | D279: =Tabelle15!$B$220*12*IF($C279>=$G$6,(1+$G$13)^($G$6-$G$5)*(1+$G$14)^($C279-$G$6),0) -> 776.4720565 | E279: =IF($C279>=$G$6,IRR($D$202:D279),0) -> 0.02538339519
C280: =C279+1 -> 113 | D280: =Tabelle15!$B$220*12*IF($C280>=$G$6,(1+$G$13)^($G$6-$G$5)*(1+$G$14)^($C280-$G$6),0) -> 780.3544168 | E280: =IF($C280>=$G$6,IRR($D$202:D280),0) -> 0.02564321936
C281: =C280+1 -> 114 | D281: =Tabelle15!$B$220*12*IF($C281>=$G$6,(1+$G$13)^($G$6-$G$5)*(1+$G$14)^($C281-$G$6),0) -> 784.2561889 | E281: =IF($C281>=$G$6,IRR($D$202:D281),0) -> 0.02589150927
C282: 115 | D282: =Tabelle15!$B$220*12*IF($C282>=$G$6,(1+$G$13)^($G$6-$G$5)*(1+$G$14)^($C282-$G$6),0) -> 788.1774698 | E282: =IF($C282>=$G$6,IRR($D$202:D282),0) -> 0.02612889467
C283: 116 | D283: =Tabelle15!$B$220*12*IF($C283>=$G$6,(1+$G$13)^($G$6-$G$5)*(1+$G$14)^($C283-$G$6),0) -> 792.1183572 | E283: =IF($C283>=$G$6,IRR($D$202:D283),0) -> 0.02635596298
C284: 117 | D284: =Tabelle15!$B$220*12*IF($C284>=$G$6,(1+$G$13)^($G$6-$G$5)*(1+$G$14)^($C284-$G$6),0) -> 796.078949 | E284: =IF($C284>=$G$6,IRR($D$202:D284),0) -> 0.0265732627
C285: 118 | D285: =Tabelle15!$B$220*12*IF($C285>=$G$6,(1+$G$13)^($G$6-$G$5)*(1+$G$14)^($C285-$G$6),0) -> 800.0593437 | E285: =IF($C285>=$G$6,IRR($D$202:D285),0) -> 0.02678130661
C286: 119 | D286: =Tabelle15!$B$220*12*IF($C286>=$G$6,(1+$G$13)^($G$6-$G$5)*(1+$G$14)^($C286-$G$6),0) -> 804.0596404 | E286: =IF($C286>=$G$6,IRR($D$202:D286),0) -> 0.0269805745
C287: 120 | D287: =Tabelle15!$B$220*12*IF($C287>=$G$6,(1+$G$13)^($G$6-$G$5)*(1+$G$14)^($C287-$G$6),0) -> 808.0799386 | E287: =IF($C287>=$G$6,IRR($D$202:D287),0) -> 0.02717151575
C288: 121 | D288: =Tabelle15!$B$220*12*IF($C288>=$G$6,(1+$G$13)^($G$6-$G$5)*(1+$G$14)^($C288-$G$6),0) -> 812.1203383 | E288: =IF($C288>=$G$6,IRR($D$202:D288),0) -> 0.02735455168
C289: 122 | D289: =Tabelle15!$B$220*12*IF($C289>=$G$6,(1+$G$13)^($G$6-$G$5)*(1+$G$14)^($C289-$G$6),0) -> 816.18094 | E289: =IF($C289>=$G$6,IRR($D$202:D289),0) -> 0.02753007762
C290: 123 | D290: =Tabelle15!$B$220*12*IF($C290>=$G$6,(1+$G$13)^($G$6-$G$5)*(1+$G$14)^($C290-$G$6),0) -> 820.2618447 | E290: =IF($C290>=$G$6,IRR($D$202:D290),0) -> 0.02769846489
C291: 124 | D291: =Tabelle15!$B$220*12*IF($C291>=$G$6,(1+$G$13)^($G$6-$G$5)*(1+$G$14)^($C291-$G$6),0) -> 824.3631539 | E291: =IF($C291>=$G$6,IRR($D$202:D291),0) -> 0.02786006247
C292: 125 | D292: =Tabelle15!$B$220*12*IF($C292>=$G$6,(1+$G$13)^($G$6-$G$5)*(1+$G$14)^($C292-$G$6),0) -> 828.4849697 | E292: =IF($C292>=$G$6,IRR($D$202:D292),0) -> 0.02801519871
C293: 126 | D293: =Tabelle15!$B$220*12*IF($C293>=$G$6,(1+$G$13)^($G$6-$G$5)*(1+$G$14)^($C293-$G$6),0) -> 832.6273946 | E293: =IF($C293>=$G$6,IRR($D$202:D293),0) -> 0.02816418271
C294: 127 | D294: =Tabelle15!$B$220*12*IF($C294>=$G$6,(1+$G$13)^($G$6-$G$5)*(1+$G$14)^($C294-$G$6),0) -> 836.7905315 | E294: =IF($C294>=$G$6,IRR($D$202:D294),0) -> 0.02830730571
C295: 128 | D295: =Tabelle15!$B$220*12*IF($C295>=$G$6,(1+$G$13)^($G$6-$G$5)*(1+$G$14)^($C295-$G$6),0) -> 840.9744842 | E295: =IF($C295>=$G$6,IRR($D$202:D295),0) -> 0.02844484233
C296: 129 | D296: =Tabelle15!$B$220*12*IF($C296>=$G$6,(1+$G$13)^($G$6-$G$5)*(1+$G$14)^($C296-$G$6),0) -> 845.1793566 | E296: =IF($C296>=$G$6,IRR($D$202:D296),0) -> 0.02857705168
C297: 130 | D297: =Tabelle15!$B$220*12*IF($C297>=$G$6,(1+$G$13)^($G$6-$G$5)*(1+$G$14)^($C297-$G$6),0) -> 849.4052534 | E297: =IF($C297>=$G$6,IRR($D$202:D297),0) -> 0.02870417843
C298: 131 | D298: =Tabelle15!$B$220*12*IF($C298>=$G$6,(1+$G$13)^($G$6-$G$5)*(1+$G$14)^($C298-$G$6),0) -> 853.6522797 | E298: =IF($C298>=$G$6,IRR($D$202:D298),0) -> 0.02882645374
C299: 132 | D299: =Tabelle15!$B$220*12*IF($C299>=$G$6,(1+$G$13)^($G$6-$G$5)*(1+$G$14)^($C299-$G$6),0) -> 857.9205411 | E299: =IF($C299>=$G$6,IRR($D$202:D299),0) -> 0.02894409619
C300: 133 | D300: =Tabelle15!$B$220*12*IF($C300>=$G$6,(1+$G$13)^($G$6-$G$5)*(1+$G$14)^($C300-$G$6),0) -> 862.2101438 | E300: =IF($C300>=$G$6,IRR($D$202:D300),0) -> 0.02905731255
C301: 134 | D301: =Tabelle15!$B$220*12*IF($C301>=$G$6,(1+$G$13)^($G$6-$G$5)*(1+$G$14)^($C301-$G$6),0) -> 866.5211945 | E301: =IF($C301>=$G$6,IRR($D$202:D301),0) -> 0.02916629857
C302: 135 | D302: =Tabelle15!$B$220*12*IF($C302>=$G$6,(1+$G$13)^($G$6-$G$5)*(1+$G$14)^($C302-$G$6),0) -> 870.8538004 | E302: =IF($C302>=$G$6,IRR($D$202:D302),0) -> 0.02927123968
C303: 136 | D303: =Tabelle15!$B$220*12*IF($C303>=$G$6,(1+$G$13)^($G$6-$G$5)*(1+$G$14)^($C303-$G$6),0) -> 875.2080695 | E303: =IF($C303>=$G$6,IRR($D$202:D303),0) -> 0.02937231161
C304: 137 | D304: =Tabelle15!$B$220*12*IF($C304>=$G$6,(1+$G$13)^($G$6-$G$5)*(1+$G$14)^($C304-$G$6),0) -> 879.5841098 | E304: =IF($C304>=$G$6,IRR($D$202:D304),0) -> 0.02946968101
C305: 138 | D305: =Tabelle15!$B$220*12*IF($C305>=$G$6,(1+$G$13)^($G$6-$G$5)*(1+$G$14)^($C305-$G$6),0) -> 883.9820303 | E305: =IF($C305>=$G$6,IRR($D$202:D305),0) -> 0.029563506
C306: 139 | D306: =Tabelle15!$B$220*12*IF($C306>=$G$6,(1+$G$13)^($G$6-$G$5)*(1+$G$14)^($C306-$G$6),0) -> 888.4019405 | E306: =IF($C306>=$G$6,IRR($D$202:D306),0) -> 0.02965393672
C307: 140 | D307: =Tabelle15!$B$220*12*IF($C307>=$G$6,(1+$G$13)^($G$6-$G$5)*(1+$G$14)^($C307-$G$6),0) -> 892.8439502 | E307: =IF($C307>=$G$6,IRR($D$202:D307),0) -> 0.02974111573

Sheet Rentenschätzer
B1: Der Dr. Kriebel Rentenschätzer -eine realistische Abschätzung Ihrer zu erwartenden Rente | N1: Stand: | O1: 2024-03-07
B2: Persönliche Verwendung für PROF. DR. KRIEBEL | N2: Gültig bis | O2: 31.01.2025
A4: Hauptmenu
C5: Alter | F5: 35 | I5: Ruhestandsalter | M5: 67
A6: AVP.Express
A7: AV-Planer | C7: Berufsstartalter | F7: 25 | I7: Kinderzahl | M7: 0
A8: bAV
C9: Bruttoeinkommen p.a. | F9: 45000
A10: Cost.Average_Pos | C10: (soz.-versicherungspflichtiges Einkommen dieses Kalenderjahr)
A11: Cost.Average_Neg
C12: Steigerung Arbeitseinkommen p.a. | F12: 0.05 | I12: Ihre Situation zum Ruhestand
A13: Immobilie.Familie | C13: (für die nächsten 3 Kalenderjahre, ab dann Inflationsrate)
I14: Nettoeinkommen monatlich | M14: 2765
A15: Mtl-Crashkauf | C15: Entgeltpunkte vorhanden | F15: 0 | I15: ="(in heutiger Kaufkraft bei "&TEXT(Tabelle15!$H$201,"0,00%")&" Inflation)" -> (in heutiger Kaufkraft bei 2,50% Inflation)
C16: (laut Renteninformation; Eingabe = 0: Wert wird berechnet)
A17: Photovoltaik | I17: Gesetzliche Rente
A18: Produktprüfer | C18: Keine weiteren Entgeltpunkte ab ... | I18: … überwiesen werden brutto | M18: 2700
C19: (z.B. bei Selbständigkeit)
A20: Rechnen.komplex | D20: … ab Jahr | F20: 2025 | I20: … das sind in heutiger Kaufkraft brutto | M20: 1225
A21: Rendite.GRV
A22: Rentenschätzer | I22: … nach Steuern und KV-Beitrag | M22: 1075
A24: Steuerrechner
I25: Rentenlücke in heutiger Kaufkraft im ersten Jahr* | M25: 0
A26: Vergleich.ETF-LV
A27: Verluste_TopPerf
I30: Bemerkungen
I31: * Die Rentenlücke steigt bei Ruhestand vor 2058 noch an, weil Rentenerhöhungen voll zu versteuern sind …
I32: Falls das Ruhestandsalter nicht 67 ist, gibt es neben der veränderten Punktzahl noch die gesetzlichen Ab-/Zuschläge.
A40: Einstellungen
C42: Copyright und Autor: Prof. Dr. Claus Kriebel
C43: Trotz aller Sorgfalt kann für die Berechnungen keine Gewähr übernommen werden.
C44: Persönliche Version für: PROF. DR. KRIEBEL
A45: Version: 4.21, 2K
A46: CLAUS KRIEBEL
A49: (C) Prof. Dr. Kriebel
A50: 2008 - 2024

Sheet Steuerrechner
B1: Das deutsche Steuersystem mit Scholzbuckel -Ihre persönliche Situation | N1: Stand: | O1: 2024-01-04
B2: Persönliche Verwendung für PROF. DR. KRIEBEL | N2: Gültig bis | O2: 31.01.2025
A4: Hauptmenu
C5: Zu versteuerndes Einkommen im Jahr | G5: 30000
A6: AVP.Express | C6: Familienstand
A7: AV-Planer
A8: bAV | C8: Einkommensänderung | G8: 0
A10: Cost.Average_Pos
A11: Cost.Average_Neg | C11: Ergebnis (ohne Kirchensteuer)
C12: Ihre jährliche Steuerzahlung | G12: 0
A13: Immobilie.Familie | C13: Ihr Durchschnittssteuersatz | G13: 0
C14: Ihr Grenzsteuersatz (zzgl. evtl. Kirchensteuer) | G14: 0
A15: Mtl-Crashkauf | C15: Steuererstattung/-zahlung durch Einkommensänderung | G15: 0
A17: Photovoltaik
A18: Produktprüfer
A20: Rechnen.komplex
A21: Rendite.GRV
A22: Rentenschätzer
A24: Steuerrechner
A26: Vergleich.ETF-LV | I26: Bemerkungen
A27: Verluste_TopPerf | I27: Der sog. "Scholzbuckel" entsteht durch das Nachholen des Solidaritätszuschlags bei höheren Einkommen. Um die …
A40: Einstellungen
C42: Copyright und Autor: Prof. Dr. Claus Kriebel
C43: Trotz aller Sorgfalt kann für die Berechnungen keine Gewähr übernommen werden.
C44: Persönliche Version für: PROF. DR. KRIEBEL
A45: Version: 4.21, 2K
A46: CLAUS KRIEBEL
A49: (C) Prof. Dr. Kriebel
A50: 2008 - 2024
D58: 20000
D59: 21000
D60: 22000
D61: 23000
D62: 24000
D63: 25000
D64: 26000
D65: 27000
D66: 28000
D67: 29000
D68: 30000
D69: 31000
D70: 32000
D71: 33000
D72: 34000
D73: 35000
D74: 36000
D75: 37000
D76: 38000
D77: 39000
D78: 40000
D79: 41000
D80: 42000
D81: 43000
D82: 44000
D83: 45000
D84: 46000
D85: 47000
D86: 48000
D87: 49000
D88: 50000
D89: 51000
D90: 52000
D91: 53000
D92: 54000
D93: 55000
D94: 56000
D95: 57000
D96: 58000
D97: 59000
D98: 60000
D99: 61000
D100: 62000
D101: 63000
D102: 64000
D103: 65000
D104: 66000
D105: 67000
D106: 68000
D107: 69000
D108: 70000
D109: 71000
D110: 72000
D111: 73000
D112: 74000
D113: 75000
D114: 76000
D115: 77000
D116: 78000
D117: 79000
D118: 80000
D119: 81000
D120: 82000
D121: 83000
D122: 84000
D123: 85000
D124: 86000
D125: 87000
D126: 88000
D127: 89000
D128: 90000
D129: 91000
D130: 92000
D131: 93000
D132: 94000
D133: 95000
D134: 96000
D135: 97000
D136: 98000
D137: 99000
D138: 100000
D139: 101000
D140: 102000
D141: 103000
D142: 104000
D143: 105000
D144: 106000
D145: 107000
D146: 108000
D147: 109000
D148: 110000
D149: 111000
D150: 112000
D151: 113000
D152: 114000
D153: 115000
D154: 116000
D155: 117000
D156: 118000
D157: 119000
D158: 120000
D201: zvE | E201: Grenzsteuersatz | G201: Auswahlfeld Geschlecht
C202: 1 | D202: 20000 | G202: ledig
C203: 2 | D203: 21000 | G203: verheiratet
C204: 3 | D204: 22000
C205: 4 | D205: 23000
C206: 5 | D206: 24000
C207: 6 | D207: 25000
C208: 7 | D208: 26000
C209: 8 | D209: 27000
C210: 9 | D210: 28000
C211: 10 | D211: 29000
C212: 11 | D212: 30000
C213: 12 | D213: 31000
C214: 13 | D214: 32000
C215: 14 | D215: 33000
C216: 15 | D216: 34000
C217: 16 | D217: 35000
C218: 17 | D218: 36000
C219: 18 | D219: 37000
C220: 19 | D220: 38000
C221: 20 | D221: 39000
C222: 21 | D222: 40000
C223: 22 | D223: 41000
C224: 23 | D224: 42000
C225: 24 | D225: 43000
C226: 25 | D226: 44000
C227: 26 | D227: 45000
C228: 27 | D228: 46000
C229: 28 | D229: 47000
C230: 29 | D230: 48000
C231: 30 | D231: 49000
C232: 31 | D232: 50000
C233: 32 | D233: 51000
C234: 33 | D234: 52000
C235: 34 | D235: 53000
C236: 35 | D236: 54000
C237: 36 | D237: 55000
C238: 37 | D238: 56000
C239: 38 | D239: 57000
C240: 39 | D240: 58000
C241: 40 | D241: 59000
C242: 41 | D242: 60000
C243: 42 | D243: 61000
C244: 43 | D244: 62000
C245: 44 | D245: 63000
C246: 45 | D246: 64000
C247: 46 | D247: 65000
C248: 47 | D248: 66000
C249: 48 | D249: 67000
C250: 49 | D250: 68000
C251: 50 | D251: 69000
C252: 51 | D252: 70000
C253: 52 | D253: 71000
C254: 53 | D254: 72000
C255: 54 | D255: 73000
C256: 55 | D256: 74000
C257: 56 | D257: 75000
C258: 57 | D258: 76000
C259: 58 | D259: 77000
C260: 59 | D260: 78000
C261: 60 | D261: 79000
C262: 61 | D262: 80000
C263: 62 | D263: 81000
C264: 63 | D264: 82000
C265: 64 | D265: 83000
C266: 65 | D266: 84000
C267: 66 | D267: 85000
C268: 67 | D268: 86000
C269: 68 | D269: 87000
C270: 69 | D270: 88000
... 33 more rows

Sheet Vergleich.ETF-LV
B1: Vergleich der Vermögensentwicklung von ETF/Fonds und Lebensversicherung mit Teilentnahme im Ruhestand | N1: Stand: | O1: 2024-03-14
B2: Persönliche Verwendung für PROF. DR. KRIEBEL | N2: Gültig bis | O2: 31.01.2025
A4: Hauptmenu | B4: ="Annahmen bis "&RSA -> Annahmen bis 65
B5: Alter | D5: 18
A6: AVP.Express | B6: Ruhestandsalter | D6: 65
A7: AV-Planer | B7: Planungsalter | D7: 95
A8: bAV | B8: Sparrate monatlich | D8: 200
B9: ="Anteil Aktien bis "&RSA -> Anteil Aktien bis 65 | D9: 0.75
A10: Cost.Average_Pos | B10: Rendite Akienmärkte p.a. | D10: 0.06
A11: Cost.Average_Neg | B11: Rendite Rentenmärkte p.a. | D11: 0.03
A13: Immobilie.Familie
B14: ="Weiteres / Annahmen ab "&RSA -> Weiteres / Annahmen ab 65
A15: Mtl-Crashkauf | B15: ="Umschichten bis "&RSA&" alle … Jahre" -> Umschichten bis 65 alle … Jahre | D15: 5
B16: ="Umschichten ab "&RSA&" alle … Jahre" -> Umschichten ab 65 alle … Jahre | D16: 5
A17: Photovoltaik | B17: ="Anteil Aktien ab "&RSA -> Anteil Aktien ab 65 | D17: 0.4
A18: Produktprüfer | B18: Entnahme monatlich | D18: 500
B19: ="Grenzsteuersatz ab "&RSA -> Grenzsteuersatz ab 65 | D19: 0.2
A20: Rechnen.komplex
A21: Rendite.GRV
A22: Rentenschätzer | B22: Weitere Parameter
B23: Info: Aktien-ETF Freistellungsanteil | D23: 0.3
A24: Steuerrechner | B24: Ausgabeaufschlag Fonds | D24: 0
A26: Vergleich.ETF-LV
A27: Verluste_TopPerf
B36: Copyright und Autor: Prof. Dr. Claus Kriebel | G36: Bemerkungen
B37: Trotz aller Sorgfalt kann für die Berechnungen keine Gewähr übernommen werden. | G37: Steuerlich wird hier der Mittelwert zwischen FiFo- (First In - First Out) und LiFo- (Last In - First Out) Prinzip gewählt. FiFo ist in über ...
B38: Persönliche Version für: PROF. DR. KRIEBEL | G38: Umschichten zum 1.1. eines Umschicht-Jahres. Das erste Umschichten erfolgt fest im 3. Jahr, in der Praxis ein durchaus üblicher Zeitpunkt. E ...
G39: Hinterlegt sind -auch im Fondspolicenmantel- bis Ruhestand 100% ETF´s. OCF (TER) beim ETF: 0,25% p.a. Da Anleger im Ruhestand verstärkt nebe ...
A40: Einstellungen
A45: Version: 4.22, 1V
A46: PROF. DR. KRIEBEL
A49: (C) Prof. Dr. Kriebel
A50: 2008 - 2024
B201: to do: Steuer auf Entn. mindert das Vermögen (sauberer wäre eine Brutto/Nettoentnahme)?? 2. To do: Lies https://www.pfefferminzia.de/fondspolicen-auszahlplan-oder-verrentung-teil-1-die-interessante-alternative-zur-verrentung/ | AE201: WWK Tarif Fondsrente 2.0 https://tappeconsulting.de/wwk-premium-fondsrente-2-0/, 29-67, 300 € mtl.
AE202: Alpha: BS x min (Beitrjahre, 35 (je nach Versicherer auch 30, o 50)), 2,5% verteilt über die ersten 5 Jahre | AF202: Beta: Jährlicher Beitrag x 4% jährlich abgezogen (5,5% - 1,5% Überschuss WWK, bei Sx = Rabatt Tarif) | AG202: Gamma: vom Vertragsguthaben. 0,55% p.a. Überschuss: 0,32% WWK | AH202: Kappa-Kosten / Stückkosten: 0 €
B203: 2023-09 Hinweis: Beachte: FIFO Prinzip beim ETF! Ließe sich durch Aufteilen auf mehrere ETF´s in LiFo verändern (bei mtl. einem neuem ETF habe ich volles LiFo!). 3 Beispielfälle: Anlage heute und in 30 J. je 50'. Nach 30 Jahren verdreifachung. Vermögen nach 30J: 200' inkl. Anlage 50'. Entnahme nach 30 J. 150' und nach weiteren 30 J. wieder 150' (dann Vermögen = 0 €). . Gewinnn in 30 / 60 Jahren also: 1. FiFo: 100' / 100'. Steuer heute auf 100' und in 30 J auf 100''. 2. LiFo: Steuer auf 66' heute und 133' in 60 J. Summe dito, aber später zu zahlen. 3) Mein Tool: 3/4 von 200' entnommen. Gewinn: 100' BS: 100'=> 75' Gewinn in 30J., BS Rest = 25'. => Gewinn in 60J: 125'. Summe wieder gleich, aber Mitte von FiFo und LiFo. | AE203: Fondskosten bis RS: Wie beim ETF. Ab RS: bei ETF wie ETF, bei aktivem Fonds 50% der Kosten des aktiven Fonds
C204: Die Methode: Steuer = (EW-Sparssumme)/EW*Entnahme ist also die Mitte aus FiFo und LiFo, daher lasse ich das als Lösung | N204: Bis RS | O204: Im RS
C205: Gute Quelle: https://www.finanztip.de/indexfonds-etf/investmentsteuerreformgesetz/ | O205: aktive Fonds | AE205: BS | AF205: =Sparratemtl*12*$AF$206 -> 84000
O206: Anteil | AE206: Beitragsjahre | AF206: =MIN((RSA-AlterA),$AG$206) -> 35 | AG206: 35 | AH206: maximale verprovisionierte Jahre
O207: =AnteilAktiverFondsRS -> 0.5 | AE207: Alpha 5 J | AF207: =$AF$205*$AG$207 / 5 -> 420 | AG207: 0.025
O208: TER Afonds | AE208: Beta p.a. | AF208: =12*Sparratemtl*($AG$208-$AI$208) -> 96 | AG208: =IF(KorrektoderAepfel_Birnen,5.5%, 10%) -> 0.055 | AH208: Überschuss Beta | AI208: 0.015 | AJ208: (NT: 10%, bAV Tarif: 5,5%)
O209: 0.016 | AE209: Gamma p.a. | AF209: =$AG$209-$AI$209 -> 0.0023 | AG209: =0.55% -> 0.0055 | AH209: Überschuss G | AI209: 0.0032 | AJ209: Mindestens | AK209: 36
N210: ETF | O210: ETF / Fonds | Q210: ETF Honorar | AE210: Ri-Kosten | AF210: =$AG$210 -> 0 | AG210: 0
C211: ETF Zuwachs: Divid.-Anteil | E211: 0.4 | M211: Kosten p.a. | N211: 0.0025 | O211: =$O$207*TERAktiverFonds+ (1-$O$207)*TER_ETF -> 0.00925 | AE211: LV bis RS | AF211: LV ab RS
C212: RS ETF Freistellungsanteil | E212: 0.3 | F212: (noch unverwendet; nur für spätere Szenarios, um zu zeigen, was passiert, wenn sich das verändert | M212: Honorar ETF | N212: =$Q$212*(1+Tabelle15!$B$225) -> 0.00595 | O212: =$Q$212*(1+Tabelle15!$B$225) -> 0.00595 | Q212: =ETFHonorar -> 0,5% | AC212: ègewichtete Rendite p.a. bis / im Ruhestand | AE212: =AnteilAbisRS*RendpaA+(1-AnteilAbisRS)*RendpaR -> 0.0525 | AF212: =AnteilAimRS*RendpaA+(1-AnteilAimRS)*RendpaR -> 0.042
C213: Korrekter Vergl. Oder Äpfel mit Birnen | E213: =IF(LEFT(Einstellungen!F19,2)="JA",TRUE,FALSE) -> TRUE | M213: Summe Kost p.a. | N213: =TER_ETF+$N$212 -> 0.00845 | O213: =$O$211+$O$212 -> 0.0152 | V213: Zeile 224 bis hier geprüft | AD213: Fondskosten p.a. | AE213: =TER_ETF -> 0.0025 | AF213: =$O$207*MIN(TERAktiverFonds*(1-RabattCleanShare),$AK$213)+ (1-$O$207)*TER_ETF -> 0.00565 | AH213: Rabatt | AI213: 0.45 | AJ213: Maximalpreis aber: | AK213: 0.009
M214: Nettorend p.a. | N214: =(RendpaA-$N$213) -> 0.05155 | O214: =(RendpaA-$O$213) -> 0.0448 | AD214: Nettorend p.a. | AE214: =(RendbisRS-$AE$213) -> 0.05 | AF214: =(RendimRS-$AF$213) -> 0.03635
X215: Kaufkosten | Y215: Kaufkosten | AD215: Kappa (Stückkosten) | AE215: 0 | AF215: 7.5
M216: Comdirektkosten (eigentlich höher, da mind. 9,90 €), kann aber auch weniger werden, wenn nur ein statt 2 Fonds (Mischfonds), dann aber geringere Teilfreistellung | X216: 2.5 | Y216: 0.985 | Z216: 0,25% + 4,90 + aber mind. 9,90 €, 2,50 Börsenentgelt. Sparpläne aber ohne die 4,90 nur 1,5% bei Kauf.
B217: Brutto, allgemein | X217: oder: 2,50 € | Y217: 0.985 | Z217: Sparplan
N218: Umischten am 1.1. | R218: Inkl. ETF Gebühren Comdirectbank | W218: Ann.: Kein Zuwachs bei Renten, nur Zins | Z218: Entn. Am Ende des Jahres | AH218: Entn. Wie bei ETF am Ende des Jahres
J219: =COUNTIF(J224:J329,">=1") -> 18 | R219: ETF | AE219: LV
F220: Rendite | G220: Rendite A | H220: vorschüssig | J220: Um- | L220: Entnahme | M220: EW JE n. Kost | N220: Div | O220: Aktienanteil | Q220: EW Aktien | R220: Zufluss | T220: 1-Entnahme | U220: ca A-Quote | V220: VK A bei | W220: Rentenanteil | AB220: Noch zu | AC220: St Umsch und | AD220: EW Summe | AG220: Sparrate | AH220: Entnahme | AI220: Vorh. EW nach
D221: Sparen | E221: Anteil | F221: gewicht. | G221: nach Kost | H221: Verzinsung | I221: Brutto | J221: schich- | K221: Entnahme | L221: inkl. Kosten | M221: nur Zuwachs | N221: am Ende | P221: Sparrate A | Q221: inkl. Net-Div n | R221: durch Div | S221: BS A JE | T221: Anteil an | U221: am Ende | V221: Umschicht wg | W221: Wert | X221: Zins | Y221: Steuer | Z221: EW | AB221: verst, Gewinn | AC221: Entn. Nur A. JE | AD221: über | AF221: Kosten | AG221: nach | AH221: mtl. inkl. | AI221: Kosten und | AJ221: BS für Steuer | AK221: Gewinn, theror. | AM221: Alter | AT221: PRV
C222: Startwert | D222: mtl. | E222: Aktien | F222: p.a. | H222: Sparrate | I222: Endwert | J222: ten? | K222: mtl. (+) | M222: (mtl. Zinsverr.) | N222: des Jahres | O222: Steuer Div | P222: n Kost | Q222: Kost u Entn. | R222: u. Sparrate | S222: komplett | T222: A-Verm | U222: d. Jahres | V222: AQuote am 1.1. | W222: Rentenanteil | X222: in dem Jahr | Y222: Rentenanteil | Z222: Renten | AB222: bei 100% Verk. | AC222: fällig erst 1.1. | AD222: alles | AE222: BW | AF222: in dem Jahr | AG222: Stückkosten | AH222: Kosten | AI222: Entnahme | AK222: 100 % Veräußerung | AL222: Steuer | AT222: BW | AU222: EW
J223: 0 | K223: 0 | L223: 0 | M223: 0 | Q223: 0 | S223: 0 | U223: =AnteilAbisRS -> 0.75 | V223: 0 | W223: 0 | Z223: 0 | AC223: 0 | AD223: =Q223+Z223 -> 0 | AI223: 0 | AJ223: 0 | AL223: Entnahme | AW223: =$B223 -> 0
B224: =AlterA -> 18 | C224: 0 | D224: =IF($B224<RSA,Sparratemtl,0) -> 200 | E224: =IF($B224<RSA,AnteilAbisRS,AnteilAimRS) -> 0.75 | F224: =$E224*RendpaA+(1-$E224)*RendpaR -> 0.0525 | G224: =IF(B224<RSA,RendbisRSnKost,RendimRSnKost) -> 0.05155 | H224: =FV((1+$F224)^(1/12)-1,12,-$D224,0,1) -> 2467.716487 | I224: =$C224*(1+$F224)+$H224 -> 2467.716487 | J224: 0 | K224: =IF($B224>=RSA,Entnahmemtl,0) -> 0 | L224: =IF($K224>2*ComDiKauffix, ($K224+ComDiKauffix)/ComDiKaufProz,0) -> 0 | M224: =FV((1+$G224*(1-ETFAnteilDiv))^(1/12)-1,12,-$P224,-$Q223+$V224+$AC223,1) -> 1772.065889 | N224: =$M224*ETFAnteilDiv*RendpaA -> 42.52958133 | O224: =(1-ETFAFreistell)*$N224*AbgStSatz -> 7.852023953 | P224: =MAX($D224*$E224*ComDiKaufProz-ComDiKauffix,0) -> 145.25 | Q224: =MAX(-12*Entnahmemtl,$M224+$N224-$O224-12*$L224*$E224) -> 1806.743446 | R224: =MAX(0,12*$P224+$N224-$O224) -> 1777.677557 | S224: =IF($Q224<0,0,IF($J224=1,($Q223-$V224-$AC223+$R224)*$T224, ($S223+$R224-$AC223)*$T224)) -> 1777.677557 | T224: =MIN(1,MAX(0,1-12*$L224*$E224/$Q224)) -> 1 | U224: =AnteilAbisRS -> 0.75 | V224: =$J224*MAX($U223-$E224,0)*$AD223 -> 0 | W224: =($Z223+$V224+12*MAX($D224*(1-$E224)*ComDiKaufProz-ComDiKauffix,0))*(1-IF($B224<RSA,$N$213,$O$213)) -> 556.25955 | X224: =$W224*RendpaR -> 16.6877865 | Y224: =$X224*AbgStSatz -> 4.401403689 | Z224: =MAX(-12*Entnahmemtl,$W224+$X224-$Y224-12*$L224*(1-$U223)) -> 568.5459328 | AB224: =MAX($Q224-$S224,0) -> 29.06588878 | AC224: =IF($J224=1,$AB223,12*$L224*$E224/$Q224)*AbgStSatz*(1-ETFAFreistell) -> 0 | AD224: =MAX(-12*Entnahmemtl,$Q224+$Z224-$AC224) -> 2375.289379 | AE224: =0 -> 0 | AF224: =IF(B224<AlterA+5,Alpha5J,0)+Betapa+MAX(Gammapa*$AI223,GammapaMin) -> 552 | AG224: =IF(B224<RSA,$D224-LVStückKostbisRS,0) -> 200 | AH224: =IF($K224> 0,$K224+LVStückKostabRS,0) -> 0 | AI224: =MAX(-12*Entnahmemtl,FV((1+IF($B224<RSA,LVNettoRendbisRS,LVNettoRendimRS))^(1/12)-1,12,-$AG224,-$AE224+$AF224/2+12*$AH224/2,1)-$AF224/2-12*$AH224/2) -> 1898.715506 | AJ224: =MAX(0,($AJ223+12*$D224)*(1-12*$AH224/$AI224)) -> 2400 | AK224: =($AI224-$AJ224) -> -501.2844941 | AL224: 0 | AM224: =B224 -> 18 | AT224: =0 -> 0 | AU224: =FV((1+$F224+$AT$199)^(1/12)-1,12,-$D224,-$BS224,1) -> 2467.716487 | AW224: 18
B225: =B224+1 -> 19 | C225: =$I224 -> 2467.716487 | D225: 200 | E225: 0.75 | F225: 0.0525 | G225: 0.05155 | H225: 2467.716487 | I225: 5064.98809 | J225: 0 | K225: 0 | L225: 0 | M225: 3634.69191 | N225: 87.23260583 | O225: 16.10531985 | P225: 145.25 | Q225: 3705.819196 | R225: 1814.127286 | S225: =IF($Q225<0,0,IF($J225=1,($Q224-$V225-$AC224+$R225)*$T225, ($S224+$R225-$AC224)*$T225)) -> 3591.804843 | T225: 1 | U225: =MIN(100%,($Q224+$R224)*(1+$G225*(1-ETFAnteilDiv))/($Q224+$Z224+12*$D225)) -> 0.773835228 | V225: =$J225*MAX($U224-$E225,0)*$AD224 -> 0 | W225: 1120.00127 | X225: 33.60003809 | Y225: 8.862010046 | Z225: 1144.739298 | AB225: 114.0143523 | AC225: 0 | AD225: 4850.558493 | AE225: =MAX(0,$AI224-$AL224) -> 1898.715506 | AF225: 552 | AG225: 200 | AH225: 0 | AI225: 3892.366787 | AJ225: =MAX(0,($AJ224+12*$D225)*(1-12*$AH225/$AI225)) -> 4800 | AK225: -907.6332129 | AL225: =$AK224*50%*GStSatzRS*(12*$K225/$AI224) -> 0 | AM225: 19 | AT225: =$BT224 -> 0 | AU225: 2467.716487 | AW225: 19
B226: =B225+1 -> 20 | C226: 5064.98809 | D226: 200 | E226: 0.75 | F226: 0.0525 | G226: 0.05155 | H226: 2467.716487 | I226: 7798.616453 | J226: 1 | K226: 0 | L226: 0 | M226: 5473.315959 | N226: 131.359583 | O226: 24.25226301 | P226: 145.25 | Q226: 5580.423279 | R226: 1850.10732 | S226: 5440.312348 | T226: 1 | U226: 0.7848607016 | V226: 115.6141674 | W226: 1805.963028 | X226: 54.17889085 | Y226: 14.28968246 | Z226: 1845.852237 | AB226: 140.1109303 | AC226: 21.0498998 | AD226: 7405.225616 | AE226: =MAX(0,$AI225-$AL225) -> 3892.366787 | AF226: 552 | AG226: 200 | AH226: 0 | AI226: 5985.700632 | AJ226: 7200 | AK226: -1214.299368 | AL226: 0 | AM226: 20 | AT226: 0 | AU226: 2467.716487 | AW226: 20
B227: 21 | C227: 7798.616453 | D227: 200 | E227: 0.75 | F227: 0.0525 | G227: 0.05155 | H227: 2467.716487 | I227: 10675.7603 | J227: 0 | K227: 0 | L227: 0 | M227: 7503.390686 | N227: 180.0813765 | O227: 33.24752413 | P227: 145.25 | Q227: 7650.224538 | R227: 1889.833852 | S227: 7309.096301 | T227: 1 | U227: 0.779578885 | V227: 0 | W227: 2386.514335 | X227: 71.59543006 | Y227: 18.88329468 | Z227: 2439.226471 | AB227: 341.1282377 | AC227: 0 | AD227: 10089.45101 | AE227: 5985.700632 | AF227: 552 | AG227: 200 | AH227: 0 | AI227: 8183.70117 | AJ227: 9600 | AK227: -1416.29883 | AL227: 0 | AM227: 21 | AT227: 0 | AU227: 2467.716487 | AW227: 21
B228: 22 | C228: 10675.7603 | D228: 200 | E228: 0.75 | F228: 0.0525 | G228: 0.05155 | H228: 2467.716487 | I228: 13703.95421 | J228: 0 | K228: 0 | L228: 0 | M228: 9658.911872 | N228: 231.8138849 | O228: 42.79863851 | P228: 145.25 | Q228: 9847.927119 | R228: 1932.015246 | S228: 9241.111547 | T228: 1 | U228: 0.7874751572 | V228: 0 | W228: 2974.874557 | X228: 89.24623671 | Y228: 23.53869493 | Z228: 3040.582099 | AB228: 606.8155714 | AC228: 0 | AD228: 12888.50922 | AE228: 8183.70117 | AF228: 552 | AG228: 200 | AH228: 0 | AI228: 10491.60173 | AJ228: 12000 | AK228: -1508.398266 | AL228: 0 | AM228: 22 | AT228: 0 | AU228: 2467.716487 | AW228: 22
B229: 23 | C229: 13703.95421 | D229: 200 | E229: 0.75 | F229: 0.0525 | G229: 0.05155 | H229: 2467.716487 | I229: 16891.12829 | J229: 0 | K229: 0 | L229: 0 | M229: 11924.58939 | N229: 286.1901454 | O229: 52.8378556 | P229: 145.25 | Q229: 12157.94168 | R229: 1976.35229 | S229: 11217.46384 | T229: 1 | U229: 0.7943414109 | V229: 0 | W229: 3571.14873 | X229: 107.1344619 | Y229: 28.25671433 | Z229: 3650.026478 | AB229: 940.477846 | AC229: 0 | AD229: 15807.96816 | AE229: 10491.60173 | AF229: 132 | AG229: 200 | AH229: 0 | AI229: 13345.39733 | AJ229: 14400 | AK229: -1054.602673 | AL229: 0 | AM229: 23 | AT229: 0 | AU229: 2467.716487 | AW229: 23
B230: 24 | C230: 16891.12829 | D230: 200 | E230: 0.75 | F230: 0.0525 | G230: 0.05155 | H230: 2467.716487 | I230: 20245.62901 | J230: 0 | K230: 0 | L230: 0 | M230: 14306.05271 | N230: 343.345265 | O230: 63.39011955 | P230: 145.25 | Q230: 14586.00785 | R230: 2022.955145 | S230: 13240.41898 | T230: 1 | U230: 0.8002797213 | V230: 0 | W230: 4175.443304 | X230: 125.2632991 | Y230: 33.03819514 | Z230: 4267.668408 | AB230: 1345.588871 | AC230: 0 | AD230: 18853.67626 | AE230: 13345.39733 | AF230: 132 | AG230: 200 | AH230: 0 | AI230: 16341.8827 | AJ230: 16800 | AK230: -458.1173007 | AL230: 0 | AM230: 24 | AT230: 0 | AU230: 2467.716487 | AW230: 24
B231: 25 | C231: 20245.62901 | D231: 200 | E231: 0.75 | F231: 0.0525 | G231: 0.05155 | H231: 2467.716487 | I231: 23776.24102 | J231: 1 | K231: 0 | L231: 0 | M231: 15831.94105 | N231: 379.9665852 | O231: 70.15133079 | P231: 145.25 | Q231: 16141.7563 | R231: 2052.815254 | S231: 15690.86552 | T231: 1 | U231: 0.8056337179 | V231: 947.9575883 | W231: 5727.813507 | X231: 171.8344052 | Y231: 45.32132437 | Z231: 5854.326587 | AB231: 450.8907835 | AC231: 248.4293453 | AD231: 21747.65355 | AE231: 16341.8827 | AF231: 133.5863302 | AG231: 200 | AH231: 0 | AI231: 19486.56635 | AJ231: 19200 | AK231: 286.5663517 | AL231: 0 | AM231: 25 | AT231: 0 | AU231: 2467.716487 | AW231: 25
B232: 26 | C232: 23776.24102 | D232: 200 | E232: 0.75 | F232: 0.0525 | G232: 0.05155 | H232: 2467.716487 | I232: 27492.21017 | J232: 0 | K232: 0 | L232: 0 | M232: 18156.97345 | N232: 435.7673628 | O232: 80.45354935 | P232: 145.25 | Q232: 18512.28726 | R232: 2098.313813 | S232: 17540.74999 | T232: 1 | U232: 0.7688664504 | V232: =$J232*MAX($U231-$E232,0)*$AD231 -> 0 | W232: 6361.117078 | X232: 190.8335123 | Y232: 50.33233888 | Z232: 6501.618251 | AB232: 971.5372751 | AC232: 0 | AD232: 25013.90551 | AE232: 19486.56635 | AF232: 140.8191026 | AG232: 200 | AH232: 0 | AI232: 22781.0706 | AJ232: 21600 | AK232: 1181.070595 | AL232: 0 | AM232: 26 | AT232: 0 | AU232: 2467.716487 | AW232: 26
B233: 27 | C233: 27492.21017 | D233: 200 | E233: 0.75 | F233: 0.0525 | G233: 0.05155 | H233: 2467.716487 | I233: 31403.26769 | J233: 0 | K233: 0 | L233: 0 | M233: 20856.9382 | N233: 500.5665167 | O233: 92.41709315 | P233: 145.25 | Q233: 21265.08762 | R233: 2151.149424 | S233: 19691.89941 | T233: 1 | U233: 0.7750842709 | V233: 0 | W233: 7002.939127 | X233: 210.0881738 | Y233: 55.41075584 | Z233: 7157.616545 | AB233: 1573.188209 | AC233: 0 | AD233: 28422.70417 | AE233: 22781.0706 | AF233: 148.3964624 | AG233: 200 | AH233: 0 | AI233: 26232.53326 | AJ233: 24000 | AK233: 2232.533257 | AL233: 0 | AM233: 27 | AT233: 0 | AU233: 2467.716487 | AW233: 27
B234: 28 | C234: 31403.26769 | D234: 200 | E234: 0.75 | F234: 0.0525 | G234: 0.05155 | H234: 2467.716487 | I234: 35519.65573 | J234: 0 | K234: 0 | L234: 0 | M234: 23694.88267 | N234: 568.6771841 | O234: 104.9920251 | P234: 145.25 | Q234: 24158.56783 | R234: 2206.685159 | S234: 21898.58457 | T234: 1 | U234: 0.78320517 | V234: 0 | W234: 7653.394235 | X234: 229.6018271 | Y234: 60.55748189 | Z234: 7822.43858 | AB234: 2259.983258 | AC234: 0 | AD234: 31981.00641 | AE234: 26232.53326 | AF234: 156.3348265 | AG234: 200 | AH234: 0 | AI234: 29848.43223 | AJ234: 26400 | AK234: 3448.432228 | AL234: 0 | AM234: 28 | AT234: 0 | AU234: 2467.716487 | AW234: 28
B235: 29 | C235: 35519.65573 | D235: 200 | E235: 0.75 | F235: 0.0525 | G235: 0.05155 | H235: 2467.716487 | I235: 39852.15414 | J235: 0 | K235: 0 | L235: 0 | M235: 26677.85822 | N235: 640.2685973 | O235: 118.2095898 | P235: 145.25 | Q235: 27199.91723 | R235: 2265.059008 | S235: 24163.64358 | T235: 1 | U235: 0.7905740146 | V235: 0 | W235: 8312.598524 | X235: 249.3779557 | Y235: 65.77343582 | Z235: 8496.203044 | AB235: 3036.273649 | AC235: 0 | AD235: 35696.12027 | AE235: 29848.43223 | AF235: 164.6513941 | AG235: 200 | AH235: 0 | AI235: 33636.60167 | AJ235: 28800 | AK235: 4836.601667 | AL235: 0 | AM235: 29 | AT235: 0 | AU235: 2467.716487 | AW235: 29
B236: 30 | C236: 39852.15414 | D236: 200 | E236: 0.75 | F236: 0.0525 | G236: 0.05155 | H236: 2467.716487 | I236: 44412.10872 | J236: 1 | K236: 0 | L236: 0 | M236: 28320.14465 | N236: 679.6834717 | O236: 125.486561 | P236: 145.25 | Q236: 28874.34156 | R236: 2297.196911 | S236: 28048.77923 | T236: 1 | U236: 0.7973601441 | V236: 1448.334905 | W236: 10416.76615 | X236: 312.5029846 | Y236: 82.42266219 | Z236: 10646.84648 | AB236: 825.56233 | AC236: 560.5720225 | AD236: 38960.61602 | AE236: 33636.60167 | AF236: 173.3641838 | AG236: 200 | AH236: 0 | AI236: 37605.24897 | AJ236: 31200 | AK236: 6405.248968 | AL236: 0 | AM236: 30 | AT236: 0 | AU236: 2467.716487 | AW236: 30
B237: 31 | C237: 44412.10872 | D237: 200 | E237: 0.75 | F237: 0.0525 | G237: 0.05155 | H237: 2467.716487 | I237: 49211.46092 | J237: 0 | K237: 0 | L237: 0 | M237: 30961.58032 | N237: 743.0779277 | O237: 137.1907624 | P237: 145.25 | Q237: 31567.46749 | R237: 2348.887165 | S237: 29837.09438 | T237: 1 | U237: 0.7665735553 | V237: 0 | W237: 11113.14017 | X237: 333.3942052 | Y237: 87.93272162 | Z237: 11358.60166 | AB237: 1730.373111 | AC237: 0 | AD237: 42926.06914 | AE237: 37605.24897 | AF237: 182.4920726 | AG237: 200 | AH237: 0 | AI237: 41762.97255 | AJ237: 33600 | AK237: 8162.972547 | AL237: 0 | AM237: 31 | AT237: 0 | AU237: 2467.716487 | AW237: 31
B238: 32 | C238: 49211.46092 | D238: 200 | E238: 0.75 | F238: 0.0525 | G238: 0.05155 | H238: 2467.716487 | I238: 54262.7791 | J238: 0 | K238: 0 | L238: 0 | M238: 34315.91514 | N238: 823.5819635 | O238: 152.05382 | P238: 145.25 | Q238: 34987.44329 | R238: 2414.528143 | S238: 32251.62252 | T238: 1 | U238: 0.7714189243 | V238: 0 | W238: 11818.88102 | X238: 354.5664307 | Y238: 93.51689609 | Z238: 12079.93056 | AB238: 2735.820769 | AC238: 0 | AD238: 47067.37385 | AE238: 41762.97255 | AF238: 192.0548369 | AG238: 200 | AH238: 0 | AI238: 46118.78047 | AJ238: 36000 | AK238: 10118.78047 | AL238: 0 | AM238: 32 | AT238: 0 | AU238: 2467.716487 | AW238: 32
B239: 33 | C239: 54262.7791 | D239: 200 | E239: 0.75 | F239: 0.0525 | G239: 0.05155 | H239: 2467.716487 | I239: 59579.29149 | J239: 0 | K239: 0 | L239: 0 | M239: 37841.6708 | N239: 908.2000992 | O239: 167.6764433 | P239: 145.25 | Q239: 38582.19445 | R239: 2483.523656 | S239: 34735.14618 | T239: 1 | U239: 0.7794797138 | V239: 0 | W239: 12534.11469 | X239: 376.0234408 | Y239: 99.17618252 | Z239: 12810.96195 | AB239: 3847.048279 | AC239: 0 | AD239: 51393.15641 | AE239: 46118.78047 | AF239: 202.0731951 | AG239: 200 | AH239: 0 | AI239: 50682.10998 | AJ239: 38400 | AK239: 12282.10998 | AL239: 0 | AM239: 33 | AT239: 0 | AU239: 2467.716487 | AW239: 33
B240: 34 | C240: 59579.29149 | D240: 200 | E240: 0.75 | F240: 0.0525 | G240: 0.05155 | H240: 2467.716487 | I240: 65174.92078 | J240: 0 | K240: 0 | L240: 0 | M240: 41547.60762 | N240: 997.1425828 | O240: 184.0974494 | P240: 145.25 | Q240: 42360.65275 | R240: 2556.045133 | S240: 37291.19131 | T240: 1 | U240: 0.7870123934 | V240: 0 | W240: 13258.96887 | X240: 397.7690662 | Y240: 104.9115912 | Z240: 13551.82635 | AB240: 5069.461442 | AC240: 0 | AD240: 55912.4791 | AE240: 50682.10998 | AF240: 212.5688529 | AG240: 200 | AH240: 0 | AI240: 55462.84791 | AJ240: 40800 | AK240: 14662.84791 | AL240: 0 | AM240: 34 | AT240: 0 | AU240: 2467.716487 | AW240: 34
B241: 35 | C241: 65174.92078 | D241: 200 | E241: 0.75 | F241: 0.0525 | G241: 0.05155 | H241: 2467.716487 | I241: 71064.32061 | J241: 1 | K241: 0 | L241: 0 | M241: 43309.47072 | N241: 1039.427297 | O241: 191.9042648 | P241: 145.25 | Q241: 44156.99376 | R241: 2590.523033 | S241: 42881.72111 | T241: 1 | U241: 0.7941005436 | V241: 2069.454672 | W241: 16045.54075 | X241: 481.3662224 | Y241: 126.9603411 | Z241: 16399.94663 | AB241: 1275.272645 | AC241: 935.9493187 | AD241: 59620.99107 | AE241: 55462.84791 | AF241: 223.5645502 | AG241: 200 | AH241: 0 | AI241: 60471.35215 | AJ241: 43200 | AK241: 17271.35215 | AL241: 0 | AM241: 35 | AT241: 0 | AU241: 2467.716487 | AW241: 35
B242: 36 | C242: 71064.32061 | D242: 200 | E242: 0.75 | F242: 0.0525 | G242: 0.05155 | H242: 2467.716487 | I242: 77262.91393 | J242: 0 | K242: 0 | L242: 0 | M242: 46329.93723 | N242: 1111.918494 | O242: 205.2879519 | P242: 145.25 | Q242: 47236.56777 | R242: 2649.630542 | S242: 44595.40233 | T242: 1 | U242: 0.7654980879 | V242: 0 | W242: 16817.62663 | X242: 504.5287988 | Y242: 133.0694707 | Z242: 17189.08596 | AB242: 2641.165439 | AC242: 0 | AD242: 64425.65373 | AE242: 60471.35215 | AF242: 235.0841099 | AG242: 200 | AH242: 0 | AI242: 65718.47405 | AJ242: 45600 | AK242: 20118.47405 | AL242: 0 | AM242: 36 | AT242: 0 | AU242: 2467.716487 | AW242: 36
B243: 37 | C243: 77262.91393 | D243: 200 | E243: 0.75 | F243: 0.0525 | G243: 0.05155 | H243: 2467.716487 | I243: 83786.9334 | J243: 0 | K243: 0 | L243: 0 | M243: 50469.6607 | N243: 1211.271857 | O243: 223.6310666 | P243: 145.25 | Q243: 51457.30149 | R243: 2730.64079 | S243: 47326.04312 | T243: 1 | U243: 0.7696023242 | V243: 0 | W243: 17600.09773 | X243: 528.0029319 | Y243: 139.2607733 | Z243: 17988.83989 | AB243: 4131.258369 | AC243: 0 | AD243: 69446.14138 | AE243: 65718.47405 | AF243: 247.1524903 | AG243: 200 | AH243: 0 | AI243: 71215.58195 | AJ243: 48000 | AK243: 23215.58195 | AL243: 0 | AM243: 37 | AT243: 0 | AU243: 2467.716487 | AW243: 37
B244: 38 | C244: 83786.9334 | D244: 200 | E244: 0.75 | F244: 0.0525 | G244: 0.05155 | H244: 2467.716487 | I244: 90653.46389 | J244: 0 | K244: 0 | L244: 0 | M244: 54820.94172 | N244: 1315.702601 | O244: 242.9115927 | P244: 145.25 | Q244: 55893.73273 | R244: 2815.791008 | S244: 50141.83413 | T244: 1 | U244: 0.7775501128 | V244: 0 | W244: 18393.09374 | X244: 551.7928122 | Y244: 145.5353542 | Z244: 18799.3512 | AB244: 5751.898593 | AC244: 0 | AD244: 74693.08393 | AE244: 71215.58195 | AF244: 259.7958385 | AG244: 200 | AH244: 0 | AI244: 76974.58582 | AJ244: 50400 | AK244: 26574.58582 | AL244: 0 | AM244: 38 | AT244: 0 | AU244: 2467.716487 | AW244: 38
B245: 39 | C245: 90653.46389 | D245: 200 | E245: 0.75 | F245: 0.0525 | G245: 0.05155 | H245: 2467.716487 | I245: 97880.48723 | J245: 0 | K245: 0 | L245: 0 | M245: 59394.59177 | N245: 1425.470202 | O245: 263.1774361 | P245: 145.25 | Q245: 60556.88453 | R245: 2905.292766 | S245: 53047.1269 | T245: 1 | U245: 0.7850951891 | V245: 0 | W245: 19196.75623 | X245: 575.9026869 | Y245: 151.8943337 | Z245: 19620.76458 | AB245: 7509.757635 | AC245: 0 | AD245: 80177.64912 | AE245: 76974.58582 | AF245: 273.0415474 | AG245: 200 | AH245: 0 | AI245: 83007.96303 | AJ245: 52800 | AK245: 30207.96303 | AL245: 0 | AM245: 39 | AT245: 0 | AU245: 2467.716487 | AW245: 39
B246: 40 | C246: 97880.48723 | D246: 200 | E246: 0.75 | F246: 0.0525 | G246: 0.05155 | H246: 2467.716487 | I246: 105486.9293 | J246: 1 | K246: 0 | L246: 0 | M246: 61301.09273 | N246: 1471.226226 | O246: 271.6251419 | P246: 145.25 | Q246: 62500.69381 | R246: 2942.601084 | S246: 60685.63586 | T246: 1 | U246: 0.7922853598 | V246: 2813.849758 | W246: 22801.3014 | X246: 684.0390421 | Y246: 180.4152973 | Z246: 23304.92515 | AB246: 1815.057954 | AC246: 1386.489003 | AD246: 84419.12996 | AE246: 83007.96303 | AF246: 286.918315 | AG246: 200 | AH246: 0 | AI246: 89328.78542 | AJ246: 55200 | AK246: 34128.78542 | AL246: 0 | AM246: 40 | AT246: 0 | AU246: 2467.716487 | AW246: 40
B247: 41 | C247: 105486.9293 | D247: 200 | E247: 0.75 | F247: 0.0525 | G247: 0.05155 | H247: 2467.716487 | I247: 113492.7096 | J247: 0 | K247: 0 | L247: 0 | M247: 64776.53305 | N247: 1554.636793 | O247: 287.024818 | P247: 145.25 | Q247: 66044.14503 | R247: 3010.611975 | S247: 62309.75883 | T247: 1 | U247: 0.7648884142 | V247: 0 | W247: 23664.25808 | X247: 709.9277424 | Y247: 187.2434421 | Z247: 24186.94238 | AB247: 3734.386198 | AC247: 0 | AD247: 90231.08741 | AE247: 89328.78542 | AF247: 301.4562065 | AG247: 200 | AH247: 0 | AI247: 95950.74758 | AJ247: 57600 | AK247: 38350.74758 | AL247: 0 | AM247: 41 | AT247: 0 | AU247: 2467.716487 | AW247: 41
B248: 42 | C248: 113492.7096 | D248: 200 | E248: 0.75 | F248: 0.0525 | G248: 0.05155 | H248: 2467.716487 | I248: 121918.7933 | J248: 0 | K248: 0 | L248: 0 | M248: 69858.95632 | N248: 1676.614952 | O248: 309.5450355 | P248: 145.25 | Q248: 71226.02624 | R248: 3110.069916 | S248: 65419.82875 | T248: 1 | U248: 0.7685391873 | V248: 0 | W248: 24538.82227 | X248: 736.164668 | Y248: 194.1634312 | Z248: 25080.8235 | AB248: 5806.197492 | AC248: 0 | AD248: 96306.84974 | AE248: 95950.74758 | AF248: 316.6867194 | AG248: 200 | AH248: 0 | AI248: 102888.1966 | AJ248: 60000 | AK248: 42888.19658 | AL248: 0 | AM248: 42 | AT248: 0 | AU248: 2467.716487 | AW248: 42
B249: 43 | C249: 121918.7933 | D249: 200 | E249: 0.75 | F249: 0.0525 | G249: 0.05155 | H249: 2467.716487 | I249: 130787.2465 | J249: 0 | K249: 0 | L249: 0 | M249: 75201.11312 | N249: 1804.826715 | O249: 333.2161322 | P249: 145.25 | Q249: 76672.7237 | R249: 3214.610583 | S249: 68634.43933 | T249: 1 | U249: 0.7763930448 | V249: 0 | W249: 25425.15009 | X249: 762.7545028 | Y249: 201.1765001 | Z249: 25986.7281 | AB249: 8038.284373 | AC249: 0 | AD249: 102659.4518 | AE249: 102888.1966 | AF249: 332.6428521 | AG249: 200 | AH249: 0 | AI249: 110156.163 | AJ249: 62400 | AK249: 47756.16299 | AL249: 0 | AM249: 43 | AT249: 0 | AU249: 2467.716487 | AW249: 43
B250: 44 | C250: 130787.2465 | D250: 200 | E250: 0.75 | F250: 0.0525 | G250: 0.05155 | H250: 2467.716487 | I250: 140121.2934 | J250: 0 | K250: 0 | L250: 0 | M250: 80816.27694 | N250: 1939.590646 | O250: 358.0969231 | P250: 145.25 | Q250: 82397.77066 | R250: 3324.493723 | S250: 71958.93305 | T250: 1 | U250: 0.7839204196 | V250: 0 | W250: 26323.3998 | X250: 789.7019939 | Y250: 208.2839009 | Z250: 26904.81789 | AB250: 10438.83761 | AC250: 0 | AD250: 109302.5885 | AE250: 110156.163 | AF250: 349.3591749 | AG250: 200 | AH250: 0 | AI250: 117770.3935 | AJ250: 64800 | AK250: 52970.39349 | AL250: 0 | AM250: 44 | AT250: 0 | AU250: 2467.716487 | AW250: 44
B251: 45 | C251: 140121.2934 | D251: 200 | E251: 0.75 | F251: 0.0525 | G251: 0.05155 | H251: 2467.716487 | I251: 149945.3778 | J251: 1 | K251: 0 | L251: 0 | M251: 82896.13418 | N251: 1989.50722 | O251: 367.3127706 | P251: 145.25 | Q251: 84518.32863 | R251: 3365.19445 | S251: 82055.37545 | T251: 1 | U251: 0.7911513526 | V251: 3707.589664 | W251: 30909.99226 | X251: 927.2997677 | Y251: 244.5753137 | Z251: 31592.71671 | AB251: 2462.953187 | AC251: 1927.270393 | AD251: 114183.775 | AE251: 117770.3935 | AF251: 366.871905 | AG251: 200 | AH251: 0 | AI251: 125747.385 | AJ251: 67200 | AK251: 58547.38497 | AL251: 0 | AM251: 45 | AT251: 0 | AU251: 2467.716487 | AV251: Korrekte Werte mit PP geprüft 100 €, | AW251: 45
B252: 46 | C252: 149945.3778 | D252: 200 | E252: 0.75 | F252: 0.0525 | G252: 0.05155 | H252: 2467.716487 | I252: 160285.2266 | J252: 0 | K252: 0 | L252: 0 | M252: 86917.66556 | N252: 2086.023973 | O252: 385.1321761 | P252: 145.25 | Q252: 88618.55736 | R252: 3443.891797 | S252: 83571.99685 | T252: 1 | U252: 0.7645005593 | V252: 0 | W252: 31882.01781 | X252: 956.4605342 | Y252: 252.2664659 | Z252: 32586.21187 | AB252: 5046.560507 | AC252: 0 | AD252: 121204.7692 | AE252: 125747.385 | AF252: 385.2189854 | AG252: 200 | AH252: 0 | AI252: 134104.4203 | AJ252: 69600 | AK252: 64504.42026 | AL252: 0 | AM252: 46 | AT252: 0 | AU252: 2467.716487 | AV252: nach exakt 360 Raten, 1 Monat nach letztem Sparen, brutto: 81,869,78 € | AW252: 46
B253: 47 | C253: 160285.2266 | D253: 200 | E253: 0.75 | F253: 0.0525 | G253: 0.05155 | H253: 2467.716487 | I253: 171167.9175 | J253: 0 | K253: 0 | L253: 0 | M253: 93131.59523 | N253: 2235.158285 | O253: 412.6660984 | P253: 145.25 | Q253: 94954.08741 | R253: 3565.492187 | S253: 87137.48904 | T253: 1 | U253: 0.7678501509 | V253: 0 | W253: 32867.11793 | X253: 986.013538 | Y253: 260.0610706 | Z253: 33593.0704 | AB253: 7816.598375 | AC253: 0 | AD253: 128547.1578 | AE253: 134104.4203 | AF253: 404.4401666 | AG253: 200 | AH253: 0 | AI253: 142859.6056 | AJ253: 72000 | AK253: 70859.60561 | AL253: 0 | AM253: 47 | AT253: 0 | AU253: 2467.716487 | AV253: ETF (-0,2%): 79030,63, | AW253: 47
B254: 48 | C254: 171167.9175 | D254: 200 | E254: 0.75 | F254: 0.0525 | G254: 0.05155 | H254: 2467.716487 | I254: 182621.9496 | J254: 0 | K254: 0 | L254: 0 | M254: 99663.08322 | N254: 2391.913997 | O254: 441.6071218 | P254: 145.25 | Q254: 101613.3901 | R254: 3693.306876 | S254: 90830.79591 | T254: 1 | U254: 0.77563188 | V254: 0 | W254: 33865.46851 | X254: 1015.964055 | Y254: 267.9605196 | Z254: 34613.47204 | AB254: 10782.59419 | AC254: 0 | AD254: 136226.8621 | AE254: 142859.6056 | AF254: 424.5770929 | AG254: 200 | AH254: 0 | AI254: 152031.9099 | AJ254: 74400 | AK254: 77631.90988 | AL254: 0 | AM254: 48 | AV254: ETF nach fiktiver Voll-Steuer : 67.310,84 € (noch mal mit PP prüfen, welcher Zins das ist) | AW254: 48
B255: 49 | C255: 182621.9496 | D255: 200 | E255: 0.75 | F255: 0.0525 | G255: 0.05155 | H255: 2467.716487 | I255: 194677.3185 | J255: 0 | K255: 0 | L255: 0 | M255: 106528.3581 | N255: 2556.680595 | O255: 472.0271549 | P255: 145.25 | Q255: 108613.0116 | R255: 3827.653441 | S255: 94658.44935 | T255: 1 | U255: 0.783137059 | V255: 0 | W255: 34877.24775 | X255: 1046.317433 | Y255: 275.9662228 | Z255: 35647.59896 | AB255: 13954.56223 | AC255: 0 | AD255: 144260.6105 | AE255: 152031.9099 | AF255: 445.6733927 | AG255: 200 | AH255: =IF($K255> 0,$K255+LVStückKostabRS,0) -> 0 | AI255: 161641.2057 | AJ255: 76800 | AK255: 84841.20565 | AL255: =$AK254*50%*GStSatzRS*(12*$K255/$AI254) -> 0 | AM255: 49 | AV255: PRV (-2%): 58014,03 | AW255: 49
B256: 50 | C256: 194677.3185 | D256: =IF($B256<RSA,Sparratemtl,0) -> 200 | E256: =IF($B256<RSA,AnteilAbisRS,AnteilAimRS) -> 0.75 | F256: =$E256*RendpaA+(1-$E256)*RendpaR -> 0.0525 | G256: =IF(B256<RSA,RendbisRSnKost,RendimRSnKost) -> 0.05155 | H256: 2467.716487 | I256: 207365.5942 | J256: 1 | K256: =IF($B256>=RSA,Entnahmemtl,0) -> 0 | L256: =IF($K256>2*ComDiKauffix, ($K256+ComDiKauffix)/ComDiKaufProz,0) -> 0 | M256: =FV((1+$G256*(1-ETFAnteilDiv))^(1/12)-1,12,-$P256,-$Q255+$V256+$AC255,1) -> 108816.2486 | N256: =$M256*ETFAnteilDiv*RendpaA -> 2611.589967 | O256: =(1-ETFAFreistell)*$N256*AbgStSatz -> 482.1647977 | P256: =MAX($D256*$E256*ComDiKaufProz-ComDiKauffix,0) -> 145.25 | Q256: =MAX(-12*Entnahmemtl,$M256+$N256-$O256-12*$L256*$E256) -> 110945.6738 | R256: 3872.42517 | S256: =IF($Q256<0,0,IF($J256=1,($Q255-$V256-$AC255+$R256)*$T256, ($S255+$R256-$AC255)*$T256)) -> 107705.0644 | T256: =MIN(1,MAX(0,1-12*$L256*$E256/$Q256)) -> 1 | U256: 0.7903857373 | V256: 4780.37236 | W256: =($Z255+$V256+12*MAX($D256*(1-$E256)*ComDiKaufProz-ComDiKauffix,0))*(1-IF($B256<RSA,$N$213,$O$213)) -> 40642.61452 | X256: =$W256*RendpaR -> 1219.278435 | Y256: =$X256*AbgStSatz -> 321.5846874 | Z256: =MAX(-12*Entnahmemtl,$W256+$X256-$Y256-12*$L256*(1-$U255)) -> 41540.30826 | AB256: 3240.60942 | AC256: =IF($J256=1,$AB255,12*$L256*$E256/$Q256)*AbgStSatz*(1-ETFAFreistell) -> 2576.361052 | AD256: =MAX(-12*Entnahmemtl,$Q256+$Z256-$AC256) -> 149909.621 | AE256: 161641.2057 | AF256: =IF(B256<AlterA+5,Alpha5J,0)+Betapa+MAX(Gammapa*$AI255,GammapaMin) -> 467.774773 | AG256: =IF(B256<RSA,$D256-LVStückKostbisRS,0) -> 200 | AH256: =IF($K256> 0,$K256+LVStückKostabRS,0) -> 0 | AI256: =MAX(-12*Entnahmemtl,FV((1+IF($B256<RSA,LVNettoRendbisRS,LVNettoRendimRS))^(1/12)-1,12,-$AG256,-$AE256+$AF256/2+12*$AH256/2,1)-$AF256/2-12*$AH256/2) -> 171708.3123 | AJ256: 79200 | AK256: 92508.3123 | AL256: 0 | AM256: 50 | AW256: 50
B257: 51 | C257: 207365.5942 | D257: 200 | E257: 0.75 | F257: 0.0525 | G257: 0.05155 | H257: 2467.716487 | I257: 220720.0044 | J257: 0 | K257: 0 | L257: 0 | M257: 113493.2415 | N257: 2723.837796 | O257: 502.8885531 | P257: 145.25 | Q257: 115714.1907 | R257: 3963.949243 | S257: =IF($Q257<0,0,IF($J257=1,($Q256-$V257-$AC256+$R257)*$T257, ($S256+$R257-$AC256)*$T257)) -> 109092.6526 | T257: =MIN(1,MAX(0,1-12*$L257*$E257/$Q257)) -> 1 | U257: =MIN(100%,($Q256+$R256)*(1+$G257*(1-ETFAnteilDiv))/($Q256+$Z256+12*$D257)) -> 0.7642358669 | V257: 0 | W257: 41745.55221 | X257: 1252.366566 | Y257: 330.3116818 | Z257: 42667.60709 | AB257: 6621.538153 | AC257: 0 | AD257: 158381.7978 | AE257: 171708.3123 | AF257: 490.9291183 | AG257: 200 | AH257: 0 | AI257: 182255.0411 | AJ257: 81600 | AK257: 100655.0411 | AL257: =$AK256*50%*GStSatzRS*(12*$K257/$AI256) -> 0 | AM257: 51 | AW257: 51
B258: 52 | C258: 220720.0044 | D258: 200 | E258: 0.75 | F258: 0.0525 | G258: 0.05155 | H258: 2467.716487 | I258: 234775.5211 | J258: 0 | K258: 0 | L258: 0 | M258: 121065.2965 | N258: 2905.567117 | O258: 536.440329 | P258: 145.25 | Q258: 123434.4233 | R258: 4112.126788 | S258: 113204.7794 | T258: 1 | U258: 0.7673740841 | V258: 0 | W258: 42863.32536 | X258: 1285.899761 | Y258: 339.1560619 | Z258: 43810.06906 | AB258: 10229.64396 | AC258: 0 | AD258: 167244.4924 | AE258: 182255.0411 | AF258: 515.1865945 | AG258: 200 | AH258: 0 | AI258: 193304.2424 | AJ258: 84000 | AK258: 109304.2424 | AL258: 0 | AM258: 52 | AW258: 52
B259: 53 | C259: 234775.5211 | D259: 200 | E259: 0.75 | F259: 0.0525 | G259: 0.05155 | H259: 2467.716487 | I259: 249568.9524 | J259: 0 | K259: 0 | L259: 0 | M259: 129024.3159 | N259: 3096.583582 | O259: 571.7067439 | P259: 145.25 | Q259: 131549.1928 | R259: 4267.876839 | S259: 117472.6562 | T259: 1 | U259: 0.7751007007 | V259: 0 | W259: 43996.13353 | X259: 1319.884006 | Y259: 348.1194065 | Z259: 44967.89813 | AB259: 14076.53656 | AC259: 0 | AD259: 176517.0909 | AE259: 193304.2424 | AF259: 540.5997575 | AG259: 200 | AH259: 0 | AI259: 204879.8552 | AJ259: 86400 | AK259: 118479.8552 | AL259: 0 | AM259: 53 | AW259: 53
B260: 54 | C260: 249568.9524 | D260: 200 | E260: 0.75 | F260: 0.0525 | G260: 0.05155 | H260: 2467.716487 | I260: 265139.0389 | J260: 0 | K260: 0 | L260: 0 | M260: 137390.0752 | N260: 3297.361805 | O260: 608.7754232 | P260: 145.25 | Q260: 140078.6616 | R260: 4431.586382 | S260: 121904.2426 | T260: 1 | U260: 0.7825853353 | V260: 0 | W260: 45144.17894 | X260: 1354.325368 | Y260: 357.2033158 | Z260: 46141.30099 | AB260: 18174.41898 | AC260: 0 | AD260: 186219.9626 | AE260: 204879.8552 | AF260: 567.2236671 | AG260: 200 | AH260: 0 | AI260: 217006.9593 | AJ260: 88800 | AK260: 128206.9593 | AL260: 0 | AM260: 54 | AW260: 54
B261: 55 | C261: 265139.0389 | D261: 200 | E261: 0.75 | F261: 0.0525 | G261: 0.05155 | H261: 2467.716487 | I261: 281526.5549 | J261: 1 | K261: 0 | L261: 0 | M261: 139927.6361 | N261: 3358.263266 | O261: 620.0193554 | P261: 145.25 | Q261: 142665.88 | R261: 4481.24391 | S261: 138491.8656 | T261: 1 | U261: 0.7898419017 | V261: 6068.039922 | W261: 52324.43153 | X261: 1569.732946 | Y261: 414.0170645 | Z261: 53480.14741 | AB261: 4174.014417 | AC261: 3355.452105 | AD261: 192790.5753 | AE261: 217006.9593 | AF261: 595.1160063 | AG261: 200 | AH261: 0 | AI261: 229711.8288 | AJ261: 91200 | AK261: 138511.8288 | AL261: 0 | AM261: 55 | AW261: 55
B262: 56 | C262: 281526.5549 | D262: 200 | E262: 0.75 | F262: 0.0525 | G262: 0.05155 | H262: 2467.716487 | I262: 298774.4156 | J262: 0 | K262: 0 | L262: 0 | M262: 145391.3653 | N262: 3489.392767 | O262: 644.2291397 | P262: 145.25 | Q262: 148236.5289 | R262: 4588.163628 | S262: 139724.5771 | T262: 1 | U262: 0.7640464351 | V262: 0 | W262: 53584.49972 | X262: 1607.534992 | Y262: 423.987354 | Z262: 54768.04736 | AB262: 8511.95184 | AC262: 0 | AD262: 203004.5763 | AE262: 229711.8288 | AF262: 624.3372063 | AG262: 200 | AH262: 0 | AI262: 243021.9901 | AJ262: 93600 | AK262: 149421.9901 | AL262: 0 | AM262: 56 | AW262: 56
B263: 57 | C263: 298774.4156 | D263: 200 | E263: 0.75 | F263: 0.0525 | G263: 0.05155 | H263: 2467.716487 | I263: 316927.7889 | J263: 0 | K263: 0 | L263: 0 | M263: 154593.5507 | N263: 3710.245216 | O263: 685.004023 | P263: 145.25 | Q263: 157618.7919 | R263: 4768.241193 | S263: 144492.8183 | T263: 1 | U263: 0.7670304292 | V263: 0 | W263: 54861.51691 | X263: 1645.845507 | Y263: 434.0917525 | Z263: 56073.27066 | AB263: 13125.97357 | AC263: 0 | AD263: 213692.0625 | AE263: 243021.9901 | AF263: 654.9505773 | AG263: 200 | AH263: 0 | AI263: 256966.2808 | AJ263: 96000 | AK263: 160966.2808 | AL263: 0 | AM263: 57 | AW263: 57
B264: 58 | C264: 316927.7889 | D264: 200 | E264: 0.75 | F264: 0.0525 | G264: 0.05155 | H264: 2467.716487 | I264: 336034.2143 | J264: 0 | K264: 0 | L264: 0 | M264: 164266.007 | N264: 3942.384167 | O264: 727.8626769 | P264: 145.25 | Q264: 167480.5285 | R264: 4957.52149 | S264: 149450.3398 | T264: 1 | U264: 0.7747145454 | V264: 0 | W264: 56155.71107 | X264: 1684.671332 | Y264: 444.3320639 | Z264: 57396.05034 | AB264: 18030.18869 | AC264: 0 | AD264: 224876.5788 | AE264: 256966.2808 | AF264: 687.0224458 | AG264: 200 | AH264: 0 | AI264: 271574.9123 | AJ264: 98400 | AK264: 173174.9123 | AL264: 0 | AM264: 58 | AW264: 58
B265: 59 | C265: 336034.2143 | D265: 200 | E265: 0.75 | F265: 0.0525 | G265: 0.05155 | H265: 2467.716487 | I265: 356143.727 | J265: 0 | K265: 0 | L265: 0 | M265: 174432.7671 | N265: 4186.38641 | O265: 772.911591 | P265: 145.25 | Q265: 177846.2419 | R265: 5156.474819 | S265: 154606.8146 | T265: 1 | U265: 0.7821816035 | V265: 0 | W265: 57467.31327 | X265: 1724.019398 | Y265: 454.7101162 | Z265: 58736.62255 | AB265: 23239.42732 | AC265: 0 | AD265: 236582.8645 | AE265: 271574.9123 | AF265: 720.6222984 | AG265: 200 | AH265: 0 | AI265: 286879.5356 | AJ265: 100800 | AK265: 186079.5356 | AL265: 0 | AM265: 59 | AW265: 59
B266: 60 | C266: 356143.727 | D266: 200 | E266: 0.75 | F266: 0.0525 | G266: 0.05155 | H266: 2467.716487 | I266: 377308.9892 | J266: 1 | K266: 0 | L266: 0 | M266: 177269.987 | N266: 4254.479688 | O266: 785.4833124 | P266: 145.25 | Q266: 180738.9834 | R266: 5211.996376 | S266: 175444.6224 | T266: 1 | U266: 0.789441499 | V266: 7613.61593 | W266: 66345.83851 | X266: 1990.375155 | Y266: 524.9614472 | Z266: 67811.25222 | AB266: 5294.36101 | AC266: 4290.57927 | AD266: 244259.6563 | AE266: 286879.5356 | AF266: 755.8229319 | AG266: 200 | AH266: 0 | AI266: 302913.3094 | AJ266: 103200 | AK266: 199713.3094 | AL266: =$AK265*50%*GStSatzRS*(12*$K266/$AI265) -> 0 | AM266: 60 | AW266: 60
B267: 61 | C267: 377308.9892 | D267: 200 | E267: 0.75 | F267: 0.0525 | G267: 0.05155 | H267: 2467.716487 | I267: 399585.4276 | J267: 0 | K267: 0 | L267: 0 | M267: 183678.0191 | N267: 4408.272459 | O267: 813.8773028 | P267: 145.25 | Q267: 187272.4143 | R267: 5337.395156 | S267: 176491.4382 | T267: 1 | U267: 0.7639062107 | V267: 0 | W267: 67794.50669 | X267: 2033.835201 | Y267: 536.4240342 | Z267: 69291.91786 | AB267: 10780.97604 | AC267: 0 | AD267: 256564.3321 | AE267: 302913.3094 | AF267: 792.7006116 | AG267: 200 | AH267: 0 | AI267: 319710.9722 | AJ267: 105600 | AK267: 214110.9722 | AL267: 0 | AM267: 61 | AW267: 61
B268: 62 | C268: 399585.4276 | D268: 200 | E268: 0.75 | F268: 0.0525 | G268: 0.05155 | H268: 2467.716487 | I268: 423031.379 | J268: 0 | K268: 0 | L268: 0 | M268: 194836.8159 | N268: 4676.083583 | O268: 863.3219315 | P268: 145.25 | Q268: 198649.5776 | R268: 5555.761651 | S268: 182047.1999 | T268: 1 | U268: 0.7667744403 | V268: 0 | W268: 69262.6607 | X268: 2077.879821 | Y268: 548.0408028 | Z268: 70792.49972 | AB268: 16602.3777 | AC268: 0 | AD268: 269442.0773 | AE268: 319710.9722 | AF268: 831.3352361 | AG268: 200 | AH268: 0 | AI268: 337308.9177 | AJ268: 108000 | AK268: 229308.9177 | AL268: 0 | AM268: 62 | AW268: 62
B269: 63 | C269: 423031.379 | D269: 200 | E269: 0.75 | F269: 0.0525 | G269: 0.05155 | H269: 2467.716487 | I269: 447708.2429 | J269: 0 | K269: 0 | L269: 0 | M269: 206565.8749 | N269: 4957.580998 | O269: 915.2933918 | P269: 145.25 | Q269: 210608.1625 | R269: 5785.287606 | S269: 187832.4875 | T269: 1 | U269: 0.7744254034 | V269: 0 | W269: 70750.56265 | X269: 2122.516879 | Y269: 559.8138269 | Z269: 72313.2657 | AB269: 22775.67502 | AC269: 0 | AD269: 282921.4282 | AE269: 337308.9177 | AF269: 871.8105108 | AG269: 200 | AH269: 0 | AI269: 355745.2734 | AJ269: 110400 | AK269: 245345.2734 | AL269: 0 | AM269: 63 | AW269: 63
B270: 64 | C270: 447708.2429 | D270: 200 | E270: 0.75 | F270: 0.0525 | G270: 0.05155 | H270: 2467.716487 | I270: 473680.6421 | J270: 0 | K270: 0 | L270: 0 | M270: 218894.3389 | N270: 5253.464133 | O270: 969.9208156 | P270: 145.25 | Q270: 223177.8822 | R270: 6026.543318 | S270: 193859.0308 | T270: 1 | U270: 0.7818778314 | V270: 0 | W270: 72258.47815 | X270: 2167.754345 | Y270: 571.7452084 | Z270: 73854.48729 | AB270: 29318.85138 | AC270: 0 | AD270: 297032.3695 | AE270: 355745.2734 | AF270: 914.2141287 | AG270: 200 | AH270: 0 | AI270: 375059.983 | AJ270: 112800 | AK270: 262259.983 | AL270: 0 | AM270: 64 | AW270: 64
B271: 65 | C271: 473680.6421 | D271: 0 | E271: 0.4 | F271: 0.042 | G271: 0.0448 | H271: 0 | I271: 493575.2291 | J271: 1 | K271: 500 | L271: 510.1522843 | M271: 112697.8261 | N271: 2704.747826 | O271: 499.3640674 | P271: 0 | Q271: 112454.4789 | R271: 2205.383759 | S271: 109515.3736 | T271: 0.9782246915 | U271: 0.7923898694 | V271: 113430.0771 | W271: 184437.839 | X271: 5533.135171 | Y271: 1459.364401 | Z271: 187176.3035 | AB271: 2939.105256 | AC271: 5412.992936 | AD271: 294217.7895 | AE271: 375059.983 | AF271: 958.637961 | AG271: 0 | AH271: 507.5 | AI271: 381516.6665 | AJ271: 110999.4181 | AK271: 270517.2484 | AL271: 419.548864 | AM271: 65
B272: 66 | C272: 493575.2291 | D272: 0 | E272: 0.4 | F272: 0.042 | G272: 0.0448 | H272: 0 | I272: 514305.3887 | J272: 0 | K272: 500 | L272: 510.1522843 | M272: 109918.7611 | N272: 2638.050266 | O272: 487.0500304 | P272: 0 | Q272: 109621.0304 | R272: 2151.000236 | S272: 103879.877 | T272: 0.9776618505 | U272: 0.3929566876 | V272: 0 | W272: 184331.2237 | X272: 5529.936711 | Y272: 1458.520808 | Z272: 187131.6862 | AB272: 5741.153342 | AC272: 0.004124180851 | AD272: 296752.7125 | AE272: 381097.1176 | AF272: 973.4883329 | AG272: 0 | AH272: 507.5 | AI272: 387758.1306 | AJ272: 109256.0982 | AK272: 278502.0324 | AL272: 425.4344915 | AM272: 66
B273: 67 | C273: 514305.3887 | D273: 0 | E273: 0.4 | F273: 0.042 | G273: 0.0448 | H273: 0 | I273: 535906.2151 | J273: 0 | K273: 500 | L273: 510.1522843 | M273: 112567.6394 | N273: 2701.623346 | O273: 498.7872103 | P273: 0 | Q273: 112321.7446 | R273: 2202.836136 | S273: 103769.9955 | T273: 0.978198959 | U273: 0.3867747669 | V273: 0 | W273: 184287.2846 | X273: 5528.618538 | Y273: 1458.173139 | Z273: 184641.5156 | AB273: 8551.749056 | AC273: 0.004025017203 | AD273: 296963.2562 | AE273: 387332.6961 | AF273: 987.8437004 | AG273: 0 | AH273: 507.5 | AI273: 394205.7561 | AJ273: 107568.2243 | AK273: 286637.5318 | AL273: 430.9418842 | AM273: 67
B274: 68 | C274: 535906.2151 | D274: 0 | E274: 0.4 | F274: 0.042 | G274: 0.0448 | H274: 0 | I274: 558414.2761 | J274: 0 | K274: 500 | L274: 510.1522843 | M274: 115340.949 | N274: 2768.182775 | O274: 511.0757448 | P274: 0 | Q274: 115149.325 | R274: 2257.10703 | S274: 103772.3581 | T274: 0.9787343003 | U274: 0.3960186906 | V274: 0 | W274: 181834.9646 | X274: 5455.048937 | Y274: 1438.769157 | Z274: 182097.1853 | AB274: 11376.96691 | AC274: 0.003926179804 | AD274: 297246.5064 | AE274: 393774.8142 | AF274: 1002.673239 | AG274: 0 | AH274: 507.5 | AI274: 400866.9461 | AJ274: 105934.0399 | AK274: 294932.9062 | AL274: 436.276022 | AM274: 68
B275: 69 | C275: 558414.2761 | D275: 0 | E275: 0.4 | F275: 0.042 | G275: 0.0448 | H275: 0 | I275: 581867.6757 | J275: 0 | K275: 500 | L275: 510.1522843 | M275: 118244.5348 | N275: 2837.868836 | O275: 523.9415339 | P275: 0 | Q275: 118109.7312 | R275: 2313.927302 | S275: 103886.8288 | T275: 0.9792673225 | U275: 0.4055970811 | V275: 0 | W275: 179329.3081 | X275: 5379.879243 | Y275: 1418.94315 | Z275: 179592.7748 | AB275: 14222.90236 | AC275: 0.003827770581 | AD275: 297702.5022 | AE275: 400430.6701 | AF275: 1017.993976 | AG275: 0 | AH275: 507.5 | AI275: 407749.1432 | AJ275: 104351.8458 | AK275: 303397.2974 | AL275: 441.442592 | AM275: 69
B276: 70 | C276: 581867.6757 | D276: 0 | E276: 0.4 | F276: 0.042 | G276: 0.0448 | H276: 0 | I276: 606306.1181 | J276: 1 | K276: 500 | L276: 510.1522843 | M276: 119573.4626 | N276: 2869.763102 | O276: 529.8300127 | P276: 0 | Q276: 119464.6647 | R276: 2339.933089 | S276: 116348.6288 | T276: 0.9795024665 | U276: 0.4153832901 | V276: 1666.265041 | W276: 178503.9025 | X276: 5355.117074 | Y276: 1412.412128 | Z276: 178807.7753 | AB276: 3116.035927 | AC276: 2625.903348 | AD276: 295646.5367 | AE276: 407307.7006 | AF276: 1033.823029 | AG276: 0 | AH276: 507.5 | AI276: 414860.037 | AJ276: 102819.9972 | AK276: 312040.0398 | AL276: 446.446992 | AM276: 70
B277: 71 | C277: 606306.1181 | D277: 0 | E277: 0.4 | F277: 0.042 | G277: 0.0448 | H277: 0 | I277: 631770.975 | J277: 0 | K277: 500 | L277: 510.1522843 | M277: 119979.3873 | N277: 2879.505294 | O277: 531.628665 | P277: 0 | Q277: 119878.5329 | R277: 2347.876629 | S277: 113699.6548 | T277: 0.9795732321 | U277: 0.4193438233 | V277: 0 | W277: 176089.8972 | X277: 5282.696915 | Y277: 1393.311311 | Z277: 176400.3602 | AB277: 6178.878112 | AC277: 0.003771292017 | AD277: 296278.8893 | AE277: 414413.59 | AF277: 1050.178085 | AG277: 0 | AH277: 507.5 | AI277: 422207.5732 | AJ277: 101336.9026 | AK277: 320870.6706 | AL277: 451.2944298 | AM277: 71
B278: 72 | C278: 631770.975 | D278: 0 | E278: 0.4 | F278: 0.042 | G278: 0.0448 | H278: 0 | I278: 658305.356 | J278: 0 | K278: 500 | L278: 510.1522843 | M278: 123100.864 | N278: 2954.420737 | O278: 545.4599285 | P278: 0 | Q278: 123061.0939 | R278: 2408.960808 | S278: 113798.2248 | T278: 0.9801015017 | U278: 0.4236273942 | V278: 0 | W278: 173719.0747 | X278: 5211.572241 | Y278: 1374.552178 | Z278: 174001.4178 | AB278: 9262.869025 | AC278: 0.003673760245 | AD278: 297062.508 | AE278: 421756.2788 | AF278: 1067.077418 | AG278: 0 | AH278: 507.5 | AI278: 429799.9622 | AJ278: 99901.0213 | AK278: 329898.9409 | AL278: 455.9899314 | AM278: 72
B279: 73 | C279: 658305.356 | D279: 0 | E279: 0.4 | F279: 0.042 | G279: 0.0448 | H279: 0 | I279: 685954.1809 | J279: 0 | K279: 500 | L279: 510.1522843 | M279: 126368.9723 | N279: 3032.855335 | O279: 559.9409163 | P279: 0 | Q279: 126393.1558 | R279: 2472.914419 | S279: 114018.5078 | T279: 0.9806260794 | U279: 0.4337224815 | V279: 0 | W279: 171356.5963 | X279: 5140.697889 | Y279: 1355.859068 | Z279: 171612.9815 | AB279: 12374.64791 | AC279: 0.003576910092 | AD279: 298006.1337 | AE279: 429343.9723 | AF279: 1084.539913 | AG279: 0 | AH279: 507.5 | AI279: 437645.6885 | AJ279: 98510.86201 | AK279: 339134.8265 | AL279: 460.538348 | AM279: 73
B280: 74 | C280: 685954.1809 | D280: 0 | E280: 0.4 | F280: 0.042 | G280: 0.0448 | H280: 0 | I280: 714764.2565 | J280: 0 | K280: 500 | L280: 510.1522843 | M280: 129790.6001 | N280: 3114.974403 | O280: 575.1021491 | P280: 0 | Q280: 129881.7414 | R280: 2539.872253 | S280: 114360.8382 | T280: 0.9811464572 | U280: 0.4440512244 | V280: 0 | W280: 169004.4642 | X280: 5070.133925 | Y280: 1337.247823 | Z280: 169270.697 | AB280: 15520.90322 | AC280: 0.003480835331 | AD280: 299152.435 | AE280: 437185.1501 | AF280: 1102.585084 | AG280: 0 | AH280: 507.5 | AI280: 445753.52 | AJ280: 97164.9811 | AK280: 348588.5389 | AL280: 464.9443631 | AM280: 74
B281: 75 | C281: 714764.2565 | D281: 0 | E281: 0.4 | F281: 0.042 | G281: 0.0448 | H281: 0 | I281: 744784.3553 | J281: 1 | K281: 500 | L281: 510.1522843 | M281: 119840.7025 | N281: 2876.17686 | O281: 531.0141528 | P281: 0 | Q281: 119737.1342 | R281: 2345.162707 | S281: 116614.2142 | T281: 0.97954911 | U281: 0.4545545653 | V281: 13178.03106 | W281: 179675.5074 | X281: 5390.265223 | Y281: 1421.682453 | Z281: 180240.6678 | AB281: 3122.920015 | AC281: 2865.546756 | AD281: 297112.2552 | AE281: 445288.5757 | AF281: 1121.233096 | AG281: 0 | AH281: 507.5 | AI281: 454132.5181 | AJ281: 95861.98096 | AK281: 358270.5372 | AL281: 469.2124996 | AM281: 75
B282: 76 | C282: 744784.3553 | D282: 0 | E282: 0.4 | F282: 0.042 | G282: 0.0448 | H282: 0 | I282: 776065.2982 | J282: 0 | K282: 500 | L282: 510.1522843 | M282: 120013.0958 | N282: 2880.314298 | O282: 531.7780273 | P282: 0 | Q282: 119912.9011 | R282: 2348.536271 | S282: 113726.3928 | T282: 0.9795790866 | U282: 0.4179104862 | V282: 0 | W282: 177501.0096 | X282: 5325.030288 | Y282: 1404.476738 | Z282: 178082.4403 | AB282: 6186.508262 | AC282: 0.003770211131 | AD282: 297995.3376 | AE282: 453663.3056 | AF282: 1140.504792 | AG282: 0 | AH282: 507.5 | AI282: 462792.0476 | AJ282: 94600.50841 | AK282: 368191.5392 | AL282: 473.347126 | AM282: 76
B283: 77 | C283: 776065.2982 | D283: 0 | E283: 0.4 | F283: 0.042 | G283: 0.0448 | H283: 0 | I283: 808660.0407 | J283: 0 | K283: 500 | L283: 510.1522843 | M283: 123136.156 | N283: 2955.267743 | O283: 545.6163071 | P283: 0 | Q283: 123097.0764 | R283: 2409.651436 | S283: 113825.7832 | T283: 0.9801073183 | U283: 0.4213080117 | V283: 0 | W283: 175375.5872 | X283: 5261.267617 | Y283: 1387.659334 | Z283: 175685.744 | AB283: 9271.293268 | AC283: 0.003672686366 | AD283: 298782.8168 | AE283: 462318.7005 | AF283: 1160.421709 | AG283: 0 | AH283: 507.5 | AI283: 471741.7871 | AJ283: 93379.25324 | AK283: 378362.5338 | AL283: 477.3524624 | AM283: 77
B284: 78 | C284: 808660.0407 | D284: 0 | E284: 0.4 | F284: 0.042 | G284: 0.0448 | H284: 0 | I284: 842623.7624 | J284: 0 | K284: 500 | L284: 510.1522843 | M284: 126405.9221 | N284: 3033.74213 | O284: 560.1046408 | P284: 0 | Q284: 126430.8286 | R284: 2473.637489 | S284: 114046.9127 | T284: 0.9806318523 | U284: 0.4313512689 | V284: 0 | W284: 173015.3207 | X284: 5190.45962 | Y284: 1368.983725 | Z284: 173294.1441 | AB284: 12383.91591 | AC284: 0.003575844272 | AD284: 299724.9691 | AE284: 471264.4346 | AF284: 1181.00611 | AG284: 0 | AH284: 507.5 | AI284: 480991.7402 | AJ284: 92196.94676 | AK284: 388794.7934 | AL284: 481.2325864 | AM284: 78
B285: 79 | C285: 842623.7624 | D285: 0 | E285: 0.4 | F285: 0.042 | G285: 0.0448 | H285: 0 | I285: 878013.9605 | J285: 0 | K285: 500 | L285: 510.1522843 | M285: 129829.2856 | N285: 3115.902855 | O285: 575.2735646 | P285: 0 | Q285: 129921.1839 | R285: 2540.62929 | S285: 114390.1176 | T285: 0.981152181 | U285: 0.4416362673 | V285: 0 | W285: 170660.0731 | X285: 5119.802193 | Y285: 1350.347828 | Z285: 170948.3581 | AB285: 15531.06635 | AC285: 0.00347977859 | AD285: 300869.5385 | AE285: 480510.5076 | AF285: 1202.281002 | AG285: 0 | AH285: 507.5 | AI285: 490552.2463 | AJ285: 91052.36041 | AK285: 399499.8859 | AL285: 484.9914387 | AM285: 79
B286: 80 | C286: 878013.9605 | D286: 0 | E286: 0.4 | F286: 0.042 | G286: 0.0448 | H286: 0 | I286: 914890.5468 | J286: 1 | K286: 500 | L286: 510.1522843 | M286: 120549.6492 | N286: 2893.191582 | O286: 534.1554958 | P286: 0 | Q286: 120459.9544 | R286: 2359.036086 | S286: 117318.7695 | T286: 0.9796718256 | U286: 0.4520975631 | V286: 12527.08452 | W286: 180686.6159 | X286: 5420.598476 | Y286: 1429.682848 | Z286: 181259.3251 | AB286: 3141.184891 | AC286: 2867.423124 | AD286: 298851.8563 | AE286: 490067.2549 | AF286: 1224.270167 | AG286: 0 | AH286: 507.5 | AI286: 500433.9926 | AJ286: 89944.30444 | AK286: 410489.6882 | AL286: 488.6328283 | AM286: 80
B287: 81 | C287: 914890.5468 | D287: 0 | E287: 0.4 | F287: 0.042 | G287: 0.0448 | H287: 0 | I287: 953315.9498 | J287: 0 | K287: 500 | L287: 510.1522843 | M287: 120753.4185 | N287: 2898.082044 | O287: 535.0583973 | P287: 0 | Q287: 120667.7112 | R287: 2363.023646 | S287: 114443.8356 | T287: 0.9797068251 | U287: 0.4180056546 | V287: 0 | W287: 178504.1834 | X287: 5355.125501 | Y287: 1412.414351 | Z287: 179092.7303 | AB287: 6223.875605 | AC287: 0.003746627411 | AD287: 299760.4378 | AE287: 499945.3598 | AF287: 1246.998183 | AG287: 0 | AH287: 507.5 | AI287: 510648.0255 | AJ287: 88871.62661 | AK287: 421776.3989 | AL287: 492.1604378 | AM287: 81
B288: 82 | C288: 953315.9498 | D288: =IF($B288<RSA,Sparratemtl,0) -> 0 | E288: =IF($B288<RSA,AnteilAbisRS,AnteilAimRS) -> 0.4 | F288: =$E288*RendpaA+(1-$E288)*RendpaR -> 0.042 | G288: =IF(B288<RSA,RendbisRSnKost,RendimRSnKost) -> 0.0448 | H288: =FV((1+$F288)^(1/12)-1,12,-$D288,0,1) -> 0 | I288: =$C288*(1+$F288)+$H288 -> 993355.2197 | J288: 0 | K288: =IF($B288>=RSA,Entnahmemtl,0) -> 500 | L288: =IF($K288>2*ComDiKauffix, ($K288+ComDiKauffix)/ComDiKaufProz,0) -> 510.1522843 | M288: =FV((1+$G288*(1-ETFAnteilDiv))^(1/12)-1,12,-$P288,-$Q287+$V288+$AC287,1) -> 123911.2554 | N288: =$M288*ETFAnteilDiv*RendpaA -> 2973.870129 | O288: =(1-ETFAFreistell)*$N288*AbgStSatz -> 549.0507726 | P288: =MAX($D288*$E288*ComDiKaufProz-ComDiKauffix,0) -> 0 | Q288: =MAX(-12*Entnahmemtl,$M288+$N288-$O288-12*$L288*$E288) -> 123887.3438 | R288: =MAX(0,12*$P288+$N288-$O288) -> 2424.819357 | S288: 114558.6502 | T288: 0.9802342121 | U288: 0.421462553 | V288: 0 | W288: =($Z287+$V288+12*MAX($D288*(1-$E288)*ComDiKaufProz-ComDiKauffix,0))*(1-IF($B288<RSA,$N$213,$O$213)) -> 176370.5208 | X288: =$W288*RendpaR -> 5291.115625 | Y288: =$X288*AbgStSatz -> 1395.531746 | Z288: =MAX(-12*Entnahmemtl,$W288+$X288-$Y288-12*$L288*(1-$U287)) -> 176703.2358 | AB288: =MAX($Q288-$S288,0) -> 9328.693591 | AC288: =IF($J288=1,$AB287,12*$L288*$E288/$Q288)*AbgStSatz*(1-ETFAFreistell) -> 0.003649258597 | AD288: =MAX(-12*Entnahmemtl,$Q288+$Z288-$AC288) -> 300590.5759 | AE288: 510155.865 | AF288: =IF(B288<AlterA+5,Alpha5J,0)+Betapa+MAX(Gammapa*$AI287,GammapaMin) -> 1270.490459 | AG288: =IF(B288<RSA,$D288-LVStückKostbisRS,0) -> 0 | AH288: =IF($K288> 0,$K288+LVStückKostabRS,0) -> 507.5 | AI288: =MAX(-12*Entnahmemtl,FV((1+IF($B288<RSA,LVNettoRendbisRS,LVNettoRendimRS))^(1/12)-1,12,-$AG288,-$AE288+$AF288/2+12*$AH288/2,1)-$AF288/2-12*$AH288/2) -> 521205.7633 | AJ288: 87833.21099 | AK288: =($AI288-$AJ288) -> 433372.5524 | AL288: 495.577828 | AM288: =B288 -> 82
B289: 83 | C289: =$I288 -> 993355.2197 | D289: 0 | E289: 0.4 | F289: 0.042 | G289: 0.0448 | H289: 0 | I289: 1035076.139 | J289: 0 | K289: 500 | L289: 510.1522843 | M289: 127217.4318 | N289: 3053.218364 | O289: 563.7004405 | P289: 0 | Q289: 127258.2188 | R289: 2489.517924 | S289: 114795.8976 | T289: 0.9807577775 | U289: =MIN(100%,($Q288+$R288)*(1+$G289*(1-ETFAnteilDiv))/($Q288+$Z288+12*$D289)) -> 0.4315086463 | V289: =$J289*MAX($U288-$E289,0)*$AD288 -> 0 | W289: 174017.3466 | X289: 5220.520398 | Y289: 1376.912255 | Z289: 174319.2483 | AB289: 12462.32116 | AC289: 0.003552595334 | AD289: 301577.4636 | AE289: 520710.1855 | AF289: 1294.773256 | AG289: 0 | AH289: 507.5 | AI289: 532119.0093 | AJ289: =MAX(0,($AJ288+12*$D289)*(1-12*$AH289/$AI289)) -> 86827.97674 | AK289: 445291.0325 | AL289: =$AK288*50%*GStSatzRS*(12*$K289/$AI288) -> 498.8884423 | AM289: 83
B290: =B289+1 -> 84 | C290: 1035076.139 | D290: 0 | E290: 0.4 | F290: 0.042 | G290: 0.0448 | H290: 0 | I290: 1078549.337 | J290: 0 | K290: 500 | L290: 510.1522843 | M290: 130678.9161 | N290: 3136.293986 | O290: 579.0382771 | P290: 0 | Q290: 130787.4408 | R290: 2557.255709 | S290: 115155.9488 | T290: 0.9812770175 | U290: 0.441794797 | V290: 0 | W290: 171669.5958 | X290: 5150.087873 | Y290: 1358.335677 | Z290: 171981.142 | AB290: 15631.49199 | AC290: 0.003456730642 | AD290: 302768.5794 | AE290: =$AI289+$AL289 -> 532617.8977 | AF290: 1319.873721 | AG290: 0 | AH290: 507.5 | AI290: 544434.0101 | AJ290: 85856.72518 | AK290: 458577.2849 | AL290: 502.0956118 | AM290: 84
B291: 85 | C291: 1078549.337 | D291: 0 | E291: 0.4 | F291: 0.042 | G291: 0.0448 | H291: 0 | I291: 1123848.409 | J291: 1 | K291: 500 | L291: 510.1522843 | M291: 121308.7088 | N291: 2911.40901 | O291: 537.5188885 | P291: 0 | Q291: 121233.8679 | R291: 2373.890122 | S291: 118073.1232 | T291: 0.9798015933 | U291: 0.4522563097 | V291: 12654.15132 | W291: 181828.8369 | X291: 5454.865106 | Y291: 1438.720672 | Z291: 182427.7454 | AB291: 3160.744713 | AC291: 2885.964208 | AD291: 300775.6491 | AE291: 544936.1057 | AF291: 1348.198223 | AG291: 0 | AH291: 507.5 | AI291: 557171.1457 | AJ291: 84918.29278 | AK291: 472252.8529 | AL291: 505.3805711 | AM291: 85
B292: 86 | C292: 1123848.409 | D292: 0 | E292: 0.4 | F292: 0.042 | G292: 0.0448 | H292: 0 | I292: 1171050.042 | J292: 0 | K292: 500 | L292: 510.1522843 | M292: 121529.0954 | N292: 2916.698289 | O292: 538.4954216 | P292: 0 | Q292: 121458.5673 | R292: 2378.202867 | S292: 115195.122 | T292: 0.9798389606 | U292: 0.4179992762 | V292: 0 | W292: 179654.8437 | X292: 5389.64531 | Y292: 1421.518951 | Z292: 180269.7777 | AB292: 6263.445297 | AC292: 0.003722231906 | AD292: 301728.3412 | AE292: 557676.5263 | AF292: 1377.493635 | AG292: 0 | AH292: 507.5 | AI292: 570344.8526 | AJ292: 84011.55644 | AK292: 486333.2962 | AL292: 508.5541739 | AM292: 86
B293: 87 | C293: 1171050.042 | D293: 0 | E293: 0.4 | F293: 0.042 | G293: 0.0448 | H293: 0 | I293: 1220234.144 | J293: 0 | K293: 500 | L293: 510.1522843 | M293: 124723.3697 | N293: 2993.360874 | O293: 552.6492513 | P293: 0 | Q293: 124715.3504 | R293: 2440.711622 | S293: 115326.1022 | T293: 0.9803654405 | U293: 0.4214569318 | V293: 0 | W293: 177529.6771 | X293: 5325.890312 | Y293: 1404.70357 | Z293: 177887.9558 | AB293: 9389.248219 | AC293: 0.003625030543 | AD293: 302603.3026 | AE293: 570853.4068 | AF293: 1407.793161 | AG293: 0 | AH293: 507.5 | AI293: 583969.8626 | AJ293: 83135.43182 | AK293: 500834.4308 | AL293: 511.6202528 | AM293: 87
B294: 88 | C294: 1220234.144 | D294: 0 | E294: 0.4 | F294: 0.042 | G294: 0.0448 | H294: 0 | I294: 1271483.978 | J294: 0 | K294: 500 | L294: 510.1522843 | M294: 128067.6953 | N294: 3073.624687 | O294: 567.4679578 | P294: 0 | Q294: 128125.1211 | R294: 2506.156729 | S294: 115580.2419 | T294: 0.9808879715 | U294: 0.4315022813 | V294: 0 | W294: 175184.0589 | X294: 5255.521767 | Y294: 1386.143866 | Z294: 175511.696 | AB294: 12544.8792 | AC294: 0.003528558261 | AD294: 303636.8135 | AE294: 584481.4829 | AF294: 1439.130684 | AG294: 0 | AH294: 507.5 | AI294: 598061.4121 | AJ294: 82288.87197 | AK294: 515772.5402 | AL294: 514.5824771 | AM294: 88
B295: 89 | C295: 1271483.978 | D295: 0 | E295: 0.4 | F295: 0.042 | G295: 0.0448 | H295: 0 | I295: 1324886.305 | J295: 0 | K295: 500 | L295: 510.1522843 | M295: 131569.1207 | N295: 3157.658896 | O295: 582.9827738 | P295: 0 | Q295: 131695.0658 | R295: 2574.676123 | S295: 115957.9483 | T295: 0.9814060538 | U295: 0.4417864995 | V295: 0 | W295: 172843.9182 | X295: 5185.317546 | Y295: 1367.627503 | Z295: 173181.3633 | AB295: 15737.11751 | AC295: 0.003432907311 | AD295: 304876.4257 | AE295: 598575.9946 | AF295: 1471.541248 | AG295: 0 | AH295: 507.5 | AI295: 612635.2597 | AJ295: 81470.86611 | AK295: 531164.3936 | AL295: 517.4443925 | AM295: 89
B296: 90 | C296: 1324886.305 | D296: 0 | E296: 0.4 | F296: 0.042 | G296: 0.0448 | H296: 0 | I296: 1380531.53 | J296: 1 | K296: 500 | L296: 510.1522843 | M296: 122152.8634 | N296: 2931.668722 | O296: 541.2593379 | P296: 0 | Q296: 122094.5418 | R296: 2390.409384 | S296: 118912.0399 | T296: 0.9799439768 | U296: 0.4522452359 | V296: 12739.71862 | W296: 183095.0815 | X296: 5492.852445 | Y296: 1448.739832 | Z296: 183721.9074 | AB296: 3182.501918 | AC296: 2905.46532 | AD296: 302910.9839 | AE296: 613152.7041 | AF296: 1505.061097 | AG296: 0 | AH296: 507.5 | AI296: 627707.7036 | AJ296: 80680.43838 | AK296: 547027.2652 | AL296: 520.209425 | AM296: 90
B297: 91 | C297: 1380531.53 | D297: 0 | E297: 0.4 | F297: 0.042 | G297: 0.0448 | H297: 0 | I297: 1438513.854 | J297: 0 | K297: 500 | L297: 510.1522843 | M297: 122392.8789 | N297: 2937.429094 | O297: 542.3228464 | P297: 0 | Q297: 122339.2542 | R297: 2395.106247 | S297: 116031.764 | T297: 0.9799840944 | U297: 0.4179994472 | V297: 0 | W297: 180929.3344 | X297: 5427.880033 | Y297: 1431.603359 | Z297: 181572.351 | AB297: 6307.490199 | AC297: 0.003695436574 | AD297: 303911.6015 | AE297: 628227.913 | AF297: 1539.727718 | AG297: 0 | AH297: 507.5 | AI297: 643295.5996 | AJ297: 79916.64663 | AK297: 563378.953 | AL297: 522.8808843 | AM297: 91
B298: 92 | C298: 1438513.854 | D298: 0 | E298: 0.4 | F298: 0.042 | G298: 0.0448 | H298: 0 | I298: 1498931.436 | J298: 0 | K298: 500 | L298: 510.1522843 | M298: 125627.7295 | N298: 3015.065509 | O298: 556.6564696 | P298: 0 | Q298: 125637.4076 | R298: 2458.40904 | S298: 116180.7413 | T298: 0.9805095392 | U298: 0.4214620892 | V298: 0 | W298: 178812.4512 | X298: 5364.373537 | Y298: 1414.85352 | Z298: 179199.0643 | AB298: 9456.666285 | AC298: 0.00359842632 | AD298: 304836.4683 | AE298: 643818.4805 | AF298: 1575.579879 | AG298: 0 | AH298: 507.5 | AI298: 659416.3805 | AJ298: 79178.58129 | AK298: 580237.7992 | AL298: 525.461968 | AM298: 92
B299: 93 | C299: 1498931.436 | D299: 0 | E299: 0.4 | F299: 0.042 | G299: 0.0448 | H299: 0 | I299: 1561886.556 | J299: 0 | K299: 500 | L299: 510.1522843 | M299: 129014.5374 | N299: 3096.348899 | O299: 571.6634154 | P299: 0 | Q299: 129090.492 | R299: 2524.685483 | S299: 116453.6877 | T299: 0.981030896 | U299: 0.4315068711 | V299: 0 | W299: 176475.2385 | X299: 5294.257156 | Y299: 1396.360325 | Z299: 176831.4261 | AB299: 12636.80426 | AC299: 0.003502170822 | AD299: 305921.9146 | AE299: 659941.8425 | AF299: 1612.657675 | AG299: 0 | AH299: 507.5 | AI299: 676088.075 | AJ299: 78465.36421 | AK299: 597622.7108 | AL299: 527.9557649 | AM299: 93
B300: 94 | C300: 1561886.556 | D300: 0 | E300: 0.4 | F300: 0.042 | G300: 0.0448 | H300: 0 | I300: 1627485.792 | J300: 0 | K300: 500 | L300: 510.1522843 | M300: 132560.4408 | N300: 3181.450579 | O300: 587.3753131 | P300: 0 | Q300: 132705.7851 | R300: 2594.075266 | S300: 116851.0509 | T300: 0.9815476698 | U300: 0.4417891803 | V300: 0 | W300: 174143.5884 | X300: 5224.307653 | Y300: 1377.911144 | Z300: 174509.7681 | AB300: 15854.73419 | AC300: 0.003406761461 | AD300: 307215.5498 | AE300: 676616.0307 | AF300: 1651.002572 | AG300: 0 | AH300: 507.5 | AI300: 693329.3282 | AJ300: 77776.14763 | AK300: 615553.1805 | AL300: 530.3652582 | AM300: 94
B301: 95 | C301: 1627485.792 | D301: 0 | E301: 0.4 | F301: 0.042 | G301: 0.0448 | H301: 0 | I301: 1695840.195 | J301: 0 | K301: 500 | L301: 510.1522843 | M301: 136272.9131 | N301: 3270.549914 | O301: 603.8252779 | P301: 0 | Q301: 136490.9068 | R301: 2666.724636 | S301: 117373.5497 | T301: 0.9820593839 | U301: 0.452245074 | V301: 0 | W301: 171857.2197 | X301: 5155.71659 | Y301: 1359.820251 | Z301: 172235.8457 | AB301: 19117.35711 | AC301: 0.003312286254 | AD301: 308726.7492 | AE301: 693859.6934 | AF301: 1690.657455 | AG301: 0 | AH301: 507.5 | AI301: 711159.4224 | AJ301: 77110.11309 | AK301: 634049.3093 | AL301: 532.6933296 | AM301: 95
B302: 96 | C302: 1695840.195 | D302: 0 | E302: 0.4 | F302: 0.042 | G302: 0.0448 | H302: 0 | I302: 1767065.483 | J302: 0 | K302: 500 | L302: 510.1522843 | M302: 140159.7789 | N302: 3363.834695 | O302: 621.0479805 | P302: 0 | Q302: 140453.8347 | R302: 2742.786714 | S302: 118022.1746 | T302: 0.9825655813 | U302: 0.4628629926 | V302: 0 | W302: 169617.8608 | X302: 5088.535825 | Y302: 1342.101324 | Z302: 170011.0342 | AB302: 22431.66007 | AC302: 0.003218829556 | AD302: 310464.8657 | AE302: 711692.1157 | AF302: 1731.666671 | AG302: 0 | AH302: 507.5 | AI302: 729598.2986 | AJ302: 76466.47043 | AK302: 653131.8282 | AL302: 534.9427619 | AM302: 96
B303: 97 | C303: 1767065.483 | D303: 0 | E303: 0.4 | F303: 0.042 | G303: 0.0448 | H303: 0 | I303: 1841282.233 | J303: 1 | K303: 500 | L303: 510.1522843 | M303: 124187.8697 | N303: 2980.508872 | O303: 550.2764505 | P303: 0 | Q303: 124169.3711 | R303: 2430.232421 | S303: 120934.3997 | T303: 0.9802791063 | U303: 0.473630872 | V303: 19516.75055 | W303: 186646.9624 | X303: 5599.408873 | Y303: 1476.84409 | Z303: 187481.2672 | AB303: 3234.971439 | AC303: 4141.445241 | AD303: 307509.1931 | AE303: 730133.2414 | AF303: 1774.076087 | AG303: 0 | AH303: 507.5 | AI303: 748666.5791 | AJ303: 75844.45682 | AK303: 672822.1222 | AL303: 537.1162428 | AM303: 97
B304: 98 | C304: 1841282.233 | D304: 0 | E304: 0.4 | F304: 0.042 | G304: 0.0448 | H304: 0 | I304: 1918616.087 | J304: 0 | K304: 500 | L304: 510.1522843 | M304: 123254.2765 | N304: 2958.102637 | O304: 546.1396993 | P304: 0 | Q304: 123217.5085 | R304: 2411.962937 | S304: 116835.9296 | T304: 0.9801267613 | U304: 0.4171420973 | V304: 0 | W304: 184631.5519 | X304: 5538.946557 | Y304: 1460.897155 | Z304: 185487.2604 | AB304: 6381.578905 | AC304: 0.003669096704 | AD304: 308704.7652 | AE304: 749203.6953 | AF304: 1817.933132 | AG304: 0 | AH304: 507.5 | AI304: 768385.5898 | AJ304: 75243.33578 | AK304: 693142.254 | AL304: 539.2163677 | AM304: 98
B305: 99 | C305: 1918616.087 | D305: 0 | E305: 0.4 | F305: 0.042 | G305: 0.0448 | H305: 0 | I305: 1999197.963 | J305: 0 | K305: 500 | L305: 510.1522843 | M305: 126529.5914 | N305: 3036.710193 | O305: 560.6526193 | P305: 0 | Q305: 126556.918 | R305: 2476.057573 | S305: 117003.4337 | T305: 0.9806511489 | U305: 0.4178956875 | V305: 0 | W305: 182667.854 | X305: 5480.03562 | Y305: 1445.359395 | Z305: 183134.3747 | AB305: 9553.484277 | AC305: 0.003572281639 | AD305: 309691.2891 | AE305: 768924.8062 | AF305: 1863.286857 | AG305: 0 | AH305: 507.5 | AI305: 788777.385 | AJ305: 74662.39631 | AK305: 714114.9887 | AL305: 541.2456427 | AM305: 99
B306: 100 | C306: 1999197.963 | D306: 0 | E306: 0.4 | F306: 0.042 | G306: 0.0448 | H306: 0 | I306: 2083164.277 | J306: 0 | K306: 500 | L306: 510.1522843 | M306: 129958.7643 | N306: 3119.010342 | O306: 575.8472844 | P306: 0 | Q306: 130053.1963 | R306: 2543.163058 | S306: 117295.6878 | T306: 0.9811713127 | U306: 0.4278498784 | V306: 0 | W306: 180350.7322 | X306: 5410.521967 | Y306: 1427.025169 | Z306: 180770.6869 | AB306: 12757.50859 | AC306: 0.00347624639 | AD306: 310823.8798 | AE306: 789318.6307 | AF306: 1910.187986 | AG306: 0 | AH306: 507.5 | AI306: 809864.7715 | AJ306: 74100.95197 | AK306: 735763.8195 | AL306: 543.2064881 | AM306: 100
B307: 101 | C307: 2083164.277 | D307: 0 | E307: 0.4 | F307: 0.042 | G307: 0.0448 | H307: 0 | I307: 2170657.177 | J307: 0 | K307: 500 | L307: 510.1522843 | M307: 133549.0227 | N307: 3205.176545 | O307: 591.7557196 | P307: 0 | Q307: 133713.7126 | R307: 2613.420825 | S307: 117713.1812 | T307: 0.9816867626 | U307: 0.4380633435 | V307: 0 | W307: 178022.9725 | X307: 5340.689174 | Y307: 1408.60677 | Z307: 178452.4506 | AB307: 16000.53136 | AC307: 0.003381081459 | AD307: 312166.1598 | AE307: 810407.978 | AF307: 1958.688974 | AG307: 0 | AH307: 507.5 | AI307: 831671.3341 | AJ307: 73558.34003 | AK307: 758112.9941 | AL307: 545.1012407 | AM307: 101
B308: 102 | C308: 2170657.177 | D308: 0 | E308: 0.4 | F308: 0.042 | G308: 0.0448 | H308: 0 | I308: 2261824.778 | J308: 1 | K308: 500 | L308: 510.1522843 | M308: 125106.4554 | N308: 3002.554929 | O308: 554.3467038 | P308: 0 | Q308: 125105.9326 | R308: 2448.208225 | S308: 121847.2682 | T308: 0.9804267399 | U308: 0.4484522131 | V308: 11882.08777 | W308: 187441.4534 | X308: 5623.243601 | Y308: 1483.1305 | Z308: 188141.4872 | AB308: 3258.664454 | AC308: 2954.098102 | AD308: 310293.3218 | AE308: 832216.4353 | AF308: 2008.844068 | AG308: 0 | AH308: 507.5 | AI308: 854221.4622 | AJ308: 73033.92065 | AK308: 781187.5415 | AL308: 546.9321567 | AM308: 102
B309: 103 | C309: 2261824.778 | D309: 0 | E309: 0.4 | F309: 0.042 | G309: 0.0448 | H309: 0 | I309: 2356821.419 | J309: 0 | K309: 500 | L309: 510.1522843 | M309: 125435.2759 | N309: 3010.446621 | O309: 555.8037073 | P309: 0 | Q309: 125441.1878 | R309: 2454.642913 | S309: 118978.9886 | T309: 0.9804790515 | U309: 0.4181448525 | V309: 0 | W309: 185281.7366 | X309: 5558.452099 | Y309: 1466.041741 | Z309: 185997.6666 | AB309: 6462.199208 | AC309: 0.003604055113 | AD309: 311438.8508 | AE309: 854768.3944 | AF309: 2060.709363 | AG309: 0 | AH309: 507.5 | AI309: 877540.377 | AJ309: 72527.07608 | AK309: 805013.3009 | AL309: 548.7014149 | AM309: 103
B310: 104 | C310: 2356821.419 | D310: 0 | E310: 0.4 | F310: 0.042 | G310: 0.0448 | H310: 0 | I310: 2455807.918 | J310: 0 | K310: 500 | L310: 510.1522843 | M310: 128813.0432 | N310: 3091.513038 | O310: 570.7705946 | P310: 0 | Q310: 128885.0547 | R310: 2520.742443 | S310: 119191.3128 | T310: 0.9810006601 | U310: 0.4216996973 | V310: 0 | W310: 183170.5021 | X310: 5495.115063 | Y310: 1449.336598 | Z310: 183654.2638 | AB310: 9693.741896 | AC310: 0.003507753132 | AD310: 312539.315 | AE310: 878089.0784 | AF310: 2114.342867 | AG310: 0 | AH310: 507.5 | AI310: 901654.1596 | AJ310: 72037.20988 | AK310: 829616.9497 | AL310: 550.4111186 | AM310: 104
B311: 105 | C311: 2455807.918 | D311: 0 | E311: 0.4 | F311: 0.042 | G311: 0.0448 | H311: 0 | I311: 2558951.851 | J311: 0 | K311: 500 | L311: 510.1522843 | M311: 132349.4814 | N311: 3176.387553 | O311: 586.440552 | P311: 0 | Q311: 132490.6974 | R311: 2589.947001 | S311: 119530.4603 | T311: 0.981517714 | U311: 0.4317472299 | V311: 0 | W311: 180862.719 | X311: 5425.881569 | Y311: 1431.076264 | Z311: 181317.2696 | AB311: 12960.23712 | AC311: 0.003412292056 | AD311: 313807.9636 | AE311: 902204.5707 | AF311: 2169.804567 | AG311: 0 | AH311: 507.5 | AI311: 926589.7803 | AJ311: 71563.7462 | AK311: 855026.0341 | AL311: 552.0632989 | AM311: 105
B312: 106 | C312: 2558951.851 | D312: 0 | E312: 0.4 | F312: 0.042 | G312: 0.0448 | H312: 0 | I312: 2666427.829 | J312: 0 | K312: 500 | L312: 510.1522843 | M312: 136052.0439 | N312: 3265.249053 | O312: 602.8466063 | P312: 0 | Q312: 136265.7153 | R312: 2662.402446 | S312: 119997.0213 | T312: 0.9820297354 | U312: 0.442027057 | V312: 0 | W312: 178561.2471 | X312: 5356.837414 | Y312: 1412.865868 | Z312: 179026.4733 | AB312: 16268.69403 | AC312: 0.003317760107 | AD312: 315292.1853 | AE312: 927141.8436 | AF312: 2227.156495 | AG312: 0 | AH312: 507.5 | AI312: 952375.1288 | AJ312: 71106.12903 | AK312: 881268.9998 | AL312: 553.6599166 | AM312: 106
B313: 107 | C313: 2666427.829 | D313: 0 | E313: 0.4 | F313: 0.042 | G313: 0.0448 | H313: 0 | I313: 2778417.798 | J313: 1 | K313: 500 | L313: 510.1522843 | M313: 126321.5501 | N313: 3031.717203 | O313: 559.7307887 | P313: 0 | Q313: 126344.8056 | R313: 2471.986415 | S313: 123054.7923 | T313: 0.9806186653 | U313: 0.4524771331 | V313: 13250.80265 | W313: 189354.6613 | X313: 5680.63984 | Y313: 1498.268758 | Z313: 190121.2184 | AB313: 3290.013327 | AC313: 3003.607635 | AD313: 313462.4163 | AE313: 952928.7888 | AF313: 2286.462796 | AG313: 0 | AH313: 507.5 | AI313: 979039.0452 | AJ313: 70663.82151 | AK313: 908375.2237 | AL313: 555.2028648 | AM313: 107
B314: 108 | C314: 2778417.798 | D314: 0 | E314: 0.4 | F314: 0.042 | G314: 0.0448 | H314: 0 | I314: 2895111.345 | J314: 0 | K314: 500 | L314: 510.1522843 | M314: 126656.6094 | N314: 3039.758624 | O314: 561.215436 | P314: 0 | Q314: 126686.4216 | R314: 2478.543188 | S314: 120161.3419 | T314: 0.980670928 | U314: 0.4179892227 | V314: 0 | W314: 187231.3758 | X314: 5616.941275 | Y314: 1481.468261 | Z314: 188015.0084 | AB314: 6525.079695 | AC314: 0.003568629919 | AD314: 314701.4264 | AE314: 979594.2481 | AF314: 2347.789804 | AG314: 0 | AH314: 507.5 | AI314: 1006611.352 | AJ314: 70236.3053 | AK314: 936375.0471 | AL314: 556.6939714 | AM314: 108
B315: 109 | C315: 2895111.345 | D315: 0 | E315: 0.4 | F315: 0.042 | G315: 0.0448 | H315: 0 | I315: 3016706.022 | J315: 0 | K315: 500 | L315: 510.1522843 | M315: 130091.7489 | N315: 3122.201974 | O315: 576.4365395 | P315: 0 | Q315: 130188.7834 | R315: 2545.765435 | S315: 120399.0963 | T315: 0.9811909221 | U315: 0.42146907 | V315: 0 | W315: 185157.1802 | X315: 5554.715407 | Y315: 1465.056189 | Z315: 185683.8699 | AB315: 9789.687116 | AC315: 0.003472626001 | AD315: 315872.6499 | AE315: 1007168.046 | AF315: 2411.20611 | AG315: 0 | AH315: 507.5 | AI315: 1035122.889 | AJ315: 69823.07987 | AK315: 965299.8094 | AL315: 558.1350011 | AM315: 109
B316: 110 | C316: 3016706.022 | D316: 0 | E316: 0.4 | F316: 0.042 | G316: 0.0448 | H316: 0 | I316: 3143407.674 | J316: 0 | K316: 500 | L316: 510.1522843 | M316: 133688.2543 | N316: 3208.518104 | O316: 592.3726549 | P316: 0 | Q316: 133855.6688 | R316: 2616.145449 | S316: 120764.8201 | T316: 0.9817061841 | U316: 0.4315107752 | V316: 0 | W316: 182861.4751 | X316: 5485.844253 | Y316: 1446.891422 | Z316: 183358.7614 | AB316: 13090.84868 | AC316: 0.003377495763 | AD316: 317214.4269 | AE316: 1035681.024 | AF316: 2476.782645 | AG316: 0 | AH316: 507.5 | AI316: 1064605.546 | AJ316: 69423.66193 | AK316: 995181.8837 | AL316: 559.5276577 | AM316: 110
B317: 111 | C317: 3143407.674 | D317: 0 | E317: 0.4 | F317: 0.042 | G317: 0.0448 | H317: 0 | I317: 3275430.797 | J317: 0 | K317: 500 | L317: 510.1522843 | M317: 137453.7057 | N317: 3298.888937 | O317: 609.05737 | P317: 0 | Q317: 137694.8063 | R317: 2689.831567 | S317: 121259.1609 | T317: 0.9822162431 | U317: 0.4417837376 | V317: 0 | W317: 180571.7083 | X317: 5417.151248 | Y317: 1428.773642 | Z317: 181079.8929 | AB317: 16435.64546 | AC317: 0.003283326121 | AD317: 318774.696 | AE317: 1065165.073 | AF317: 2544.592755 | AG317: 0 | AH317: 507.5 | AI317: 1095092.297 | AJ317: 69037.58479 | AK317: 1026054.712 | AL317: 560.8735862 | AM317: 111
B318: 112 | C318: 3275430.797 | D318: 0 | E318: 0.4 | F318: 0.042 | G318: 0.0448 | H318: 0 | I318: 3412998.89 | J318: 0 | K318: 500 | L318: 510.1522843 | M318: 141396.0393 | N318: 3393.504944 | O318: 626.5258503 | P318: 0 | Q318: 141714.2875 | R318: 2766.979094 | S318: 121883.0455 | T318: 0.9827206487 | U318: 0.4522259053 | V318: 0 | W318: 178327.4786 | X318: 5349.824357 | Y318: 1411.016174 | Z318: 178848.9831 | AB318: 19831.24199 | AC318: 0.003190200243 | AD318: 320563.2674 | AE318: 1095653.171 | AF318: 2614.712284 | AG318: 0 | AH318: 507.5 | AI318: 1126617.243 | AJ318: 68664.39781 | AK318: 1057952.845 | AL318: 562.1743747 | AM318: 112
B319: 113 | C319: 3412998.89 | D319: 0 | E319: 0.4 | F319: 0.042 | G319: 0.0448 | H319: 0 | I319: 3556344.844 | J319: 0 | K319: 500 | L319: 510.1522843 | M319: 145523.5642 | N319: 3492.565542 | O319: 644.8149132 | P319: 0 | Q319: 145922.5839 | R319: 2847.750629 | S319: 122637.682 | T319: 0.983218972 | U319: 0.462825709 | V319: 0 | W319: 176130.4786 | X319: 5283.914358 | Y319: 1393.632412 | Z319: 176667.3821 | AB319: 23284.90192 | AC319: 0.003098197292 | AD319: 322589.9629 | AE319: 1127179.418 | AF319: 2687.219659 | AG319: 0 | AH319: 507.5 | AI319: 1159215.644 | AJ319: 68303.6658 | AK319: 1090911.978 | AL319: 563.4315568 | AM319: 113
B320: 114 | C320: 3556344.844 | D320: =IF($B320<RSA,Sparratemtl,0) -> 0 | E320: =IF($B320<RSA,AnteilAbisRS,AnteilAimRS) -> 0.4 | F320: =$E320*RendpaA+(1-$E320)*RendpaR -> 0.042 | G320: =IF(B320<RSA,RendbisRSnKost,RendimRSnKost) -> 0.0448 | H320: 0 | I320: 3705711.327 | J320: 0 | K320: =IF($B320>=RSA,Entnahmemtl,0) -> 500 | L320: =IF($K320>2*ComDiKauffix, ($K320+ComDiKauffix)/ComDiKaufProz,0) -> 510.1522843 | M320: =FV((1+$G320*(1-ETFAnteilDiv))^(1/12)-1,12,-$P320,-$Q319+$V320+$AC319,1) -> 149844.9798 | N320: =$M320*ETFAnteilDiv*RendpaA -> 3596.279515 | O320: =(1-ETFAFreistell)*$N320*AbgStSatz -> 663.9631054 | P320: =MAX($D320*$E320*ComDiKaufProz-ComDiKauffix,0) -> 0 | Q320: =MAX(-12*Entnahmemtl,$M320+$N320-$O320-12*$L320*$E320) -> 150328.5652 | R320: 2932.316409 | S320: 123524.5615 | T320: 0.9837108073 | U320: 0.4735710879 | V320: 0 | W320: =($Z319+$V320+12*MAX($D320*(1-$E320)*ComDiKaufProz-ComDiKauffix,0))*(1-IF($B320<RSA,$N$213,$O$213)) -> 173982.0379 | X320: =$W320*RendpaR -> 5219.461136 | Y320: =$X320*AbgStSatz -> 1376.632875 | Z320: =MAX(-12*Entnahmemtl,$W320+$X320-$Y320-12*$L320*(1-$U319)) -> 174536.3778 | AB320: 26804.00377 | AC320: =IF($J320=1,$AB319,12*$L320*$E320/$Q320)*AbgStSatz*(1-ETFAFreistell) -> 0.003007392199 | AD320: =MAX(-12*Entnahmemtl,$Q320+$Z320-$AC320) -> 324864.94 | AE320: 1159779.075 | AF320: =IF(B320<AlterA+5,Alpha5J,0)+Betapa+MAX(Gammapa*$AI319,GammapaMin) -> 2762.195981 | AG320: =IF(B320<RSA,$D320-LVStückKostbisRS,0) -> 0 | AH320: =IF($K320> 0,$K320+LVStückKostabRS,0) -> 507.5 | AI320: =MAX(-12*Entnahmemtl,FV((1+IF($B320<RSA,LVNettoRendbisRS,LVNettoRendimRS))^(1/12)-1,12,-$AG320,-$AE320+$AF320/2+12*$AH320/2,1)-$AF320/2-12*$AH320/2) -> 1192923.96 | AJ320: 67954.96854 | AK320: 1124968.991 | AL320: 564.6466128 | AM320: 114
B321: 115 | C321: 3705711.327 | D321: 0 | E321: 0.4 | F321: 0.042 | G321: 0.0448 | H321: 0 | I321: 3861351.203 | J321: 0 | K321: 500 | L321: 510.1522843 | M321: 154369.394 | N321: 3704.865455 | O321: 684.0107847 | P321: 0 | Q321: 154941.5177 | R321: 3020.854671 | S321: =IF($Q321<0,0,IF($J321=1,($Q320-$V321-$AC320+$R321)*$T321, ($S320+$R321-$AC320)*$T321)) -> 124545.4606 | T321: =MIN(1,MAX(0,1-12*$L321*$E321/$Q321)) -> 0.9841957727 | U321: =MIN(100%,($Q320+$R320)*(1+$G321*(1-ETFAnteilDiv))/($Q320+$Z320+12*$D321)) -> 0.4844491149 | V321: 0 | W321: 171883.4249 | X321: 5156.502747 | Y321: 1360.027599 | Z321: 172457.1931 | AB321: 30396.05703 | AC321: 0.002917855466 | AD321: 327398.7079 | AE321: 1193488.607 | AF321: 2839.725108 | AG321: 0 | AH321: 507.5 | AI321: 1227779.895 | AJ321: 67617.90017 | AK321: 1160161.994 | AL321: =$AK320*50%*GStSatzRS*(12*$K321/$AI320) -> 565.8209723 | AM321: 115
B322: 116 | C322: 3861351.203 | D322: 0 | E322: 0.4 | F322: 0.042 | G322: 0.0448 | H322: 0 | I322: 4023527.953 | J322: 0 | K322: 500 | L322: 510.1522843 | M322: 159106.3427 | N322: 3818.552224 | O322: 705.0002044 | P322: 0 | Q322: 159771.1637 | R322: 3113.55202 | S322: 125702.4454 | T322: 0.9846735111 | U322: 0.4954460588 | V322: 0 | W322: 169835.8438 | X322: 5095.075313 | Y322: 1343.826114 | Z322: 170430.9794 | AB322: 34068.71838 | AC322: 0.00282965301 | AD322: 330202.1403 | AE322: 1228345.716 | AF322: 2919.893758 | AG322: 0 | AH322: 507.5 | AI322: 1263822.434 | AJ322: 67292.06879 | AK322: 1196530.365 | AL322: 566.9560153 | AM322: 116
B323: 117 | C323: 4023527.953 | D323: 0 | E323: 0.4 | F323: 0.042 | G323: 0.0448 | H323: 0 | I323: 4192516.127 | J323: 0 | K323: 500 | L323: 510.1522843 | M323: 164065.8097 | N323: 3937.579433 | O323: 726.9756028 | P323: 0 | Q323: 164827.6826 | R323: 3210.60383 | S323: 126997.8743 | T323: 0.9851436911 | U323: 0.5065474601 | V323: 0 | W323: 167840.4285 | X323: 5035.212856 | Y323: 1328.037391 | Z323: 168458.8118 | AB323: 37829.80825 | AC323: 0.002742846027 | AD323: 333286.4917 | AE323: 1264389.39 | AF323: 3002.791598 | AG323: 0 | AH323: 507.5 | AI323: 1301091.891 | AJ323: 66977.09588 | AK323: 1234114.795 | AL323: 568.0530744 | AM323: 117
B324: 118 | C324: 4192516.127 | D324: 0 | E324: 0.4 | F324: 0.042 | G324: 0.0448 | H324: 0 | I324: 4368601.805 | J324: 0 | K324: 500 | L324: 510.1522843 | M324: 169258.2479 | N324: 4062.197949 | O324: 749.9832963 | P324: 0 | Q324: 170121.7316 | R324: 3312.214653 | S324: 128434.4038 | T324: 0.9856060073 | U324: 0.5177382175 | V324: 0 | W324: 165898.2379 | X324: 4976.947137 | Y324: 1312.669807 | Z324: 166541.6839 | AB324: 41687.32776 | AC324: 0.002657490905 | AD324: 336663.4128 | AE324: 1301659.944 | AF324: 3088.511349 | AG324: 0 | AH324: 507.5 | AI324: 1339629.952 | AJ324: 66672.61589 | AK324: 1272957.336 | AL324: 569.1134363 | AM324: 118
B325: 119 | C325: 4368601.805 | D325: 0 | E325: 0.4 | F325: 0.042 | G325: 0.0448 | H325: 0 | I325: 4552083.08 | J325: 0 | K325: 500 | L325: 510.1522843 | M325: 174694.601 | N325: 4192.670423 | O325: 774.0717769 | P325: 0 | Q325: 175664.4687 | R325: 3418.598646 | S325: 130014.9928 | T325: 0.9860601806 | U325: 0.5290026848 | V325: 0 | W325: 164010.2503 | X325: 4920.30751 | Y325: 1297.731106 | Z325: 164680.5034 | AB325: 45649.47587 | AC325: 0.002573639153 | AD325: 340344.9694 | AE325: 1340199.066 | AF325: 3177.14889 | AG325: 0 | AH325: 507.5 | AI325: 1379479.722 | AJ325: 66378.27577 | AK325: 1313101.447 | AL325: 570.1383435 | AM325: 119
B326: 120 | C326: 4552083.08 | D326: 0 | E326: 0.4 | F326: 0.042 | G326: 0.0448 | H326: 0 | I326: 4743270.57 | J326: 0 | K326: 500 | L326: 510.1522843 | M326: 180386.3269 | N326: 4329.271846 | O326: 799.2918146 | P326: 0 | Q326: 181467.576 | R326: 3529.980032 | S326: 131742.9089 | T326: 0.9865059587 | U326: 0.5403247742 | V326: 0 | W326: 162177.3597 | X326: 4865.320791 | Y326: 1283.228359 | Z326: 162876.0879 | AB326: 49724.66709 | AC326: 0.002491337374 | AD326: 344343.6614 | AE326: 1380049.861 | AF326: 3268.803362 | AG326: 0 | AH326: 507.5 | AI326: 1420685.774 | AJ326: 66093.73452 | AK326: 1354592.039 | AL326: 571.1289954 | AM326: 120
B327: 121 | C327: 4743270.57 | D327: 0 | E327: 0.4 | F327: 0.042 | G327: 0.0448 | H327: 0 | I327: 4942487.934 | J327: 0 | K327: 500 | L327: 510.1522843 | M327: 186345.4219 | N327: 4472.290125 | O327: 825.6965644 | P327: 0 | Q327: 187543.2845 | R327: 3646.593561 | S327: 133621.7349 | T327: 0.9869431157 | U327: 0.5516880671 | V327: 0 | W327: 160400.3713 | X327: 4812.01114 | Y327: 1269.167938 | Z327: 161129.1621 | AB327: 53921.54954 | AC327: 0.002410627262 | AD327: 348672.4442 | AE327: 1421256.903 | AF327: 3363.577279 | AG327: 0 | AH327: 507.5 | AI327: 1463294.195 | AJ327: 65818.66281 | AK327: 1397475.532 | AL327: 572.0865504 | AM327: 121
B328: 122 | C328: 4942487.934 | D328: 0 | E328: 0.4 | F328: 0.042 | G328: 0.0448 | H328: 0 | I328: 5150072.427 | J328: 0 | K328: 500 | L328: 510.1522843 | M328: 192584.4455 | N328: 4622.026692 | O328: 853.341678 | P328: 0 | Q328: 193904.3995 | R328: 3768.685014 | S328: 135655.3761 | T328: 0.9873714523 | U328: 0.5630759295 | V328: 0 | W328: 158679.9989 | X328: 4760.399966 | Y328: 1255.555491 | Z328: 159440.3551 | AB328: 58249.02344 | AC328: 0.002331545625 | AD328: 353344.7523 | AE328: 1463866.281 | AF328: 3461.576648 | AG328: 0 | AH328: 507.5 | AI328: 1507352.644 | AJ328: 65552.74251 | AK328: 1441799.902 | AL328: 573.0121271 | AM328: 122
B329: 123 | C329: 5150072.427 | D329: 0 | E329: 0.4 | F329: 0.042 | G329: 0.0448 | H329: 0 | I329: 5366375.469 | J329: 0 | K329: 500 | L329: 510.1522843 | M329: 199116.5474 | N329: 4778.797138 | O329: 882.2854215 | P329: 0 | Q329: 200564.3282 | R329: 3896.511716 | S329: 137848.0679 | T329: 0.9877907952 | U329: 0.5744716298 | V329: 0 | W329: 157016.8617 | X329: 4710.50585 | Y329: 1242.395918 | Z329: 157810.1978 | AB329: 62716.26023 | AC329: 0.002254124442 | AD329: 358374.5237 | AE329: 1507925.656 | AF329: 3562.911082 | AG329: 0 | AH329: 507.5 | AI329: 1552910.401 | AJ329: 65295.66638 | AK329: 1487614.735 | AL329: 573.9068056 | AM329: 123
AG334: =12*$K$264/#REF! ->  | AI334: Gewinn m. 65 | AJ334: =(#REF!-#REF!) -> 

Sheet Verluste_TopPerf
B1: ZWEI KERNPROBLEME DER AKTIENANLAGE: HOHE VERLUSTE UND WICHTIGE TOP-PERFORMER | N1: Stand: | O1: 2024-02-12
B2: Persönliche Verwendung für PROF. DR. KRIEBEL | N2: Gültig bis: | O2: 31.01.2025
A4: Hauptmenu
A6: AVP.Express
A7: AV-Planer | B7: Problem No. 1: Große Verluste | G7: Problem No. 2: Top-Performer. Beispiel: Je 1.000 € Einmalanlage in verschiedene Aktien
A8: bAV
G9: Aktienindex mit 40 Titeln betrachtet über 5 Jahre
A10: Cost.Average_Pos | B10: Entstandener Verlust = | E10: =-RANDBETWEEN(7544,10030)/100*0.996/100 -> -0.753972
A11: Cost.Average_Neg | B11: Notwendiger Gewinn für Ausgleich = | E11: =1/(1+E10)-1 -> 3.064578016 | G11: Kleiner Verlust (insgesamt nach 5 Jahren, ca.) | J11: =-RANDBETWEEN(700,1300)/100*0.996/100 -> -0.116532
G12: Kleiner Gewinn (dito) | J12: =RANDBETWEEN(750,1400)/100*0.996/100 -> 0.1192212
A13: Immobilie.Familie | G13: Duchschnittlicher Gewinn (dito) | J13: =RANDBETWEEN(2800,5200)/100*0.996/100 -> 0.3486
G14: Deutlicher Verlust … (dito) | J14: =-RANDBETWEEN(6444,10041)/100*0.996/100 -> -0.8920176
A15: Mtl-Crashkauf | B15: GELDREGEL NR. 1: | G15: Top-Performer (Apple, Tesla, Biontech …) | J15: =IF(OR($J$25="J",$J$25="JA"),RANDBETWEEN(88333,141666)/100*0.996/100,RANDBETWEEN(60,210)/100*0.996/100) -> 0.0185256
B16: Vermeide große Verluste!
A17: Photovoltaik
A18: Produktprüfer
G19: Gesamtperformance 5 Jahre: | J19: =$D$241/($C$240*1000)-1 -> 0.0655001223
A20: Rechnen.komplex | G20: … ergibt Rendite pro Jahr: | J20: =(1+$J$19)^0.2-1 -> 0.0127697026
A21: Rendite.GRV
A22: Rentenschätzer
A24: Steuerrechner
G25: Mit Top-Performer (J/N): | J25: N
A26: Vergleich.ETF-LV
A27: Verluste_TopPerf
G29: è Top-Performer für Rendite zwingend nötig!
G32: ABER:
G33: Nur ca. 1 von 200 Aktien ist ein Top-Performer*
K39: GELDREGEL NR. 2:
A40: Einstellungen | K40: Erst ab ca. 1.500 verschiedenen Aktientiteln enden Zufall,
K41: Spekulation oder die Notwendigkeit von Insiderwissen.
K42: Die Spekulation endet, das Investieren beginnt!
K43: (es wird immer Indizes geben, die weniger breit streuen, durch
K44: Zufall besser laufen und daher in den Medien bejubelt werden)
A45: Version: 4.21, 2K
A46: CLAUS KRIEBEL | K46: Bemerkungen
B47: Copyright und Autor: Prof. Dr. Claus Kriebel | K47: * Angaben zu Performance und Wahrscheinlichkeiten sind zwar gut begründet und auch für manche Indizes typisch,
B48: Trotz aller Sorgfalt kann für die Berechnungen keine Gewähr übernommen werden. | K48: aber hier nur beispielhaft skizziert und können weder eine Garantie für die Zukunft noch eine Anlageempfehlung
A49: (C) Prof. Dr. Kriebel | B49: Persönliche Version für: PROF. DR. KRIEBEL | K49: darstellen. Auch können sie keine Anlageberatung ersetzen. Die Wahrscheinlichkeit verschiedener …
A50: 2008 - 2024 | K50: Unter einem Topperformer versteht man ein Unternehmen, dessen Kurs sich nach maximal 10 Jahren verzehnfacht …
K51: Veranschaulichungen zur Statistik: …
B200: Nicht | C200: Nr. | D200: Endkapital | G200: Anzahl verschiedene Titel | H200: Wahrscheinlichkeit
B201: verschieben, | C201: 1 | D201: =1000*(1+(RANDBETWEEN(30,200)/100*$J$11)) -> 842.6818 | G201: 0 | H201: =1-(1-1/200)^G201 -> 0
B202: da mit | D202: =1000*(1+(RANDBETWEEN(20,150)/100*$J$13)) -> 1460.152 | G202: 50 | H202: =1-(1-1/200)^G202 -> 0.2216874429
B203: release | D203: =MAX(1000*(1+(RANDBETWEEN(50,120)/100*$J$14)),0) -> 259.625392 | G203: 100 | H203: 0.3942295635
B204: automatisch | D204: =1000*(1+(RANDBETWEEN(30,200)/100*$J$11)) -> 803.06092 | G204: 150 | H204: 0.5285212626
B205: geweißt | C205: 5 | D205: =1000*(1+(RANDBETWEEN(30,200)/100*$J$12)) -> 1078.685992 | G205: 200 | H205: 0.6330421783
B206: (B200-D250) | D206: =1000*(1+(RANDBETWEEN(20,150)/100*$J$13)) -> 1195.216 | G206: 250 | H206: 0.7143921194
D207: =1000*(1+(RANDBETWEEN(20,150)/100*$J$13)) -> 1278.88 | G207: 300 | H207: 0.7777078002
D208: =1000*(1+(RANDBETWEEN(30,200)/100*$J$12)) -> 1224.135856 | G208: 350 | H208: 0.8269871895
D209: =1000*(1+(RANDBETWEEN(30,200)/100*$J$11)) -> 889.2946 | G209: 400 | H209: 0.8653419571
C210: 10 | D210: =1000*(1+(RANDBETWEEN(20,150)/100*$J$13)) -> 1373.002 | G210: 450 | H210: 0.8951939543
D211: =MAX(1000*(1+(RANDBETWEEN(50,120)/100*$J$14)),0) -> 81.221872 | G211: 500 | H211: 0.9184281386
D212: =1000*(1+(RANDBETWEEN(20,150)/100*$J$13)) -> 1271.908 | G212: 550 | H212: 0.9365115959
D213: =1000*(1+(RANDBETWEEN(20,150)/100*$J$13)) -> 1324.198 | G213: 600 | H213: 0.9505861779
D214: =1000*(1+(RANDBETWEEN(30,200)/100*$J$11)) -> 896.28652 | G214: 650 | H214: 0.9615406018
C215: 15 | D215: =1000*(1+(RANDBETWEEN(30,200)/100*$J$11)) -> 780.91984 | G215: 700 | H215: 0.9700665674
D216: =1000*(1+(RANDBETWEEN(30,200)/100*$J$12)) -> 1038.150784 | G216: 750 | H216: 0.9767024335
D217: =1000*(1+(RANDBETWEEN(20,150)/100*$J$13)) -> 1418.32 | G217: 800 | H217: 0.9818672115
D218: =1000*(1+(RANDBETWEEN(30,200)/100*$J$12)) -> 1226.52028 | G218: 850 | H218: 0.985887023
D219: =1000*(1+(RANDBETWEEN(20,150)/100*$J$13)) -> 1275.394 | G219: 900 | H219: 0.9890156928
C220: 20 | D220: =1000*(1+(RANDBETWEEN(30,200)/100*$J$12)) -> 1059.6106 | G220: 950 | H220: 0.9914507758
D221: =1000*(1+(RANDBETWEEN(30,200)/100*$J$11)) -> 828.69796 | G221: 1000 | H221: 0.9933460314
D222: =1000*(1+(RANDBETWEEN(20,150)/100*$J$13)) -> 1439.236 | G222: 1050 | H222: 0.9948211327
D223: =1000*(1+(RANDBETWEEN(30,200)/100*$J$12)) -> 1054.841752 | G223: 1100 | H223: 0.9959692225
D224: =1000*(1+(RANDBETWEEN(30,200)/100*$J$12)) -> 1180.024012 | G224: 1150 | H224: 0.9968627953
C225: 25 | D225: =1000*(1+(RANDBETWEEN(20,150)/100*$J$13)) -> 1139.44 | G225: 1200 | H225: 0.9975582742
D226: =1000*(1+$J$15) -> 1018.5256 | G226: 1250 | H226: 0.9980995741
D227: =1000*(1+(RANDBETWEEN(20,150)/100*$J$13)) -> 1366.03 | G227: 1300 | H227: 0.9985208747
D228: =1000*(1+(RANDBETWEEN(30,200)/100*$J$11)) -> 785.58112 | G228: 1350 | H228: 0.9988487782
D229: =1000*(1+(RANDBETWEEN(20,150)/100*$J$13)) -> 1519.414 | G229: 1400 | H229: 0.9991039896
C230: 30 | D230: =1000*(1+(RANDBETWEEN(30,200)/100*$J$12)) -> 1126.374472 | G230: 1450 | H230: 0.9993026239
D231: =1000*(1+(RANDBETWEEN(30,200)/100*$J$11)) -> 891.62524 | G231: 1500 | H231: 0.9994572234
D232: =1000*(1+(RANDBETWEEN(20,150)/100*$J$13)) -> 1393.918 | G232: 1550 | H232: 0.9995775502
D233: =1000*(1+(RANDBETWEEN(20,150)/100*$J$13)) -> 1205.674 | G233: 1600 | H233: 0.999671202
D234: =1000*(1+(RANDBETWEEN(30,200)/100*$J$12)) -> 1056.033964 | G234: 1650 | H234: 0.9997440924
C235: 35 | D235: =1000*(1+(RANDBETWEEN(30,200)/100*$J$11)) -> 804.22624 | G235: 1700 | H235: 0.9998008239
D236: =1000*(1+(RANDBETWEEN(20,150)/100*$J$13)) -> 1146.412 | G236: 1750 | H236: 0.9998449787
D237: =MAX(1000*(1+(RANDBETWEEN(50,120)/100*$J$14)),0) -> 438.028912 | G237: 1800 | H237: 0.999879345
D238: =1000*(1+(RANDBETWEEN(30,200)/100*$J$11)) -> 831.0286
D239: =1000*(1+(RANDBETWEEN(30,200)/100*$J$12)) -> 1115.644564
C240: 40 | D240: =1000*(1+(RANDBETWEEN(20,150)/100*$J$13)) -> 1501.984
C241: Summe | D241: =SUM($D$201:$D$240) -> 42620.00489

Sheet Photovoltaik
B1: Photovoltaik | E1: Photovoltaik | H1: Photovoltaik | K1: Photovoltaik | N1: Photovoltaik
C3: Wir alle haben das schon gesehen: Mal ist eine PV-Anlage in Südausrichtung, mal in Ost-West-Ausrichtung aufgeständert. Und jedes Mal mit einem anderen Aufstellwinkel.
A4: Hauptmenu | C4: Es scheint: Je nach Lust und Laune der Installateure wird aufgestellt, niemand scheint es genau zu wissen. Dabei geht hier viel Geld verloren IHR Geld.
C5: Die Lösung: | D5: Prof. Dr. Kriebel hat persönlich ein Tool erstellt, das abhängig von Längen- und Breitengrad des Aufstellortes der PV-Anlage
A6: AVP.Express | D6: zu verschiedenen Aufstellwinkeln einen Vergleich darstellt. Einen Vergleich über die Höhe der zu erwartenden Erträge. Einfach zu bedienen und exakt.
A7: AV-Planer | D7: Es wird über das gesamte Jahr für jeweils 17 Stunden am Tag der Ertrag aufaddiert, abhängig von Sonnenstand, Reflexionskoeffizienten etc.
A8: bAV | D8: Die Abschattungseffekte bei Südaufständerung sind natürlich auch berücksichtigt.
C9: MERKE: OFT IST DIE SÜDAUSRICHTUNG NICHT DIE BESTE!
A10: Cost.Average_Pos
A11: Cost.Average_Neg | C11: Bei Interesse sehr gerne melden!
A13: Immobilie.Familie | C13: Nur EIN Beispiel EINER Ergebnis-Grafik des Tools finden Sie hier. Wenn Sie sich professionell mit PV beschäftigen, können Sie jetzt endlich
D14: Ihren Kunden eine fundierte Auskunft geben. Oder haben Sie rein privates Interesse? In beiden Fällen können Sie sich gerne bei mir melden!!!!
A15: Mtl-Crashkauf
A17: Photovoltaik
A18: Produktprüfer
A20: Rechnen.komplex
A21: Rendite.GRV
A22: Rentenschätzer
A24: Steuerrechner
A26: Vergleich.ETF-LV
A27: Verluste_TopPerf
A40: Einstellungen
A45: Version: 4.21, 2K
A46: CLAUS KRIEBEL
